{"text_format":"1","workbook":"xlsx","n_sheets":1,"sheets":["POP Information"],"not_rendered":{"charts":0,"images":0,"macros":1,"external_links":0,"defined_names":5,"comments":0,"pivot_tables":0},"unopened":[],"bounds":{"document_bytes":16777216,"sheet_cells":100000,"rows_first":2000,"rows_last":500,"rows_between":2000,"halvings":0,"cell_chars":16384,"cell_head_chars":4096},"cells_cut":0,"cells_raw":0,"read":"whole","date_system":"1900"}

{"sheet":"POP Information","index":0,"n_rows":5128,"n_cols":53,"rows_kept":1125,"cut":true,"hidden":false,"merged":[[41,3,41,5],[17,1,17,5],[22,1,22,5],[24,1,24,5],[37,1,37,5],[21,0,21,5],[38,1,38,5],[25,1,25,5],[31,1,31,5],[40,3,40,5],[26,1,26,5],[28,3,28,5],[29,3,29,5],[30,1,30,5],[36,0,36,5],[23,1,23,5],[6,0,6,5],[7,0,7,5],[9,0,9,5],[15,0,15,5],[14,0,14,5],[10,0,10,5],[11,0,11,5],[8,0,8,5],[12,0,12,5],[13,0,13,5],[19,1,19,5],[16,1,16,4],[32,1,32,5],[34,3,34,5],[35,3,35,5]],"bounds":{"rows_first":500,"rows_last":125,"rows_between":500,"halvings":2}}
[null,null,null,null,null,null,null,null,null,null,null,null,null,null,null,null,null,null,null,null,null,null,null,null,null,null,null,null,null,null,null,null,null,null,null,null,null,null,null,null,null,null,null,null,"NUM_NAME","APPNUM","PROJNAME","PROJADR1","PROJCTY","PROJCNTY","PROJZIP","PTNAME","GPNAME"]
[null,null,null,null,null,null,null,null,null,null,null,null,null,null,null,null,null,null,null,null,null,null,null,null,null,null,null,null,null,null,null,null,null,null,null,null,null,null,null,null,null,null,null,null,{"$f":"CONCATENATE(AT2,\"  \",AU2)","v":"CA-1989-279  Tres Palmas Village 90-001"},"CA-1989-279","Tres Palmas Village 90-001","1631 Malan Street","Brawley","Imperial","92227","High Desert Investors","Thomas McLaughlin"]
["ReportingYear","TCACNumber","ProjectCounty","ProjectAddress","ProjectCity","ProjectState","ProjectZip","ProjectPhone","ProjectFax","PartOwnerName","TaxID","Managing GenPartnerName","Parent Company Name","MGP Address","MGPCity","MGPState","MGPZip","MGPContact","MGPPhone","MGPFax","MGPEmail",null,"Administrative GenPartnerName","Parent Company Name","AGP Address","AGPCity","AGPState","AGPZip","AGPContact","AGPPhone","AGPFax","AGPEmail",null,"ManagementName","ManagementAddress","ManagementCity","ManagementState","ManagementZip","ManagementContact","ManagementPhone","ManagementFax","ManagementEmail","DateUploaded",null,{"$f":"CONCATENATE(AT3,\"  \",AU3)","v":"CA-1990-011  Villa Los Robles"},"CA-1990-011","Villa Los Robles","473 North Los Robles Avenue","Pasadena","Los Angeles","91101","Villa Los Robles Partners LP","Robles & Villa, Inc."]
[2022,{"$f":"MID(B17,1,11)","v":""},{"$f":"B20","v":""},{"$f":"B18","v":""},{"$f":"B19","v":""},{"$f":"D19","v":""},{"$f":"F19","v":""},{"$f":"B21","v":0},{"$f":"D21","v":0},{"$f":"B23","v":""},{"$f":"B24","v":0},{"$f":"B25","v":0},{"$f":"B26","v":0},{"$f":"B27","v":0},{"$f":"B28","v":0},{"$f":"D28","v":0},{"$f":"F28","v":0},{"$f":"B29","v":0},{"$f":"B30","v":0},{"$f":"D30","v":0},{"$f":"D29","v":0},null,{"$f":"+B31","v":0},{"$f":"B32","v":0},{"$f":"+B33","v":0},{"$f":"B34","v":0},{"$f":"D34","v":0},{"$f":"F34","v":0},{"$f":"B35","v":0},{"$f":"B36","v":0},{"$f":"D36","v":0},{"$f":"D35","v":0},null,{"$f":"B38","v":0},{"$f":"B39","v":0},{"$f":"B40","v":0},{"$f":"D40","v":0},{"$f":"F40","v":0},{"$f":"B41","v":0},{"$f":"B42","v":0},{"$f":"D42","v":0},{"$f":"D41","v":0},{"$f":"F21","v":"00:00:00"},null,"CA-1990-012  Casa Loma Apartments","CA-1990-012","Casa Loma Apartments","379 South Loma Drive","Los Angeles","Los Angeles","90017","379 Loma Limited Partnership","New Economics for Women"]
["ReportingYear","TCACNumber","KatrinaUnits",null,null,null,null,null,null,null,null,null,null,null,null,null,null,null,null,null,null,null,null,null,null,null,null,null,null,null,null,null,null,null,null,null,null,null,null,null,null,null,null,null,"CA-1990-014  San Pedro Gardens","CA-1990-014","San Pedro Gardens","16716 San Luis Drive","Morgan Hill","Santa Clara","95037","San Pedro Gardens Associates, Ltd.","S.P.G. Housing, Inc."]
[2022,{"$f":"B4","v":""},{"$f":"F21","v":"00:00:00"},null,null,null,null,null,null,null,null,null,null,null,null,null,null,null,null,null,null,null,null,null,null,null,null,null,null,null,null,null,null,null,null,null,null,null,null,null,null,null,null,null,"CA-1990-018  Yucaipa Terrace","CA-1990-018","Yucaipa Terrace","12435 Sixth Street","Yucaipa","San Bernardino","92399","Housing Authority of the County of San Bernardino","Housing Authority of the County of San Bernardino"]
["California Tax Credit Allocation Committee",null,null,null,null,null,null,null,null,null,null,null,null,null,null,null,null,null,null,null,null,null,null,null,null,null,null,null,null,null,null,null,null,null,null,null,null,null,null,null,null,null,null,null,"CA-1990-030  The Willows","CA-1990-030","The Willows","50 West Edmundson Avenue","Morgan Hill","Santa Clara","95037","Edmundson Associates","Willows LLC"]
["Project Ownership Profile (POP)",null,null,null,null,null,null,null,null,null,null,null,null,null,null,null,null,null,null,null,null,null,null,null,null,null,null,null,null,null,null,null,null,null,null,null,null,null,null,null,null,null,null,null,"CA-1990-034  Dunning Apartments","CA-1990-034","Dunning Apartments","5552-54 Carlton Way","Los Angeles","Los Angeles","90028","Dunning Apartments Partnership","Hollywood Community Housing Corp."]
[2022,null,null,null,null,null,null,null,null,null,null,null,null,null,null,null,null,null,null,null,null,null,null,null,null,null,null,null,null,null,null,null,null,null,null,null,null,null,null,null,null,null,null,null,"CA-1990-035  Casa Esperanza","CA-1990-035","Casa Esperanza","206 East 23rd Street","Los Angeles","Los Angeles","90011","Casa Esperanza Limited Partnership","Casa Esperanza Holdings LLC"]
["CURRENT owner and management company contact info.",null,null,null,null,null,null,null,null,null,null,null,null,null,null,null,null,null,null,null,null,null,null,null,null,null,null,null,null,null,null,null,null,null,null,null,null,null,null,null,null,null,null,null,"CA-1990-039  Harper Community Apartments","CA-1990-039","Harper Community Apartments","1260 N. Harper Avenue","West Hollywood","Los Angeles","90046","1260 North Harper Avenue LP","West Hollywood Community Housing Corporation"]
["1. Use the <TAB> key to Navigate Fields.",null,null,null,null,null,null,null,null,null,null,null,null,null,null,null,null,null,null,null,null,null,null,null,null,null,null,null,null,null,null,null,null,null,null,null,null,null,null,null,null,null,null,null,"CA-1990-043  Crescent Hotel","CA-1990-043","Crescent Hotel","617 East Fifth Street","Los Angeles","Los Angeles","90013","Crescent Fifth Street Partners","Skid Row Housing Trust"]
["2. If the TCAC number or Property Name does not appear in the list below, contact Julio Villanueva at Julio.Villanueva@treasurer.ca.gov.",null,null,null,null,null,null,null,null,null,null,null,null,null,null,null,null,null,null,null,null,null,null,null,null,null,null,null,null,null,null,null,null,null,null,null,null,null,null,null,null,null,null,null,"CA-1990-045  St. Mark's Hotel","CA-1990-045","St. Mark's Hotel","611 East Fifth Street","Los Angeles","Los Angeles","90014","St. Marks Fifth Street Partners","Skid Row Housing Trust"]
["3. Complete all information in Light Green fields below.",null,null,null,null,null,null,null,null,null,null,null,null,null,null,null,null,null,null,null,null,null,null,null,null,null,null,null,null,null,null,null,null,null,null,null,null,null,null,null,null,null,null,null,{"$f":"CONCATENATE(AT13,\"  \",AU13)","v":"CA-1990-049  The Hart Hotel"},"CA-1990-049","The Hart Hotel","508 East Fourth Street","Los Angeles","Los Angeles","90013","Hart Limited Partnership","Skid Row Housing Trust"]
["4. Once completed, please email to:  tcac@treasurer.ca.gov",null,null,null,null,null,null,null,null,null,null,null,null,null,null,null,null,null,null,null,null,null,null,null,null,null,null,null,null,null,null,null,null,null,null,null,null,null,null,null,null,null,null,null,"CA-1990-058  Valley Ridge Senior Apartments","CA-1990-058","Valley Ridge Senior Apartments","2100 Morning Star","Shasta Lake","Shasta","96019","Central Valley Investment Group II","John P.Casper"]
["5. PLEASE DO NOT INCLUDE ANY AOC's WITH POP EMAILS",null,null,null,null,null,null,null,null,null,null,null,null,null,null,null,null,null,null,null,null,null,null,null,null,null,null,null,null,null,null,null,null,null,null,null,null,null,null,null,null,null,null,null,"CA-1990-060  Nevada City Senior Apartments","CA-1990-060","Nevada City Senior Apartments","11841 Old Tunnel Road","Nevada City","Nevada","95945","Nevada City Investment Group","John P. Casper Trust"]
["PROJECT",null,null,null,null,null,null,null,null,null,null,null,null,null,null,null,null,null,null,null,null,null,null,null,null,null,null,null,null,null,null,null,null,null,null,null,null,null,null,null,null,null,null,null,"CA-1990-061  Vintage West Apartments","CA-1990-061","Vintage West Apartments","1000 Front Street","Livingston","Merced","95334","Buttonwood Villa Ltd.","The Beneficial Housing Foundation, a California no"]
["CTCAC Number / Name:",null,null,null,null," çSelect property from the Dropdown Box",null,null,null,null,null,null,null,null,null,null,null,null,null,null,null,null,null,null,null,null,null,null,null,null,null,null,null,null,null,null,null,null,null,null,null,null,null,null,"CA-1990-066  Hendley Circle Apartments","CA-1990-066","Hendley Circle Apartments","1415 Hendley Circle","Santa Rosa","Sonoma","95404","Burbank Housing Communities Corporation","Burbank Housing Communities Corporation"]
["Address:",{"$f":"IF(B17=\"\",\"\",LOOKUP(B17,AS:AS,AV:AV))","v":""},null,null,null,null,null,null,null,null,null,null,null,null,null,null,null,null,null,null,null,null,null,null,null,null,null,null,null,null,null,null,null,null,null,null,null,null,null,null,null,null,null,null,"CA-1990-068  Greenwood-17th Street","CA-1990-068","Greenwood-17th Street","1828 17th Street","Santa Monica","Los Angeles","90401","Garcia Apartments LTD","Community Corporation of Santa Monica"]
["City:",{"$f":"IF(B17=\"\",\"\",LOOKUP(B17,AS:AS,AW:AW))","v":""},"State:",{"$f":"IF(B17=\"\",\"\",\"CA\")","v":""},"Zip:",{"$f":"IF(B17=\"\",\"\",LOOKUP(B17,AS:AS,AY:AY))","v":""},null,null,null,null,null,null,null,null,null,null,null,null,null,null,null,null,null,null,null,null,null,null,null,null,null,null,null,null,null,null,null,null,null,null,null,null,null,null,"CA-1990-076  Fox Creek","CA-1990-076","Fox Creek","1515 Valdora Street","Davis","Yolo","95616","Rosebloom Associates","WG & RP"]
["County:",{"$f":"IF(B17=\"\",\"\",LOOKUP(B17,AS:AS,AX:AX))","v":""},null,null,null,null,null,null,null,null,null,null,null,null,null,null,null,null,null,null,null,null,null,null,null,null,null,null,null,null,null,null,null,null,null,null,null,null,null,null,null,null,null,null,"CA-1990-079  Greenwood/Berkeley","CA-1990-079","Greenwood/Berkeley","1544 Berkeley Avenue","Santa Monica","Los Angeles","90401","Garcia Apartments LTD","Community Corporation of Santa Monica"]
["Onsite Phone:",null,"Onsite Fax:",null,"Date Form Completed:",null,null,null,null,null,null,null,null,null,null,null,null,null,null,null,null,null,null,null,null,null,null,null,null,null,null,null,null,null,null,null,null,null,null,null,null,null,null,null,"CA-1990-081  Heather Glen","CA-1990-081","Heather Glen","2324 Shasta Drive","Davis","Yolo","95616","Heather Glen Associates","HGA Inc."]
["PARTNERSHIP/OWNER",null,null,null,null,null,null,null,null,null,null,null,null,null,null,null,null,null,null,null,null,null,null,null,null,null,null,null,null,null,null,null,null,null,null,null,null,null,null,null,null,null,null,null,"CA-1990-086  Caulfield Lane Apartments","CA-1990-086","Caulfield Lane Apartments","1405 Caulfield Lane","Petaluma","Sonoma","94954","Caulfield Lane Senior Housing Associates","Caulfield Lane Senior Housing Inc."]
["Partnership/Owner Name:",{"$f":"IF(B17=\"\",\"\",LOOKUP(B17,AS:AS,AZ:AZ))","v":""},null,null,null,null,null,null,null,null,null,null,null,null,null,null,null,null,null,null,null,null,null,null,null,null,null,null,null,null,null,null,null,null,null,null,null,null,null,null,null,null,null,null,"CA-1990-094  Fourth Street Apartments","CA-1990-094","Fourth Street Apartments","1562 West 4th Street","Los Angeles","Los Angeles","90017","1562 4th Street Partners, L.P.","Alcole Properties II, LLC"]
["Partnership Tax ID:",null,null,null,null,null,null,null,null,null,null,null,null,null,null,null,null,null,null,null,null,null,null,null,null,null,null,null,null,null,null,null,null,null,null,null,null,null,null,null,null,null,null,null,"CA-1990-096  Greenwood/15th Street","CA-1990-096","Greenwood/15th Street","1747 15th Street","Santa Monica","Los Angeles","90401","Garcia Apartments LTD","Community Corporation of Santa Monica"]
["Managing General Partner Name:",null,null,null,null,null,null,null,null,null,null,null,null,null,null,null,null,null,null,null,null,null,null,null,null,null,null,null,null,null,null,null,null,null,null,null,null,null,null,null,null,null,null,null,"CA-1990-097  Garcia Apartments","CA-1990-097","Garcia Apartments","1968 19th Street","Santa Monica","Los Angeles","90401","Garcia Apartments LTD","Community Corporation of Santa Monica"]
["Parent Company Name:",null,null,null,null,null,null,null,null,null,null,null,null,null,null,null,null,null,null,null,null,null,null,null,null,null,null,null,null,null,null,null,null,null,null,null,null,null,null,null,null,null,null,null,"CA-1990-099  Green Valley Apartments","CA-1990-099","Green Valley Apartments","8510 Brentwood Blvd.","Brentwood","Contra Costa","94513","Brentwood Green Valley Associates. L.P.","Northern California Housing Corp."]
["Address:",null,null,null,null,null,null,null,null,null,null,null,null,null,null,null,null,null,null,null,null,null,null,null,null,null,null,null,null,null,null,null,null,null,null,null,null,null,null,null,null,null,null,null,"CA-1990-101  Embarcadero Triangle","CA-1990-101","Embarcadero Triangle","600 Embarcadero","San Francisco","San Francisco","94107","Embarcadero Triangle Associates, LP"]
["City:",null,"State:",null,"Zip:",null,null,null,null,null,null,null,null,null,null,null,null,null,null,null,null,null,null,null,null,null,null,null,null,null,null,null,null,null,null,null,null,null,null,null,null,null,null,null,"CA-1990-107  Santana Apartments","CA-1990-107","Santana Apartments","2220 10th Avenue #100","Oakland","Alameda","94606","2220 Tenth Avenue Associates","Mercy Properties, Inc."]
["Contact Name:",null,"Email:",null,null,null,null,null,null,null,null,null,null,null,null,null,null,null,null,null,null,null,null,null,null,null,null,null,null,null,null,null,null,null,null,null,null,null,null,null,null,null,null,null,"CA-1990-109  Lake Isabella Senior Apartments","CA-1990-109","Lake Isabella Senior Apartments","2701 Erskine Creek Road","Lake Isabella","Kern","93240","Lake Isabella Enterprises","John P. Casper"]
["Phone:",null,"Fax:",null,null,null,null,null,null,null,null,null,null,null,null,null,null,null,null,null,null,null,null,null,null,null,null,null,null,null,null,null,null,null,null,null,null,null,null,null,null,null,null,null,"CA-1990-110  Earlimart Senior Apartments","CA-1990-110","Earlimart Senior Apartments","1094 East Washington Avenue","Earlimart","Tulare","93219","Earlimart Enterprises","John P. Casper"]
["Administrative General Partner Name:",null,null,null,null,null,null,null,null,null,null,null,null,null,null,null,null,null,null,null,null,null,null,null,null,null,null,null,null,null,null,null,null,null,null,null,null,null,null,null,null,null,null,null,"CA-1990-111  San Joaquin Senior Apartments","CA-1990-111","San Joaquin Senior Apartments","21900 California Avenue","San Joaquin","Fresno","93660","San Joaquin Enterprises II","John P. Casper"]
["Parent Company Name:",null,null,null,null,null,null,null,null,null,null,null,null,null,null,null,null,null,null,null,null,null,null,null,null,null,null,null,null,null,null,null,null,null,null,null,null,null,null,null,null,null,null,null,"CA-1990-112  San Joaquin Apartments","CA-1990-112","San Joaquin Apartments","22200 California Avenue","San Joaquin","Fresno","93660","San Joaquin Enterprises II","John P. Casper"]
["Address:",null,null,null,null,null,null,null,null,null,null,null,null,null,null,null,null,null,null,null,null,null,null,null,null,null,null,null,null,null,null,null,null,null,null,null,null,null,null,null,null,null,null,null,"CA-1990-113  Westwood Senior Apartments","CA-1990-113","Westwood Senior Apartments","671-315 Finland Road","Westwood","Lassen","96137","Westwood Enterprises","John P. Casper"]
["City:",null,"State:",null,"Zip:",null,null,null,null,null,null,null,null,null,null,null,null,null,null,null,null,null,null,null,null,null,null,null,null,null,null,null,null,null,null,null,null,null,null,null,null,null,null,null,"CA-1990-116  Prospect Villa II Apartments","CA-1990-116","Prospect Villa II Apartments","970 Prospect Avenue","Hollister","San Benito","95023","Hollister Investment Group IV","Rural Houisng Preservation Foundation"]
["Contact Name:",null,"Email:",null,null,null,null,null,null,null,null,null,null,null,null,null,null,null,null,null,null,null,null,null,null,null,null,null,null,null,null,null,null,null,null,null,null,null,null,null,null,null,null,null,"CA-1990-123  Palmer House","CA-1990-123","Palmer House","555 E Palmer Avenue","Glendale","Los Angeles","91205","Palmer House, LP","Palmer Avenue Housing Corporation"]
["Phone:",null,"Fax:",null,null,null,null,null,null,null,null,null,null,null,null,null,null,null,null,null,null,null,null,null,null,null,null,null,null,null,null,null,null,null,null,null,null,null,null,null,null,null,null,null,"CA-1990-140  Almond Garden Family","CA-1990-140","Almond Garden Family","16240 W. Delhi Ave.","Delhi","Merced","95315","ADI Development Partners, LTD","Anthony Donovan"]
["MANAGEMENT COMPANY",null,null,null,null,null,null,null,null,null,null,null,null,null,null,null,null,null,null,null,null,null,null,null,null,null,null,null,null,null,null,null,null,null,null,null,null,null,null,null,null,null,null,null,"CA-1990-143  Bayless Garden Apartments","CA-1990-143","Bayless Garden Apartments","1865 Walnut Avenue","Red Bluff","Tehama","96080","Bayless Garden Investors","Douglas Young"]
["Management Company:",null,null,null,null,null,null,null,null,null,null,null,null,null,null,null,null,null,null,null,null,null,null,null,null,null,null,null,null,null,null,null,null,null,null,null,null,null,null,null,null,null,null,null,"CA-1990-144  Oakwood II Apartments","CA-1990-144","Oakwood II Apartments","15756 Paradise Avenue","Ivanhoe","Tulare","93235","Northwest Tulare Associates LP","Philip R. Hammand, Jr."]
["Address:",null,null,null,null,null,null,null,null,null,null,null,null,null,null,null,null,null,null,null,null,null,null,null,null,null,null,null,null,null,null,null,null,null,null,null,null,null,null,null,null,null,null,null,"CA-1990-147  Eucalyptus Garden Apartments","CA-1990-147","Eucalyptus Garden Apartments","34 Banning Street","Avalon","Los Angeles","90704","Eucalyptus Garden Investors LP","Eucalyptus Garden Investors LP"]
["City:",null,"State:",null,"Zip:",null,null,null,null,null,null,null,null,null,null,null,null,null,null,null,null,null,null,null,null,null,null,null,null,null,null,null,null,null,null,null,null,null,null,null,null,null,null,null,"CA-1990-150  Susanne B. Wilson  Residence","CA-1990-150","Susanne B. Wilson  Residence","375 South Third Street","San Jose","Santa Clara","95112","Susanne B. Wilson LLC","Susanne B. Wilson LLC"]
["Contact Name:",null,"Email:",null,null,null,null,null,null,null,null,null,null,null,null,null,null,null,null,null,null,null,null,null,null,null,null,null,null,null,null,null,null,null,null,null,null,null,null,null,null,null,null,null,"CA-1990-151  Centertown Apartments","CA-1990-151","Centertown Apartments","855 C Street","San Rafael","Marin","94901","Centertown Associates LP","Centertown, Inc."]
["Phone:",null,"Fax:",null,null,null,null,null,null,null,null,null,null,null,null,null,null,null,null,null,null,null,null,null,null,null,null,null,null,null,null,null,null,null,null,null,null,null,null,null,null,null,null,null,"CA-1990-153  Connecticut Street Court","CA-1990-153","Connecticut Street Court","1206-1228 Connecticut Street","San Francisco","San Francisco","94107","Connecticut Street Court Partners","Center Housing Development, LLC"]
[null,null,null,null,null,null,null,null,null,null,null,null,null,null,null,null,null,null,null,null,null,null,null,null,null,null,null,null,null,null,null,null,null,null,null,null,null,null,null,null,null,null,null,null,"CA-1990-154  Steamboat Point Apartments","CA-1990-154","Steamboat Point Apartments","800 The Embarcadero","San Francisco","San Francisco","94107","South Beach Family Associates","Site K, Inc"]
[null,null,null,null,null,null,null,null,null,null,null,null,null,null,null,null,null,null,null,null,null,null,null,null,null,null,null,null,null,null,null,null,null,null,null,null,null,null,null,null,null,null,null,null,"CA-1990-157  Villa Santa Clara","CA-1990-157","Villa Santa Clara","225 Third Street","Greenfield","Monterey","93927","Villa Santa Clara Partners","CHISPA, Inc"]
[null,null,null,null,null,null,null,null,null,null,null,null,null,null,null,null,null,null,null,null,null,null,null,null,null,null,null,null,null,null,null,null,null,null,null,null,null,null,null,null,null,null,null,null,{"$f":"CONCATENATE(AT45,\"  \",AU45)","v":"CA-1990-159  Hunt's Grove Apartments"},"CA-1990-159","Hunt's Grove Apartments","548 Hunt Avenue","St. Helena","Napa","94574","Hunt Avenue Associates","Hunt Avenue, Inc."]
[null,null,null,null,null,null,null,null,null,null,null,null,null,null,null,null,null,null,null,null,null,null,null,null,null,null,null,null,null,null,null,null,null,null,null,null,null,null,null,null,null,null,null,null,"CA-1990-177  Rosewood Park/Willow Glen","CA-1990-177","Rosewood Park/Willow Glen","616 Ohlone and 310 Becerra Way","Davis","Yolo","95616","Willowshade Associates L.P.","W.O.H.A. Corporation"]
[null,null,null,null,null,null,null,null,null,null,null,null,null,null,null,null,null,null,null,null,null,null,null,null,null,null,null,null,null,null,null,null,null,null,null,null,null,null,null,null,null,null,null,null,"CA-1991-020  El Centro","CA-1991-020","El Centro","1110 Pacific Avenue","Santa Cruz","Santa Cruz","95060","Centro Partners, LP","South of Market Mercy Housing"]
[null,null,null,null,null,null,null,null,null,null,null,null,null,null,null,null,null,null,null,null,null,null,null,null,null,null,null,null,null,null,null,null,null,null,null,null,null,null,null,null,null,null,null,null,"CA-1991-022  The Sanborn Hotel","CA-1991-022","The Sanborn Hotel","526 South Main Street","Los Angeles","Los Angeles","90013","Sanborn Hotel LP","Skid Row Housing Trust"]
[null,null,null,null,null,null,null,null,null,null,null,null,null,null,null,null,null,null,null,null,null,null,null,null,null,null,null,null,null,null,null,null,null,null,null,null,null,null,null,null,null,null,null,null,"CA-1991-024  Leonide Apartments","CA-1991-024","Leonide Apartments","512-516 South Main Street","Los Angeles","Los Angeles","90012","Single Room Occupancy Corporation","Single Room Occupancy Corporation"]
[null,null,null,null,null,null,null,null,null,null,null,null,null,null,null,null,null,null,null,null,null,null,null,null,null,null,null,null,null,null,null,null,null,null,null,null,null,null,null,null,null,null,null,null,"CA-1991-025  Lorin Station Plaza","CA-1991-025","Lorin Station Plaza","3253 Adeline Street","Berkeley","Alameda","94703","Lorin Station Associates, LP","South Berkeley Development Corporation"]
[null,null,null,null,null,null,null,null,null,null,null,null,null,null,null,null,null,null,null,null,null,null,null,null,null,null,null,null,null,null,null,null,null,null,null,null,null,null,null,null,null,null,null,null,"CA-1991-026  East of Eaton","CA-1991-026","East of Eaton","1577 East Lassen Avenue","Chico","Butte","95973","Eaton Housing Improvement Program, a CA LP","Eaton Housing, Inc."]
[null,null,null,null,null,null,null,null,null,null,null,null,null,null,null,null,null,null,null,null,null,null,null,null,null,null,null,null,null,null,null,null,null,null,null,null,null,null,null,null,null,null,null,null,"CA-1991-027  Coyote Run Apartments","CA-1991-027","Coyote Run Apartments","3601 N. Sunrise Way","Palm Springs","Riverside","92262","Coyote Springs Apartment Associates","Coyote Springs Apartments, Inc."]
[null,null,null,null,null,null,null,null,null,null,null,null,null,null,null,null,null,null,null,null,null,null,null,null,null,null,null,null,null,null,null,null,null,null,null,null,null,null,null,null,null,null,null,null,"CA-1991-028  Del Carlo Court","CA-1991-028","Del Carlo Court","3330 Army Street","San Francisco","San Francisco","94110","Del Carlo Associates","Del Carlo Court, Inc."]
[null,null,null,null,null,null,null,null,null,null,null,null,null,null,null,null,null,null,null,null,null,null,null,null,null,null,null,null,null,null,null,null,null,null,null,null,null,null,null,null,null,null,null,null,"CA-1991-031  111 Jones Street Apartments","CA-1991-031","111 Jones Street Apartments","111 Jones Street","San Francisco","San Francisco","94102","111 Jones Associates, L. P.","Mercy Properties Inc."]
[null,null,null,null,null,null,null,null,null,null,null,null,null,null,null,null,null,null,null,null,null,null,null,null,null,null,null,null,null,null,null,null,null,null,null,null,null,null,null,null,null,null,null,null,"CA-1991-032  La Gema Del Barrio","CA-1991-032","La Gema Del Barrio","638-642 East Adams","Santa Ana","Orange","92707","La Gema Del Barrio Ltd. Ptnership","Civic Center Barrio Housing Corporation"]
[null,null,null,null,null,null,null,null,null,null,null,null,null,null,null,null,null,null,null,null,null,null,null,null,null,null,null,null,null,null,null,null,null,null,null,null,null,null,null,null,null,null,null,null,"CA-1991-038  Eleventh Avenue Apartments","CA-1991-038","Eleventh Avenue Apartments","6726 Eleventh Avenue","Los Angeles","Los Angeles","90043","6720 Eleventh Avenue Partners, L.P.","Ausar Economic Development Corporation"]
[null,null,null,null,null,null,null,null,null,null,null,null,null,null,null,null,null,null,null,null,null,null,null,null,null,null,null,null,null,null,null,null,null,null,null,null,null,null,null,null,null,null,null,null,"CA-1991-046  Tierra Del Vista Apartments","CA-1991-046","Tierra Del Vista Apartments","16530 Palmer Avenue","Huron","Fresno","93234","Tierra Del Vista I Ltd","Philip R. Hammond, Jr."]
[null,null,null,null,null,null,null,null,null,null,null,null,null,null,null,null,null,null,null,null,null,null,null,null,null,null,null,null,null,null,null,null,null,null,null,null,null,null,null,null,null,null,null,null,"CA-1991-049  Villa Del Rey Apartments","CA-1991-049","Villa Del Rey Apartments","244 South Ventura Avenue","Farmersville","Tulare","93223","Villa Del Rey Associates","Azteca Group LLC"]
[null,null,null,null,null,null,null,null,null,null,null,null,null,null,null,null,null,null,null,null,null,null,null,null,null,null,null,null,null,null,null,null,null,null,null,null,null,null,null,null,null,null,null,null,"CA-1991-059  Sultana Acres","CA-1991-059","Sultana Acres","41692 to 41796 Road 105","Sultana","Tulare","93666","Kaweah Management Company","Kaweah Management Co."]
[null,null,null,null,null,null,null,null,null,null,null,null,null,null,null,null,null,null,null,null,null,null,null,null,null,null,null,null,null,null,null,null,null,null,null,null,null,null,null,null,null,null,null,null,"CA-1991-060  Casa Gloria","CA-1991-060","Casa Gloria","1450 W Temple St","Los Angeles","Los Angeles","90015","Casa Gloria Limited Partnership","El Pueblo Community Development Corporation"]
[null,null,null,null,null,null,null,null,null,null,null,null,null,null,null,null,null,null,null,null,null,null,null,null,null,null,null,null,null,null,null,null,null,null,null,null,null,null,null,null,null,null,null,null,"CA-1991-061  Henderson Homes","CA-1991-061","Henderson Homes","3804 Wisconsin Street","Los Angeles","Los Angeles","90037","3804 Wisconsin Street Partners, LP","Community Resource Talent Developement"]
[null,null,null,null,null,null,null,null,null,null,null,null,null,null,null,null,null,null,null,null,null,null,null,null,null,null,null,null,null,null,null,null,null,null,null,null,null,null,null,null,null,null,null,null,"CA-1991-063  Robinson Villa","CA-1991-063","Robinson Villa","3845 Wisconsin Street","Los Angeles","Los Angeles","90037","3839 Wisconsin St. Apartments","Community Resource Talent Developement"]
[null,null,null,null,null,null,null,null,null,null,null,null,null,null,null,null,null,null,null,null,null,null,null,null,null,null,null,null,null,null,null,null,null,null,null,null,null,null,null,null,null,null,null,null,"CA-1991-081  Santa Familia","CA-1991-081","Santa Familia","4984 Severance Drive","San Jose","Santa Clara","95136","Holy Family Associates","Mid-Peninsula Holy Family Corporation"]
[null,null,null,null,null,null,null,null,null,null,null,null,null,null,null,null,null,null,null,null,null,null,null,null,null,null,null,null,null,null,null,null,null,null,null,null,null,null,null,null,null,null,null,null,"CA-1991-082  Willow Court Phase I","CA-1991-082","Willow Court Phase I","1105 and 1141 Willow Road","Menlo Park","San Mateo","94025","EPA Woodlands Associates","Mid-Pen Housing Woodlands Corporation"]
[null,null,null,null,null,null,null,null,null,null,null,null,null,null,null,null,null,null,null,null,null,null,null,null,null,null,null,null,null,null,null,null,null,null,null,null,null,null,null,null,null,null,null,null,"CA-1991-083  The Farm","CA-1991-083","The Farm","3120 Cunnison Lane","Soquel","Santa Cruz","95073","The Farm Associates, L.P.","Mid-Peninsula Ginzton Street, Inc."]
[null,null,null,null,null,null,null,null,null,null,null,null,null,null,null,null,null,null,null,null,null,null,null,null,null,null,null,null,null,null,null,null,null,null,null,null,null,null,null,null,null,null,null,null,"CA-1991-084  Open Doors","CA-1991-084","Open Doors","634 West Parr Avenue","Los Gatos","Santa Clara","95030","Open Doors Associates","Mid-Peninsula Ginzton, Inc."]
[null,null,null,null,null,null,null,null,null,null,null,null,null,null,null,null,null,null,null,null,null,null,null,null,null,null,null,null,null,null,null,null,null,null,null,null,null,null,null,null,null,null,null,null,{"$f":"CONCATENATE(AT67,\"  \",AU67)","v":"CA-1991-102  Daybreak Grove/Sunrise Place"},"CA-1991-102","Daybreak Grove/Sunrise Place","1245 Grand Avenue/1252 Washington Avenue","Escondido","San Diego","92027","Daybreak Housing Partnership, L.P.","Escondido Family Housing Corporation"]
[null,null,null,null,null,null,null,null,null,null,null,null,null,null,null,null,null,null,null,null,null,null,null,null,null,null,null,null,null,null,null,null,null,null,null,null,null,null,null,null,null,null,null,null,"CA-1991-103  Arlington Rodeo Apartments","CA-1991-103","Arlington Rodeo Apartments","3804 South Arlington Avenue","Los Angeles","Los Angeles","90008","Arlington-Rodeo Properties Ltd.","Central City Economic Development Corportation"]
[null,null,null,null,null,null,null,null,null,null,null,null,null,null,null,null,null,null,null,null,null,null,null,null,null,null,null,null,null,null,null,null,null,null,null,null,null,null,null,null,null,null,null,null,"CA-1991-104  Korean Youth Center Apts","CA-1991-104","Korean Youth Center Apts","3987 West Seventh Street","Los Angeles","Los Angeles","90005","Korean Youth Center Ltd., a CA L.P.","Koreatown Youth & Community Center, Incorporated"]
[null,null,null,null,null,null,null,null,null,null,null,null,null,null,null,null,null,null,null,null,null,null,null,null,null,null,null,null,null,null,null,null,null,null,null,null,null,null,null,null,null,null,null,null,"CA-1991-107  Virginia Village","CA-1991-107","Virginia Village","2425 Virginia Avenue","Santa Monica","Los Angeles","90401","Virginia Village Ltd.","Community Corporation of Santa Monica"]
[null,null,null,null,null,null,null,null,null,null,null,null,null,null,null,null,null,null,null,null,null,null,null,null,null,null,null,null,null,null,null,null,null,null,null,null,null,null,null,null,null,null,null,null,"CA-1991-108  La Playa","CA-1991-108","La Playa","218 Leibrandt Street","Santa Cruz","Santa Cruz","95060","Riverside Liebrandt Partners","South of Market Mercy Housing"]
[null,null,null,null,null,null,null,null,null,null,null,null,null,null,null,null,null,null,null,null,null,null,null,null,null,null,null,null,null,null,null,null,null,null,null,null,null,null,null,null,null,null,null,null,"CA-1991-133  Park Village Apartments","CA-1991-133","Park Village Apartments","1246, 1256 Third Avenue","Chula Vista","San Diego","91911","Park Village Apts. LP","Civic Center Barrio Housing Corporation"]
[null,null,null,null,null,null,null,null,null,null,null,null,null,null,null,null,null,null,null,null,null,null,null,null,null,null,null,null,null,null,null,null,null,null,null,null,null,null,null,null,null,null,null,null,"CA-1991-134  Raitt Street Apartments","CA-1991-134","Raitt Street Apartments","201, 271 North Raitt Street","Santa Ana","Orange","92703","Raitt Street Apartments / Casa Civico","Civic Center Barrio Housing Corporation"]
[null,null,null,null,null,null,null,null,null,null,null,null,null,null,null,null,null,null,null,null,null,null,null,null,null,null,null,null,null,null,null,null,null,null,null,null,null,null,null,null,null,null,null,null,"CA-1991-137  San Felipe Homes","CA-1991-137","San Felipe Homes","690-730 N Herbert Ave","Los Angeles","Los Angeles","90063","San Felipe Homes L.P.","Mercy Properties, Inc."]
[null,null,null,null,null,null,null,null,null,null,null,null,null,null,null,null,null,null,null,null,null,null,null,null,null,null,null,null,null,null,null,null,null,null,null,null,null,null,null,null,null,null,null,null,"CA-1991-169  Dinuba Manor","CA-1991-169","Dinuba Manor","1333 South Greene","Dinuba","Tulare","93221","Dinuba Manor Ltd","SHE_CEF1 Inc."]
[null,null,null,null,null,null,null,null,null,null,null,null,null,null,null,null,null,null,null,null,null,null,null,null,null,null,null,null,null,null,null,null,null,null,null,null,null,null,null,null,null,null,null,null,"CA-1991-171  San Pablo Suites","CA-1991-171","San Pablo Suites","2551 San Pablo Avenue","Oakland","Alameda","94612","WJS Property, a California corporation","William Choi"]
[null,null,null,null,null,null,null,null,null,null,null,null,null,null,null,null,null,null,null,null,null,null,null,null,null,null,null,null,null,null,null,null,null,null,null,null,null,null,null,null,null,null,null,null,"CA-1991-173  Norwood Estates","CA-1991-173","Norwood Estates","3335 Norwood Avenue","Sacramento","Sacramento","95838","Norwood Housing Associates, a California LP","Mutual Housing Corporation"]
[null,null,null,null,null,null,null,null,null,null,null,null,null,null,null,null,null,null,null,null,null,null,null,null,null,null,null,null,null,null,null,null,null,null,null,null,null,null,null,null,null,null,null,null,"CA-1991-175  Pinewood Manor Apartments","CA-1991-175","Pinewood Manor Apartments","725 Pinewood Court","Williams","Colusa","95987","Pinewood Manor Ltd.","Pinewood Manor-Michaels (PAM) LLC"]
[null,null,null,null,null,null,null,null,null,null,null,null,null,null,null,null,null,null,null,null,null,null,null,null,null,null,null,null,null,null,null,null,null,null,null,null,null,null,null,null,null,null,null,null,"CA-1991-185  Willowbrook Apartments","CA-1991-185","Willowbrook Apartments","1756 Willowbrook Drive","Merced","Merced","95348","M & R Associates","Guy Maxwell"]
[null,null,null,null,null,null,null,null,null,null,null,null,null,null,null,null,null,null,null,null,null,null,null,null,null,null,null,null,null,null,null,null,null,null,null,null,null,null,null,null,null,null,null,null,"CA-1991-186  Cottonwood Grove","CA-1991-186","Cottonwood Grove","732 North Clovis Avenue","Clovis","Fresno","93611","Cottonwood Grove LTD","Central Valley Coalition for Affordable Housing"]
[null,null,null,null,null,null,null,null,null,null,null,null,null,null,null,null,null,null,null,null,null,null,null,null,null,null,null,null,null,null,null,null,null,null,null,null,null,null,null,null,null,null,null,null,"CA-1991-187  Sequoia Knolls","CA-1991-187","Sequoia Knolls","3207 West Shields Avenue","Fresno","Fresno","93722","Sequoia Knolls, LP","AAM, LLC"]
[null,null,null,null,null,null,null,null,null,null,null,null,null,null,null,null,null,null,null,null,null,null,null,null,null,null,null,null,null,null,null,null,null,null,null,null,null,null,null,null,null,null,null,null,"CA-1991-191  Childs Avenue Apartments","CA-1991-191","Childs Avenue Apartments","1296 West First Street","Merced","Merced","95340","Childs Avenue Limited Partnership","Central Valley Coalition for Affordable Housing"]
[null,null,null,null,null,null,null,null,null,null,null,null,null,null,null,null,null,null,null,null,null,null,null,null,null,null,null,null,null,null,null,null,null,null,null,null,null,null,null,null,null,null,null,null,"CA-1991-192  Oakdale Senior Center","CA-1991-192","Oakdale Senior Center","470 East A Street","Oakdale","Stanislaus","95361","Oakdale Senior Housing","Oakdale Senior Housing Corp."]
[null,null,null,null,null,null,null,null,null,null,null,null,null,null,null,null,null,null,null,null,null,null,null,null,null,null,null,null,null,null,null,null,null,null,null,null,null,null,null,null,null,null,null,null,"CA-1992-001  Crescent Arms","CA-1992-001","Crescent Arms","1709 W. 8th Street + B26","Los Angeles","Los Angeles","90017","Fremont Building Limited Partnership","Abode Communities"]
[null,null,null,null,null,null,null,null,null,null,null,null,null,null,null,null,null,null,null,null,null,null,null,null,null,null,null,null,null,null,null,null,null,null,null,null,null,null,null,null,null,null,null,null,"CA-1992-005  Rohit Villas","CA-1992-005","Rohit Villas","122 E. 120th Street","Los Angeles","Los Angeles","90061","Rohit Villas LP","Integrated Community Builders, Inc."]
[null,null,null,null,null,null,null,null,null,null,null,null,null,null,null,null,null,null,null,null,null,null,null,null,null,null,null,null,null,null,null,null,null,null,null,null,null,null,null,null,null,null,null,null,"CA-1992-006  Cottage Gardens Apts.","CA-1992-006","Cottage Gardens Apts.","227 West De La Guerra St.","Santa Barbara","Santa Barbara","93101","Housing Authority of the City of Santa Barbara","Housing Authority of the City of Santa Barbara"]
[null,null,null,null,null,null,null,null,null,null,null,null,null,null,null,null,null,null,null,null,null,null,null,null,null,null,null,null,null,null,null,null,null,null,null,null,null,null,null,null,null,null,null,null,"CA-1992-007  Monte Vista Apts.","CA-1992-007","Monte Vista Apts.","714 E. Elk Street","Glendale","Los Angeles","91205","Monte Vista Housing Associates L.P.","Monte Vista Housing Foundation"]
[null,null,null,null,null,null,null,null,null,null,null,null,null,null,null,null,null,null,null,null,null,null,null,null,null,null,null,null,null,null,null,null,null,null,null,null,null,null,null,null,null,null,null,null,"CA-1992-008  Sunshine Financial Group","CA-1992-008","Sunshine Financial Group","2303-2311 Yerba/2304-2318 Park","Selma","Fresno","93662","David O. Hernandez","David O. Hernandez"]
[null,null,null,null,null,null,null,null,null,null,null,null,null,null,null,null,null,null,null,null,null,null,null,null,null,null,null,null,null,null,null,null,null,null,null,null,null,null,null,null,null,null,null,null,"CA-1992-010  Kristine Apartments","CA-1992-010","Kristine Apartments","2901 Virginia Avenue","Bakersfield","Kern","93307","Kristine Housing Partners, L.P.","FFAH V Kristine Apartments, LLC"]
[null,null,null,null,null,null,null,null,null,null,null,null,null,null,null,null,null,null,null,null,null,null,null,null,null,null,null,null,null,null,null,null,null,null,null,null,null,null,null,null,null,null,null,null,"CA-1992-012  Tegeler Hotel","CA-1992-012","Tegeler Hotel","1908 H Street","Bakersfield","Kern","93301","Tegeler Hotel Investors, LP","Tegeler Hotel Investors, LP"]
[null,null,null,null,null,null,null,null,null,null,null,null,null,null,null,null,null,null,null,null,null,null,null,null,null,null,null,null,null,null,null,null,null,null,null,null,null,null,null,null,null,null,null,null,"CA-1992-013  Twin Pines Apts.","CA-1992-013","Twin Pines Apts.","19611 Elder Lane","Groveland","Tuolumne","95321","Twin Pines Associates, LP","Community Housing Assistance Program, Inc."]
[null,null,null,null,null,null,null,null,null,null,null,null,null,null,null,null,null,null,null,null,null,null,null,null,null,null,null,null,null,null,null,null,null,null,null,null,null,null,null,null,null,null,null,null,"CA-1992-017  Cypress Cove","CA-1992-017","Cypress Cove","1501 East Cypress Avenue","Tulare","Tulare","93274","Cypress Cove Associates","Kaweah Management Company, Inc."]
[null,null,null,null,null,null,null,null,null,null,null,null,null,null,null,null,null,null,null,null,null,null,null,null,null,null,null,null,null,null,null,null,null,null,null,null,null,null,null,null,null,null,null,null,"CA-1992-018  Laurel/Norton Inter-generational Community Apartme","CA-1992-018","Laurel/Norton Inter-generational Community Apartme","1217 North Laurel Avenue","West Hollywood","Los Angeles","90046","Laurel-Norton Limited Partnership","West Hollywood Community Housing Corporation"]
[null,null,null,null,null,null,null,null,null,null,null,null,null,null,null,null,null,null,null,null,null,null,null,null,null,null,null,null,null,null,null,null,null,null,null,null,null,null,null,null,null,null,null,null,"CA-1992-019  Produce Place","CA-1992-019","Produce Place","676 South Central Avenue","Los Angeles","Los Angeles","90021","Produce Apartments Limited Partnership","Skid Row Housing Trust"]
[null,null,null,null,null,null,null,null,null,null,null,null,null,null,null,null,null,null,null,null,null,null,null,null,null,null,null,null,null,null,null,null,null,null,null,null,null,null,null,null,null,null,null,null,"CA-1992-021  Senator Hotel","CA-1992-021","Senator Hotel","729 South Main Street","Los Angeles","Los Angeles","90013","Senator Apts. Limited Partnership","Skid Row Housing Trust"]
[null,null,null,null,null,null,null,null,null,null,null,null,null,null,null,null,null,null,null,null,null,null,null,null,null,null,null,null,null,null,null,null,null,null,null,null,null,null,null,null,null,null,null,null,"CA-1992-022  Villa Esperanza","CA-1992-022","Villa Esperanza","255 East 28th Street","Los Angeles","Los Angeles","90011","Villa Esperanza Limited Partnership","Casa Esperanza Holdings LLC"]
[null,null,null,null,null,null,null,null,null,null,null,null,null,null,null,null,null,null,null,null,null,null,null,null,null,null,null,null,null,null,null,null,null,null,null,null,null,null,null,null,null,null,null,null,"CA-1992-023  Marion Hotel","CA-1992-023","Marion Hotel","642 S. Crocker St.","Los Angeles","Los Angeles","90021","Crocker Street Partners L.P.","Skid Row Development Corporation"]
[null,null,null,null,null,null,null,null,null,null,null,null,null,null,null,null,null,null,null,null,null,null,null,null,null,null,null,null,null,null,null,null,null,null,null,null,null,null,null,null,null,null,null,null,"CA-1992-024  Second Street Center","CA-1992-024","Second Street Center","1423 2nd Street","Santa Monica","Los Angeles","90401","Second Street, LP","Community Corporation of Santa Monica"]
[null,null,null,null,null,null,null,null,null,null,null,null,null,null,null,null,null,null,null,null,null,null,null,null,null,null,null,null,null,null,null,null,null,null,null,null,null,null,null,null,null,null,null,null,"CA-1992-025  Parke Los Robles","CA-1992-025","Parke Los Robles","626 N. Los Robles Ave.","Pasadena","Los Angeles","91101","628 N. Los Robles Partners","Los Robles Development Corporation"]
[null,null,null,null,null,null,null,null,null,null,null,null,null,null,null,null,null,null,null,null,null,null,null,null,null,null,null,null,null,null,null,null,null,null,null,null,null,null,null,null,null,null,null,null,"CA-1992-026  Hope West Apartments","CA-1992-026","Hope West Apartments","1231 West Blvd.","Los Angeles","Los Angeles","90019","Hope-Net","Hope-Net"]
[null,null,null,null,null,null,null,null,null,null,null,null,null,null,null,null,null,null,null,null,null,null,null,null,null,null,null,null,null,null,null,null,null,null,null,null,null,null,null,null,null,null,null,null,"CA-1992-028  Crescent Court","CA-1992-028","Crescent Court","1412 W. 12th Street","Los Angeles","Los Angeles","90015","Crescent Court Limited Partnership","La Cienega Lomod, Inc."]
[null,null,null,null,null,null,null,null,null,null,null,null,null,null,null,null,null,null,null,null,null,null,null,null,null,null,null,null,null,null,null,null,null,null,null,null,null,null,null,null,null,null,null,null,"CA-1992-033  Grosman Apartments","CA-1992-033","Grosman Apartments","1289 Martha Way","Santa Rosa","Sonoma","95405","Grosman Apartment Investors, LP","Martha Way, Inc."]
[null,null,null,null,null,null,null,null,null,null,null,null,null,null,null,null,null,null,null,null,null,null,null,null,null,null,null,null,null,null,null,null,null,null,null,null,null,null,null,null,null,null,null,null,"CA-1992-037  Young Apartments","CA-1992-037","Young Apartments","1621 S Grand Ave.","Los Angeles","Los Angeles","90015","Grand Avenue Apartments Limited Ptship","Abode Communities"]
[null,null,null,null,null,null,null,null,null,null,null,null,null,null,null,null,null,null,null,null,null,null,null,null,null,null,null,null,null,null,null,null,null,null,null,null,null,null,null,null,null,null,null,null,"CA-1992-039  Navy Blue Apartments","CA-1992-039","Navy Blue Apartments","102 Navy Street","Venice","Los Angeles","90291","Navy Blue Apts Ltd.","Venice Community Housing Corporation"]
[null,null,null,null,null,null,null,null,null,null,null,null,null,null,null,null,null,null,null,null,null,null,null,null,null,null,null,null,null,null,null,null,null,null,null,null,null,null,null,null,null,null,null,null,"CA-1992-040  Ross Gardens Apartments","CA-1992-040","Ross Gardens Apartments","2533 North Marks Ave.","Fresno","Fresno","93722","Ross Gardens Limited Partnership","Cesar Chavez Foundation"]
[null,null,null,null,null,null,null,null,null,null,null,null,null,null,null,null,null,null,null,null,null,null,null,null,null,null,null,null,null,null,null,null,null,null,null,null,null,null,null,null,null,null,null,null,"CA-1992-043  FAME Manor","CA-1992-043","FAME Manor","3210 West Adams Blvd.","Los Angeles","Los Angeles","90018","FAME Manor, LP","FAME Housing Corporation"]
[null,null,null,null,null,null,null,null,null,null,null,null,null,null,null,null,null,null,null,null,null,null,null,null,null,null,null,null,null,null,null,null,null,null,null,null,null,null,null,null,null,null,null,null,"CA-1992-044  FAME Gardens","CA-1992-044","FAME Gardens","3730 West 20th Street","Los Angeles","Los Angeles","90018","FAME Gardens Limited Partnership","0"]
[null,null,null,null,null,null,null,null,null,null,null,null,null,null,null,null,null,null,null,null,null,null,null,null,null,null,null,null,null,null,null,null,null,null,null,null,null,null,null,null,null,null,null,null,"CA-1992-050  Jacob's Square","CA-1992-050","Jacob's Square","301 Jacobs Place","Exeter","Tulare","93221","Jacob's Square Associates, a CA LP","Philip R. Hammond, Jr."]
[null,null,null,null,null,null,null,null,null,null,null,null,null,null,null,null,null,null,null,null,null,null,null,null,null,null,null,null,null,null,null,null,null,null,null,null,null,null,null,null,null,null,null,null,"CA-1992-052  Courtland Hotel","CA-1992-052","Courtland Hotel","520 South Wall Street","Los Angeles","Los Angeles","90014","Courtland Hotel Limited Partnership","Single Room Occupancy Corporation"]
[null,null,null,null,null,null,null,null,null,null,null,null,null,null,null,null,null,null,null,null,null,null,null,null,null,null,null,null,null,null,null,null,null,null,null,null,null,null,null,null,null,null,null,null,"CA-1992-054  Regency 50","CA-1992-054","Regency 50","14540 Blythe Street","Panorama City","Los Angeles","91402","Latin American Civic Association","Latin American Civic Association of San Fernando V"]
[null,null,null,null,null,null,null,null,null,null,null,null,null,null,null,null,null,null,null,null,null,null,null,null,null,null,null,null,null,null,null,null,null,null,null,null,null,null,null,null,null,null,null,null,"CA-1992-056  Norbo Hotel","CA-1992-056","Norbo Hotel","526 E. 6th Street","Los Angeles","Los Angeles","90021","Norbo Hotel Partners LP","Skid Row Development Corporation"]
[null,null,null,null,null,null,null,null,null,null,null,null,null,null,null,null,null,null,null,null,null,null,null,null,null,null,null,null,null,null,null,null,null,null,null,null,null,null,null,null,null,null,null,null,"CA-1992-058  Hacienda Townhomes","CA-1992-058","Hacienda Townhomes","350 17th Street","San Diego","San Diego","92101","Hacienda Townhomes Ltd.","Occupational Training Services"]
[null,null,null,null,null,null,null,null,null,null,null,null,null,null,null,null,null,null,null,null,null,null,null,null,null,null,null,null,null,null,null,null,null,null,null,null,null,null,null,null,null,null,null,null,"CA-1992-059  La Brea/Franklin Apartments","CA-1992-059","La Brea/Franklin Apartments","1801 N La Brea Ave.","Los Angeles","Los Angeles","90046","La Brea/Franklin Housing, LP","Thomas Safran & Associates"]
[null,null,null,null,null,null,null,null,null,null,null,null,null,null,null,null,null,null,null,null,null,null,null,null,null,null,null,null,null,null,null,null,null,null,null,null,null,null,null,null,null,null,null,null,"CA-1992-061  Nevada Meadows","CA-1992-061","Nevada Meadows","11825 Old Tunnell Rd.","Grass Valley","Nevada","95945","Nevada Meadows, LP","AHDF-Nevada Meadows-Commons G/P, LLC"]
[null,null,null,null,null,null,null,null,null,null,null,null,null,null,null,null,null,null,null,null,null,null,null,null,null,null,null,null,null,null,null,null,null,null,null,null,null,null,null,null,null,null,null,null,"CA-1992-071  Hillview Glen Apartments","CA-1992-071","Hillview Glen Apartments","3210 Pearl Ave","San Jose","Santa Clara","95136","Hillview Glen Limited Partnership","Eden Development Inc"]
[null,null,null,null,null,null,null,null,null,null,null,null,null,null,null,null,null,null,null,null,null,null,null,null,null,null,null,null,null,null,null,null,null,null,null,null,null,null,null,null,null,null,null,null,"CA-1992-072  Marina Apts","CA-1992-072","Marina Apts","722 South Coronado Street","Los Angeles","Los Angeles","90057","722 Coronado, L.P.","RCC MGP LLC"]
[null,null,null,null,null,null,null,null,null,null,null,null,null,null,null,null,null,null,null,null,null,null,null,null,null,null,null,null,null,null,null,null,null,null,null,null,null,null,null,null,null,null,null,null,"CA-1992-073  Mercedes Apts","CA-1992-073","Mercedes Apts","727 South Carondelet St.","Los Angeles","Los Angeles","90057","727 Carondelet, L.P.","RCC MGP LLC"]
[null,null,null,null,null,null,null,null,null,null,null,null,null,null,null,null,null,null,null,null,null,null,null,null,null,null,null,null,null,null,null,null,null,null,null,null,null,null,null,null,null,null,null,null,"CA-1992-075  Minna Street Apartments","CA-1992-075","Minna Street Apartments","518 Minna Street","San Francisco","San Francisco","94103","Minna Street Associates","ASIAN, Inc."]
[null,null,null,null,null,null,null,null,null,null,null,null,null,null,null,null,null,null,null,null,null,null,null,null,null,null,null,null,null,null,null,null,null,null,null,null,null,null,null,null,null,null,null,null,"CA-1992-079  Silver Birch Apts.","CA-1992-079","Silver Birch Apts.","16800 Fifth Street","Huron","Fresno","93234","Silver Birch Assoicates","Philip R. Hammand, Jr."]
[null,null,null,null,null,null,null,null,null,null,null,null,null,null,null,null,null,null,null,null,null,null,null,null,null,null,null,null,null,null,null,null,null,null,null,null,null,null,null,null,null,null,null,null,"CA-1992-090  Tlaquepaque","CA-1992-090","Tlaquepaque","51-354 Tyler St.","Coachella","Riverside","92236","Tlaquepaque Apartments, LLC","Tlaquepaque Housing Corporation"]
[null,null,null,null,null,null,null,null,null,null,null,null,null,null,null,null,null,null,null,null,null,null,null,null,null,null,null,null,null,null,null,null,null,null,null,null,null,null,null,null,null,null,null,null,"CA-1992-097  Colden Oaks","CA-1992-097","Colden Oaks","225 W. Colden Avenue","Los Angeles","Los Angeles","90003","Colden Oaks CLP","Heavenly Vision Economic Development Corporation"]
[null,null,null,null,null,null,null,null,null,null,null,null,null,null,null,null,null,null,null,null,null,null,null,null,null,null,null,null,null,null,null,null,null,null,null,null,null,null,null,null,null,null,null,null,"CA-1992-100  The Terraces at Capitol Park","CA-1992-100","The Terraces at Capitol Park","1615 'O' Street","Sacramento","Sacramento","95814","Sixteenth and \"O\" Street, A CA Limited Partnership","Sixteenth and \"O\" Street, A CA Limited Partnership"]
[null,null,null,null,null,null,null,null,null,null,null,null,null,null,null,null,null,null,null,null,null,null,null,null,null,null,null,null,null,null,null,null,null,null,null,null,null,null,null,null,null,null,null,null,"CA-1992-101  Le Grand Apartments","CA-1992-101","Le Grand Apartments","13171 East Brice Street","Le Grand","Merced","95333","Le Grand Enterprises. Ltd.","John P. Casper"]
[null,null,null,null,null,null,null,null,null,null,null,null,null,null,null,null,null,null,null,null,null,null,null,null,null,null,null,null,null,null,null,null,null,null,null,null,null,null,null,null,null,null,null,null,"CA-1992-107  Witmer City Lights","CA-1992-107","Witmer City Lights","319 S Witmer Street","Los Angeles","Los Angeles","90017","Witmer City Light Associates","Korean Health Education, Information and Research"]
[null,null,null,null,null,null,null,null,null,null,null,null,null,null,null,null,null,null,null,null,null,null,null,null,null,null,null,null,null,null,null,null,null,null,null,null,null,null,null,null,null,null,null,null,"CA-1992-112  La Pradera","CA-1992-112","La Pradera","38 Brannan Street","Calistoga","Napa","94515","Calistoga Brannan Housing Associates","Calistoga Brannan Housing, Inc."]
[null,null,null,null,null,null,null,null,null,null,null,null,null,null,null,null,null,null,null,null,null,null,null,null,null,null,null,null,null,null,null,null,null,null,null,null,null,null,null,null,null,null,null,null,"CA-1992-113  Almaden Lake Apartments","CA-1992-113","Almaden Lake Apartments","978 Almaden Lake Dr","San Jose","Santa Clara","95123","Winfield Hill Associates","Winfield Hill, LLC"]
[null,null,null,null,null,null,null,null,null,null,null,null,null,null,null,null,null,null,null,null,null,null,null,null,null,null,null,null,null,null,null,null,null,null,null,null,null,null,null,null,null,null,null,null,"CA-1992-127  Beverly City Lights","CA-1992-127","Beverly City Lights","107 S Carondelet St","Los Angeles","Los Angeles","90057","Beverly City Light Associates","Korean Health Education, Information and Research"]
[null,null,null,null,null,null,null,null,null,null,null,null,null,null,null,null,null,null,null,null,null,null,null,null,null,null,null,null,null,null,null,null,null,null,null,null,null,null,null,null,null,null,null,null,"CA-1992-132  Mercado Apartments","CA-1992-132","Mercado Apartments","2001 Newton Avenue","San Diego","San Diego","92113","Mercado Apartments L.P.","MAAC Project"]
[null,null,null,null,null,null,null,null,null,null,null,null,null,null,null,null,null,null,null,null,null,null,null,null,null,null,null,null,null,null,null,null,null,null,null,null,null,null,null,null,null,null,null,null,"CA-1992-135  Tuscany Villas [Villa Calabria]","CA-1992-135","Tuscany Villas [Villa Calabria]","2626 East Eighth St. and 2537 East Eighth St.","Davis","Yolo","95616","Tuscany Associates L.P.","T.V.H.A. Corporation"]
[null,null,null,null,null,null,null,null,null,null,null,null,null,null,null,null,null,null,null,null,null,null,null,null,null,null,null,null,null,null,null,null,null,null,null,null,null,null,null,null,null,null,null,null,"CA-1992-140  Larkin Pine Senior Housing","CA-1992-140","Larkin Pine Senior Housing","1303 Larkin St","San Francisco","San Francisco","94109","Larkin Pine Limited Partnership","Larkin Pine Senior Housing Corp."]
[null,null,null,null,null,null,null,null,null,null,null,null,null,null,null,null,null,null,null,null,null,null,null,null,null,null,null,null,null,null,null,null,null,null,null,null,null,null,null,null,null,null,null,null,{"$f":"CONCATENATE(AT131,\"  \",AU131)","v":"CA-1992-141  1028 Howard Street Apartments"},"CA-1992-141","1028 Howard Street Apartments","1028 Howard Street","San Francisco","San Francisco","94103","1028 Howard Street, LLC","Mercy Housing Calwest"]
[null,null,null,null,null,null,null,null,null,null,null,null,null,null,null,null,null,null,null,null,null,null,null,null,null,null,null,null,null,null,null,null,null,null,null,null,null,null,null,null,null,null,null,null,"CA-1992-147  Parker Hotel","CA-1992-147","Parker Hotel","725 S. Witmer Street","Los Angeles","Los Angeles","90017","Parker Hotel L.P.","A Community of Friends"]
[null,null,null,null,null,null,null,null,null,null,null,null,null,null,null,null,null,null,null,null,null,null,null,null,null,null,null,null,null,null,null,null,null,null,null,null,null,null,null,null,null,null,null,null,"CA-1992-149  Norwood Avenue Family Hsg.","CA-1992-149","Norwood Avenue Family Hsg.","3257 Norwood Avenue","Sacramento","Sacramento","95838","Norwood Housing Associates, L.P. a California LP","Mutual Housing Corporation"]
[null,null,null,null,null,null,null,null,null,null,null,null,null,null,null,null,null,null,null,null,null,null,null,null,null,null,null,null,null,null,null,null,null,null,null,null,null,null,null,null,null,null,null,null,"CA-1992-150  Curry Senior Apts. (AKA - Edward Lynn Brown)","CA-1992-150","Curry Senior Apts. (AKA - Edward Lynn Brown)","1001 N Hickory Ave.","Compton","Los Angeles","90220","Curry Temple Senior Apartments","Harambee Economic and Community Development Corpor"]
[null,null,null,null,null,null,null,null,null,null,null,null,null,null,null,null,null,null,null,null,null,null,null,null,null,null,null,null,null,null,null,null,null,null,null,null,null,null,null,null,null,null,null,null,"CA-1992-151  Tierra Linda Apartments","CA-1992-151","Tierra Linda Apartments","490-492 Beck Street","Watsonville","Santa Cruz","95076","Tierra Linda Associates","Tierra Linda LLC"]
[null,null,null,null,null,null,null,null,null,null,null,null,null,null,null,null,null,null,null,null,null,null,null,null,null,null,null,null,null,null,null,null,null,null,null,null,null,null,null,null,null,null,null,null,"CA-1992-152  Pajaro Court","CA-1992-152","Pajaro Court","170 Pennsylvania Dr.","Watsonville","Santa Cruz","95076","Pajaro Court LLC","Eden South County Inc"]
[null,null,null,null,null,null,null,null,null,null,null,null,null,null,null,null,null,null,null,null,null,null,null,null,null,null,null,null,null,null,null,null,null,null,null,null,null,null,null,null,null,null,null,null,"CA-1992-155  Laureola Oaks","CA-1992-155","Laureola Oaks","907 East San Carlos Ave","San Carlos","San Mateo","94070","Laureola Oaks Associates","Mid-Peninsula San Carlos Corporation"]
[null,null,null,null,null,null,null,null,null,null,null,null,null,null,null,null,null,null,null,null,null,null,null,null,null,null,null,null,null,null,null,null,null,null,null,null,null,null,null,null,null,null,null,null,"CA-1992-156  Hatfield Homes","CA-1992-156","Hatfield Homes","Multiple Addresses on Multiple Streets","Brawley","Imperial","92227","IVHA-I L.P.","ICGP"]
[null,null,null,null,null,null,null,null,null,null,null,null,null,null,null,null,null,null,null,null,null,null,null,null,null,null,null,null,null,null,null,null,null,null,null,null,null,null,null,null,null,null,null,null,"CA-1992-157  El Centro Family Housing","CA-1992-157","El Centro Family Housing","602 West Adams Avenue","El Centro","Imperial","92227","IVHA-I L.P.","ICGP"]
[null,null,null,null,null,null,null,null,null,null,null,null,null,null,null,null,null,null,null,null,null,null,null,null,null,null,null,null,null,null,null,null,null,null,null,null,null,null,null,null,null,null,null,null,"CA-1992-163  The Knox SRO","CA-1992-163","The Knox SRO","241 6th Street","San Francisco","San Francisco","94103","The Knox Partners Limited Partnership","GP/TODCO-A, Inc"]
[null,null,null,null,null,null,null,null,null,null,null,null,null,null,null,null,null,null,null,null,null,null,null,null,null,null,null,null,null,null,null,null,null,null,null,null,null,null,null,null,null,null,null,null,"CA-1992-169  Esperanza Garden Apts.","CA-1992-169","Esperanza Garden Apts.","920 Regal Road","Encinitas","San Diego","92024","Esperanza Garden Apartments, L.P.","Esperanza Housing and Community Development Corpor"]
[null,null,null,null,null,null,null,null,null,null,null,null,null,null,null,null,null,null,null,null,null,null,null,null,null,null,null,null,null,null,null,null,null,null,null,null,null,null,null,null,null,null,null,null,"CA-1992-172  Rosamel Apartments","CA-1992-172","Rosamel Apartments","1240 South Elden Ave.","Los Angeles","Los Angeles","90006","1240 Elden, LP","RCC MGP LLC"]
[null,null,null,null,null,null,null,null,null,null,null,null,null,null,null,null,null,null,null,null,null,null,null,null,null,null,null,null,null,null,null,null,null,null,null,null,null,null,null,null,null,null,null,null,"CA-1992-175  Chico Commons","CA-1992-175","Chico Commons","2071 Amanda Way","Chico","Butte","95926","Chico Commons- a California Ltd. Partnership","Banyard Management"]
[null,null,null,null,null,null,null,null,null,null,null,null,null,null,null,null,null,null,null,null,null,null,null,null,null,null,null,null,null,null,null,null,null,null,null,null,null,null,null,null,null,null,null,null,"CA-1992-176  Step Up On Second Street","CA-1992-176","Step Up On Second Street","1328 Second Street","Santa Monica","Los Angeles","90401","Step Up On Second, L.P.","Step Up On Second Street, Inc."]
[null,null,null,null,null,null,null,null,null,null,null,null,null,null,null,null,null,null,null,null,null,null,null,null,null,null,null,null,null,null,null,null,null,null,null,null,null,null,null,null,null,null,null,null,"CA-1992-180  Vallejo Street Senior Apts.","CA-1992-180","Vallejo Street Senior Apts.","575 Vallejo Street","Petaluma","Sonoma","94952","575 Vallejo Street Associates","575 Vallejo Street Inc."]
[null,null,null,null,null,null,null,null,null,null,null,null,null,null,null,null,null,null,null,null,null,null,null,null,null,null,null,null,null,null,null,null,null,null,null,null,null,null,null,null,null,null,null,null,"CA-1992-186  Las Brisas","CA-1992-186","Las Brisas","200 North Bixel Street","Los Angeles","Los Angeles","90026","Las Brisas Apts. Limited Partnership","Pico Union Housing Corporation"]
[null,null,null,null,null,null,null,null,null,null,null,null,null,null,null,null,null,null,null,null,null,null,null,null,null,null,null,null,null,null,null,null,null,null,null,null,null,null,null,null,null,null,null,null,"CA-1992-190  Austin Manor Apartments","CA-1992-190","Austin Manor Apartments","14900 Burns Valley Road","Clearlake","Lake","95422","Austin Manor Associates LP","Austin Manor-Michaels (PAM) LLC"]
[null,null,null,null,null,null,null,null,null,null,null,null,null,null,null,null,null,null,null,null,null,null,null,null,null,null,null,null,null,null,null,null,null,null,null,null,null,null,null,null,null,null,null,null,"CA-1992-192  Main Street Manor/Almond View","CA-1992-192","Main Street Manor/Almond View","648 East Main Street","Stockton","San Joaquin","95202","Almond View Apartments L.P.","Community Revitilization and Development Corporati"]
[null,null,null,null,null,null,null,null,null,null,null,null,null,null,null,null,null,null,null,null,null,null,null,null,null,null,null,null,null,null,null,null,null,null,null,null,null,null,null,null,null,null,null,null,"CA-1992-195  Riverhouse Hotel","CA-1992-195","Riverhouse Hotel","700 Alhambra Avenue","Martinez","Contra Costa","94553","Riverhouse Associates","Ellis Lake Townhomes Inc"]
[null,null,null,null,null,null,null,null,null,null,null,null,null,null,null,null,null,null,null,null,null,null,null,null,null,null,null,null,null,null,null,null,null,null,null,null,null,null,null,null,null,null,null,null,"CA-1992-198  Plaza del Sol","CA-1992-198","Plaza del Sol","440 Valencia Street","San Francisco","San Francisco","94103","480 Valencia Associates","480 Valencia, Inc."]
[null,null,null,null,null,null,null,null,null,null,null,null,null,null,null,null,null,null,null,null,null,null,null,null,null,null,null,null,null,null,null,null,null,null,null,null,null,null,null,null,null,null,null,null,"CA-1992-205  The Meadows Apartments","CA-1992-205","The Meadows Apartments","2400 Goldenrod","Oildale","Kern","93308","VB CDT Meadows, LP","Trillium Housing Services"]
[null,null,null,null,null,null,null,null,null,null,null,null,null,null,null,null,null,null,null,null,null,null,null,null,null,null,null,null,null,null,null,null,null,null,null,null,null,null,null,null,null,null,null,null,"CA-1992-207  Sherwood Manor","CA-1992-207","Sherwood Manor","733 Maze Blvd","Modesto","Stanislaus","95351","Sherwood Senior Apartments, LP","FFAH II Sherwood Senior, LLC"]
[null,null,null,null,null,null,null,null,null,null,null,null,null,null,null,null,null,null,null,null,null,null,null,null,null,null,null,null,null,null,null,null,null,null,null,null,null,null,null,null,null,null,null,null,"CA-1992-901  Altadena Vistas Apartments","CA-1992-901","Altadena Vistas Apartments","815 E. Calaveras Street","Altadena","Los Angeles","91001","Altadena Vistas Apartments Limited Part","Los Angeles County Housing Development Corporation"]
[null,null,null,null,null,null,null,null,null,null,null,null,null,null,null,null,null,null,null,null,null,null,null,null,null,null,null,null,null,null,null,null,null,null,null,null,null,null,null,null,null,null,null,null,"CA-1992-904  Del Norte Place","CA-1992-904","Del Norte Place","11720 San Pablo Ave.","El Cerrito","Contra Costa","94530","Del Norte Place Apartments L.P.","Pacific Housing, Inc."]
[null,null,null,null,null,null,null,null,null,null,null,null,null,null,null,null,null,null,null,null,null,null,null,null,null,null,null,null,null,null,null,null,null,null,null,null,null,null,null,null,null,null,null,null,"CA-1992-905  The Altamont Apartments","CA-1992-905","The Altamont Apartments","300 Enterprise Drive","Rohnert Park","Sonoma","94928","Pine Creek Properties G.P.","Kenneth C, Martin"]
[null,null,null,null,null,null,null,null,null,null,null,null,null,null,null,null,null,null,null,null,null,null,null,null,null,null,null,null,null,null,null,null,null,null,null,null,null,null,null,null,null,null,null,null,"CA-1992-908  Paloma del Mar","CA-1992-908","Paloma del Mar","2030 Pajaro Lane","Freedom","Santa Cruz","95019","BRIDGE Paloma Associated LLC","BRIDGE Housing Corporation"]
[null,null,null,null,null,null,null,null,null,null,null,null,null,null,null,null,null,null,null,null,null,null,null,null,null,null,null,null,null,null,null,null,null,null,null,null,null,null,null,null,null,null,null,null,"CA-1992-909  San Paulo Apartments","CA-1992-909","San Paulo Apartments","100 Duranzo Aisle","Irvine","Orange","92606","San Rafael Apartments LP","Northpoint Housing Inc."]
[null,null,null,null,null,null,null,null,null,null,null,null,null,null,null,null,null,null,null,null,null,null,null,null,null,null,null,null,null,null,null,null,null,null,null,null,null,null,null,null,null,null,null,null,"CA-1992-910  Holly Street Village","CA-1992-910","Holly Street Village","151 E Holly Street","Pasadena","Los Angeles","91103","Teachers Insurance and Annuity Association of Amer","TIAA-CREF Global Investments LLC"]
[null,null,null,null,null,null,null,null,null,null,null,null,null,null,null,null,null,null,null,null,null,null,null,null,null,null,null,null,null,null,null,null,null,null,null,null,null,null,null,null,null,null,null,null,"CA-1992-912  Madera Villa Apts","CA-1992-912","Madera Villa Apts","2160 North Schnoor Avenue","Madera","Madera","93637","Claddagh, LP","Spencer Family Partners, LLC"]
[null,null,null,null,null,null,null,null,null,null,null,null,null,null,null,null,null,null,null,null,null,null,null,null,null,null,null,null,null,null,null,null,null,null,null,null,null,null,null,null,null,null,null,null,"CA-1993-003  California Apts","CA-1993-003","California Apts","22150 California St","San Joaquin","Fresno","93660","San Joaquin Enterprises III","John P. Casper"]
[null,null,null,null,null,null,null,null,null,null,null,null,null,null,null,null,null,null,null,null,null,null,null,null,null,null,null,null,null,null,null,null,null,null,null,null,null,null,null,null,null,null,null,null,"CA-1993-008  Baker Park","CA-1993-008","Baker Park","4710 Campbell Ave","San Jose","Santa Clara","95130","MP Baker Park, LLC","MP Baker Park, LLC"]
[null,null,null,null,null,null,null,null,null,null,null,null,null,null,null,null,null,null,null,null,null,null,null,null,null,null,null,null,null,null,null,null,null,null,null,null,null,null,null,null,null,null,null,null,"CA-1993-009  Woodpark Apartments","CA-1993-009","Woodpark Apartments","22702 Pacific Park Dr","Aliso Viejo","Orange","92656","22702 Pacific Park Drive, L.P.","AOF WOODPARK, LLC"]
[null,null,null,null,null,null,null,null,null,null,null,null,null,null,null,null,null,null,null,null,null,null,null,null,null,null,null,null,null,null,null,null,null,null,null,null,null,null,null,null,null,null,null,null,"CA-1993-019  Soledad Senior Apts","CA-1993-019","Soledad Senior Apts","530 Andalucia Drive","Soledad","Monterey","93960","Soledad Enterprises","John P. Casper"]
[null,null,null,null,null,null,null,null,null,null,null,null,null,null,null,null,null,null,null,null,null,null,null,null,null,null,null,null,null,null,null,null,null,null,null,null,null,null,null,null,null,null,null,null,"CA-1993-020  Boulder Creek Apts","CA-1993-020","Boulder Creek Apts","675 Mitchell Avenue","Oroville","Butte","95965","Boulder Creek Housing, LLC","Cascade Housing Association"]
[null,null,null,null,null,null,null,null,null,null,null,null,null,null,null,null,null,null,null,null,null,null,null,null,null,null,null,null,null,null,null,null,null,null,null,null,null,null,null,null,null,null,null,null,"CA-1993-024  Longhorn Pavilion aka Summit Ridge Apts","CA-1993-024","Longhorn Pavilion aka Summit Ridge Apts","36523 25th Street East","Palmdale","Los Angeles","93550","Figjam LP","Housing Corporation of America"]
[null,null,null,null,null,null,null,null,null,null,null,null,null,null,null,null,null,null,null,null,null,null,null,null,null,null,null,null,null,null,null,null,null,null,null,null,null,null,null,null,null,null,null,null,"CA-1993-027  La Villa Mariposa","CA-1993-027","La Villa Mariposa","345 S Columbia Ave","Los Angeles","Los Angeles","90017","Mariposa Houing Partners, LP","New Economics for Women"]
[null,null,null,null,null,null,null,null,null,null,null,null,null,null,null,null,null,null,null,null,null,null,null,null,null,null,null,null,null,null,null,null,null,null,null,null,null,null,null,null,null,null,null,null,"CA-1993-028  La Posada","CA-1993-028","La Posada","375 South Columbia Ave","Los Angeles","Los Angeles","90017","Columbia Avenue Partners LP","New Economics for Women"]
[null,null,null,null,null,null,null,null,null,null,null,null,null,null,null,null,null,null,null,null,null,null,null,null,null,null,null,null,null,null,null,null,null,null,null,null,null,null,null,null,null,null,null,null,"CA-1993-030  Fumbah Manor","CA-1993-030","Fumbah Manor","832 South Lake Street","Los Angeles","Los Angeles","90057","STL Properties","Central City Economic Development Corporation"]
[null,null,null,null,null,null,null,null,null,null,null,null,null,null,null,null,null,null,null,null,null,null,null,null,null,null,null,null,null,null,null,null,null,null,null,null,null,null,null,null,null,null,null,null,"CA-1993-031  Klimpel Manor","CA-1993-031","Klimpel Manor","229 E Amerige Ave.","Fullerton","Orange","92832","Klimpel Manor Ltd.","FFAH II Klimpel Manor, LLC"]
[null,null,null,null,null,null,null,null,null,null,null,null,null,null,null,null,null,null,null,null,null,null,null,null,null,null,null,null,null,null,null,null,null,null,null,null,null,null,null,null,null,null,null,null,"CA-1993-032  Klein School Site Senior Housing Ginzton Terrace","CA-1993-032","Klein School Site Senior Housing Ginzton Terrace","375 Oaktree Drive","Mountain View","Santa Clara","94040","Ginzton Associates","Mid-Peninsula Ginzton, Inc."]
[null,null,null,null,null,null,null,null,null,null,null,null,null,null,null,null,null,null,null,null,null,null,null,null,null,null,null,null,null,null,null,null,null,null,null,null,null,null,null,null,null,null,null,null,"CA-1993-033  The Carroll Inn","CA-1993-033","The Carroll Inn","174 Carroll Street","Sunnyvale","Santa Clara","94086","Carroll Street Associates","Mid-Pen Carroll Street, Inc."]
[null,null,null,null,null,null,null,null,null,null,null,null,null,null,null,null,null,null,null,null,null,null,null,null,null,null,null,null,null,null,null,null,null,null,null,null,null,null,null,null,null,null,null,null,"CA-1993-036  Hillview Village","CA-1993-036","Hillview Village","12408 Van Nuys Blvd.","Pacoima","Los Angeles","91331-1393","Hillview Village L.P.","Valley Housing Foundation/Hillview Mental Health C"]
[null,null,null,null,null,null,null,null,null,null,null,null,null,null,null,null,null,null,null,null,null,null,null,null,null,null,null,null,null,null,null,null,null,null,null,null,null,null,null,null,null,null,null,null,"CA-1993-045  Palm Garden Apartments","CA-1993-045","Palm Garden Apartments","10310 Valley Blvd.","El Monte","Los Angeles","91731","El Monte Affordable Housing Partners","California Housing and Youth Services"]
[null,null,null,null,null,null,null,null,null,null,null,null,null,null,null,null,null,null,null,null,null,null,null,null,null,null,null,null,null,null,null,null,null,null,null,null,null,null,null,null,null,null,null,null,"CA-1993-046  Nueva Vista Apts","CA-1993-046","Nueva Vista Apts","65-100 Date Palm St","Mecca","Riverside","92254","Mecca Housing Associates","Mecca Housing, Inc."]
[null,null,null,null,null,null,null,null,null,null,null,null,null,null,null,null,null,null,null,null,null,null,null,null,null,null,null,null,null,null,null,null,null,null,null,null,null,null,null,null,null,null,null,null,"CA-1993-047  St. Andrews Bungalow Court","CA-1993-047","St. Andrews Bungalow Court","1514-1544 N. St. Andrews Place","Los Angeles","Los Angeles","90028","St Andrews Community, LP","Hollywood Community Housing Corp."]
[null,null,null,null,null,null,null,null,null,null,null,null,null,null,null,null,null,null,null,null,null,null,null,null,null,null,null,null,null,null,null,null,null,null,null,null,null,null,null,null,null,null,null,null,"CA-1993-049  Fairview Village","CA-1993-049","Fairview Village","Highland, Lark, N Willis","Visalia","Tulare","93291","Fairview Village Associates","Kaweah Management Company, Inc."]
[null,null,null,null,null,null,null,null,null,null,null,null,null,null,null,null,null,null,null,null,null,null,null,null,null,null,null,null,null,null,null,null,null,null,null,null,null,null,null,null,null,null,null,null,"CA-1993-050  The Boyd Hotel","CA-1993-050","The Boyd Hotel","224 East Boyd Street","Los Angeles","Los Angeles","90013","Boyd Hotel, LP","Skid Row Housing Trust"]
[null,null,null,null,null,null,null,null,null,null,null,null,null,null,null,null,null,null,null,null,null,null,null,null,null,null,null,null,null,null,null,null,null,null,null,null,null,null,null,null,null,null,null,null,"CA-1993-051  Mary Andrews Clark Residence","CA-1993-051","Mary Andrews Clark Residence","306 South Loma Drive","Los Angeles","Los Angeles","90017","Clark Residence Limited Partnership","Abode Communities"]
[null,null,null,null,null,null,null,null,null,null,null,null,null,null,null,null,null,null,null,null,null,null,null,null,null,null,null,null,null,null,null,null,null,null,null,null,null,null,null,null,null,null,null,null,"CA-1993-054  Morrone Gardens","CA-1993-054","Morrone Gardens","1107 Luchessi Drive","San Jose","Santa Clara","95118","Rotary Plaza HACSC HDC Inc.","Rotary Plaza HACSC HDC Inc."]
[null,null,null,null,null,null,null,null,null,null,null,null,null,null,null,null,null,null,null,null,null,null,null,null,null,null,null,null,null,null,null,null,null,null,null,null,null,null,null,null,null,null,null,null,"CA-1993-058  Umoja Apartments","CA-1993-058","Umoja Apartments","101 West 74th Street","Los Angeles","Los Angeles","90003","Main Street Housing, LP","Deep Green Housing and Community Development"]
[null,null,null,null,null,null,null,null,null,null,null,null,null,null,null,null,null,null,null,null,null,null,null,null,null,null,null,null,null,null,null,null,null,null,null,null,null,null,null,null,null,null,null,null,"CA-1993-059  Casa Carondelet","CA-1993-059","Casa Carondelet","130 S. Carondelet","Los Angeles","Los Angeles","90057","Casa Carondelet, LP","Deep Green Housing and Community Development"]
[null,null,null,null,null,null,null,null,null,null,null,null,null,null,null,null,null,null,null,null,null,null,null,null,null,null,null,null,null,null,null,null,null,null,null,null,null,null,null,null,null,null,null,null,"CA-1993-063  Sunset Creek","CA-1993-063","Sunset Creek","840 East Travis Avenue","Fairfield","Solano","94533","Sunset Creek Partners, LP","Mid-PeninsulaFairfield Corporation"]
[null,null,null,null,null,null,null,null,null,null,null,null,null,null,null,null,null,null,null,null,null,null,null,null,null,null,null,null,null,null,null,null,null,null,null,null,null,null,null,null,null,null,null,null,"CA-1993-071  Brynview Terrace","CA-1993-071","Brynview Terrace","6603 Brynhurst","Los Angeles","Los Angeles","90043","Brynview Terrace, L.P.","Ausar Economic Development Corporation"]
[null,null,null,null,null,null,null,null,null,null,null,null,null,null,null,null,null,null,null,null,null,null,null,null,null,null,null,null,null,null,null,null,null,null,null,null,null,null,null,null,null,null,null,null,"CA-1993-074  Sunrise Terrace","CA-1993-074","Sunrise Terrace","601 Sunrise Avenue","Madera","Madera","93638","Sunrise Terrace Madera Apartments, L.P.","GSF Investments Management Corporation"]
[null,null,null,null,null,null,null,null,null,null,null,null,null,null,null,null,null,null,null,null,null,null,null,null,null,null,null,null,null,null,null,null,null,null,null,null,null,null,null,null,null,null,null,null,"CA-1993-076  Tahoe Pines Apts.","CA-1993-076","Tahoe Pines Apts.","3431 Spruce Ave","South Lake Tahoe","El Dorado","96150","Tahoe Pines Apartments, a CA LP","AOF Tahoe Pines LLC"]
[null,null,null,null,null,null,null,null,null,null,null,null,null,null,null,null,null,null,null,null,null,null,null,null,null,null,null,null,null,null,null,null,null,null,null,null,null,null,null,null,null,null,null,null,"CA-1993-077  Colonial Village Roseville","CA-1993-077","Colonial Village Roseville","3881 Eureka Rd","Roseville","Placer","95661","Colonial Village Roseville LTD","Project GO, Inc."]
[null,null,null,null,null,null,null,null,null,null,null,null,null,null,null,null,null,null,null,null,null,null,null,null,null,null,null,null,null,null,null,null,null,null,null,null,null,null,null,null,null,null,null,null,"CA-1993-079  Almond Garden Elderly Apts","CA-1993-079","Almond Garden Elderly Apts","16200 West Delhi Avenue","Delhi","Merced","95315","Almond Garden Apts. Assoc., LP","Almond Garden Elderly-Michaels (PAM), LLC, a Calif"]
[null,null,null,null,null,null,null,null,null,null,null,null,null,null,null,null,null,null,null,null,null,null,null,null,null,null,null,null,null,null,null,null,null,null,null,null,null,null,null,null,null,null,null,null,"CA-1993-081  Colonial Village Auburn","CA-1993-081","Colonial Village Auburn","2205 Colonial Village","Auburn","Placer","95603","Colonial Village Auburn, LP","Project GO, inc."]
[null,null,null,null,null,null,null,null,null,null,null,null,null,null,null,null,null,null,null,null,null,null,null,null,null,null,null,null,null,null,null,null,null,null,null,null,null,null,null,null,null,null,null,null,"CA-1993-082  Southcove Apts","CA-1993-082","Southcove Apts","1355 South Ave","Orange Cove","Fresno","93221","Southcove Associates","Philip R. Hammond, Jr."]
[null,null,null,null,null,null,null,null,null,null,null,null,null,null,null,null,null,null,null,null,null,null,null,null,null,null,null,null,null,null,null,null,null,null,null,null,null,null,null,null,null,null,null,null,"CA-1993-083  Nueva Sierra Vista Apartments","CA-1993-083","Nueva Sierra Vista Apartments","20939 Guerrero Ave","Richgrove","Tulare","93261","Nueva Sierra Vista Associates","Nueva Sierra Vista Corporation, a California Non P"]
[null,null,null,null,null,null,null,null,null,null,null,null,null,null,null,null,null,null,null,null,null,null,null,null,null,null,null,null,null,null,null,null,null,null,null,null,null,null,null,null,null,null,null,null,"CA-1993-084  Evergreen Village","CA-1993-084","Evergreen Village","420 North Evergreen Avenue","Los Angeles","Los Angeles","90063","Evergreen Brooklyn Village Partners, a CA LP","Central Valley Coalition for Affordable Housing"]
[null,null,null,null,null,null,null,null,null,null,null,null,null,null,null,null,null,null,null,null,null,null,null,null,null,null,null,null,null,null,null,null,null,null,null,null,null,null,null,null,null,null,null,null,"CA-1993-090  Riverfield Homes","CA-1993-090","Riverfield Homes","25 Adeline Avenue","Healdsburg","Sonoma","95448","Riverfield Homes, LP","Sonoma County Affordable Homes, Inc."]
[null,null,null,null,null,null,null,null,null,null,null,null,null,null,null,null,null,null,null,null,null,null,null,null,null,null,null,null,null,null,null,null,null,null,null,null,null,null,null,null,null,null,null,null,"CA-1993-092  Casa Serena Sr. Apts.","CA-1993-092","Casa Serena Sr. Apts.","130 South Fifth Street","Lompoc","Santa Barbara","93436","Casa Serena Associates L.P.","Central Valley Coalition for Affordable Housing"]
[null,null,null,null,null,null,null,null,null,null,null,null,null,null,null,null,null,null,null,null,null,null,null,null,null,null,null,null,null,null,null,null,null,null,null,null,null,null,null,null,null,null,null,null,"CA-1993-093  Park Stanton Seniors Apts","CA-1993-093","Park Stanton Seniors Apts","7622 Katella Avenue","Stanton","Orange","90680","Park Stanton Place, a CA LP","Foundation for Affordable Housing II, Inc."]
[null,null,null,null,null,null,null,null,null,null,null,null,null,null,null,null,null,null,null,null,null,null,null,null,null,null,null,null,null,null,null,null,null,null,null,null,null,null,null,null,null,null,null,null,{"$f":"CONCATENATE(AT195,\"  \",AU195)","v":"CA-1993-094  Manila Terrace"},"CA-1993-094","Manila Terrace","2328 West Temple Street","Los Angeles","Los Angeles","90026","Manila Terrace, LP","Temple Westlake Neighborhood Development Corporati"]
[null,null,null,null,null,null,null,null,null,null,null,null,null,null,null,null,null,null,null,null,null,null,null,null,null,null,null,null,null,null,null,null,null,null,null,null,null,null,null,null,null,null,null,null,"CA-1993-096  Cameron Park Village","CA-1993-096","Cameron Park Village","3433 Palmer Drive","Cameron Park","El Dorado","95682","Cameron Park Village, LP","CARE Housing Services Corporation"]
[null,null,null,null,null,null,null,null,null,null,null,null,null,null,null,null,null,null,null,null,null,null,null,null,null,null,null,null,null,null,null,null,null,null,null,null,null,null,null,null,null,null,null,null,"CA-1993-101  The Claridge Hotel Ridge Hotel","CA-1993-101","The Claridge Hotel Ridge Hotel","634 15th Street","Oakland","Alameda","94612","Claridge Hotel, LLC","Sarosh Kumana"]
[null,null,null,null,null,null,null,null,null,null,null,null,null,null,null,null,null,null,null,null,null,null,null,null,null,null,null,null,null,null,null,null,null,null,null,null,null,null,null,null,null,null,null,null,"CA-1993-104  Delta Plaza Apts.","CA-1993-104","Delta Plaza Apts.","702 N. San Joaquin","Stockton","San Joaquin","95202","Delta Plaza Apartments, LP","DELTA HOUSING DEVELOPMENT CORPORATION"]
[null,null,null,null,null,null,null,null,null,null,null,null,null,null,null,null,null,null,null,null,null,null,null,null,null,null,null,null,null,null,null,null,null,null,null,null,null,null,null,null,null,null,null,null,"CA-1993-107  Rio Vista Village","CA-1993-107","Rio Vista Village","1310 Rio Vista Avenue","Los Angeles","Los Angeles","90023","Rio Vista Village Limited Partnership","Retirement Housing Foundation"]
[null,null,null,null,null,null,null,null,null,null,null,null,null,null,null,null,null,null,null,null,null,null,null,null,null,null,null,null,null,null,null,null,null,null,null,null,null,null,null,null,null,null,null,null,"CA-1993-109  Cypress Meadows","CA-1993-109","Cypress Meadows","1405 Cypress Point Lane","Ventura","Ventura","93003","Cypress Meadows, L.P.","Santa Barbara Community Housing Corporation"]
[null,null,null,null,null,null,null,null,null,null,null,null,null,null,null,null,null,null,null,null,null,null,null,null,null,null,null,null,null,null,null,null,null,null,null,null,null,null,null,null,null,null,null,null,"CA-1993-113  Avenida Espana Gardens","CA-1993-113","Avenida Espana Gardens","181 Rawls Place","San Jose","Santa Clara","95139","AE Associates, Ltd.","Avenida Espana HDC, Inc."]
[null,null,null,null,null,null,null,null,null,null,null,null,null,null,null,null,null,null,null,null,null,null,null,null,null,null,null,null,null,null,null,null,null,null,null,null,null,null,null,null,null,null,null,null,"CA-1993-117  Crescent Village","CA-1993-117","Crescent Village","731, 743 Beacon Avenue, 1721 W. 8th St., 746 Burlington Ave.","Los Angeles","Los Angeles","90017","Crescent Villages II, L.P.","RCC MGP LLC"]
[null,null,null,null,null,null,null,null,null,null,null,null,null,null,null,null,null,null,null,null,null,null,null,null,null,null,null,null,null,null,null,null,null,null,null,null,null,null,null,null,null,null,null,null,"CA-1993-118  Plaza Maria","CA-1993-118","Plaza Maria","115 East Reed Street","San Jose","Santa Clara","95112","Plaza Maria LLC","Mercy Housing Calwest"]
[null,null,null,null,null,null,null,null,null,null,null,null,null,null,null,null,null,null,null,null,null,null,null,null,null,null,null,null,null,null,null,null,null,null,null,null,null,null,null,null,null,null,null,null,"CA-1993-120  Bracher Gardens","CA-1993-120","Bracher Gardens","2665 South Drive","Santa Clara","Santa Clara","95050","South Drive LLC","S.P.G. Housing, Inc."]
[null,null,null,null,null,null,null,null,null,null,null,null,null,null,null,null,null,null,null,null,null,null,null,null,null,null,null,null,null,null,null,null,null,null,null,null,null,null,null,null,null,null,null,null,"CA-1993-123  Washington Villa Apartments","CA-1993-123","Washington Villa Apartments","264 East Washington Blvd.","Pasadena","Los Angeles","91104","266 Washington Apartment, LP","Intercontinental Affordable Housing, Inc."]
[null,null,null,null,null,null,null,null,null,null,null,null,null,null,null,null,null,null,null,null,null,null,null,null,null,null,null,null,null,null,null,null,null,null,null,null,null,null,null,null,null,null,null,null,"CA-1993-124  Villa del Pueblo","CA-1993-124","Villa del Pueblo","1441 South Hope Street","Los Angeles","Los Angeles","90015","Villa Del Pueblo Limited Partnership","El Pueblo Community Development Corporation"]
[null,null,null,null,null,null,null,null,null,null,null,null,null,null,null,null,null,null,null,null,null,null,null,null,null,null,null,null,null,null,null,null,null,null,null,null,null,null,null,null,null,null,null,null,"CA-1993-125  Pinmore Gardens","CA-1993-125","Pinmore Gardens","1706 Branham Lane","San Jose","Santa Clara","95118","Branham Lane LLC","S.P.G. Housing, Inc."]
[null,null,null,null,null,null,null,null,null,null,null,null,null,null,null,null,null,null,null,null,null,null,null,null,null,null,null,null,null,null,null,null,null,null,null,null,null,null,null,null,null,null,null,null,"CA-1993-126  Vineland Place","CA-1993-126","Vineland Place","7843 Vineland Avenue","Sun Valley","Los Angeles","91352","Vineland Place L.P.","LA FAMILY HOUSING  CORPORATION"]
[null,null,null,null,null,null,null,null,null,null,null,null,null,null,null,null,null,null,null,null,null,null,null,null,null,null,null,null,null,null,null,null,null,null,null,null,null,null,null,null,null,null,null,null,"CA-1993-128  815 Ashland","CA-1993-128","815 Ashland","815 Ashland Avenue","Santa Monica","Los Angeles","90405","815 Ashland Limited Partnership","Community Corporation of Santa Monica"]
[null,null,null,null,null,null,null,null,null,null,null,null,null,null,null,null,null,null,null,null,null,null,null,null,null,null,null,null,null,null,null,null,null,null,null,null,null,null,null,null,null,null,null,null,"CA-1993-129  Las Palomas Hotel","CA-1993-129","Las Palomas Hotel","2201 East 1st Street","Los Angeles","Los Angeles","90033","Las Palomas Hotel, LP","A Community of Friends"]
[null,null,null,null,null,null,null,null,null,null,null,null,null,null,null,null,null,null,null,null,null,null,null,null,null,null,null,null,null,null,null,null,null,null,null,null,null,null,null,null,null,null,null,null,"CA-1993-130  Avalon Courtyard","CA-1993-130","Avalon Courtyard","22121 S. Avalon Blvd.","Carson","Los Angeles","90745","Avalon Courtyard","Thomas Safran & Associates"]
[null,null,null,null,null,null,null,null,null,null,null,null,null,null,null,null,null,null,null,null,null,null,null,null,null,null,null,null,null,null,null,null,null,null,null,null,null,null,null,null,null,null,null,null,"CA-1993-131  La Mirada Senior Apartments","CA-1993-131","La Mirada Senior Apartments","15811 Alicante Road","La Mirada","Los Angeles","90638","15811 East Alicante Road, LP, a California limited","AOF VISTA ALICANTE, LLC"]
[null,null,null,null,null,null,null,null,null,null,null,null,null,null,null,null,null,null,null,null,null,null,null,null,null,null,null,null,null,null,null,null,null,null,null,null,null,null,null,null,null,null,null,null,"CA-1993-132  Valley Village Apartments","CA-1993-132","Valley Village Apartments","12111 Chandler Blvd","Valley Village","Los Angeles","91607","Valley Village Affordable Housing Partners, L.P.","Foundation for Affordable Housing II, Inc."]
[null,null,null,null,null,null,null,null,null,null,null,null,null,null,null,null,null,null,null,null,null,null,null,null,null,null,null,null,null,null,null,null,null,null,null,null,null,null,null,null,null,null,null,null,"CA-1993-137  New Hope Senior Village","CA-1993-137","New Hope Senior Village","890 Village Run Drive","Galt","Sacramento","95632","TRC New Hope, LP","IH Tablerock Capital Partners, LLC"]
[null,null,null,null,null,null,null,null,null,null,null,null,null,null,null,null,null,null,null,null,null,null,null,null,null,null,null,null,null,null,null,null,null,null,null,null,null,null,null,null,null,null,null,null,"CA-1993-138  Sea Ranch Apartments","CA-1993-138","Sea Ranch Apartments","358 Haversack","Sea Ranch","Sonoma","95497","Sea Ranch 31, LLC","Burbank Housing/SR Corp (sole member of the LLC)"]
[null,null,null,null,null,null,null,null,null,null,null,null,null,null,null,null,null,null,null,null,null,null,null,null,null,null,null,null,null,null,null,null,null,null,null,null,null,null,null,null,null,null,null,null,"CA-1993-139  Filipino Community Building of Stockton","CA-1993-139","Filipino Community Building of Stockton","443 East Sonora","Stockton","San Joaquin","95202","Maharlika, LP","Maharlika, LP"]
[null,null,null,null,null,null,null,null,null,null,null,null,null,null,null,null,null,null,null,null,null,null,null,null,null,null,null,null,null,null,null,null,null,null,null,null,null,null,null,null,null,null,null,null,"CA-1993-144  P & P Home for the Elderly","CA-1993-144","P & P Home for the Elderly","1030-1058 West 85th Street","Los Angeles","Los Angeles","90044","P & P Home for the Elderly, LP","P & P Home for the Elderly Inc"]
[null,null,null,null,null,null,null,null,null,null,null,null,null,null,null,null,null,null,null,null,null,null,null,null,null,null,null,null,null,null,null,null,null,null,null,null,null,null,null,null,null,null,null,null,"CA-1993-147  Chestnut Place","CA-1993-147","Chestnut Place","1745 E Fairway Drive","Orange","Orange","92866","Fairway Manor, L.P.","Orange Housing Development Corporation"]
[null,null,null,null,null,null,null,null,null,null,null,null,null,null,null,null,null,null,null,null,null,null,null,null,null,null,null,null,null,null,null,null,null,null,null,null,null,null,null,null,null,null,null,null,"CA-1993-148  Fillmore Marketplace","CA-1993-148","Fillmore Marketplace","1223 Webster Street","San Francisco","San Francisco","94115","Fillmore Marketplace, LP","San Francisco Housing Development Corporation"]
[null,null,null,null,null,null,null,null,null,null,null,null,null,null,null,null,null,null,null,null,null,null,null,null,null,null,null,null,null,null,null,null,null,null,null,null,null,null,null,null,null,null,null,null,"CA-1993-149  Alejandro Rivera Senior","CA-1993-149","Alejandro Rivera Senior","2151 Rockwood Ave","Calexico","Imperial","92331","Alejandro Rivera Sr. Citizens Apartments","RSCCAC"]
[null,null,null,null,null,null,null,null,null,null,null,null,null,null,null,null,null,null,null,null,null,null,null,null,null,null,null,null,null,null,null,null,null,null,null,null,null,null,null,null,null,null,null,null,"CA-1993-150  Sunshine Financial Group II","CA-1993-150","Sunshine Financial Group II","3460 North Brawley","Fresno","Fresno","93722","Don K Holder and Denise E Holder","Don K Holder"]
[null,null,null,null,null,null,null,null,null,null,null,null,null,null,null,null,null,null,null,null,null,null,null,null,null,null,null,null,null,null,null,null,null,null,null,null,null,null,null,null,null,null,null,null,"CA-1993-154  Luisa Apartments","CA-1993-154","Luisa Apartments","2209 Michigan Avenue","Los Angeles","Los Angeles","90033","Luisa Apartments, LP","Pico Union Housing Corporation"]
[null,null,null,null,null,null,null,null,null,null,null,null,null,null,null,null,null,null,null,null,null,null,null,null,null,null,null,null,null,null,null,null,null,null,null,null,null,null,null,null,null,null,null,null,"CA-1993-156  La Fenetre Apartments","CA-1993-156","La Fenetre Apartments","705 Northrup Street","San Jose","Santa Clara","95126","Parkmoor Avenue Assiciates, L.P.","Central Valley Coalition for Affordable Housing"]
[null,null,null,null,null,null,null,null,null,null,null,null,null,null,null,null,null,null,null,null,null,null,null,null,null,null,null,null,null,null,null,null,null,null,null,null,null,null,null,null,null,null,null,null,"CA-1993-157  Miranda Villa","CA-1993-157","Miranda Villa","2094 Forest Ave","San Jose","Santa Clara","95128","Forest Manor Associates","Central Valley Coalition for Affordable Housing"]
[null,null,null,null,null,null,null,null,null,null,null,null,null,null,null,null,null,null,null,null,null,null,null,null,null,null,null,null,null,null,null,null,null,null,null,null,null,null,null,null,null,null,null,null,"CA-1993-160  Arroyo Vista Apartments","CA-1993-160","Arroyo Vista Apartments","26196 Crown Valley Parkway","Mission Viejo","Orange","92692","Eden Arroyo Vista Associates, LP","Eden Arroyo Vista LLC"]
[null,null,null,null,null,null,null,null,null,null,null,null,null,null,null,null,null,null,null,null,null,null,null,null,null,null,null,null,null,null,null,null,null,null,null,null,null,null,null,null,null,null,null,null,"CA-1993-162  Marina Manor","CA-1993-162","Marina Manor","3082 Sunset Avenue","Marina","Monterey","93933","Marina Seniors Housing Partners","CHISPA, Inc."]
[null,null,null,null,null,null,null,null,null,null,null,null,null,null,null,null,null,null,null,null,null,null,null,null,null,null,null,null,null,null,null,null,null,null,null,null,null,null,null,null,null,null,null,null,"CA-1993-165  Lakewood Terrace Apts","CA-1993-165","Lakewood Terrace Apts","1995 North Lake St.","Madera","Madera","93638","Madera Lakewood Terrace Limited Ptship","Central Valley Coalition for Affordable Housing"]
[null,null,null,null,null,null,null,null,null,null,null,null,null,null,null,null,null,null,null,null,null,null,null,null,null,null,null,null,null,null,null,null,null,null,null,null,null,null,null,null,null,null,null,null,"CA-1993-166  Claremont Villas Senior","CA-1993-166","Claremont Villas Senior","100 S. Indian Hill Blvd.","Claremont","Los Angeles","91711","Claremont Villas, L.P.","FFAH II Claremont Villas, LLC"]
[null,null,null,null,null,null,null,null,null,null,null,null,null,null,null,null,null,null,null,null,null,null,null,null,null,null,null,null,null,null,null,null,null,null,null,null,null,null,null,null,null,null,null,null,"CA-1993-167  The Inn At Woodbridge","CA-1993-167","The Inn At Woodbridge","3 Osborne","Irvine","Orange","92714","Woodbridge Villas Partners, LP","JHC-Woodbrige LLC"]
[null,null,null,null,null,null,null,null,null,null,null,null,null,null,null,null,null,null,null,null,null,null,null,null,null,null,null,null,null,null,null,null,null,null,null,null,null,null,null,null,null,null,null,null,"CA-1993-169  Harp Plaza","CA-1993-169","Harp Plaza","430 28th Street","Oakland","Alameda","94612","Dignity Housing West II Associates","Community Housing Development Corporation of North"]
[null,null,null,null,null,null,null,null,null,null,null,null,null,null,null,null,null,null,null,null,null,null,null,null,null,null,null,null,null,null,null,null,null,null,null,null,null,null,null,null,null,null,null,null,"CA-1993-170  Casa Berendo","CA-1993-170","Casa Berendo","1240 N. Berendo Street","Los Angeles","Los Angeles","90029","Casa Berendo, LP","INTERCONTINENTAL AFFORDABLE HOUSING"]
[null,null,null,null,null,null,null,null,null,null,null,null,null,null,null,null,null,null,null,null,null,null,null,null,null,null,null,null,null,null,null,null,null,null,null,null,null,null,null,null,null,null,null,null,"CA-1993-172  Downtown Apartments","CA-1993-172","Downtown Apartments","435 Beaver Street","Santa Rosa","Sonoma","95404","Futrell-Sievert, LTD Partnership","Futrell-Sievert, LTD Partnership"]
[null,null,null,null,null,null,null,null,null,null,null,null,null,null,null,null,null,null,null,null,null,null,null,null,null,null,null,null,null,null,null,null,null,null,null,null,null,null,null,null,null,null,null,null,"CA-1993-174  Casa del Rio Senior Housing","CA-1993-174","Casa del Rio Senior Housing","615 West Seventh Street","Antioch","Contra Costa","94509","CDR Senior Housing Associates","HACCC Casa Del Rio Inc"]
[null,null,null,null,null,null,null,null,null,null,null,null,null,null,null,null,null,null,null,null,null,null,null,null,null,null,null,null,null,null,null,null,null,null,null,null,null,null,null,null,null,null,null,null,"CA-1993-176  Annadale Housing Project aka King's View Manor","CA-1993-176","Annadale Housing Project aka King's View Manor","949 E. Annadale Avenue","Fresno","Fresno","93706","Annadale Housing Partners (King's View Manor)","Community Housing Assistance Program Inc."]
[null,null,null,null,null,null,null,null,null,null,null,null,null,null,null,null,null,null,null,null,null,null,null,null,null,null,null,null,null,null,null,null,null,null,null,null,null,null,null,null,null,null,null,null,"CA-1993-181  Lavell Village","CA-1993-181","Lavell Village","165 Lavell Village Circle","Santa Rosa","Sonoma","95404","Lavell Village, LLC","Burbank Housing Communities Corporation (sole memb"]
[null,null,null,null,null,null,null,null,null,null,null,null,null,null,null,null,null,null,null,null,null,null,null,null,null,null,null,null,null,null,null,null,null,null,null,null,null,null,null,null,null,null,null,null,"CA-1993-901  Marina Pointe Apartments","CA-1993-901","Marina Pointe Apartments","13603 Marina Pointe Drive","Marina Del Rey","Los Angeles","90292","UDR Marina Pointe LLC","UDR, Inc."]
[null,null,null,null,null,null,null,null,null,null,null,null,null,null,null,null,null,null,null,null,null,null,null,null,null,null,null,null,null,null,null,null,null,null,null,null,null,null,null,null,null,null,null,null,"CA-1994-002  Truckee Pines Apartments","CA-1994-002","Truckee Pines Apartments","10100 Estates Dr","Truckee","Nevada","96161","Truckee Pines Investments, LLC","Cascade Housing Association"]
[null,null,null,null,null,null,null,null,null,null,null,null,null,null,null,null,null,null,null,null,null,null,null,null,null,null,null,null,null,null,null,null,null,null,null,null,null,null,null,null,null,null,null,null,"CA-1994-005  Oceanside Gardens Apartments","CA-1994-005","Oceanside Gardens Apartments","2612 Elm Court","Morro Bay","San Luis Obispo","93442","Oceanside Gardens, LP","C-Court, Inc."]
[null,null,null,null,null,null,null,null,null,null,null,null,null,null,null,null,null,null,null,null,null,null,null,null,null,null,null,null,null,null,null,null,null,null,null,null,null,null,null,null,null,null,null,null,"CA-1994-006  Villa San Miguel","CA-1994-006","Villa San Miguel","1201 Amherst Dr","King City","Monterey","93930","Villa San Miguel Partners","CHISPA, Inc."]
[null,null,null,null,null,null,null,null,null,null,null,null,null,null,null,null,null,null,null,null,null,null,null,null,null,null,null,null,null,null,null,null,null,null,null,null,null,null,null,null,null,null,null,null,"CA-1994-010  Grey Goose Townhomes","CA-1994-010","Grey Goose Townhomes","5499 Grey Goose Gulch Drive","Carmel Valley","Monterey","93924","QM Affordable Housing Partners, L.P.","CHISPA, Inc."]
[null,null,null,null,null,null,null,null,null,null,null,null,null,null,null,null,null,null,null,null,null,null,null,null,null,null,null,null,null,null,null,null,null,null,null,null,null,null,null,null,null,null,null,null,"CA-1994-020  Gabreila Apartments","CA-1994-020","Gabreila Apartments","587 Natoma Street","San Francisco","San Francisco","94103","Gabreila Apartments Ltd","Housing Development and Neighborhood Preservation"]
[null,null,null,null,null,null,null,null,null,null,null,null,null,null,null,null,null,null,null,null,null,null,null,null,null,null,null,null,null,null,null,null,null,null,null,null,null,null,null,null,null,null,null,null,"CA-1994-023  Salandini Villa","CA-1994-023","Salandini Villa","13785 East Manning Avenue","Parlier","Fresno","93648","Parlier Affordable Housing L.P.","Cesar Chavez Foundation"]
[null,null,null,null,null,null,null,null,null,null,null,null,null,null,null,null,null,null,null,null,null,null,null,null,null,null,null,null,null,null,null,null,null,null,null,null,null,null,null,null,null,null,null,null,"CA-1994-025  Rincon de los Esteros","CA-1994-025","Rincon de los Esteros","1780 Old Oakland Rd","San Jose","Santa Clara","95131","Rincon de los Esteros Associates","Rincon de los Esteros, Inc."]
[null,null,null,null,null,null,null,null,null,null,null,null,null,null,null,null,null,null,null,null,null,null,null,null,null,null,null,null,null,null,null,null,null,null,null,null,null,null,null,null,null,null,null,null,"CA-1994-026  Coit Apartments","CA-1994-026","Coit Apartments","1445 Harrison Street","Oakland","Alameda","94612","Oakland Affordable Housing Group, LP","Central Valley Coalition for Affordable Housing"]
[null,null,null,null,null,null,null,null,null,null,null,null,null,null,null,null,null,null,null,null,null,null,null,null,null,null,null,null,null,null,null,null,null,null,null,null,null,null,null,null,null,null,null,null,"CA-1994-031  The Gardens","CA-1994-031","The Gardens","120 Santa Alicia Ave","Rohnert Park","Sonoma","94928","Burbank Housing Communities Corporation","Burbank Housing Communities Corporation"]
[null,null,null,null,null,null,null,null,null,null,null,null,null,null,null,null,null,null,null,null,null,null,null,null,null,null,null,null,null,null,null,null,null,null,null,null,null,null,null,null,null,null,null,null,"CA-1994-040  Villa Loma Apartments","CA-1994-040","Villa Loma Apartments","6421 Tobria Terrace","Carlsbad","San Diego","92009","Tobria Terrace LLC","BRIDGE Housing Corporation - Southern California"]
[null,null,null,null,null,null,null,null,null,null,null,null,null,null,null,null,null,null,null,null,null,null,null,null,null,null,null,null,null,null,null,null,null,null,null,null,null,null,null,null,null,null,null,null,"CA-1994-041  Doreatha Mitchell Apartments","CA-1994-041","Doreatha Mitchell Apartments","52-56 Terrace Drive","Marin City","Marin","94965","Drake Marin Associates","BRIDGE Housing Corporation"]
[null,null,null,null,null,null,null,null,null,null,null,null,null,null,null,null,null,null,null,null,null,null,null,null,null,null,null,null,null,null,null,null,null,null,null,null,null,null,null,null,null,null,null,null,"CA-1994-042  Edward Hotel","CA-1994-042","Edward Hotel","713 E. 5th Street","Los Angeles","Los Angeles","90013","Edward Hotel Limited Partnership","Skid Row Housing Trust"]
[null,null,null,null,null,null,null,null,null,null,null,null,null,null,null,null,null,null,null,null,null,null,null,null,null,null,null,null,null,null,null,null,null,null,null,null,null,null,null,null,null,null,null,null,"CA-1994-044  Rancheria Village Apartments","CA-1994-044","Rancheria Village Apartments","424, 428, 430 Rancheria Street","Santa Barbara","Santa Barbara","93103","Marianna Ranch, LP","Santa Barbara Housing Assistance Corporation"]
[null,null,null,null,null,null,null,null,null,null,null,null,null,null,null,null,null,null,null,null,null,null,null,null,null,null,null,null,null,null,null,null,null,null,null,null,null,null,null,null,null,null,null,null,"CA-1994-048  Casa Heiwa","CA-1994-048","Casa Heiwa","231 East Third Street","Los Angeles","Los Angeles","90013","L.P.E. Limited Partnership","LTSC Community Development Corporation"]
[null,null,null,null,null,null,null,null,null,null,null,null,null,null,null,null,null,null,null,null,null,null,null,null,null,null,null,null,null,null,null,null,null,null,null,null,null,null,null,null,null,null,null,null,"CA-1994-051  Irvine Inn","CA-1994-051","Irvine Inn","2810 Warner Ave.","Irvine","Orange","92606","Irvine Inn Apartmetns LP","FFAH V Irvine, Inn. LLC"]
[null,null,null,null,null,null,null,null,null,null,null,null,null,null,null,null,null,null,null,null,null,null,null,null,null,null,null,null,null,null,null,null,null,null,null,null,null,null,null,null,null,null,null,null,"CA-1994-052  El Patio Community Housing","CA-1994-052","El Patio Community Housing","4040 Calle Real","Santa Barbara","Santa Barbara","93110","El Patio Community Housing Partners","Santa Barbara Housing Assistance Corporation"]
[null,null,null,null,null,null,null,null,null,null,null,null,null,null,null,null,null,null,null,null,null,null,null,null,null,null,null,null,null,null,null,null,null,null,null,null,null,null,null,null,null,null,null,null,"CA-1994-053  Campbell Commons","CA-1994-053","Campbell Commons","600 Flume St","Chico","Butte","95928","Campbell Commons Associates","Eaton Housing, Inc."]
[null,null,null,null,null,null,null,null,null,null,null,null,null,null,null,null,null,null,null,null,null,null,null,null,null,null,null,null,null,null,null,null,null,null,null,null,null,null,null,null,null,null,null,null,"CA-1994-054  Cawelti Court","CA-1994-054","Cawelti Court","351 South Elm Street","Arroyo Grande","San Luis Obispo","93420","C-Court, Inc.","C-Court, Inc."]
[null,null,null,null,null,null,null,null,null,null,null,null,null,null,null,null,null,null,null,null,null,null,null,null,null,null,null,null,null,null,null,null,null,null,null,null,null,null,null,null,null,null,null,null,"CA-1994-058  Maplewood","CA-1994-058","Maplewood","2060 East Spruce Ave","Fresno","Fresno","93720","VB CDT Maplewood LP, a CA LP","Trillium Housing Services"]
[null,null,null,null,null,null,null,null,null,null,null,null,null,null,null,null,null,null,null,null,null,null,null,null,null,null,null,null,null,null,null,null,null,null,null,null,null,null,null,null,null,null,null,null,"CA-1994-059  Pineview","CA-1994-059","Pineview","4301 Fruitvale Ave","Bakersfield","Kern","93308","VB CDT Pineview LP","Trillium Housing Services"]
[null,null,null,null,null,null,null,null,null,null,null,null,null,null,null,null,null,null,null,null,null,null,null,null,null,null,null,null,null,null,null,null,null,null,null,null,null,null,null,null,null,null,null,null,"CA-1994-060  Huntington Hacienda Apartments","CA-1994-060","Huntington Hacienda Apartments","4648 and 4668 Huntington Drive South","Los Angeles","Los Angeles","90032","Huntington Hacienda Associates","CARE Housing Services Corporation"]
[null,null,null,null,null,null,null,null,null,null,null,null,null,null,null,null,null,null,null,null,null,null,null,null,null,null,null,null,null,null,null,null,null,null,null,null,null,null,null,null,null,null,null,null,"CA-1994-064  Mountain View","CA-1994-064","Mountain View","870 N Plano","Porterville","Tulare","93257","Porterville-Mountain View Limited","Trillium Housing Services"]
[null,null,null,null,null,null,null,null,null,null,null,null,null,null,null,null,null,null,null,null,null,null,null,null,null,null,null,null,null,null,null,null,null,null,null,null,null,null,null,null,null,null,null,null,{"$f":"CONCATENATE(AT259,\"  \",AU259)","v":"CA-1994-065  Mark Twain Senior Community Center"},"CA-1994-065","Mark Twain Senior Community Center","3525 Lyon Avenue","Oakland","Alameda","94601","MARK TWAIN PARTNERS LP","Oakland & The World Enterprises, Inc."]
[null,null,null,null,null,null,null,null,null,null,null,null,null,null,null,null,null,null,null,null,null,null,null,null,null,null,null,null,null,null,null,null,null,null,null,null,null,null,null,null,null,null,null,null,"CA-1994-066  Walker Commons","CA-1994-066","Walker Commons","678 Buttonwillow","Chico","Butte","95926","Walker Commons, LP a CA LP","Butte County Affordable Housing Development Corpor"]
[null,null,null,null,null,null,null,null,null,null,null,null,null,null,null,null,null,null,null,null,null,null,null,null,null,null,null,null,null,null,null,null,null,null,null,null,null,null,null,null,null,null,null,null,"CA-1994-067  Foothill Vista Apartments","CA-1994-067","Foothill Vista Apartments","600 Morning Drive","Bakersfield","Kern","93306","Pioneer Street Associates","Philip R. Hammond, Jr."]
[null,null,null,null,null,null,null,null,null,null,null,null,null,null,null,null,null,null,null,null,null,null,null,null,null,null,null,null,null,null,null,null,null,null,null,null,null,null,null,null,null,null,null,null,"CA-1994-068  Los Angeles City Lights","CA-1994-068","Los Angeles City Lights","1315 W. 7th Street","Los Angeles","Los Angeles","90017","Crescent Villages II, L.P.","RCC MGP LLC"]
[null,null,null,null,null,null,null,null,null,null,null,null,null,null,null,null,null,null,null,null,null,null,null,null,null,null,null,null,null,null,null,null,null,null,null,null,null,null,null,null,null,null,null,null,"CA-1994-071  East Fullerton Villas","CA-1994-071","East Fullerton Villas","2140-2190 East Chapman Avenue","Fullerton","Orange","92821","East Fullerton Villas, Ltd.","Interfaith Housing Development Corporation"]
[null,null,null,null,null,null,null,null,null,null,null,null,null,null,null,null,null,null,null,null,null,null,null,null,null,null,null,null,null,null,null,null,null,null,null,null,null,null,null,null,null,null,null,null,"CA-1994-073  Eden Palms Apartments","CA-1994-073","Eden Palms Apartments","5398 Monterey Road","San Jose","Santa Clara","95111","Eden Palms Associates","Eden Palms Inc"]
[null,null,null,null,null,null,null,null,null,null,null,null,null,null,null,null,null,null,null,null,null,null,null,null,null,null,null,null,null,null,null,null,null,null,null,null,null,null,null,null,null,null,null,null,"CA-1994-078  Paul Mirabile Center","CA-1994-078","Paul Mirabile Center","16 15th St.","San Diego","San Diego","92101","S.V.D.P. Management, Inc.","S.V.D.P. Management, Inc."]
[null,null,null,null,null,null,null,null,null,null,null,null,null,null,null,null,null,null,null,null,null,null,null,null,null,null,null,null,null,null,null,null,null,null,null,null,null,null,null,null,null,null,null,null,"CA-1994-081  Casa de Los Robles","CA-1994-081","Casa de Los Robles","504 West Franklin Street","Monterey","Monterey","93940","Interim, Inc.","Interim, Inc."]
[null,null,null,null,null,null,null,null,null,null,null,null,null,null,null,null,null,null,null,null,null,null,null,null,null,null,null,null,null,null,null,null,null,null,null,null,null,null,null,null,null,null,null,null,"CA-1994-082  555 Ellis Street Family Apartments","CA-1994-082","555 Ellis Street Family Apartments","555 Ellis Street","San Francisco","San Francisco","94109","555 Ellis Street Housing Partners","San Francisco Network Ministries Housing Corporati"]
[null,null,null,null,null,null,null,null,null,null,null,null,null,null,null,null,null,null,null,null,null,null,null,null,null,null,null,null,null,null,null,null,null,null,null,null,null,null,null,null,null,null,null,null,"CA-1994-091  Middletown Garden Apartments","CA-1994-091","Middletown Garden Apartments","15750 Knowles Lane","Middletown","Lake","95461","Middletown Investment Group","The Beneficial Housing Foundation, a California no"]
[null,null,null,null,null,null,null,null,null,null,null,null,null,null,null,null,null,null,null,null,null,null,null,null,null,null,null,null,null,null,null,null,null,null,null,null,null,null,null,null,null,null,null,null,"CA-1994-092  Murphys Senior Apartments","CA-1994-092","Murphys Senior Apartments","350 Bret Harte Lane","Murphys","Calaveras","95247","Murphys Enterprises","John P. Casper"]
[null,null,null,null,null,null,null,null,null,null,null,null,null,null,null,null,null,null,null,null,null,null,null,null,null,null,null,null,null,null,null,null,null,null,null,null,null,null,null,null,null,null,null,null,"CA-1994-093  Lake Isabella Senior II Apartments","CA-1994-093","Lake Isabella Senior II Apartments","2701 Erskine Creek Road","Lake Isabella","Kern","93240","Lake Isabella II Enterprises","John P. Casper"]
[null,null,null,null,null,null,null,null,null,null,null,null,null,null,null,null,null,null,null,null,null,null,null,null,null,null,null,null,null,null,null,null,null,null,null,null,null,null,null,null,null,null,null,null,"CA-1994-095  Prospect Villa III Apartments","CA-1994-095","Prospect Villa III Apartments","960 Prospect Ave","Hollister","San Benito","95023","Hollister Investment Group V","John P. Casper"]
[null,null,null,null,null,null,null,null,null,null,null,null,null,null,null,null,null,null,null,null,null,null,null,null,null,null,null,null,null,null,null,null,null,null,null,null,null,null,null,null,null,null,null,null,"CA-1994-096  Montague Apartments","CA-1994-096","Montague Apartments","791 E Webb St","Montague","Siskiyou","96064","Montague Enterprises","John P. Casper"]
[null,null,null,null,null,null,null,null,null,null,null,null,null,null,null,null,null,null,null,null,null,null,null,null,null,null,null,null,null,null,null,null,null,null,null,null,null,null,null,null,null,null,null,null,"CA-1994-100  Merrill Road Apartments","CA-1994-100","Merrill Road Apartments","3201 Merrill Road","Aptosunincorporated area","Santa Cruz","95003","Merrill Road Associates","Merrill Road Housing Corportation"]
[null,null,null,null,null,null,null,null,null,null,null,null,null,null,null,null,null,null,null,null,null,null,null,null,null,null,null,null,null,null,null,null,null,null,null,null,null,null,null,null,null,null,null,null,"CA-1994-106  Alamar Apartments","CA-1994-106","Alamar Apartments","218 South Canal St.","Merced","Merced","95340","Alamar Apartments, L.P.","Clarum Corporation"]
[null,null,null,null,null,null,null,null,null,null,null,null,null,null,null,null,null,null,null,null,null,null,null,null,null,null,null,null,null,null,null,null,null,null,null,null,null,null,null,null,null,null,null,null,"CA-1994-108  Mayacamas Village Apts","CA-1994-108","Mayacamas Village Apts","70 Calaveras Court","Napa","Napa","94559","Mayacamas Village Associates","Napa Vallley Community Housing"]
[null,null,null,null,null,null,null,null,null,null,null,null,null,null,null,null,null,null,null,null,null,null,null,null,null,null,null,null,null,null,null,null,null,null,null,null,null,null,null,null,null,null,null,null,"CA-1994-113  Mecca Apartments II","CA-1994-113","Mecca Apartments II","91-800 Ave 66","Mecca","Riverside","92254","Mecca Apartments II, LP","Quality Housing Developmet Corporation"]
[null,null,null,null,null,null,null,null,null,null,null,null,null,null,null,null,null,null,null,null,null,null,null,null,null,null,null,null,null,null,null,null,null,null,null,null,null,null,null,null,null,null,null,null,"CA-1994-121  Terraces Apartments","CA-1994-121","Terraces Apartments","1301 Morningview Drive","Escondido","San Diego","92026","Avanath Escondido, L.P.","COR Community Development Corporation"]
[null,null,null,null,null,null,null,null,null,null,null,null,null,null,null,null,null,null,null,null,null,null,null,null,null,null,null,null,null,null,null,null,null,null,null,null,null,null,null,null,null,null,null,null,"CA-1994-123  Chowchilla Garden Apartments","CA-1994-123","Chowchilla Garden Apartments","300 Myer Drive","Chowchilla","Madera","93610","Chowchilla Associates","Central Valley Coalition For Affordable Housing"]
[null,null,null,null,null,null,null,null,null,null,null,null,null,null,null,null,null,null,null,null,null,null,null,null,null,null,null,null,null,null,null,null,null,null,null,null,null,null,null,null,null,null,null,null,"CA-1994-125  Alamar Apartments II","CA-1994-125","Alamar Apartments II","286 South Canal Street","Merced","Merced","95340","Alamar Apartments, L.P.","Clarum Corporation"]
[null,null,null,null,null,null,null,null,null,null,null,null,null,null,null,null,null,null,null,null,null,null,null,null,null,null,null,null,null,null,null,null,null,null,null,null,null,null,null,null,null,null,null,null,"CA-1994-127  Corning Garden Apartments","CA-1994-127","Corning Garden Apartments","250 Divisadero Avenue","Corning","Tehama","96021","Corning Enterprises","John P. Casper Trust"]
[null,null,null,null,null,null,null,null,null,null,null,null,null,null,null,null,null,null,null,null,null,null,null,null,null,null,null,null,null,null,null,null,null,null,null,null,null,null,null,null,null,null,null,null,"CA-1994-128  Mariposa Apartments","CA-1994-128","Mariposa Apartments","5075 St. Andrews Road","Mariposa","Mariposa","95338","Mariposa Enterprises III","John P. Casper"]
[null,null,null,null,null,null,null,null,null,null,null,null,null,null,null,null,null,null,null,null,null,null,null,null,null,null,null,null,null,null,null,null,null,null,null,null,null,null,null,null,null,null,null,null,"CA-1994-130  El Patio Community Housing Phase II","CA-1994-130","El Patio Community Housing Phase II","4006 Via Lucero","Santa Barbara","Santa Barbara","93110","El Patio Community Housing Partners","Santa Barbara Housing Assistance Corporation"]
[null,null,null,null,null,null,null,null,null,null,null,null,null,null,null,null,null,null,null,null,null,null,null,null,null,null,null,null,null,null,null,null,null,null,null,null,null,null,null,null,null,null,null,null,"CA-1994-131  Midtown Gardens","CA-1994-131","Midtown Gardens","400 North Vermont Avenue","Los Angeles","Los Angeles","90004","Midtown Gardens Limited Partnership","Delancey Street Foundation"]
[null,null,null,null,null,null,null,null,null,null,null,null,null,null,null,null,null,null,null,null,null,null,null,null,null,null,null,null,null,null,null,null,null,null,null,null,null,null,null,null,null,null,null,null,"CA-1994-138  Gabilan Hills Townhomes","CA-1994-138","Gabilan Hills Townhomes","1051 Paseo Grande","Salinas","Monterey","93905","Gabilan Hills Apartments Partners","CHISPA, Inc."]
[null,null,null,null,null,null,null,null,null,null,null,null,null,null,null,null,null,null,null,null,null,null,null,null,null,null,null,null,null,null,null,null,null,null,null,null,null,null,null,null,null,null,null,null,"CA-1994-139  La Casa Grande","CA-1994-139","La Casa Grande","353 Ventana Avenue","Greenfield","Monterey","93926","CHISPA, Inc.","CHISPA, Inc."]
[null,null,null,null,null,null,null,null,null,null,null,null,null,null,null,null,null,null,null,null,null,null,null,null,null,null,null,null,null,null,null,null,null,null,null,null,null,null,null,null,null,null,null,null,"CA-1994-143  Tabor Courts","CA-1994-143","Tabor Courts","345 Fourth Avenue","Los Angeles","Los Angeles","90291","Fourth Avenue Limited Partnership","Venice Community Housing Corporation"]
[null,null,null,null,null,null,null,null,null,null,null,null,null,null,null,null,null,null,null,null,null,null,null,null,null,null,null,null,null,null,null,null,null,null,null,null,null,null,null,null,null,null,null,null,"CA-1994-144  Gramercy Court","CA-1994-144","Gramercy Court","3317 West Washington Blvd.","Los Angeles","Los Angeles","90018","Gramercy Court, LP","Gramercy Housing Group"]
[null,null,null,null,null,null,null,null,null,null,null,null,null,null,null,null,null,null,null,null,null,null,null,null,null,null,null,null,null,null,null,null,null,null,null,null,null,null,null,null,null,null,null,null,"CA-1994-146  Huff Avenue Family Housing","CA-1994-146","Huff Avenue Family Housing","3021 Huff Avenue","San Jose","Santa Clara","95128","Huff Avenue LLC","Rotary Plaza/HACSC HDC, Inc."]
[null,null,null,null,null,null,null,null,null,null,null,null,null,null,null,null,null,null,null,null,null,null,null,null,null,null,null,null,null,null,null,null,null,null,null,null,null,null,null,null,null,null,null,null,"CA-1994-147  Villa Florentina","CA-1994-147","Villa Florentina","4576 Florence Avenue","Bell","Los Angeles","90201","Villa Florentina, LLC","John Slevkov"]
[null,null,null,null,null,null,null,null,null,null,null,null,null,null,null,null,null,null,null,null,null,null,null,null,null,null,null,null,null,null,null,null,null,null,null,null,null,null,null,null,null,null,null,null,"CA-1994-148  Avenida Terrace Apartments","CA-1994-148","Avenida Terrace Apartments","245 South Avenue 54","Highland Park","Los Angeles","90042","Avenida Terrace LP","Los Angeles Housing Partnership, Inc."]
[null,null,null,null,null,null,null,null,null,null,null,null,null,null,null,null,null,null,null,null,null,null,null,null,null,null,null,null,null,null,null,null,null,null,null,null,null,null,null,null,null,null,null,null,"CA-1994-149  Casa Velasquez","CA-1994-149","Casa Velasquez","2440 Barry Street","Camarillo","Ventura","93010","Area Housing Authority of the County of Ventura","Area Housing Authority of the County of Ventura"]
[null,null,null,null,null,null,null,null,null,null,null,null,null,null,null,null,null,null,null,null,null,null,null,null,null,null,null,null,null,null,null,null,null,null,null,null,null,null,null,null,null,null,null,null,"CA-1994-159  205 Jones Street Apartments","CA-1994-159","205 Jones Street Apartments","205 Jones Street","San Francisco","San Francisco","94102","205 Jones Street LLC","Mercy Housing Calwest"]
[null,null,null,null,null,null,null,null,null,null,null,null,null,null,null,null,null,null,null,null,null,null,null,null,null,null,null,null,null,null,null,null,null,null,null,null,null,null,null,null,null,null,null,null,"CA-1994-161  1101 Howard Street","CA-1994-161","1101 Howard Street","1101 Howard Street","San Francisco","San Francisco","94103","1101 Howard Street Associates, L.P.","South of Market Mercy Housing"]
[null,null,null,null,null,null,null,null,null,null,null,null,null,null,null,null,null,null,null,null,null,null,null,null,null,null,null,null,null,null,null,null,null,null,null,null,null,null,null,null,null,null,null,null,"CA-1994-162  White Oak-Lassen Apartments","CA-1994-162","White Oak-Lassen Apartments","9907 White Oak Avenue","Los Angeles","Los Angeles","91325","White Oak, LP","Rainbow White Oak Lassen, LLC"]
[null,null,null,null,null,null,null,null,null,null,null,null,null,null,null,null,null,null,null,null,null,null,null,null,null,null,null,null,null,null,null,null,null,null,null,null,null,null,null,null,null,null,null,null,"CA-1994-167  The Altamont Hotel","CA-1994-167","The Altamont Hotel","3048 16th Street Street","San Francisco","San Francisco","94103","Altamont Hotel Associates, LP","Altamont Hotel, Inc."]
[null,null,null,null,null,null,null,null,null,null,null,null,null,null,null,null,null,null,null,null,null,null,null,null,null,null,null,null,null,null,null,null,null,null,null,null,null,null,null,null,null,null,null,null,"CA-1994-170  Mt. Whitney Plaza","CA-1994-170","Mt. Whitney Plaza","181 E. Honolulu Street","Lindsay","Tulare","93247","Self Help Communities 1","Self-Help Enterprises"]
[null,null,null,null,null,null,null,null,null,null,null,null,null,null,null,null,null,null,null,null,null,null,null,null,null,null,null,null,null,null,null,null,null,null,null,null,null,null,null,null,null,null,null,null,"CA-1994-176  Valle de Las Brisas","CA-1994-176","Valle de Las Brisas","101 East Adell Street","Madera","Madera","93637","Las Brisas Associates, L.P.","FFAH II Valle de Las Brisas, LLC"]
[null,null,null,null,null,null,null,null,null,null,null,null,null,null,null,null,null,null,null,null,null,null,null,null,null,null,null,null,null,null,null,null,null,null,null,null,null,null,null,null,null,null,null,null,"CA-1994-181  La Hacienda Apartments","CA-1994-181","La Hacienda Apartments","82-495 Miles Ave","Indio","Riverside","92201","Miles Avenue Housing Associates","Miles Avenue Housing, Inc."]
[null,null,null,null,null,null,null,null,null,null,null,null,null,null,null,null,null,null,null,null,null,null,null,null,null,null,null,null,null,null,null,null,null,null,null,null,null,null,null,null,null,null,null,null,"CA-1994-186  Seasons at la Quinta","CA-1994-186","Seasons at la Quinta","50-915 Rainbow Court","La Quinta","Riverside","92253","La Quinta Seniors, L.P.","LINC Housing Corporation"]
[null,null,null,null,null,null,null,null,null,null,null,null,null,null,null,null,null,null,null,null,null,null,null,null,null,null,null,null,null,null,null,null,null,null,null,null,null,null,null,null,null,null,null,null,"CA-1994-190  Danbury Park","CA-1994-190","Danbury Park","7840 Walerga Rd.","Sacramento","Sacramento","95843","Danbury Park LLC","WNC - Danbury Park GP, LLC"]
[null,null,null,null,null,null,null,null,null,null,null,null,null,null,null,null,null,null,null,null,null,null,null,null,null,null,null,null,null,null,null,null,null,null,null,null,null,null,null,null,null,null,null,null,"CA-1994-192  Creekview Apartments","CA-1994-192","Creekview Apartments","1070 Almond Ave","Arbuckle","Colusa","95912","Creekview Apartments, L.P.","Creekview GP, LLC"]
[null,null,null,null,null,null,null,null,null,null,null,null,null,null,null,null,null,null,null,null,null,null,null,null,null,null,null,null,null,null,null,null,null,null,null,null,null,null,null,null,null,null,null,null,"CA-1994-196  Athens Glen Apartments","CA-1994-196","Athens Glen Apartments","11515 Budlong Avenue","Los Angeles","Los Angeles","90044","11515 So. Budlong Limited Partners, L.P.","Deep Green Housing and Community Development"]
[null,null,null,null,null,null,null,null,null,null,null,null,null,null,null,null,null,null,null,null,null,null,null,null,null,null,null,null,null,null,null,null,null,null,null,null,null,null,null,null,null,null,null,null,"CA-1994-197  Morehouse Apartments","CA-1994-197","Morehouse Apartments","1750 Martin Luther King Avenue","Los Angeles","Los Angeles","90062","Florence Morehouse, LP","CADI VII LLC"]
[null,null,null,null,null,null,null,null,null,null,null,null,null,null,null,null,null,null,null,null,null,null,null,null,null,null,null,null,null,null,null,null,null,null,null,null,null,null,null,null,null,null,null,null,"CA-1994-198  Alejandro Rivera Senior Citizens Apts II","CA-1994-198","Alejandro Rivera Senior Citizens Apts II","2151 Rockwood Avenue","Calexico","Imperial","92231","Alejandro Rivera Sr. Citizens Apts. II, LP","RSCCAC"]
[null,null,null,null,null,null,null,null,null,null,null,null,null,null,null,null,null,null,null,null,null,null,null,null,null,null,null,null,null,null,null,null,null,null,null,null,null,null,null,null,null,null,null,null,"CA-1994-203  Adams-Congress Apartments","CA-1994-203","Adams-Congress Apartments","1801 West Adams Blvd.","Los Angeles","Los Angeles","90016","Adams Congress Apartments, L.P.","Interdenominational Community Development Corporat"]
[null,null,null,null,null,null,null,null,null,null,null,null,null,null,null,null,null,null,null,null,null,null,null,null,null,null,null,null,null,null,null,null,null,null,null,null,null,null,null,null,null,null,null,null,"CA-1994-205  Park Meadows","CA-1994-205","Park Meadows","840 Park Meadows Avenue","Bakersfield","Kern","93308","Park Meadows LP","Central Valley Coalition for Affordable Housing"]
[null,null,null,null,null,null,null,null,null,null,null,null,null,null,null,null,null,null,null,null,null,null,null,null,null,null,null,null,null,null,null,null,null,null,null,null,null,null,null,null,null,null,null,null,"CA-1994-208  Valencia House","CA-1994-208","Valencia House","248 Valencia Blvd.","Woodlake","Tulare","93286","Woodlake Valencia Partners","Philip R. Hammond, Jr."]
[null,null,null,null,null,null,null,null,null,null,null,null,null,null,null,null,null,null,null,null,null,null,null,null,null,null,null,null,null,null,null,null,null,null,null,null,null,null,null,null,null,null,null,null,"CA-1994-216  Cambridge Court","CA-1994-216","Cambridge Court","6507 Danny Drive","Stockton","San Joaquin","95210","IDEAL Cambridge, LP","Central Valley Coalition for Affordable Housing"]
[null,null,null,null,null,null,null,null,null,null,null,null,null,null,null,null,null,null,null,null,null,null,null,null,null,null,null,null,null,null,null,null,null,null,null,null,null,null,null,null,null,null,null,null,"CA-1994-901  Shasta Villa Apartments","CA-1994-901","Shasta Villa Apartments","232 North Shasta Street","Farmersville","Tulare","93223","Shasta Villa Associates","Azteca Group, LLC"]
[null,null,null,null,null,null,null,null,null,null,null,null,null,null,null,null,null,null,null,null,null,null,null,null,null,null,null,null,null,null,null,null,null,null,null,null,null,null,null,null,null,null,null,null,"CA-1994-902  Willowbrook Apartments II","CA-1994-902","Willowbrook Apartments II","1756 Willowbrook Drive","Merced","Merced","95348","Maxwell Construction, Inc.","Guy Maxwell"]
[null,null,null,null,null,null,null,null,null,null,null,null,null,null,null,null,null,null,null,null,null,null,null,null,null,null,null,null,null,null,null,null,null,null,null,null,null,null,null,null,null,null,null,null,"CA-1994-905  The Rose Gardens","CA-1994-905","The Rose Gardens","8190 13th Street","Westminster","Orange","92683","Elderly Development Westminister","Community Housing Assistance Program Inc."]
[null,null,null,null,null,null,null,null,null,null,null,null,null,null,null,null,null,null,null,null,null,null,null,null,null,null,null,null,null,null,null,null,null,null,null,null,null,null,null,null,null,null,null,null,"CA-1995-002  LA Town Homes","CA-1995-002","LA Town Homes","2557 South Bronson Avenue","Los Angeles","Los Angeles","90018","LA Town Homes, LP","Abbay Gokani Corporation"]
[null,null,null,null,null,null,null,null,null,null,null,null,null,null,null,null,null,null,null,null,null,null,null,null,null,null,null,null,null,null,null,null,null,null,null,null,null,null,null,null,null,null,null,null,"CA-1995-006  1500 Orange Place","CA-1995-006","1500 Orange Place","1500 South Orange Place","Escondido","San Diego","92025","Orange Place Housing Associates, L.P.","Community HousingWorks"]
[null,null,null,null,null,null,null,null,null,null,null,null,null,null,null,null,null,null,null,null,null,null,null,null,null,null,null,null,null,null,null,null,null,null,null,null,null,null,null,null,null,null,null,null,"CA-1995-008  Serrano Apartments","CA-1995-008","Serrano Apartments","1536 North Serrano Avenue","Los Angeles","Los Angeles","90027","Comeback Kid, L.P.","Housing Corporation of America"]
[null,null,null,null,null,null,null,null,null,null,null,null,null,null,null,null,null,null,null,null,null,null,null,null,null,null,null,null,null,null,null,null,null,null,null,null,null,null,null,null,null,null,null,null,"CA-1995-009  Roscoe Apartments","CA-1995-009","Roscoe Apartments","20234 Roscoe Blvd.","Winnetka","Los Angeles","91306","Comeback, LP","Housing Corporation of America"]
[null,null,null,null,null,null,null,null,null,null,null,null,null,null,null,null,null,null,null,null,null,null,null,null,null,null,null,null,null,null,null,null,null,null,null,null,null,null,null,null,null,null,null,null,"CA-1995-011  Budlong Avenue Apartments","CA-1995-011","Budlong Avenue Apartments","2727 Budlong Avenue","Los Angeles","Los Angeles","90007","ECHC, L.P.","Casa Esperanza Holdings LLC"]
[null,null,null,null,null,null,null,null,null,null,null,null,null,null,null,null,null,null,null,null,null,null,null,null,null,null,null,null,null,null,null,null,null,null,null,null,null,null,null,null,null,null,null,null,"CA-1995-012  Hotel Woodland","CA-1995-012","Hotel Woodland","426 Main Street","Woodland","Yolo","95695","Hotel Woodland L.P.","W.O.H.A. Corporation"]
[null,null,null,null,null,null,null,null,null,null,null,null,null,null,null,null,null,null,null,null,null,null,null,null,null,null,null,null,null,null,null,null,null,null,null,null,null,null,null,null,null,null,null,null,"CA-1995-014  Roosevelt Townhomes","CA-1995-014","Roosevelt Townhomes","522 Roosevelt Street","Salinas","Monterey","93905","Roosevelt Street Townhomes, LP","CHISPA, Inc."]
[null,null,null,null,null,null,null,null,null,null,null,null,null,null,null,null,null,null,null,null,null,null,null,null,null,null,null,null,null,null,null,null,null,null,null,null,null,null,null,null,null,null,null,null,"CA-1995-033  Klamath Gardens","CA-1995-033","Klamath Gardens","2051 Klamath Avenue","Santa Clara","Santa Clara","95051","Klamath Associates","S.P.G. Housing, Inc."]
[null,null,null,null,null,null,null,null,null,null,null,null,null,null,null,null,null,null,null,null,null,null,null,null,null,null,null,null,null,null,null,null,null,null,null,null,null,null,null,null,null,null,null,null,"CA-1995-037  Jardines del Valle","CA-1995-037","Jardines del Valle","76 Murphy Crossing Road","Watsonville","Santa Cruz","95076","MP Murphy's Associates LP","MidPeninsula Murphy's Inc."]
[null,null,null,null,null,null,null,null,null,null,null,null,null,null,null,null,null,null,null,null,null,null,null,null,null,null,null,null,null,null,null,null,null,null,null,null,null,null,null,null,null,null,null,null,"CA-1995-039  Hyde Park Place Apartments","CA-1995-039","Hyde Park Place Apartments","6323 Tenth Avenue","Los Angeles","Los Angeles","90043","Hyde Park Place LP","CEDC"]
[null,null,null,null,null,null,null,null,null,null,null,null,null,null,null,null,null,null,null,null,null,null,null,null,null,null,null,null,null,null,null,null,null,null,null,null,null,null,null,null,null,null,null,null,"CA-1995-040  Gateway Village","CA-1995-040","Gateway Village","800 Paradise Road","Modesto","Stanislaus","95351","Self Help Communities 1, LLC","Self Help Communities 1, LLC"]
[null,null,null,null,null,null,null,null,null,null,null,null,null,null,null,null,null,null,null,null,null,null,null,null,null,null,null,null,null,null,null,null,null,null,null,null,null,null,null,null,null,null,null,null,{"$f":"CONCATENATE(AT323,\"  \",AU323)","v":"CA-1995-043  Villa Metropolitano"},"CA-1995-043","Villa Metropolitano","1328 South Hope Street","Los Angeles","Los Angeles","90015","Villa Metropolitano Limited Partnership","El Pueblo Community Development Corporation"]
[null,null,null,null,null,null,null,null,null,null,null,null,null,null,null,null,null,null,null,null,null,null,null,null,null,null,null,null,null,null,null,null,null,null,null,null,null,null,null,null,null,null,null,null,"CA-1995-045  Alabama Court","CA-1995-045","Alabama Court","7440-7452 Alabama Avenue","Canoga Park","Los Angeles","91303","Alabama Court, LP","LA FAMILY HOUSING  CORPORATION"]
[null,null,null,null,null,null,null,null,null,null,null,null,null,null,null,null,null,null,null,null,null,null,null,null,null,null,null,null,null,null,null,null,null,null,null,null,null,null,null,null,null,null,null,null,"CA-1995-047  Good Samaritan Family Apartments","CA-1995-047","Good Samaritan Family Apartments","1290 Potrero Avenue","San Francisco","San Francisco","94110","Good Samaritan Associates","Potrero Avenue Housing, Inc."]
[null,null,null,null,null,null,null,null,null,null,null,null,null,null,null,null,null,null,null,null,null,null,null,null,null,null,null,null,null,null,null,null,null,null,null,null,null,null,null,null,null,null,null,null,"CA-1995-049  Gower Street Apartments","CA-1995-049","Gower Street Apartments","1140 North Gower Street","Los Angeles","Los Angeles","90038","Gower Street Apartments, LP","A Community of Friends"]
[null,null,null,null,null,null,null,null,null,null,null,null,null,null,null,null,null,null,null,null,null,null,null,null,null,null,null,null,null,null,null,null,null,null,null,null,null,null,null,null,null,null,null,null,"CA-1995-051  Juan Pifarre Plaza","CA-1995-051","Juan Pifarre Plaza","3101 21st Street","San Francisco","San Francisco","94110","1010 SVN Associates","1010 South Van Ness, Inc."]
[null,null,null,null,null,null,null,null,null,null,null,null,null,null,null,null,null,null,null,null,null,null,null,null,null,null,null,null,null,null,null,null,null,null,null,null,null,null,null,null,null,null,null,null,"CA-1995-054  Gloria Way Community Housing","CA-1995-054","Gloria Way Community Housing","2400 Gloria Way","East Palo Alto","San Mateo","94303","Gloria Way Associates","MP CAN Do, Inc."]
[null,null,null,null,null,null,null,null,null,null,null,null,null,null,null,null,null,null,null,null,null,null,null,null,null,null,null,null,null,null,null,null,null,null,null,null,null,null,null,null,null,null,null,null,"CA-1995-056  Pickering Place","CA-1995-056","Pickering Place","20 West Pickering Avenue","Fremont","Alameda","94536","Pickering Associates, LP","Mid-Peninsula Pickering, Inc."]
[null,null,null,null,null,null,null,null,null,null,null,null,null,null,null,null,null,null,null,null,null,null,null,null,null,null,null,null,null,null,null,null,null,null,null,null,null,null,null,null,null,null,null,null,"CA-1995-057  Euclid Villa Transition Housing","CA-1995-057","Euclid Villa Transition Housing","154 &160 Euclid Avenue","Pasadena","Los Angeles","91101","160 Euclid Partners, L.P","Union Station Homeless Services"]
[null,null,null,null,null,null,null,null,null,null,null,null,null,null,null,null,null,null,null,null,null,null,null,null,null,null,null,null,null,null,null,null,null,null,null,null,null,null,null,null,null,null,null,null,"CA-1995-060  Parthenia Court","CA-1995-060","Parthenia Court","14825 Parthenia Street","Los Angeles","Los Angeles","91402","Parthenia Housing Associates, Limited Partnership","Abode Communities"]
[null,null,null,null,null,null,null,null,null,null,null,null,null,null,null,null,null,null,null,null,null,null,null,null,null,null,null,null,null,null,null,null,null,null,null,null,null,null,null,null,null,null,null,null,"CA-1995-064  Heritage Park at Hanford","CA-1995-064","Heritage Park at Hanford","439 Centennial Drive","Hanford","Kings","93231","Hanford Associates, LP","Foundation for Affordable Housing II,Inc."]
[null,null,null,null,null,null,null,null,null,null,null,null,null,null,null,null,null,null,null,null,null,null,null,null,null,null,null,null,null,null,null,null,null,null,null,null,null,null,null,null,null,null,null,null,"CA-1995-066  Marsh Creek Apartments","CA-1995-066","Marsh Creek Apartments","7251 Brentwood Blvd.","Brentwood","Contra Costa","94513","Marsh Creek Investments LLC","Cascade Housing Association"]
[null,null,null,null,null,null,null,null,null,null,null,null,null,null,null,null,null,null,null,null,null,null,null,null,null,null,null,null,null,null,null,null,null,null,null,null,null,null,null,null,null,null,null,null,"CA-1995-069  Hayes Valley Phase I & II","CA-1995-069","Hayes Valley Phase I & II","401 Rose Street","San Francisco","San Francisco","94102","Hayes Valley Apartments Limited Partnership and Ha","Hayes Valley Housing Corporation"]
[null,null,null,null,null,null,null,null,null,null,null,null,null,null,null,null,null,null,null,null,null,null,null,null,null,null,null,null,null,null,null,null,null,null,null,null,null,null,null,null,null,null,null,null,"CA-1995-070  Noble Pines Apartments","CA-1995-070","Noble Pines Apartments","21611 Saticoy","Los Angeles","Los Angeles","91304","Noble Pines, LP","Rainbow Noble Pines, LLC"]
[null,null,null,null,null,null,null,null,null,null,null,null,null,null,null,null,null,null,null,null,null,null,null,null,null,null,null,null,null,null,null,null,null,null,null,null,null,null,null,null,null,null,null,null,"CA-1995-071  Ashwood Court Apartments","CA-1995-071","Ashwood Court Apartments","19201 Nordoff Street","Los Angeles","Los Angeles","91324","Ashwood Court, LP","Rainbow Ashwood Court, LLC"]
[null,null,null,null,null,null,null,null,null,null,null,null,null,null,null,null,null,null,null,null,null,null,null,null,null,null,null,null,null,null,null,null,null,null,null,null,null,null,null,null,null,null,null,null,"CA-1995-072  Washington Court","CA-1995-072","Washington Court","12525 Washington Place","Los Angeles","Los Angeles","90066","Washington Place, LP","Venice Community Housing Corporation"]
[null,null,null,null,null,null,null,null,null,null,null,null,null,null,null,null,null,null,null,null,null,null,null,null,null,null,null,null,null,null,null,null,null,null,null,null,null,null,null,null,null,null,null,null,"CA-1995-073  Sycamore Street Commons","CA-1995-073","Sycamore Street Commons","125 Sycamore Street","Santa Cruz","Santa Cruz","95060","Sycamore Street Commons, LLC","Central Coast Housing"]
[null,null,null,null,null,null,null,null,null,null,null,null,null,null,null,null,null,null,null,null,null,null,null,null,null,null,null,null,null,null,null,null,null,null,null,null,null,null,null,null,null,null,null,null,"CA-1995-074  Lyric Hotel","CA-1995-074","Lyric Hotel","140 Jones Street","San Francisco","San Francisco","94102","Lyric Housing Associates","Lyric Housing Corporatrion"]
[null,null,null,null,null,null,null,null,null,null,null,null,null,null,null,null,null,null,null,null,null,null,null,null,null,null,null,null,null,null,null,null,null,null,null,null,null,null,null,null,null,null,null,null,"CA-1995-075  Plaza-Ramona Apartments","CA-1995-075","Plaza-Ramona Apartments","250-260 McAllister Street","San Francisco","San Francisco","94102","McAllister Street Associates, LP","McAllister Street, Inc."]
[null,null,null,null,null,null,null,null,null,null,null,null,null,null,null,null,null,null,null,null,null,null,null,null,null,null,null,null,null,null,null,null,null,null,null,null,null,null,null,null,null,null,null,null,"CA-1995-076  Washington Courtyard","CA-1995-076","Washington Courtyard","500 7th St","West Sacramento","Yolo","95605","Washington Courtyard Limited Partnership","West Sacramento Housing Development Corporation, a"]
[null,null,null,null,null,null,null,null,null,null,null,null,null,null,null,null,null,null,null,null,null,null,null,null,null,null,null,null,null,null,null,null,null,null,null,null,null,null,null,null,null,null,null,null,"CA-1995-077  Parkside Apartments","CA-1995-077","Parkside Apartments","400 West 9th Street","Los Angeles","Los Angeles","90015","9th and Grand Limited Partners L.P.","Deep Green Housing and Community Development"]
[null,null,null,null,null,null,null,null,null,null,null,null,null,null,null,null,null,null,null,null,null,null,null,null,null,null,null,null,null,null,null,null,null,null,null,null,null,null,null,null,null,null,null,null,"CA-1995-078  Ohlone Court Apartments","CA-1995-078","Ohlone Court Apartments","5225 Terner Way","San Jose","Santa Clara","95136","Ohlone Housing Associates","Ohlone Housing Corporation"]
[null,null,null,null,null,null,null,null,null,null,null,null,null,null,null,null,null,null,null,null,null,null,null,null,null,null,null,null,null,null,null,null,null,null,null,null,null,null,null,null,null,null,null,null,"CA-1995-079  Santa Alicia Apartments","CA-1995-079","Santa Alicia Apartments","100 Santorini","Irvine","Orange","92606","Santa Alicia Family Housing Associates","BRIDGE Housing Corporation - Southern California"]
[null,null,null,null,null,null,null,null,null,null,null,null,null,null,null,null,null,null,null,null,null,null,null,null,null,null,null,null,null,null,null,null,null,null,null,null,null,null,null,null,null,null,null,null,"CA-1995-081  Strobridge Court Apartments","CA-1995-081","Strobridge Court Apartments","21000 Wilbeam Avenue","Castro Valley","Alameda","94546","Strobridge Housing Associates","Strobridge Housing, Inc."]
[null,null,null,null,null,null,null,null,null,null,null,null,null,null,null,null,null,null,null,null,null,null,null,null,null,null,null,null,null,null,null,null,null,null,null,null,null,null,null,null,null,null,null,null,"CA-1995-083  Normandie Senior Housing","CA-1995-083","Normandie Senior Housing","6301 South Normandie Avenue","Los Angeles","Los Angeles","90044","NNPHI Senior Housing, L.P.","Normandie Non Profit Housing Inc"]
[null,null,null,null,null,null,null,null,null,null,null,null,null,null,null,null,null,null,null,null,null,null,null,null,null,null,null,null,null,null,null,null,null,null,null,null,null,null,null,null,null,null,null,null,"CA-1995-086  Yerba Buena Commons","CA-1995-086","Yerba Buena Commons","88 Perry Street","San Francisco","San Francisco","94107","YBC Development II, LP","MHDC CA MGP, LLC"]
[null,null,null,null,null,null,null,null,null,null,null,null,null,null,null,null,null,null,null,null,null,null,null,null,null,null,null,null,null,null,null,null,null,null,null,null,null,null,null,null,null,null,null,null,"CA-1995-091  Rumrill Place Apartments","CA-1995-091","Rumrill Place Apartments","1883 Rumrill Blvd.","San Pablo","Contra Costa","94806","Lao Park Associates","Lao Park Housing Corporation"]
[null,null,null,null,null,null,null,null,null,null,null,null,null,null,null,null,null,null,null,null,null,null,null,null,null,null,null,null,null,null,null,null,null,null,null,null,null,null,null,null,null,null,null,null,"CA-1995-093  Hamilton Apartments","CA-1995-093","Hamilton Apartments","510 21st Street","Oakland","Alameda","94612","2101 Telegraph Associates","2101 Telegraph Avenue Inc."]
[null,null,null,null,null,null,null,null,null,null,null,null,null,null,null,null,null,null,null,null,null,null,null,null,null,null,null,null,null,null,null,null,null,null,null,null,null,null,null,null,null,null,null,null,"CA-1995-097  479 Natoma Street","CA-1995-097","479 Natoma Street","479 Natoma Street","San Francisco","San Francisco","94103","479 Natoma Street Associates","479 Natoma Street, Inc."]
[null,null,null,null,null,null,null,null,null,null,null,null,null,null,null,null,null,null,null,null,null,null,null,null,null,null,null,null,null,null,null,null,null,null,null,null,null,null,null,null,null,null,null,null,"CA-1995-098  2300 Van Ness Ave. Apartments","CA-1995-098","2300 Van Ness Ave. Apartments","2300 Van Ness Avenue","San Francisco","San Francisco","94109","2300 Van Ness Associates, L. P.","ASIAN, Inc."]
[null,null,null,null,null,null,null,null,null,null,null,null,null,null,null,null,null,null,null,null,null,null,null,null,null,null,null,null,null,null,null,null,null,null,null,null,null,null,null,null,null,null,null,null,"CA-1995-099  Kennedy Court","CA-1995-099","Kennedy Court","1401 Union Ave","Fairfield","Solano","94533","Kennedy Court Partners","Solano Affordable Housing Foundation"]
[null,null,null,null,null,null,null,null,null,null,null,null,null,null,null,null,null,null,null,null,null,null,null,null,null,null,null,null,null,null,null,null,null,null,null,null,null,null,null,null,null,null,null,null,"CA-1995-108  Hobson Way Family Housing/ Casa San Juan","CA-1995-108","Hobson Way Family Housing/ Casa San Juan","500 Hobson Way","Oxnard","Ventura","93030","Mercy Housing California VII, LP","Mercy Properties, Inc."]
[null,null,null,null,null,null,null,null,null,null,null,null,null,null,null,null,null,null,null,null,null,null,null,null,null,null,null,null,null,null,null,null,null,null,null,null,null,null,null,null,null,null,null,null,"CA-1995-109  Cecilia Place","CA-1995-109","Cecilia Place","321 Cecilia Way","Tiburon","Marin","94920","Cecilia Place  Homes, LP","Cecilia Place  Homes, LP"]
[null,null,null,null,null,null,null,null,null,null,null,null,null,null,null,null,null,null,null,null,null,null,null,null,null,null,null,null,null,null,null,null,null,null,null,null,null,null,null,null,null,null,null,null,"CA-1995-111  Bristlecone Apartments","CA-1995-111","Bristlecone Apartments","3072 Chateau Road","Mammoth Lakes","Mono","93546","Bristlecone Apartments, LP","Central Valley Coalition for Affordable Housing"]
[null,null,null,null,null,null,null,null,null,null,null,null,null,null,null,null,null,null,null,null,null,null,null,null,null,null,null,null,null,null,null,null,null,null,null,null,null,null,null,null,null,null,null,null,"CA-1995-114  Rose Hotel","CA-1995-114","Rose Hotel","125 Sixth Street","San Francisco","San Francisco","94103","Mercy Housing California X, LP","Mercy Properties, Inc."]
[null,null,null,null,null,null,null,null,null,null,null,null,null,null,null,null,null,null,null,null,null,null,null,null,null,null,null,null,null,null,null,null,null,null,null,null,null,null,null,null,null,null,null,null,"CA-1995-117  Brentwood Park Apartments","CA-1995-117","Brentwood Park Apartments","160 Sycamore Avenue","Brentwood","Contra Costa","94513","Brentwood Park Apartments","Quality Housing Development Corporation"]
[null,null,null,null,null,null,null,null,null,null,null,null,null,null,null,null,null,null,null,null,null,null,null,null,null,null,null,null,null,null,null,null,null,null,null,null,null,null,null,null,null,null,null,null,"CA-1995-119  Placer Village Apartments","CA-1995-119","Placer Village Apartments","2789 Ray Lawyer Drive","Placerville","El Dorado","95667","Placer Village Apartments","Merit Housing Incorporated"]
[null,null,null,null,null,null,null,null,null,null,null,null,null,null,null,null,null,null,null,null,null,null,null,null,null,null,null,null,null,null,null,null,null,null,null,null,null,null,null,null,null,null,null,null,"CA-1995-128  Palos Verde Apartments","CA-1995-128","Palos Verde Apartments","21797 South Reynolds Avenue","South Dos Palos","Merced","93665","South Dos Palos Associates","Rico and Carol Brazil II, LP"]
[null,null,null,null,null,null,null,null,null,null,null,null,null,null,null,null,null,null,null,null,null,null,null,null,null,null,null,null,null,null,null,null,null,null,null,null,null,null,null,null,null,null,null,null,"CA-1995-131  Terracina Apartments at Laguna Creek","CA-1995-131","Terracina Apartments at Laguna Creek","9274 Franklin Blvd.","Elk Grove","Sacramento","95758","Franklin Laguna Apartments, LP","Riverside Charitable Corp"]
[null,null,null,null,null,null,null,null,null,null,null,null,null,null,null,null,null,null,null,null,null,null,null,null,null,null,null,null,null,null,null,null,null,null,null,null,null,null,null,null,null,null,null,null,"CA-1995-132  Villa Siena Apartments","CA-1995-132","Villa Siena Apartments","31300 Auto Center  Drive","Lake Elsinore","Riverside","92530","LE Family Apartments, LP","Riverside Charitable Corp"]
[null,null,null,null,null,null,null,null,null,null,null,null,null,null,null,null,null,null,null,null,null,null,null,null,null,null,null,null,null,null,null,null,null,null,null,null,null,null,null,null,null,null,null,null,"CA-1995-133  Villa Cortina Apartments","CA-1995-133","Villa Cortina Apartments","50-701 Washington Street","La Quinta","Riverside","92253","La Quinta Family Apts., LP","Riverside Charitable Corp"]
[null,null,null,null,null,null,null,null,null,null,null,null,null,null,null,null,null,null,null,null,null,null,null,null,null,null,null,null,null,null,null,null,null,null,null,null,null,null,null,null,null,null,null,null,"CA-1995-135  Terracina at Morgan Hill I","CA-1995-135","Terracina at Morgan Hill I","230 East Dunne Avenue","Morgan Hill","Santa Clara","95037","MH Family Apartments, LP","Riverside Charitable Corp"]
[null,null,null,null,null,null,null,null,null,null,null,null,null,null,null,null,null,null,null,null,null,null,null,null,null,null,null,null,null,null,null,null,null,null,null,null,null,null,null,null,null,null,null,null,"CA-1995-142  Charleston Place Apartments","CA-1995-142","Charleston Place Apartments","1515 E Bianchi Road","Stockton","San Joaquin","95210","Charleston Place Apts., A Ca LP","Charleston Place-Michaels (PAM) LLC"]
[null,null,null,null,null,null,null,null,null,null,null,null,null,null,null,null,null,null,null,null,null,null,null,null,null,null,null,null,null,null,null,null,null,null,null,null,null,null,null,null,null,null,null,null,"CA-1995-143  University Park Apartments","CA-1995-143","University Park Apartments","1221 West 29th Street","Los Angeles","Los Angeles","90007","University Park Associates, a CA LP","Family Renewal Development Center, Inc."]
[null,null,null,null,null,null,null,null,null,null,null,null,null,null,null,null,null,null,null,null,null,null,null,null,null,null,null,null,null,null,null,null,null,null,null,null,null,null,null,null,null,null,null,null,"CA-1995-145  Casa Seville - Memory Park","CA-1995-145","Casa Seville - Memory Park","8750 Memory Park Avenue","North Hills","Los Angeles","91343","Memory Park Multihousing, LP","Dan Chandler"]
[null,null,null,null,null,null,null,null,null,null,null,null,null,null,null,null,null,null,null,null,null,null,null,null,null,null,null,null,null,null,null,null,null,null,null,null,null,null,null,null,null,null,null,null,"CA-1995-146  Alderwood","CA-1995-146","Alderwood","990 Fox Street","Lemoore","Kings","93245","VB CDT Alderwood LP","Trillium Housing Services"]
[null,null,null,null,null,null,null,null,null,null,null,null,null,null,null,null,null,null,null,null,null,null,null,null,null,null,null,null,null,null,null,null,null,null,null,null,null,null,null,null,null,null,null,null,"CA-1995-901  Vista Valle Townhomes","CA-1995-901","Vista Valle Townhomes","670 West San Jose Avenue","Claremont","Los Angeles","91711","Vista Valle Townhomes LP","FFAH V Vista Valle Townhomes, LLC"]
[null,null,null,null,null,null,null,null,null,null,null,null,null,null,null,null,null,null,null,null,null,null,null,null,null,null,null,null,null,null,null,null,null,null,null,null,null,null,null,null,null,null,null,null,"CA-1995-903  Plaza del Sol Sr. Apts","CA-1995-903","Plaza del Sol Sr. Apts","1380 Blossom Hill Road","San Jose","Santa Clara","95118","Blossom Hill Associates, LP","Central Valley Coalition for Affordable Housing"]
[null,null,null,null,null,null,null,null,null,null,null,null,null,null,null,null,null,null,null,null,null,null,null,null,null,null,null,null,null,null,null,null,null,null,null,null,null,null,null,null,null,null,null,null,"CA-1995-904  Ramona Sr. Project","CA-1995-904","Ramona Sr. Project","1519 W 8","San Bernardino","San Bernardino","92411","Richman U.S.A., L.P.","Ramona Senior Complex, Inc."]
[null,null,null,null,null,null,null,null,null,null,null,null,null,null,null,null,null,null,null,null,null,null,null,null,null,null,null,null,null,null,null,null,null,null,null,null,null,null,null,null,null,null,null,null,"CA-1995-907  Warwick Square Apartments","CA-1995-907","Warwick Square Apartments","780 South Lyon Street","Santa Ana","Orange","92705","Chelwood LP","Danuel Stanger"]
[null,null,null,null,null,null,null,null,null,null,null,null,null,null,null,null,null,null,null,null,null,null,null,null,null,null,null,null,null,null,null,null,null,null,null,null,null,null,null,null,null,null,null,null,"CA-1995-912  The Knolls Apartments aka Villa Santiago","CA-1995-912","The Knolls Apartments aka Villa Santiago","3138 E. Maple Ave, Unit C","Orange","Orange","92869","FC Orange Associates, LLC","FFAH V The Knolls, LLC"]
[null,null,null,null,null,null,null,null,null,null,null,null,null,null,null,null,null,null,null,null,null,null,null,null,null,null,null,null,null,null,null,null,null,null,null,null,null,null,null,null,null,null,null,null,"CA-1995-915  Harmony Court Apartments","CA-1995-915","Harmony Court Apartments","4502 West 186th Street","Torrance","Los Angeles","90503","Torrance Housing Investors, LP","Foundation for Affordable Housing II, Inc."]
[null,null,null,null,null,null,null,null,null,null,null,null,null,null,null,null,null,null,null,null,null,null,null,null,null,null,null,null,null,null,null,null,null,null,null,null,null,null,null,null,null,null,null,null,"CA-1995-916  Metro Center Senior Homes","CA-1995-916","Metro Center Senior Homes","100 Village Lane","Foster City","San Mateo","94404","Metro Senior Homes, Inc.","Metro Senior Homes, Inc."]
[null,null,null,null,null,null,null,null,null,null,null,null,null,null,null,null,null,null,null,null,null,null,null,null,null,null,null,null,null,null,null,null,null,null,null,null,null,null,null,null,null,null,null,null,"CA-1996-002  5th and Wilshire Apartments","CA-1996-002","5th and Wilshire Apartments","1144 5th Street","Santa Monica","Los Angeles","90403","Fifth and Wilshire Apartments, LP","Community Corporation of Santa Monica"]
[null,null,null,null,null,null,null,null,null,null,null,null,null,null,null,null,null,null,null,null,null,null,null,null,null,null,null,null,null,null,null,null,null,null,null,null,null,null,null,null,null,null,null,null,"CA-1996-004  Oak Ridge Apartments","CA-1996-004","Oak Ridge Apartments","228 Sutton Way","Grass Valley","Nevada","95945","Oregon Investors V limited Partnership","Oak Ridge Project LLC, an Oregon Limited Liability"]
[null,null,null,null,null,null,null,null,null,null,null,null,null,null,null,null,null,null,null,null,null,null,null,null,null,null,null,null,null,null,null,null,null,null,null,null,null,null,null,null,null,null,null,null,"CA-1996-005  San Pedro New Hope Courtyard","CA-1996-005","San Pedro New Hope Courtyard","1124 South Palos Verdes St.","San Pedro","Los Angeles","90731","Palos Verdes Street, L.P.","Project New Hope"]
[null,null,null,null,null,null,null,null,null,null,null,null,null,null,null,null,null,null,null,null,null,null,null,null,null,null,null,null,null,null,null,null,null,null,null,null,null,null,null,null,null,null,null,null,"CA-1996-009  Decro Nordhoff Apts.","CA-1996-009","Decro Nordhoff Apts.","15543 Nordhoff Street","North Hills","Los Angeles","91343","Decro Nordhoff, L.P.","Decro Chi Corporation"]
[null,null,null,null,null,null,null,null,null,null,null,null,null,null,null,null,null,null,null,null,null,null,null,null,null,null,null,null,null,null,null,null,null,null,null,null,null,null,null,null,null,null,null,null,"CA-1996-013  The Knolls","CA-1996-013","The Knolls","688 Vineyard Road","San Marcos","San Diego","92069","Knolls Community Assoc., LP","Orange Housing Development Corporation"]
[null,null,null,null,null,null,null,null,null,null,null,null,null,null,null,null,null,null,null,null,null,null,null,null,null,null,null,null,null,null,null,null,null,null,null,null,null,null,null,null,null,null,null,null,"CA-1996-016  Willowbrook","CA-1996-016","Willowbrook","Liberty Ct/Tipto/Thomas Ct.","Visalia","Tulare","93291","Visalia/Willowbrook Associates I","Kaweah Management Company, Inc."]
[null,null,null,null,null,null,null,null,null,null,null,null,null,null,null,null,null,null,null,null,null,null,null,null,null,null,null,null,null,null,null,null,null,null,null,null,null,null,null,null,null,null,null,null,"CA-1996-018  Elizabeth Court","CA-1996-018","Elizabeth Court","5225 - 5227 Elizabeth Street","Cudahy","Los Angeles","90201","Elizabeth West and East, LP","Corporation for Better Housing"]
[null,null,null,null,null,null,null,null,null,null,null,null,null,null,null,null,null,null,null,null,null,null,null,null,null,null,null,null,null,null,null,null,null,null,null,null,null,null,null,null,null,null,null,null,"CA-1996-020  Los Pinos Court","CA-1996-020","Los Pinos Court","605 East New Love Drive","Santa Maria","Santa Barbara","93454","Los Pinos KPS, LP","Santa Barbara Housing Assistance Corporation"]
[null,null,null,null,null,null,null,null,null,null,null,null,null,null,null,null,null,null,null,null,null,null,null,null,null,null,null,null,null,null,null,null,null,null,null,null,null,null,null,null,null,null,null,null,"CA-1996-026  Nevada Commons","CA-1996-026","Nevada Commons","11725 Old Tunnel Road","Grass Valley","Nevada","95945","Nevada Commons, LP","AHDF-Nevada Meadows-Commons G/P, LLC"]
[null,null,null,null,null,null,null,null,null,null,null,null,null,null,null,null,null,null,null,null,null,null,null,null,null,null,null,null,null,null,null,null,null,null,null,null,null,null,null,null,null,null,null,null,"CA-1996-029  Cambria Apartments","CA-1996-029","Cambria Apartments","738 S. Union Avenue","Los Angeles","Los Angeles","90017","Communidad Cambria","Socios Cambria"]
[null,null,null,null,null,null,null,null,null,null,null,null,null,null,null,null,null,null,null,null,null,null,null,null,null,null,null,null,null,null,null,null,null,null,null,null,null,null,null,null,null,null,null,null,"CA-1996-030  Oak Forest Apartments aka Elm Village","CA-1996-030","Oak Forest Apartments aka Elm Village","163 South Elm Street","Arroyo Grande","San Luis Obispo","93420","Oak Forest Associates, L.P.","C-Court, Inc."]
[null,null,null,null,null,null,null,null,null,null,null,null,null,null,null,null,null,null,null,null,null,null,null,null,null,null,null,null,null,null,null,null,null,null,null,null,null,null,null,null,null,null,null,null,"CA-1996-032  Taft Senior Apartments","CA-1996-032","Taft Senior Apartments","201 8th Street","Taft","Kern","93268","Taft Enterprises, LP","Community Redevelopment and Development Corporatio"]
[null,null,null,null,null,null,null,null,null,null,null,null,null,null,null,null,null,null,null,null,null,null,null,null,null,null,null,null,null,null,null,null,null,null,null,null,null,null,null,null,null,null,null,null,{"$f":"CONCATENATE(AT387,\"  \",AU387)","v":"CA-1996-037  Apollo Hotel"},"CA-1996-037","Apollo Hotel","422 Valencia Street","San Francisco","San Francisco","94103","Apollo Development Associates","Apollo Housing, Inc."]
[null,null,null,null,null,null,null,null,null,null,null,null,null,null,null,null,null,null,null,null,null,null,null,null,null,null,null,null,null,null,null,null,null,null,null,null,null,null,null,null,null,null,null,null,"CA-1996-040  Brentwood Garden Apartments","CA-1996-040","Brentwood Garden Apartments","180 Sycamore Avenue","Brentwood","Contra Costa","94513","Brentwood Garden Apartments, LP","Quality Housing Development Corporation"]
[null,null,null,null,null,null,null,null,null,null,null,null,null,null,null,null,null,null,null,null,null,null,null,null,null,null,null,null,null,null,null,null,null,null,null,null,null,null,null,null,null,null,null,null,"CA-1996-041  Gilroy Garden Apartments","CA-1996-041","Gilroy Garden Apartments","9250 Wren Avenue","Gilroy","Santa Clara","95020","Gilroy Garden Apartments LP","Quality Housing Development Corporation"]
[null,null,null,null,null,null,null,null,null,null,null,null,null,null,null,null,null,null,null,null,null,null,null,null,null,null,null,null,null,null,null,null,null,null,null,null,null,null,null,null,null,null,null,null,"CA-1996-044  Bodega Hills Apartments","CA-1996-044","Bodega Hills Apartments","121 West Hills Circle","Sebastopol","Sonoma","95472","Bodega Hills, LLC","Burbank Housing Communities Corporation (sole Memb"]
[null,null,null,null,null,null,null,null,null,null,null,null,null,null,null,null,null,null,null,null,null,null,null,null,null,null,null,null,null,null,null,null,null,null,null,null,null,null,null,null,null,null,null,null,"CA-1996-045  TM Chambers Manors","CA-1996-045","TM Chambers Manors","2620, 2645, 2643 Menlo Avenue","Los Angeles","Los Angeles","90007","2620 MENLO LP, a California Limited Partnership","Korean Health Education, Information and Research"]
[null,null,null,null,null,null,null,null,null,null,null,null,null,null,null,null,null,null,null,null,null,null,null,null,null,null,null,null,null,null,null,null,null,null,null,null,null,null,null,null,null,null,null,null,"CA-1996-046  Sheraton Town House","CA-1996-046","Sheraton Town House","639 S Commonwealth Avenue","Los Angeles","Los Angeles","90005","639 COMMONWEALTH LP, a California LP","Korean Health Education, Information and Research"]
[null,null,null,null,null,null,null,null,null,null,null,null,null,null,null,null,null,null,null,null,null,null,null,null,null,null,null,null,null,null,null,null,null,null,null,null,null,null,null,null,null,null,null,null,"CA-1996-047  Figueroa Oaks","CA-1996-047","Figueroa Oaks","10210 South Figueroa Street","Los Angeles","Los Angeles","90003","Figueroa Oaks, LP","Heavenly Vision Economic Development Corporation"]
[null,null,null,null,null,null,null,null,null,null,null,null,null,null,null,null,null,null,null,null,null,null,null,null,null,null,null,null,null,null,null,null,null,null,null,null,null,null,null,null,null,null,null,null,"CA-1996-048  Pico Gramercy Family Hsg","CA-1996-048","Pico Gramercy Family Hsg","1303 South Gramercy Place","Los Angeles","Los Angeles","90019","Pico Gramercy, LP","Pacific Asian Consortium in Employment"]
[null,null,null,null,null,null,null,null,null,null,null,null,null,null,null,null,null,null,null,null,null,null,null,null,null,null,null,null,null,null,null,null,null,null,null,null,null,null,null,null,null,null,null,null,"CA-1996-050  Tremont Street Apartments","CA-1996-050","Tremont Street Apartments","1115-1127 S. Tremont","Oceanside","San Diego","92054","Tremont Street Apartments, L.P.","Community HousingWorks"]
[null,null,null,null,null,null,null,null,null,null,null,null,null,null,null,null,null,null,null,null,null,null,null,null,null,null,null,null,null,null,null,null,null,null,null,null,null,null,null,null,null,null,null,null,"CA-1996-051  Shattuck Senior Homes","CA-1996-051","Shattuck Senior Homes","2425 Shattuck Avenue","Berkeley","Alameda","94704","Shattuck Senior Homes","Satellite AHA Development Inc."]
[null,null,null,null,null,null,null,null,null,null,null,null,null,null,null,null,null,null,null,null,null,null,null,null,null,null,null,null,null,null,null,null,null,null,null,null,null,null,null,null,null,null,null,null,"CA-1996-063  Madison Place","CA-1996-063","Madison Place","1885 Madison Street","Bakersfield","Kern","93307","Self Help Communities 1","Self-Help Enterprises"]
[null,null,null,null,null,null,null,null,null,null,null,null,null,null,null,null,null,null,null,null,null,null,null,null,null,null,null,null,null,null,null,null,null,null,null,null,null,null,null,null,null,null,null,null,"CA-1996-064  Alma Place","CA-1996-064","Alma Place","753 Alma Street","Palo Alto","Santa Clara","94301","Alma Place Associates","PAHC Alma Place, Inc."]
[null,null,null,null,null,null,null,null,null,null,null,null,null,null,null,null,null,null,null,null,null,null,null,null,null,null,null,null,null,null,null,null,null,null,null,null,null,null,null,null,null,null,null,null,"CA-1996-065  Palmer House","CA-1996-065","Palmer House","538 South Wall Street","Los Angeles","Los Angeles","90013","Wall Street Palmer House, L.P.","Single Room Occupancy Corporation"]
[null,null,null,null,null,null,null,null,null,null,null,null,null,null,null,null,null,null,null,null,null,null,null,null,null,null,null,null,null,null,null,null,null,null,null,null,null,null,null,null,null,null,null,null,"CA-1996-068  39 West Apartments","CA-1996-068","39 West Apartments","3885 South Western Avenue","Los Angeles","Los Angeles","90062","39 West Apartments, LP","A Community of Friends"]
[null,null,null,null,null,null,null,null,null,null,null,null,null,null,null,null,null,null,null,null,null,null,null,null,null,null,null,null,null,null,null,null,null,null,null,null,null,null,null,null,null,null,null,null,"CA-1996-072  Tres Palmas","CA-1996-072","Tres Palmas","269 South Loma Drive","Los Angeles","Los Angeles","90026","Tres Palmas Partners, LP","New Economics for Women"]
[null,null,null,null,null,null,null,null,null,null,null,null,null,null,null,null,null,null,null,null,null,null,null,null,null,null,null,null,null,null,null,null,null,null,null,null,null,null,null,null,null,null,null,null,"CA-1996-074  Schoolhouse Lane Apartments","CA-1996-074","Schoolhouse Lane Apartments","2836 Schoolhouse Lane","Cambria","San Luis Obispo","93428","Schoolhouse Lane Apartments Limited Partnership","Schoolhouse Lane Apartments, Inc."]
[null,null,null,null,null,null,null,null,null,null,null,null,null,null,null,null,null,null,null,null,null,null,null,null,null,null,null,null,null,null,null,null,null,null,null,null,null,null,null,null,null,null,null,null,"CA-1996-075  Pacific Terrace Associates","CA-1996-075","Pacific Terrace Associates","131 Landis Avenue","Watsonville","Santa Cruz","95076","Pacific Terrace Associates","Pacific Terrace \nApartments LLC"]
[null,null,null,null,null,null,null,null,null,null,null,null,null,null,null,null,null,null,null,null,null,null,null,null,null,null,null,null,null,null,null,null,null,null,null,null,null,null,null,null,null,null,null,null,"CA-1996-076  Canyon Shadows","CA-1996-076","Canyon Shadows","8405-8505 Arlington Street","Riverside","Riverside","92503","Arlington 8405, LP","AOF Pacific Affordable Housing Corporation"]
[null,null,null,null,null,null,null,null,null,null,null,null,null,null,null,null,null,null,null,null,null,null,null,null,null,null,null,null,null,null,null,null,null,null,null,null,null,null,null,null,null,null,null,null,"CA-1996-077  Harmony Gardens","CA-1996-077","Harmony Gardens","5239 Harmony Avenue","North Hollywood","Los Angeles","91601","Harmony Gardens, LP","LA FAMILY HOUSING CORP"]
[null,null,null,null,null,null,null,null,null,null,null,null,null,null,null,null,null,null,null,null,null,null,null,null,null,null,null,null,null,null,null,null,null,null,null,null,null,null,null,null,null,null,null,null,"CA-1996-078  Vanowen Gardens","CA-1996-078","Vanowen Gardens","11754 Vanowen Street","North Hollywood","Los Angeles","91605","11754 Vanowen Gardens, LP","LA FAMILY HOUSING  CORPORATION"]
[null,null,null,null,null,null,null,null,null,null,null,null,null,null,null,null,null,null,null,null,null,null,null,null,null,null,null,null,null,null,null,null,null,null,null,null,null,null,null,null,null,null,null,null,"CA-1996-079  Coy D Estes Senior Housing","CA-1996-079","Coy D Estes Senior Housing","260 North Third Avenue","Upland","San Bernardino","91786","Upland Senior Housing, LP","Upland Community Housing, Inc."]
[null,null,null,null,null,null,null,null,null,null,null,null,null,null,null,null,null,null,null,null,null,null,null,null,null,null,null,null,null,null,null,null,null,null,null,null,null,null,null,null,null,null,null,null,"CA-1996-080  Angelina Apartments","CA-1996-080","Angelina Apartments","1300-1336 Angelina Street","Los Angeles","Los Angeles","90026","Angelina Associates, L.P.","LTSC Community Development Corporation"]
[null,null,null,null,null,null,null,null,null,null,null,null,null,null,null,null,null,null,null,null,null,null,null,null,null,null,null,null,null,null,null,null,null,null,null,null,null,null,null,null,null,null,null,null,"CA-1996-082  Plaza Court","CA-1996-082","Plaza Court","11380-11480 Court Street","Stanton","Orange","90680","Plaza Patria Court, L.P.","Foundation for Affordable Housing V, Inc."]
[null,null,null,null,null,null,null,null,null,null,null,null,null,null,null,null,null,null,null,null,null,null,null,null,null,null,null,null,null,null,null,null,null,null,null,null,null,null,null,null,null,null,null,null,"CA-1996-084  Segundo Terrace aka El Segundo","CA-1996-084","Segundo Terrace aka El Segundo","2242 E. El Segundo Blvd.","Compton","Los Angeles","90222","Segundo Terrace, LP","Los Angeles County Housing Development Corporation"]
[null,null,null,null,null,null,null,null,null,null,null,null,null,null,null,null,null,null,null,null,null,null,null,null,null,null,null,null,null,null,null,null,null,null,null,null,null,null,null,null,null,null,null,null,"CA-1996-096  Rotary Valley Senior Village","CA-1996-096","Rotary Valley Senior Village","10 Jeanette Prandi Way","San Rafael","Marin","94903","Rotary Valley Associates, LP","Rotary Valley, Inc"]
[null,null,null,null,null,null,null,null,null,null,null,null,null,null,null,null,null,null,null,null,null,null,null,null,null,null,null,null,null,null,null,null,null,null,null,null,null,null,null,null,null,null,null,null,"CA-1996-099  Golden Villa Apartments aka Golden Villas","CA-1996-099","Golden Villa Apartments aka Golden Villas","3355 - 3395 Elm Street","San Diego","San Diego","92102","Trestle Development, LLC","Golden Hill Community Development Corporation"]
[null,null,null,null,null,null,null,null,null,null,null,null,null,null,null,null,null,null,null,null,null,null,null,null,null,null,null,null,null,null,null,null,null,null,null,null,null,null,null,null,null,null,null,null,"CA-1996-103  Vallejo Street Senior Apartments","CA-1996-103","Vallejo Street Senior Apartments","579 Vallejo Street","Petaluma","Sonoma","94954","Petaluma Ecumenical Properties (DBA PEP Housing)","Petaluma Ecumenical Properties (DBA PEP Housing)"]
[null,null,null,null,null,null,null,null,null,null,null,null,null,null,null,null,null,null,null,null,null,null,null,null,null,null,null,null,null,null,null,null,null,null,null,null,null,null,null,null,null,null,null,null,"CA-1996-107  Lincoln Hotel","CA-1996-107","Lincoln Hotel","536 Fifth Avenue","San Diego","San Diego","92101","Lincoln Hotel Partnership","San Diego Filipino American Humanitarian Foundatio"]
[null,null,null,null,null,null,null,null,null,null,null,null,null,null,null,null,null,null,null,null,null,null,null,null,null,null,null,null,null,null,null,null,null,null,null,null,null,null,null,null,null,null,null,null,"CA-1996-119  Walnut Village Apartments","CA-1996-119","Walnut Village Apartments","620 Walnut Ave","Brea","Orange","92821","Walnut Housing Associates","Neighborhood Housing Services of Orange County"]
[null,null,null,null,null,null,null,null,null,null,null,null,null,null,null,null,null,null,null,null,null,null,null,null,null,null,null,null,null,null,null,null,null,null,null,null,null,null,null,null,null,null,null,null,"CA-1996-120  Garnet Lane Apartments","CA-1996-120","Garnet Lane Apartments","3125 Garnet Lane","Fullerton","Orange","92632","Garnet Housing Associates","Neighborhood Housing Services of Orange County"]
[null,null,null,null,null,null,null,null,null,null,null,null,null,null,null,null,null,null,null,null,null,null,null,null,null,null,null,null,null,null,null,null,null,null,null,null,null,null,null,null,null,null,null,null,"CA-1996-121  Oak Hills Apartments","CA-1996-121","Oak Hills Apartments","10260 Preston Lane","Jamestown","Tuolumne","95327","Oak Hills Housing, LP","CASA MAJOR AH LLC"]
[null,null,null,null,null,null,null,null,null,null,null,null,null,null,null,null,null,null,null,null,null,null,null,null,null,null,null,null,null,null,null,null,null,null,null,null,null,null,null,null,null,null,null,null,"CA-1996-122  Halifax Apartments","CA-1996-122","Halifax Apartments","6376 Yucca Street","Los Angeles","Los Angeles","90028","Halifax Partners, LP","Thai CDC"]
[null,null,null,null,null,null,null,null,null,null,null,null,null,null,null,null,null,null,null,null,null,null,null,null,null,null,null,null,null,null,null,null,null,null,null,null,null,null,null,null,null,null,null,null,"CA-1996-126  Country Manor","CA-1996-126","Country Manor","955 North A Street","Tulare","Tulare","93274","Kaweah Management Co.","Kaweah Management Co."]
[null,null,null,null,null,null,null,null,null,null,null,null,null,null,null,null,null,null,null,null,null,null,null,null,null,null,null,null,null,null,null,null,null,null,null,null,null,null,null,null,null,null,null,null,"CA-1996-131  Coastside Apartments Moonridge I","CA-1996-131","Coastside Apartments Moonridge I","2001 Miramontes Point","Half Moon Bay","San Mateo","94019","Coastside Associates, a CA LP","MidPeninsula Coastside, Inc."]
[null,null,null,null,null,null,null,null,null,null,null,null,null,null,null,null,null,null,null,null,null,null,null,null,null,null,null,null,null,null,null,null,null,null,null,null,null,null,null,null,null,null,null,null,"CA-1996-133  Harmony Creek Apartments","CA-1996-133","Harmony Creek Apartments","1616 East Rock Creek Drive","Orange","Orange","92866","Orange Housing Investors, LP","Orange Housing Development Corporation"]
[null,null,null,null,null,null,null,null,null,null,null,null,null,null,null,null,null,null,null,null,null,null,null,null,null,null,null,null,null,null,null,null,null,null,null,null,null,null,null,null,null,null,null,null,"CA-1996-137  Harmony Park Apartments","CA-1996-137","Harmony Park Apartments","7252 Melrose Street","Buena Park","Orange","90621","Buena Park Affordable Housing, LP","Corporate Fund for Housing"]
[null,null,null,null,null,null,null,null,null,null,null,null,null,null,null,null,null,null,null,null,null,null,null,null,null,null,null,null,null,null,null,null,null,null,null,null,null,null,null,null,null,null,null,null,"CA-1996-141  Empress Apartments","CA-1996-141","Empress Apartments","514 South Westlake Avenue","Los Angeles","Los Angeles","90057","Empress Apartments, L.P.","Neighborhood Effort"]
[null,null,null,null,null,null,null,null,null,null,null,null,null,null,null,null,null,null,null,null,null,null,null,null,null,null,null,null,null,null,null,null,null,null,null,null,null,null,null,null,null,null,null,null,"CA-1996-142  Vintage Pointe Senior Apartments aka Las Serenas","CA-1996-142","Vintage Pointe Senior Apartments aka Las Serenas","1701 Bush Street","Oceanside","San Diego","92058","Oceanside Family Apartments","Riverside Charitable Corp"]
[null,null,null,null,null,null,null,null,null,null,null,null,null,null,null,null,null,null,null,null,null,null,null,null,null,null,null,null,null,null,null,null,null,null,null,null,null,null,null,null,null,null,null,null,"CA-1996-144  Western Heights Apartments","CA-1996-144","Western Heights Apartments","128 S. Western Avenue","Waterford","Stanislaus","95386","NOMA Investments, LLC","Avinash Parwaney"]
[null,null,null,null,null,null,null,null,null,null,null,null,null,null,null,null,null,null,null,null,null,null,null,null,null,null,null,null,null,null,null,null,null,null,null,null,null,null,null,null,null,null,null,null,"CA-1996-148  Vintage Glen Senior Apartments","CA-1996-148","Vintage Glen Senior Apartments","6000 South Land Park Drive","Sacramento","Sacramento","95822","SLP Senior Apartments, LP","Riverside Charitable Corp"]
[null,null,null,null,null,null,null,null,null,null,null,null,null,null,null,null,null,null,null,null,null,null,null,null,null,null,null,null,null,null,null,null,null,null,null,null,null,null,null,null,null,null,null,null,"CA-1996-156  Cochran City Lights","CA-1996-156","Cochran City Lights","1315 South Cochran Avenue","Los Angeles","Los Angeles","90019","Cochran City Lights Associates, a California LP","AOF HUNT 12, LLC"]
[null,null,null,null,null,null,null,null,null,null,null,null,null,null,null,null,null,null,null,null,null,null,null,null,null,null,null,null,null,null,null,null,null,null,null,null,null,null,null,null,null,null,null,null,"CA-1996-160  Garland City Lights","CA-1996-160","Garland City Lights","1209 West 8th Street","Los Angeles","Los Angeles","90017","Garland City Lights Associates, LP","AOF HUNT 12, LLC"]
[null,null,null,null,null,null,null,null,null,null,null,null,null,null,null,null,null,null,null,null,null,null,null,null,null,null,null,null,null,null,null,null,null,null,null,null,null,null,null,null,null,null,null,null,"CA-1996-161  Westlake City Lights","CA-1996-161","Westlake City Lights","509 South Westlake Avenue","Los Angeles","Los Angeles","90057","Westlake City Lights Associates, a California LP","AOF HUNT 12, LLC"]
[null,null,null,null,null,null,null,null,null,null,null,null,null,null,null,null,null,null,null,null,null,null,null,null,null,null,null,null,null,null,null,null,null,null,null,null,null,null,null,null,null,null,null,null,"CA-1996-171  Lodi Hotel","CA-1996-171","Lodi Hotel","7 South School Street","Lodi","San Joaquin","95240","Lodi Hotel Investors, LP","Community Revitilization and Development Corporati"]
[null,null,null,null,null,null,null,null,null,null,null,null,null,null,null,null,null,null,null,null,null,null,null,null,null,null,null,null,null,null,null,null,null,null,null,null,null,null,null,null,null,null,null,null,"CA-1996-175  Palm Village","CA-1996-175","Palm Village","1011 W. 91st Street","Los Angeles","Los Angeles","90044","Palm Village Partners, LP","American Housing Construction, Inc."]
[null,null,null,null,null,null,null,null,null,null,null,null,null,null,null,null,null,null,null,null,null,null,null,null,null,null,null,null,null,null,null,null,null,null,null,null,null,null,null,null,null,null,null,null,"CA-1996-180  Casanova Gardens","CA-1996-180","Casanova Gardens","433 West Casanova Street","Los Angeles","Los Angeles","90012","Casanova Gardens, L.P.","Chinatown Service Center, Incorporated"]
[null,null,null,null,null,null,null,null,null,null,null,null,null,null,null,null,null,null,null,null,null,null,null,null,null,null,null,null,null,null,null,null,null,null,null,null,null,null,null,null,null,null,null,null,"CA-1996-181  Sunshine Financial Group II - Dakota","CA-1996-181","Sunshine Financial Group II - Dakota","3780 West Dakota","Fresno","Fresno","93722","Don K Holder","Don K Holder"]
[null,null,null,null,null,null,null,null,null,null,null,null,null,null,null,null,null,null,null,null,null,null,null,null,null,null,null,null,null,null,null,null,null,null,null,null,null,null,null,null,null,null,null,null,"CA-1996-184  Blessed Rock of El Monte","CA-1996-184","Blessed Rock of El Monte","4111 Tyler Avenue","El Monte","Los Angeles","91731","Blessed Rock of El Monte, a California L.P.","RCC MGP LLC"]
[null,null,null,null,null,null,null,null,null,null,null,null,null,null,null,null,null,null,null,null,null,null,null,null,null,null,null,null,null,null,null,null,null,null,null,null,null,null,null,null,null,null,null,null,"CA-1996-186  Las Jicamas Apartments","CA-1996-186","Las Jicamas Apartments","110 Martinez Place","Soledad","Monterey","93960","CHISPA Affordable Apartments, LLC","CHISPA, Affordable Apartments, LLC."]
[null,null,null,null,null,null,null,null,null,null,null,null,null,null,null,null,null,null,null,null,null,null,null,null,null,null,null,null,null,null,null,null,null,null,null,null,null,null,null,null,null,null,null,null,"CA-1996-190  California Hotel","CA-1996-190","California Hotel","1134-1146 South Pacific Avenue","San Pedro","Los Angeles","90731","California Hotel 1140, LP","A Community of Friends"]
[null,null,null,null,null,null,null,null,null,null,null,null,null,null,null,null,null,null,null,null,null,null,null,null,null,null,null,null,null,null,null,null,null,null,null,null,null,null,null,null,null,null,null,null,"CA-1996-192  Normandie Village","CA-1996-192","Normandie Village","1747 North Normandie Avenue","Los Angeles","Los Angeles","90027","1747 Normandie Partners, LP","Search to Involve Pilipino Americans"]
[null,null,null,null,null,null,null,null,null,null,null,null,null,null,null,null,null,null,null,null,null,null,null,null,null,null,null,null,null,null,null,null,null,null,null,null,null,null,null,null,null,null,null,null,"CA-1996-198  Paseo de los Poetas","CA-1996-198","Paseo de los Poetas","Calle Sor Juana and Pablo Neruda","Mecca","Riverside","92274","Paseo de los Poetas, LP","Mecca Housing, Inc."]
[null,null,null,null,null,null,null,null,null,null,null,null,null,null,null,null,null,null,null,null,null,null,null,null,null,null,null,null,null,null,null,null,null,null,null,null,null,null,null,null,null,null,null,null,"CA-1996-206  Casa Hernandez Apartments","CA-1996-206","Casa Hernandez Apartments","200 South Albany Street","Delano","Kern","93215","Casita-80, L.P., a California Limited Partnership","Cesar Chavez Foundation"]
[null,null,null,null,null,null,null,null,null,null,null,null,null,null,null,null,null,null,null,null,null,null,null,null,null,null,null,null,null,null,null,null,null,null,null,null,null,null,null,null,null,null,null,null,"CA-1996-217  De Anza Hotel","CA-1996-217","De Anza Hotel","233 East 4th Street, Suite 200","Calexico","Imperial","92231","De Anza Hotel, LP","Pacific Southwest Community Development Corporatio"]
[null,null,null,null,null,null,null,null,null,null,null,null,null,null,null,null,null,null,null,null,null,null,null,null,null,null,null,null,null,null,null,null,null,null,null,null,null,null,null,null,null,null,null,null,"CA-1996-237  Grant Village Townhomes","CA-1996-237","Grant Village Townhomes","2040 Grant Street","Stockton","San Joaquin","95206","Grant Village Associates, LP","GRANT VILLAGE INC."]
[null,null,null,null,null,null,null,null,null,null,null,null,null,null,null,null,null,null,null,null,null,null,null,null,null,null,null,null,null,null,null,null,null,null,null,null,null,null,null,null,null,null,null,null,"CA-1996-239  Rancho Gardens Apartments","CA-1996-239","Rancho Gardens Apartments","1414 North Broadway","Santa Maria","Santa Barbara","93454","Santa Maria Associates, LP","Foundation for Affordable Housing V, Inc"]
[null,null,null,null,null,null,null,null,null,null,null,null,null,null,null,null,null,null,null,null,null,null,null,null,null,null,null,null,null,null,null,null,null,null,null,null,null,null,null,null,null,null,null,null,"CA-1996-247  Cordova Meadows Apartments","CA-1996-247","Cordova Meadows Apartments","2312 Sierra Madre Court","Rancho Cordova","Sacramento","95670","Cordova Meadows, LP","Community Revitilization and Development Corporati"]
[null,null,null,null,null,null,null,null,null,null,null,null,null,null,null,null,null,null,null,null,null,null,null,null,null,null,null,null,null,null,null,null,null,null,null,null,null,null,null,null,null,null,null,null,"CA-1996-248  St. Mathew Hotel","CA-1996-248","St. Mathew Hotel","215 Second Avenue","San Mateo","San Mateo","94401","St. Matthews Associates","MP St. Matthew Inc."]
[null,null,null,null,null,null,null,null,null,null,null,null,null,null,null,null,null,null,null,null,null,null,null,null,null,null,null,null,null,null,null,null,null,null,null,null,null,null,null,null,null,null,null,null,"CA-1996-251  West \"A\" Homes","CA-1996-251","West \"A\" Homes","4056-4100 South Vermont Avenue","Los Angeles","Los Angeles","90037","West \"A\" Homes, L.P.","West Angeles Community Development Corporation"]
[null,null,null,null,null,null,null,null,null,null,null,null,null,null,null,null,null,null,null,null,null,null,null,null,null,null,null,null,null,null,null,null,null,null,null,null,null,null,null,null,null,null,null,null,"CA-1996-262  Stoll House Apartments","CA-1996-262","Stoll House Apartments","3155 Los Robles Road","Thousand Oaks","Ventura","91362","Conejo Valley Community Housing Associates, LP","Conejo Valley Community Housing, Inc."]
[null,null,null,null,null,null,null,null,null,null,null,null,null,null,null,null,null,null,null,null,null,null,null,null,null,null,null,null,null,null,null,null,null,null,null,null,null,null,null,null,null,null,null,null,"CA-1996-267  Auburn Square Sr. Apartments","CA-1996-267","Auburn Square Sr. Apartments","2060 Auburn Boulevard","Sacramento","Sacramento","95821","Auburn Square Investors, LP","Community Revitilization and Development Corporati"]
[null,null,null,null,null,null,null,null,null,null,null,null,null,null,null,null,null,null,null,null,null,null,null,null,null,null,null,null,null,null,null,null,null,null,null,null,null,null,null,null,null,null,null,null,"CA-1996-269  Quail Place Apartments","CA-1996-269","Quail Place Apartments","551 South Third St.","Blythe","Riverside","92225","Quail Place Blythe, LLC","Pratik Jogani"]
[null,null,null,null,null,null,null,null,null,null,null,null,null,null,null,null,null,null,null,null,null,null,null,null,null,null,null,null,null,null,null,null,null,null,null,null,null,null,null,null,null,null,null,null,"CA-1996-905  Brandon Place Sr. Apts","CA-1996-905","Brandon Place Sr. Apts","3941 Polk Street","Riverside","Riverside","92505","Brandon Place Partners","AHA Inland II MGP, LLC"]
[null,null,null,null,null,null,null,null,null,null,null,null,null,null,null,null,null,null,null,null,null,null,null,null,null,null,null,null,null,null,null,null,null,null,null,null,null,null,null,null,null,null,null,null,"CA-1996-906  Siena at Renaissance The Enclave","CA-1996-906","Siena at Renaissance The Enclave","4343 Renaissance Drive, San Jose, CA 95134","San Jose","Santa Clara","95134","BMEF Enclave Limited Partnership","Hearthstone Housing Foundation"]
[null,null,null,null,null,null,null,null,null,null,null,null,null,null,null,null,null,null,null,null,null,null,null,null,null,null,null,null,null,null,null,null,null,null,null,null,null,null,null,null,null,null,null,null,{"$f":"CONCATENATE(AT451,\"  \",AU451)","v":"CA-1996-909  Media Village Senior Housing Project"},"CA-1996-909","Media Village Senior Housing Project","325 North Third Street","Burbank","Los Angeles","91502","Media Village Limited, a CA LP","Media Village Development Corporation"]
[null,null,null,null,null,null,null,null,null,null,null,null,null,null,null,null,null,null,null,null,null,null,null,null,null,null,null,null,null,null,null,null,null,null,null,null,null,null,null,null,null,null,null,null,"CA-1996-911  The Edgewood Apartments","CA-1996-911","The Edgewood Apartments","557 Laguna Drive","Rohnert Park","Sonoma","94928","Laguna EWA Investors, LP","Kenneth C, Martin"]
[null,null,null,null,null,null,null,null,null,null,null,null,null,null,null,null,null,null,null,null,null,null,null,null,null,null,null,null,null,null,null,null,null,null,null,null,null,null,null,null,null,null,null,null,"CA-1996-912  Bridgecourt Apartments","CA-1996-912","Bridgecourt Apartments","1325 40th Street","Emeryville","Alameda","94608","DP Emeryville 40th Street Investors, LP","Housing Corporation of America"]
[null,null,null,null,null,null,null,null,null,null,null,null,null,null,null,null,null,null,null,null,null,null,null,null,null,null,null,null,null,null,null,null,null,null,null,null,null,null,null,null,null,null,null,null,"CA-1996-914  Park Vista Apartments","CA-1996-914","Park Vista Apartments","1301 Stevenson Boulevard","Fremont","Alameda","94538","Stevenson Housing Associates, LP","Community Resident Services"]
[null,null,null,null,null,null,null,null,null,null,null,null,null,null,null,null,null,null,null,null,null,null,null,null,null,null,null,null,null,null,null,null,null,null,null,null,null,null,null,null,null,null,null,null,"CA-1996-915  Kittridge Park Villa","CA-1996-915","Kittridge Park Villa","18303 Kittridge Street","Reseda","Los Angeles","91335","Grape Ape, LLC","Grape Ape, LLC"]
[null,null,null,null,null,null,null,null,null,null,null,null,null,null,null,null,null,null,null,null,null,null,null,null,null,null,null,null,null,null,null,null,null,null,null,null,null,null,null,null,null,null,null,null,"CA-1996-917  Bermuda Gardens Apartments","CA-1996-917","Bermuda Gardens Apartments","1475 167th Ave","San Leandro","Alameda","94578","1475 167th Ave. Assoc., LP","South of Market Mercy Housing"]
[null,null,null,null,null,null,null,null,null,null,null,null,null,null,null,null,null,null,null,null,null,null,null,null,null,null,null,null,null,null,null,null,null,null,null,null,null,null,null,null,null,null,null,null,"CA-1996-918  Hampton Square Apartments","CA-1996-918","Hampton Square Apartments","16331 McFadden Ave","Tustin","Orange","92780","HSA, LP","Pacific Southwest Community Development Corporatio"]
[null,null,null,null,null,null,null,null,null,null,null,null,null,null,null,null,null,null,null,null,null,null,null,null,null,null,null,null,null,null,null,null,null,null,null,null,null,null,null,null,null,null,null,null,"CA-1996-919  Kalmia Courtyards","CA-1996-919","Kalmia Courtyards","234  West Kalmia Street","Fallbrook","San Diego","92028","ABN Property Holding, LP","Lauren Nguyen-Antczak"]
[null,null,null,null,null,null,null,null,null,null,null,null,null,null,null,null,null,null,null,null,null,null,null,null,null,null,null,null,null,null,null,null,null,null,null,null,null,null,null,null,null,null,null,null,"CA-1996-920  Stonegate Apartments","CA-1996-920","Stonegate Apartments","4401 Renaissance Drive","San Jose","Santa Clara","95134","Stonegate Housing Investors, LP","Community Home Builders and Associates"]
[null,null,null,null,null,null,null,null,null,null,null,null,null,null,null,null,null,null,null,null,null,null,null,null,null,null,null,null,null,null,null,null,null,null,null,null,null,null,null,null,null,null,null,null,"CA-1996-921  Villa Savannah Apartments","CA-1996-921","Villa Savannah Apartments","4501 Renaissance Drive","San Jose","Santa Clara","95134","Villa Savannah Housing Investors, LP","Western Community Housing, Inc."]
[null,null,null,null,null,null,null,null,null,null,null,null,null,null,null,null,null,null,null,null,null,null,null,null,null,null,null,null,null,null,null,null,null,null,null,null,null,null,null,null,null,null,null,null,"CA-1996-926  City Gardens Apartments","CA-1996-926","City Gardens Apartments","2901 N Bristol St","Santa Ana","Orange","92706","LINC-Bristol Associate I, LP","LINC Housing Corporation"]
[null,null,null,null,null,null,null,null,null,null,null,null,null,null,null,null,null,null,null,null,null,null,null,null,null,null,null,null,null,null,null,null,null,null,null,null,null,null,null,null,null,null,null,null,"CA-1997-008  Pensione Bird","CA-1997-008","Pensione Bird","598 Columbia Avenue","San Jose","Santa Clara","95126","Pensione Bird SRO Limited Partnership, a CA LP","Hope Charities Housing Corporation"]
[null,null,null,null,null,null,null,null,null,null,null,null,null,null,null,null,null,null,null,null,null,null,null,null,null,null,null,null,null,null,null,null,null,null,null,null,null,null,null,null,null,null,null,null,"CA-1997-011  Village Oak Apartments","CA-1997-011","Village Oak Apartments","14449 Begonia Road","Victorville","San Bernardino","92392","VB CDT Village Oaks LP","Trillium Housing Services"]
[null,null,null,null,null,null,null,null,null,null,null,null,null,null,null,null,null,null,null,null,null,null,null,null,null,null,null,null,null,null,null,null,null,null,null,null,null,null,null,null,null,null,null,null,"CA-1997-013  Casa Del Sol Apts.","CA-1997-013","Casa Del Sol Apts.","12184 Hanford Armona Road","Hanford","Kings","93230","VB CDT Casa Del Sol LP","Trillium Housing Services"]
[null,null,null,null,null,null,null,null,null,null,null,null,null,null,null,null,null,null,null,null,null,null,null,null,null,null,null,null,null,null,null,null,null,null,null,null,null,null,null,null,null,null,null,null,"CA-1997-017  Hotel Grand Southern","CA-1997-017","Hotel Grand Southern","1095 Mission Street","San Francisco","San Francisco","94103","Hotel Grand Southern, LP","GP/TODCO-A, Inc"]
[null,null,null,null,null,null,null,null,null,null,null,null,null,null,null,null,null,null,null,null,null,null,null,null,null,null,null,null,null,null,null,null,null,null,null,null,null,null,null,null,null,null,null,null,"CA-1997-034  Fedora Apartments","CA-1997-034","Fedora Apartments","836 Fedora Street","Los Angeles","Los Angeles","90005","836 Fedora, L.P.","A Community of Friends"]
[null,null,null,null,null,null,null,null,null,null,null,null,null,null,null,null,null,null,null,null,null,null,null,null,null,null,null,null,null,null,null,null,null,null,null,null,null,null,null,null,null,null,null,null,"CA-1997-040  Oroysom Village","CA-1997-040","Oroysom Village","43280 Bryant Terrace","Fremont","Alameda","94539","MP Oroysom, LP","Mid-Peninsula Oroysom, Inc."]
[null,null,null,null,null,null,null,null,null,null,null,null,null,null,null,null,null,null,null,null,null,null,null,null,null,null,null,null,null,null,null,null,null,null,null,null,null,null,null,null,null,null,null,null,"CA-1997-045  Hacienda Sr. Villas","CA-1997-045","Hacienda Sr. Villas","1901 South Azusa Avenue","Hacienda Heights","Los Angeles","91743","Hacienda Sr. Villas, LP","Foundation for Affordable Housing II, Inc."]
[null,null,null,null,null,null,null,null,null,null,null,null,null,null,null,null,null,null,null,null,null,null,null,null,null,null,null,null,null,null,null,null,null,null,null,null,null,null,null,null,null,null,null,null,"CA-1997-047  Columbia Village Townhomes","CA-1997-047","Columbia Village Townhomes","11439 Columbia Village Drive","Sonora","Tuolumne","95370","Oak Hills Housing, LP","CASA MAJOR AH LLC"]
[null,null,null,null,null,null,null,null,null,null,null,null,null,null,null,null,null,null,null,null,null,null,null,null,null,null,null,null,null,null,null,null,null,null,null,null,null,null,null,null,null,null,null,null,"CA-1997-048  Figueroa Court Apartments","CA-1997-048","Figueroa Court Apartments","9130 S. Figueroa Street","Los Angeles","Los Angeles","90003","Figueroa Court Apartments, LP","A Community of Friends"]
[null,null,null,null,null,null,null,null,null,null,null,null,null,null,null,null,null,null,null,null,null,null,null,null,null,null,null,null,null,null,null,null,null,null,null,null,null,null,null,null,null,null,null,null,"CA-1997-050  Cecil Williams Glide Community House","CA-1997-050","Cecil Williams Glide Community House","333 Taylor Street","San Francisco","San Francisco","94102","Glide Housing Assoc. LP","Glide Community Housing, Inc"]
[null,null,null,null,null,null,null,null,null,null,null,null,null,null,null,null,null,null,null,null,null,null,null,null,null,null,null,null,null,null,null,null,null,null,null,null,null,null,null,null,null,null,null,null,"CA-1997-056  Terra Cotta Apartments","CA-1997-056","Terra Cotta Apartments","523 Rush Drive","San Marcos","San Diego","92078","Terra Cotta Housing Associates","San Marcos Family Housing, Inc."]
[null,null,null,null,null,null,null,null,null,null,null,null,null,null,null,null,null,null,null,null,null,null,null,null,null,null,null,null,null,null,null,null,null,null,null,null,null,null,null,null,null,null,null,null,"CA-1997-058  Casas San Miguel de Allende","CA-1997-058","Casas San Miguel de Allende","35-055 Melrose Drive","Cathedral City","Riverside","92234","Cathedral Housing Associates, LP","Coachella Valley Housing Coalition"]
[null,null,null,null,null,null,null,null,null,null,null,null,null,null,null,null,null,null,null,null,null,null,null,null,null,null,null,null,null,null,null,null,null,null,null,null,null,null,null,null,null,null,null,null,"CA-1997-059  Sycamore Park Apartments","CA-1997-059","Sycamore Park Apartments","250 South Avenue 50 & 149 S. Ave 49","Los Angeles","Los Angeles","90042","Park Sycamore, LP","Hermandad Mexicana Nacional"]
[null,null,null,null,null,null,null,null,null,null,null,null,null,null,null,null,null,null,null,null,null,null,null,null,null,null,null,null,null,null,null,null,null,null,null,null,null,null,null,null,null,null,null,null,"CA-1997-064  Vista Nueva Apts.","CA-1997-064","Vista Nueva Apts.","130 South Lafayette Park Place","Los Angeles","Los Angeles","90057","V. Nueva, L.P., a CA LP","A Community of Friends"]
[null,null,null,null,null,null,null,null,null,null,null,null,null,null,null,null,null,null,null,null,null,null,null,null,null,null,null,null,null,null,null,null,null,null,null,null,null,null,null,null,null,null,null,null,"CA-1997-073  Sequoia Street Apartments","CA-1997-073","Sequoia Street Apartments","365 Sequoia Street","Morro Bay","San Luis Obispo","93442","Sequoia Affordable Housing Associates, LP","Oceanside Gardens, Inc."]
[null,null,null,null,null,null,null,null,null,null,null,null,null,null,null,null,null,null,null,null,null,null,null,null,null,null,null,null,null,null,null,null,null,null,null,null,null,null,null,null,null,null,null,null,"CA-1997-078  Auberry Park Apartments","CA-1997-078","Auberry Park Apartments","8120 Power Inn Road","Sacramento","Sacramento","95828","Auberry Park Limited Partnership, a CA LP","Auberry Park Housing Corporation"]
[null,null,null,null,null,null,null,null,null,null,null,null,null,null,null,null,null,null,null,null,null,null,null,null,null,null,null,null,null,null,null,null,null,null,null,null,null,null,null,null,null,null,null,null,"CA-1997-080  Heavenly Vision Senior Housing, LP","CA-1997-080","Heavenly Vision Senior Housing, LP","9500 South Broadway","Los Angeles","Los Angeles","90003","Heavenly Vision Senior Housing, L.P.","Figueroa Economical Housing Development Corporatio"]
[null,null,null,null,null,null,null,null,null,null,null,null,null,null,null,null,null,null,null,null,null,null,null,null,null,null,null,null,null,null,null,null,null,null,null,null,null,null,null,null,null,null,null,null,"CA-1997-082  Diamond Terrace Apartments","CA-1997-082","Diamond Terrace Apartments","6035 Service Road","Diamond Springs","El Dorado","95619","Diamond Terrace Apartments, LP","Quality Housing Development Corporation"]
[null,null,null,null,null,null,null,null,null,null,null,null,null,null,null,null,null,null,null,null,null,null,null,null,null,null,null,null,null,null,null,null,null,null,null,null,null,null,null,null,null,null,null,null,"CA-1997-086  Windsor Park Apartments","CA-1997-086","Windsor Park Apartments","350 Duncan Drive","Windsor","Sonoma","95492","Windsor Park Apartments, LP","Quality Housing Development Corporation"]
[null,null,null,null,null,null,null,null,null,null,null,null,null,null,null,null,null,null,null,null,null,null,null,null,null,null,null,null,null,null,null,null,null,null,null,null,null,null,null,null,null,null,null,null,"CA-1997-090  Pittsburg Park Apartments","CA-1997-090","Pittsburg Park Apartments","2161 Crestview Drive","Pittsburg","Contra Costa","94565","Pittsburg Park Apartments, LP","Quality Housing Development Corporation"]
[null,null,null,null,null,null,null,null,null,null,null,null,null,null,null,null,null,null,null,null,null,null,null,null,null,null,null,null,null,null,null,null,null,null,null,null,null,null,null,null,null,null,null,null,"CA-1997-092  Fairfield Vista Apartments","CA-1997-092","Fairfield Vista Apartments","201 Pennsylvania Avenue","Fairfield","Solano","94533","Fairfield Vista Apartments, LP","Quality Housing Developent Corporation"]
[null,null,null,null,null,null,null,null,null,null,null,null,null,null,null,null,null,null,null,null,null,null,null,null,null,null,null,null,null,null,null,null,null,null,null,null,null,null,null,null,null,null,null,null,"CA-1997-108  Emerald Gardens","CA-1997-108","Emerald Gardens","425 West 11th Avenue","Escondido","San Diego","92025","11th Avenue Townhomes Associates, a CA LP","SER Jobs for Progress, Inc."]
[null,null,null,null,null,null,null,null,null,null,null,null,null,null,null,null,null,null,null,null,null,null,null,null,null,null,null,null,null,null,null,null,null,null,null,null,null,null,null,null,null,null,null,null,"CA-1997-109  Casa Rampart Apartments","CA-1997-109","Casa Rampart Apartments","401 and 512 Rampart Blvd.","Los Angeles","Los Angeles","90057","Casa Rampart, L.P.","Los Angeles Housing Partnership, Inc."]
[null,null,null,null,null,null,null,null,null,null,null,null,null,null,null,null,null,null,null,null,null,null,null,null,null,null,null,null,null,null,null,null,null,null,null,null,null,null,null,null,null,null,null,null,"CA-1997-121  Park View Terrace","CA-1997-121","Park View Terrace","13250 Civic Center Drive","Poway","San Diego","92064","The Bowron Road Group, L.P.","Community HousingWorks"]
[null,null,null,null,null,null,null,null,null,null,null,null,null,null,null,null,null,null,null,null,null,null,null,null,null,null,null,null,null,null,null,null,null,null,null,null,null,null,null,null,null,null,null,null,"CA-1997-134  Vintage Park Sr Apartments","CA-1997-134","Vintage Park Sr Apartments","147 Colgan Avenue","Santa Rosa","Sonoma","95404","Colgan Avenue Sr Apts., LP","Riverside Charitable Corp"]
[null,null,null,null,null,null,null,null,null,null,null,null,null,null,null,null,null,null,null,null,null,null,null,null,null,null,null,null,null,null,null,null,null,null,null,null,null,null,null,null,null,null,null,null,"CA-1997-145  Valley Vista Apartments","CA-1997-145","Valley Vista Apartments","1832 Merced Street","Madera","Madera","93637","Madera Enterprises II, LP","Rico and Carol Brazil II, LP"]
[null,null,null,null,null,null,null,null,null,null,null,null,null,null,null,null,null,null,null,null,null,null,null,null,null,null,null,null,null,null,null,null,null,null,null,null,null,null,null,null,null,null,null,null,"CA-1997-154  Orozco Villas","CA-1997-154","Orozco Villas","8920 Orion Avenue","North Hills","Los Angeles","91343","8920 Orion Multihousing, LP","Neighborhood Partners Inc."]
[null,null,null,null,null,null,null,null,null,null,null,null,null,null,null,null,null,null,null,null,null,null,null,null,null,null,null,null,null,null,null,null,null,null,null,null,null,null,null,null,null,null,null,null,"CA-1997-158  Paz Villas","CA-1997-158","Paz Villas","14643 Blythe Street, Unit 201","Van Nuys","Los Angeles","914020000","Paz Villas Partners, LP","Neighborhood Partners Inc."]
[null,null,null,null,null,null,null,null,null,null,null,null,null,null,null,null,null,null,null,null,null,null,null,null,null,null,null,null,null,null,null,null,null,null,null,null,null,null,null,null,null,null,null,null,"CA-1997-159  Chestnut Village","CA-1997-159","Chestnut Village","5675 York Boulevard","Los Angeles","Los Angeles","90044","Chestnut Village Partners, L.P.","American Housing Construction, Inc"]
[null,null,null,null,null,null,null,null,null,null,null,null,null,null,null,null,null,null,null,null,null,null,null,null,null,null,null,null,null,null,null,null,null,null,null,null,null,null,null,null,null,null,null,null,"CA-1997-168  Courtland City Lights","CA-1997-168","Courtland City Lights","1355 Court Street","Los Angeles","Los Angeles","90012","Courtland City Lights Associates, a CA LP","Korean Health Education, Information and Research"]
[null,null,null,null,null,null,null,null,null,null,null,null,null,null,null,null,null,null,null,null,null,null,null,null,null,null,null,null,null,null,null,null,null,null,null,null,null,null,null,null,null,null,null,null,"CA-1997-176  River Garden Estates","CA-1997-176","River Garden Estates","2201 Northview Drive","Sacramento","Sacramento","95818","River Garden Housing Associates, LP","River Garden Mutual Housing Corporation"]
[null,null,null,null,null,null,null,null,null,null,null,null,null,null,null,null,null,null,null,null,null,null,null,null,null,null,null,null,null,null,null,null,null,null,null,null,null,null,null,null,null,null,null,null,"CA-1997-186  The Salvation Army Westwood Transitional Village","CA-1997-186","The Salvation Army Westwood Transitional Village","1341- 1401 South Sepulveda Boulevard","Los Angeles","Los Angeles","90025","The Salvation Army Westwood Village, L.P. a CALP","The Salvation Army Westwood Village, Inc."]
[null,null,null,null,null,null,null,null,null,null,null,null,null,null,null,null,null,null,null,null,null,null,null,null,null,null,null,null,null,null,null,null,null,null,null,null,null,null,null,null,null,null,null,null,"CA-1997-189  Minna Park Family Apartments","CA-1997-189","Minna Park Family Apartments","535 Minna Street","San Francisco","San Francisco","94103","Minna-Russ Housing Partners","Center Housing Development, LLC"]
[null,null,null,null,null,null,null,null,null,null,null,null,null,null,null,null,null,null,null,null,null,null,null,null,null,null,null,null,null,null,null,null,null,null,null,null,null,null,null,null,null,null,null,null,"CA-1997-194  Juniper Street Apartments","CA-1997-194","Juniper Street Apartments","119 Juniper Street","Arroyo Grande","San Luis Obispo","93420","Juniper Street Associates, LP","Oceanside Gardens, Inc."]
[null,null,null,null,null,null,null,null,null,null,null,null,null,null,null,null,null,null,null,null,null,null,null,null,null,null,null,null,null,null,null,null,null,null,null,null,null,null,null,null,null,null,null,null,"CA-1997-200  Park Grand Apartments","CA-1997-200","Park Grand Apartments","858 East Grand Avenue","Pomona","Los Angeles","91766","Park Grand Landmark, LP","AOF Park Grand LLC"]
[null,null,null,null,null,null,null,null,null,null,null,null,null,null,null,null,null,null,null,null,null,null,null,null,null,null,null,null,null,null,null,null,null,null,null,null,null,null,null,null,null,null,null,null,"CA-1997-221  Vista Verde Apartments","CA-1997-221","Vista Verde Apartments","351 South 33rd Street","San Diego","San Diego","92113","San Diego Housing Commission","San Diego Housing Commission"]
[null,null,null,null,null,null,null,null,null,null,null,null,null,null,null,null,null,null,null,null,null,null,null,null,null,null,null,null,null,null,null,null,null,null,null,null,null,null,null,null,null,null,null,null,"CA-1997-237  Totlon/Montclair Court","CA-1997-237","Totlon/Montclair Court","4200 Montclair Street and 4208-4216 West 28th Street","Los Angeles","Los Angeles","90016","West 28th Street, L.P., a CA LP","South of Market Mercy Housing"]
[null,null,null,null,null,null,null,null,null,null,null,null,null,null,null,null,null,null,null,null,null,null,null,null,null,null,null,null,null,null,null,null,null,null,null,null,null,null,null,null,null,null,null,null,"CA-1997-240  Grandview City Lights","CA-1997-240","Grandview City Lights","831 Grandview Avenue","Los Angeles","Los Angeles","90057","Grandview City Lights Associates, a CA LP","AOF HUNT 12, LLC"]
[null,null,null,null,null,null,null,null,null,null,null,null,null,null,null,null,null,null,null,null,null,null,null,null,null,null,null,null,null,null,null,null,null,null,null,null,null,null,null,null,null,null,null,null,"CA-1997-246  Vintage Canyon Sr. Apartments","CA-1997-246","Vintage Canyon Sr. Apartments","855 North Brea Blvd.","Brea","Orange","92821","Vintage Creek Senior Apts, LP","Riverside Charitable Corp"]
[null,null,null,null,null,null,null,null,null,null,null,null,null,null,null,null,null,null,null,null,null,null,null,null,null,null,null,null,null,null,null,null,null,null,null,null,null,null,null,null,null,null,null,null,"CA-1997-555  Oak Grove Apartments","CA-1997-555","Oak Grove Apartments","1578 Grove Street","Healdsburg","Sonoma","95448","AHA Oak Grove, LLC","AHA Oak Grove, LLC"]
[null,null,null,null,null,null,null,null,null,null,null,null,null,null,null,null,null,null,null,null,null,null,null,null,null,null,null,null,null,null,null,null,null,null,null,null,null,null,null,null,null,null,null,null,"CA-1997-593  Villa Hermosa Sr","CA-1997-593","Villa Hermosa Sr","1640 Hermocilla Way","San Jose","Santa Clara","95116","Hermocilla LLC","DeRose HDC, Inc."]
[null,null,null,null,null,null,null,null,null,null,null,null,null,null,null,null,null,null,null,null,null,null,null,null,null,null,null,null,null,null,null,null,null,null,null,null,null,null,null,null,null,null,null,null,"CA-1997-915  Pacific Point Apartments","CA-1997-915","Pacific Point Apartments","1001 West  Gonzales Road","Oxnard","Ventura","93030","Ten-O-One West Gonzales, LP","AHA VENTURA MGP, LLC"]
[null,null,null,null,null,null,null,null,null,null,null,null,null,null,null,null,null,null,null,null,null,null,null,null,null,null,null,null,null,null,null,null,null,null,null,null,null,null,null,null,null,null,null,null,"CA-1997-929  Cordova Village","CA-1997-929","Cordova Village","1280 East 'J' Street","Chula Vista","San Diego","91910","Cordova Village Apts., LP","South Bay Community Services"]
[null,null,null,null,null,null,null,null,null,null,null,null,null,null,null,null,null,null,null,null,null,null,null,null,null,null,null,null,null,null,null,null,null,null,null,null,null,null,null,null,null,null,null,null,"CA-1997-947  The Village at Lakeside","CA-1997-947","The Village at Lakeside","1718 Panama Lane","Bakersfield","Kern","93307","Cal World Village Lakeside, LP","Housing On Merit"]
[null,null,null,null,null,null,null,null,null,null,null,null,null,null,null,null,null,null,null,null,null,null,null,null,null,null,null,null,null,null,null,null,null,null,null,null,null,null,null,null,null,null,null,null,"CA-1997-952  Shorebreeze Apartments","CA-1997-952","Shorebreeze Apartments","460 North Shoreline Blvd","Mountain View","Santa Clara","94043","MP Shoreline Associates, LP","Mid-Peninsula Shoreline, Inc."]
[null,null,null,null,null,null,null,null,null,null,null,null,null,null,null,null,null,null,null,null,null,null,null,null,null,null,null,null,null,null,null,null,null,null,null,null,null,null,null,null,null,null,null,null,"CA-1997-963  Panas Place Apartments","CA-1997-963","Panas Place Apartments","2496 Old Stony Point Road","Santa Rosa","Sonoma","95407","Stony Point Apartments Investors, LP","Stony Pt. Inc."]
[null,null,null,null,null,null,null,null,null,null,null,null,null,null,null,null,null,null,null,null,null,null,null,null,null,null,null,null,null,null,null,null,null,null,null,null,null,null,null,null,null,null,null,null,"CA-1998-002  Mayur Town Homes","CA-1998-002","Mayur Town Homes","5846 Carlton Way","Los Angeles","Los Angeles","90028","Mayur Town Homes, LP","Leela Enterprises"]
[null,null,null,null,null,null,null,null,null,null,null,null,null,null,null,null,null,null,null,null,null,null,null,null,null,null,null,null,null,null,null,null,null,null,null,null,null,null,null,null,null,null,null,null,"CA-1998-060  Villa Hermosa","CA-1998-060","Villa Hermosa","1500 Poplar Avenue","Wasco","Kern","93280","Villa Hermosa Partners, LP","Almond Court, Inc."]
[null,null,null,null,null,null,null,null,null,null,null,null,null,null,null,null,null,null,null,null,null,null,null,null,null,null,null,null,null,null,null,null,null,null,null,null,null,null,null,null,null,null,null,null,"CA-1998-102  Oak Tree Village","CA-1998-102","Oak Tree Village","15231 Sherman Way","Van Nuys","Los Angeles","91405","Oak Tree Village Apartments, LP","Affordable Housing USA"]
[null,null,null,null,null,null,null,null,null,null,null,null,null,null,null,null,null,null,null,null,null,null,null,null,null,null,null,null,null,null,null,null,null,null,null,null,null,null,null,null,null,null,null,null,"CA-1998-191  Kenmore Apartments","CA-1998-191","Kenmore Apartments","1726 North Kenmore Avenue","Los Angeles","Los Angeles","90027","Kenmore Apartments, L.P.","Hollywood Community Housing Corporation"]
[null,null,null,null,null,null,null,null,null,null,null,null,null,null,null,null,null,null,null,null,null,null,null,null,null,null,null,null,null,null,null,null,null,null,null,null,null,null,null,null,null,null,null,null,"CA-1998-241  Pablo Rodriguez Plaza Apartments","CA-1998-241","Pablo Rodriguez Plaza Apartments","1550 South Avenue","Orange Cove","San Diego","93646","SER Holdings II, Inc.","SER Jobs for Progress, Inc."]
[null,null,null,null,null,null,null,null,null,null,null,null,null,null,null,null,null,null,null,null,null,null,null,null,null,null,null,null,null,null,null,null,null,null,null,null,null,null,null,null,null,null,null,null,"CA-1998-567  San Antonio Garden","CA-1998-567","San Antonio Garden","13708 San Antonio Drive","Norwalk","Los Angeles","90650","San Antonio Gardens, L.P","WCH Affordable XLII, LLC"]
[null,null,null,null,null,null,null,null,null,null,null,null,null,null,null,null,null,null,null,null,null,null,null,null,null,null,null,null,null,null,null,null,null,null,null,null,null,null,null,null,null,null,null,null,"CA-1998-800  Benton Green Apartments","CA-1998-800","Benton Green Apartments","528 North Benton Green","Los Angeles","Los Angeles","90026","Benton Green Limited Partnership","Better Community Development, Inc"]
[null,null,null,null,null,null,null,null,null,null,null,null,null,null,null,null,null,null,null,null,null,null,null,null,null,null,null,null,null,null,null,null,null,null,null,null,null,null,null,null,null,null,null,null,"CA-1998-816  Teresina at Lomas Verdes","CA-1998-816","Teresina at Lomas Verdes","1250 Santa Cora Avenue","Chula Vista","San Diego","91913","EQR- Teresina Limited Partnership","Hearthstone/EQR JV, LLC"]
[null,null,null,null,null,null,null,null,null,null,null,null,null,null,null,null,null,null,null,null,null,null,null,null,null,null,null,null,null,null,null,null,null,null,null,null,null,null,null,null,null,null,null,null,"CA-1998-911  Sorrento Villas","CA-1998-911","Sorrento Villas","415 Country Club Drive","Simi Valley","Ventura","93065","AMCAL Wood Ranch Fund XXXVII, LP","Bath Street Partners, Inc."]
[null,null,null,null,null,null,null,null,null,null,null,null,null,null,null,null,null,null,null,null,null,null,null,null,null,null,null,null,null,null,null,null,null,null,null,null,null,null,null,null,null,null,null,null,"CA-1998-922  Riverside Gardens","CA-1998-922","Riverside Gardens","1245 Linden Street","Riverside","Riverside","92507","VPM Linden Manor, LP","Linden Manor MGP, LLC"]
[null,null,null,null,null,null,null,null,null,null,null,null,null,null,null,null,null,null,null,null,null,null,null,null,null,null,null,null,null,null,null,null,null,null,null,null,null,null,null,null,null,null,null,null,"CA-1998-944  Sienna Vista Shady Tree","CA-1998-944","Sienna Vista Shady Tree","4901 Little Oak Lane","Sacramento","Sacramento","95841","CR Sienna Vista Communities, L.P.","PacH Sac-Midtown Holdings, LLC"]
[null,null,null,null,null,null,null,null,null,null,null,null,null,null,null,null,null,null,null,null,null,null,null,null,null,null,null,null,null,null,null,null,null,null,null,null,null,null,null,null,null,null,null,null,"CA-1998-968  Abajo Del Sol Senior Apartments","CA-1998-968","Abajo Del Sol Senior Apartments","1590-1608 West Garvey Avenue","Monterey Park","Los Angeles","91754","Abajo Del Sol L.P., a California L.P.","WCH Affordable III, LLC"]
[null,null,null,null,null,null,null,null,null,null,null,null,null,null,null,null,null,null,null,null,null,null,null,null,null,null,null,null,null,null,null,null,null,null,null,null,null,null,null,null,null,null,null,null,"CA-1998-981  Stockton Terrace Apartments","CA-1998-981","Stockton Terrace Apartments","246  Iris Avenue","Stockton","San Joaquin","95210","Granite Ridge Housing, LP","CASA MAJOR AH LLC"]
[null,null,null,null,null,null,null,null,null,null,null,null,null,null,null,null,null,null,null,null,null,null,null,null,null,null,null,null,null,null,null,null,null,null,null,null,null,null,null,null,null,null,null,null,"CA-1999-009  East Canon Perdido","CA-1999-009","East Canon Perdido","518 East Canon Perdido","Santa Barbara","Santa Barbara","93101","Housing Authority of the City of Santa Barbara","Housing Authority of the City of Santa Barbara"]
[null,null,null,null,null,null,null,null,null,null,null,null,null,null,null,null,null,null,null,null,null,null,null,null,null,null,null,null,null,null,null,null,null,null,null,null,null,null,null,null,null,null,null,null,"CA-1999-029  Highland Village","CA-1999-029","Highland Village","245-73 South Avenue 50","Los Angeles","Los Angeles","90042","Highland Village Partners L.P.","Womens Organizing Resources, Knowledge and Service"]
[null,null,null,null,null,null,null,null,null,null,null,null,null,null,null,null,null,null,null,null,null,null,null,null,null,null,null,null,null,null,null,null,null,null,null,null,null,null,null,null,null,null,null,null,"CA-1999-036  Detroit Street Senior Housing","CA-1999-036","Detroit Street Senior Housing","1212 Detroit Street","West Hollywood","Los Angeles","90046","Detroit Senior LP, a CA LP","West Hollywood Community Housing Corporation"]
[null,null,null,null,null,null,null,null,null,null,null,null,null,null,null,null,null,null,null,null,null,null,null,null,null,null,null,null,null,null,null,null,null,null,null,null,null,null,null,null,null,null,null,null,"CA-1999-062  San Pedro Commons","CA-1999-062","San Pedro Commons","101 A Street","Colma","San Mateo","94014","Mid-Peninsula San Pedro Associates, LP","Mid-Peninsula San Pedro, Inc."]
[null,null,null,null,null,null,null,null,null,null,null,null,null,null,null,null,null,null,null,null,null,null,null,null,null,null,null,null,null,null,null,null,null,null,null,null,null,null,null,null,null,null,null,null,"CA-1999-093  Brandon Apartments","CA-1999-093","Brandon Apartments","735 Hartford Avenue","Los Angeles","Los Angeles","90017","Brandon Apartments, L.P.","A Community of Friends"]
[null,null,null,null,null,null,null,null,null,null,null,null,null,null,null,null,null,null,null,null,null,null,null,null,null,null,null,null,null,null,null,null,null,null,null,null,null,null,null,null,null,null,null,null,"CA-1999-134  Moonridge II","CA-1999-134","Moonridge II","2001 Miramontes Point Road","Half Moon Bay","San Mateo","94019","Moonridge Associates","Mid-Peninsula Half Moon Bay, Inc."]
[null,null,null,null,null,null,null,null,null,null,null,null,null,null,null,null,null,null,null,null,null,null,null,null,null,null,null,null,null,null,null,null,null,null,null,null,null,null,null,null,null,null,null,null,"CA-1999-178  Emerald Pointe Townhomes","CA-1999-178","Emerald Pointe Townhomes","9537 Kelley","Stockton","San Joaquin","95209","Emerald Pointe Associates, LP","EMERALD POINTE HOUSING CORPORATION"]
[null,null,null,null,null,null,null,null,null,null,null,null,null,null,null,null,null,null,null,null,null,null,null,null,null,null,null,null,null,null,null,null,null,null,null,null,null,null,null,null,null,null,null,null,"CA-1999-208  Vintage Brook Senior Apartments","CA-1999-208","Vintage Brook Senior Apartments","4672 Melody Drive","Concord","Contra Costa","94521","Vintage Brook Senior Apartments LP","Riverside Charitable Corp"]
[null,null,null,null,null,null,null,null,null,null,null,null,null,null,null,null,null,null,null,null,null,null,null,null,null,null,null,null,null,null,null,null,null,null,null,null,null,null,null,null,null,null,null,null,"CA-1999-256  Truckee Riverview Homes","CA-1999-256","Truckee Riverview Homes","11230 Village Way","Truckee","Nevada","96161","Truckee Riverview Housing Corporation","San Juan Housing Corporation"]
[null,null,null,null,null,null,null,null,null,null,null,null,null,null,null,null,null,null,null,null,null,null,null,null,null,null,null,null,null,null,null,null,null,null,null,null,null,null,null,null,null,null,null,null,"CA-1999-823  Woodside Court Apartments","CA-1999-823","Woodside Court Apartments","555 Alaska Avenue","Fairfield","Solano","94533","Eden Woodside Court, L.P.","Eden Investments Inc"]
[null,null,null,null,null,null,null,null,null,null,null,null,null,null,null,null,null,null,null,null,null,null,null,null,null,null,null,null,null,null,null,null,null,null,null,null,null,null,null,null,null,null,null,null,{"$f":"CONCATENATE(AT771,\"  \",AU771)","v":"CA-1999-827  Woodmark Apartments"},"CA-1999-827","Woodmark Apartments","700 Kincheloe Court","Woodland","Yolo","95695","Woodmark Partnership LP","AOF Woodmark LLC"]
[null,null,null,null,null,null,null,null,null,null,null,null,null,null,null,null,null,null,null,null,null,null,null,null,null,null,null,null,null,null,null,null,null,null,null,null,null,null,null,null,null,null,null,null,"CA-1999-851  Ridgecrest Apartments aka \"Las Colinas Apartments\"","CA-1999-851","Ridgecrest Apartments aka \"Las Colinas Apartments\"","3250 Panorama Road","Riverside","Riverside","92506","Pacifica Panorama, LP","Pacifica Panorama, LP"]
[null,null,null,null,null,null,null,null,null,null,null,null,null,null,null,null,null,null,null,null,null,null,null,null,null,null,null,null,null,null,null,null,null,null,null,null,null,null,null,null,null,null,null,null,"CA-1999-865  Preservation II","CA-1999-865","Preservation II","300 E. 51 Street/2647 Halldale/1758 W.49 Street","Los Angeles","Los Angeles","90011","Preservation Properties II, L.P., a CA LP","CONCERNED CITIZENS OF SOUTH CENTRAL LOS ANGELES"]
[null,null,null,null,null,null,null,null,null,null,null,null,null,null,null,null,null,null,null,null,null,null,null,null,null,null,null,null,null,null,null,null,null,null,null,null,null,null,null,null,null,null,null,null,"CA-1999-889  Washington Court Family","CA-1999-889","Washington Court Family","1717 East 103rd Street","Los Angeles","Los Angeles","90002","Washington Court Renwal LLC","Washington Court MM LLC"]
[null,null,null,null,null,null,null,null,null,null,null,null,null,null,null,null,null,null,null,null,null,null,null,null,null,null,null,null,null,null,null,null,null,null,null,null,null,null,null,null,null,null,null,null,"CA-1999-908  Concord-Huntington Park Apartments","CA-1999-908","Concord-Huntington Park Apartments","6900 Seville Avenue","Huntington Park","Los Angeles","90255","CHP, LP","Hearthstone CA Properties III, LLC"]
[null,null,null,null,null,null,null,null,null,null,null,null,null,null,null,null,null,null,null,null,null,null,null,null,null,null,null,null,null,null,null,null,null,null,null,null,null,null,null,null,null,null,null,null,"CA-1999-925  Park Sierra at Iron Horse Trail","CA-1999-925","Park Sierra at Iron Horse Trail","6450 Dougherty Road","Dublin","Alameda","94568","Park Sierra, LLC","Shea Properties, LLC"]
[null,null,null,null,null,null,null,null,null,null,null,null,null,null,null,null,null,null,null,null,null,null,null,null,null,null,null,null,null,null,null,null,null,null,null,null,null,null,null,null,null,null,null,null,"CA-2000-021  Chico Gardens Apartments","CA-2000-021","Chico Gardens Apartments","851 Pomona Avenue","Chico","Butte","95928","Chico Gardens Limited Partnership","Chico Gardens Limited Partnership"]
[null,null,null,null,null,null,null,null,null,null,null,null,null,null,null,null,null,null,null,null,null,null,null,null,null,null,null,null,null,null,null,null,null,null,null,null,null,null,null,null,null,null,null,null,"CA-2000-045  Adeline Street Lofts","CA-2000-045","Adeline Street Lofts","1131 24th Street","Oakland","Alameda","94607","Adeline Lofts Associates, a CA LP","Satellite AHA Development Inc."]
[null,null,null,null,null,null,null,null,null,null,null,null,null,null,null,null,null,null,null,null,null,null,null,null,null,null,null,null,null,null,null,null,null,null,null,null,null,null,null,null,null,null,null,null,"CA-2000-060  River Garden Apartments","CA-2000-060","River Garden Apartments","1970 Clary Drive","Needles","San Bernardino","92363","River Gardens Nevada LP","New Life Economic Development, Inc."]
[null,null,null,null,null,null,null,null,null,null,null,null,null,null,null,null,null,null,null,null,null,null,null,null,null,null,null,null,null,null,null,null,null,null,null,null,null,null,null,null,null,null,null,null,"CA-2000-119  Whispering Pines Apartments","CA-2000-119","Whispering Pines Apartments","7610 Amherst Street","Sacramento","Sacramento","95832","Sacramento Whispering Pines Associates, LP","ASOCIACION CAMPESINA LAZARO CARDENAS, INC."]
[null,null,null,null,null,null,null,null,null,null,null,null,null,null,null,null,null,null,null,null,null,null,null,null,null,null,null,null,null,null,null,null,null,null,null,null,null,null,null,null,null,null,null,null,"CA-2000-136  Villa del Mar","CA-2000-136","Villa del Mar","3950 N. Del Mar","fresno","Fresno","93704","Fresno Villa Del Mar Limited Partnership","Better Opportunities Builder"]
[null,null,null,null,null,null,null,null,null,null,null,null,null,null,null,null,null,null,null,null,null,null,null,null,null,null,null,null,null,null,null,null,null,null,null,null,null,null,null,null,null,null,null,null,"CA-2000-170  Jay's Place","CA-2000-170","Jay's Place","2805 Park Meadow Drive","Santa Rosa","Sonoma","95407","Jay's Place Partners, L.P.","Burbank Housing Development Corporation"]
[null,null,null,null,null,null,null,null,null,null,null,null,null,null,null,null,null,null,null,null,null,null,null,null,null,null,null,null,null,null,null,null,null,null,null,null,null,null,null,null,null,null,null,null,"CA-2000-186  El Centro Senior Villas","CA-2000-186","El Centro Senior Villas","515 Park Avenue","El Centro","Imperial","92243","El Centro Senior Villas, L.P.","FFAH II EL CENTRO SENIOR VILLAS, LLC"]
[null,null,null,null,null,null,null,null,null,null,null,null,null,null,null,null,null,null,null,null,null,null,null,null,null,null,null,null,null,null,null,null,null,null,null,null,null,null,null,null,null,null,null,null,"CA-2000-256  Happy Valley City Lights","CA-2000-256","Happy Valley City Lights","2580 Soto Street","Los Angeles","Los Angeles","90032","Happy Valley City Lights, a CA LP","AOF HUNT 12, LLC"]
[null,null,null,null,null,null,null,null,null,null,null,null,null,null,null,null,null,null,null,null,null,null,null,null,null,null,null,null,null,null,null,null,null,null,null,null,null,null,null,null,null,null,null,null,"CA-2000-816  Coggins Square Apartments","CA-2000-816","Coggins Square Apartments","1316 Las Juntas Way","Walnut Creek","Contra Costa","94596","Coggins Square Associates","Coggins Square, Inc."]
[null,null,null,null,null,null,null,null,null,null,null,null,null,null,null,null,null,null,null,null,null,null,null,null,null,null,null,null,null,null,null,null,null,null,null,null,null,null,null,null,null,null,null,null,"CA-2000-827  Cottage Estates","CA-2000-827","Cottage Estates","2900 Channel Court","Sacramento","Sacramento","95825","Landon Lane Apartments LP","Riverside Charitable Corp"]
[null,null,null,null,null,null,null,null,null,null,null,null,null,null,null,null,null,null,null,null,null,null,null,null,null,null,null,null,null,null,null,null,null,null,null,null,null,null,null,null,null,null,null,null,"CA-2000-835  Orange Grove Apartments","CA-2000-835","Orange Grove Apartments","626-700 Orange Grove Avenue","Glendale","Los Angeles","91205","Glen Grove Limited Partnership","West Hollywood Community Housing Corporation"]
[null,null,null,null,null,null,null,null,null,null,null,null,null,null,null,null,null,null,null,null,null,null,null,null,null,null,null,null,null,null,null,null,null,null,null,null,null,null,null,null,null,null,null,null,"CA-2000-857  Santa Ana Towers","CA-2000-857","Santa Ana Towers","401 W. First Street","Santa Ana","Orange","92701","Santa Ana Senior Housing Limited Partnership","Housing Corporation of America"]
[null,null,null,null,null,null,null,null,null,null,null,null,null,null,null,null,null,null,null,null,null,null,null,null,null,null,null,null,null,null,null,null,null,null,null,null,null,null,null,null,null,null,null,null,"CA-2000-868  Stuart Drive Apts. & Rose Garden Apts.","CA-2000-868","Stuart Drive Apts. & Rose Garden Apts.","Various sites","Garden Grove","Orange","92643","Stuart Drive/Rose Garden Limited Partnership, aCAL","Stuart Rose Properties SPE GP, LLC"]
[null,null,null,null,null,null,null,null,null,null,null,null,null,null,null,null,null,null,null,null,null,null,null,null,null,null,null,null,null,null,null,null,null,null,null,null,null,null,null,null,null,null,null,null,"CA-2000-896  Craig Gardens","CA-2000-896","Craig Gardens","2580 South Bascom Avenue","Campbell","Santa Clara","95008","Craig Gardens L.P., a CA LP","First Community Housing"]
[null,null,null,null,null,null,null,null,null,null,null,null,null,null,null,null,null,null,null,null,null,null,null,null,null,null,null,null,null,null,null,null,null,null,null,null,null,null,null,null,null,null,null,null,"CA-2000-908  The Verandas Apartments","CA-2000-908","The Verandas Apartments","8160 Power Inn Road","Sacramento","Sacramento","95828","The Verandas, a Senior Community, a CA LP","Greek Orthodox Housing Corporation"]
[null,null,null,null,null,null,null,null,null,null,null,null,null,null,null,null,null,null,null,null,null,null,null,null,null,null,null,null,null,null,null,null,null,null,null,null,null,null,null,null,null,null,null,null,"CA-2001-020  The West Hotel","CA-2001-020","The West Hotel","141 Eddy Street","San Francisco","San Francisco","94102","West Hotel LP","Turk Street, Inc."]
[null,null,null,null,null,null,null,null,null,null,null,null,null,null,null,null,null,null,null,null,null,null,null,null,null,null,null,null,null,null,null,null,null,null,null,null,null,null,null,null,null,null,null,null,"CA-2001-051  Sunrise Villa","CA-2001-051","Sunrise Villa","1600 Poplar Avenue","Wasco","Kern","93280","Sunrise Villa Partners, a California LP","Almond Court, Inc."]
[null,null,null,null,null,null,null,null,null,null,null,null,null,null,null,null,null,null,null,null,null,null,null,null,null,null,null,null,null,null,null,null,null,null,null,null,null,null,null,null,null,null,null,null,"CA-2001-068  Jackson Aisle Apartments","CA-2001-068","Jackson Aisle Apartments","15432 Jackson Street","Midway City","Orange","92655","Jackson Aisle Apartments, L.P., a CA LP","Helping Our Mentally Ill Experience Success, Incor"]
[null,null,null,null,null,null,null,null,null,null,null,null,null,null,null,null,null,null,null,null,null,null,null,null,null,null,null,null,null,null,null,null,null,null,null,null,null,null,null,null,null,null,null,null,"CA-2001-084  Hotel Redding","CA-2001-084","Hotel Redding","1748 Market Street","Redding","Shasta","96001","CCHNC Hotel Redding Associates, a California L.P.","Christian Church Homes of Northern California"]
[null,null,null,null,null,null,null,null,null,null,null,null,null,null,null,null,null,null,null,null,null,null,null,null,null,null,null,null,null,null,null,null,null,null,null,null,null,null,null,null,null,null,null,null,"CA-2001-120  Villas Santa Fe","CA-2001-120","Villas Santa Fe","Belmont St. (near Graces Hwy)","Delano","Kern","93215","Delano Villas Santa Fe Apartments, LP","TELACU Homes, Inc."]
[null,null,null,null,null,null,null,null,null,null,null,null,null,null,null,null,null,null,null,null,null,null,null,null,null,null,null,null,null,null,null,null,null,null,null,null,null,null,null,null,null,null,null,null,"CA-2001-126  Cache Creek Apartment Homes","CA-2001-126","Cache Creek Apartment Homes","16080 Dam Road","Clearlake","Lake","95422","Cache Creek Partners, L.P., a CA LP","Care Housing Services"]
[null,null,null,null,null,null,null,null,null,null,null,null,null,null,null,null,null,null,null,null,null,null,null,null,null,null,null,null,null,null,null,null,null,null,null,null,null,null,null,null,null,null,null,null,"CA-2001-802  Heritage Park on Woodman","CA-2001-802","Heritage Park on Woodman","7840 Woodman Avenue","Panorama City","Los Angeles","91402","Panorama Heritage Park, L.P.","Riverside Charitable Corp"]
[null,null,null,null,null,null,null,null,null,null,null,null,null,null,null,null,null,null,null,null,null,null,null,null,null,null,null,null,null,null,null,null,null,null,null,null,null,null,null,null,null,null,null,null,"CA-2001-812  The Reserve at Napa","CA-2001-812","The Reserve at Napa","710 Trancas Street","Napa","Napa","94558","Napa Senior Apartments, L.P., a CA LP","Napa Valley Community Housing"]
[null,null,null,null,null,null,null,null,null,null,null,null,null,null,null,null,null,null,null,null,null,null,null,null,null,null,null,null,null,null,null,null,null,null,null,null,null,null,null,null,null,null,null,null,"CA-2001-829  Cesar Chavez Gardens","CA-2001-829","Cesar Chavez Gardens","555 West Cesar E. Chavez Avenue","Los Angeles","Los Angeles","90012","Cesar Chavez Gardens, L.P., a CA LP","Chinatown Service Center, Incorporated"]
[null,null,null,null,null,null,null,null,null,null,null,null,null,null,null,null,null,null,null,null,null,null,null,null,null,null,null,null,null,null,null,null,null,null,null,null,null,null,null,null,null,null,null,null,"CA-2001-846  Casa Bonita Senior Apartments","CA-2001-846","Casa Bonita Senior Apartments","6512 Rugby Avenue","Huntington Park","Los Angeles","90256","RASA, L.P., a CA LP","Western Community Housing, Inc."]
[null,null,null,null,null,null,null,null,null,null,null,null,null,null,null,null,null,null,null,null,null,null,null,null,null,null,null,null,null,null,null,null,null,null,null,null,null,null,null,null,null,null,null,null,"CA-2001-859  Birchcrest Apartments","CA-2001-859","Birchcrest Apartments","8525 Paramount Blvd","Downey","0","90240","Community Housing Services - Birchcrest Inc.","CHS-Birchcrest Inc"]
[null,null,null,null,null,null,null,null,null,null,null,null,null,null,null,null,null,null,null,null,null,null,null,null,null,null,null,null,null,null,null,null,null,null,null,null,null,null,null,null,null,null,null,null,"CA-2001-862  Serenity Villas","CA-2001-862","Serenity Villas","158 E. Bonita Avenue","Pomona","Los Angeles","91767","AMCAL Serenity Fund, L.P.","Foundation For Affordable Housing II, Inc"]
[null,null,null,null,null,null,null,null,null,null,null,null,null,null,null,null,null,null,null,null,null,null,null,null,null,null,null,null,null,null,null,null,null,null,null,null,null,null,null,null,null,null,null,null,"CA-2001-893  Union Court Apartments","CA-2001-893","Union Court Apartments","940 South Union Road","Manteca","San Joaquin","95337","Union Court Limited Partnership, a CA LP","Eden Development Inc"]
[null,null,null,null,null,null,null,null,null,null,null,null,null,null,null,null,null,null,null,null,null,null,null,null,null,null,null,null,null,null,null,null,null,null,null,null,null,null,null,null,null,null,null,null,"CA-2001-901  Parwood Apartments","CA-2001-901","Parwood Apartments","5441 N. Paramount Blvd.","Long Beach","Los Angeles","90805","Avanath Northpointe, L.P., a CA LP","COR Community Development Corporation"]
[null,null,null,null,null,null,null,null,null,null,null,null,null,null,null,null,null,null,null,null,null,null,null,null,null,null,null,null,null,null,null,null,null,null,null,null,null,null,null,null,null,null,null,null,"CA-2001-923  Shiraz Senior Housing","CA-2001-923","Shiraz Senior Housing","1295 McLaughlin Avenue","San Jose","Santa Clara","95122","Shiraz Senior Housing, L.P., a CA L.P.","Foundation for Affordable Housing II, Inc"]
[null,null,null,null,null,null,null,null,null,null,null,null,null,null,null,null,null,null,null,null,null,null,null,null,null,null,null,null,null,null,null,null,null,null,null,null,null,null,null,null,null,null,null,null,"CA-2002-005  Apple Tree Village","CA-2002-005","Apple Tree Village","9229 N. Sepulveda Blvd.","Los Angeles","Los Angeles","91343","ABS Sepulveda, L.P., a CA LP","Affordable Housing USA, A California Nonprofit Public Benefit Corporation"]
[null,null,null,null,null,null,null,null,null,null,null,null,null,null,null,null,null,null,null,null,null,null,null,null,null,null,null,null,null,null,null,null,null,null,null,null,null,null,null,null,null,null,null,null,"CA-2002-049  Fallbrook View Apartments","CA-2002-049","Fallbrook View Apartments","901 Alturas Road","Fallbrook","San Diego","92028","Fallbrook View Housing Associates, L.P.","Community HousingWorks"]
[null,null,null,null,null,null,null,null,null,null,null,null,null,null,null,null,null,null,null,null,null,null,null,null,null,null,null,null,null,null,null,null,null,null,null,null,null,null,null,null,null,null,null,null,"CA-2002-090  Regency Place Senior Apartments","CA-2002-090","Regency Place Senior Apartments","2501 Red Bud Lane","Anderson","Shasta","96007","Anderson Senior Apartments, L.P., a CA LP","LINC Housing Corporation"]
[null,null,null,null,null,null,null,null,null,null,null,null,null,null,null,null,null,null,null,null,null,null,null,null,null,null,null,null,null,null,null,null,null,null,null,null,null,null,null,null,null,null,null,null,"CA-2002-118  Almond Terrace Apartments","CA-2002-118","Almond Terrace Apartments","2004 Evans Road","Ceres","Stanislaus","95307","324 E Jackson, LLC","Visionary Home Builders of California, Inc."]
[null,null,null,null,null,null,null,null,null,null,null,null,null,null,null,null,null,null,null,null,null,null,null,null,null,null,null,null,null,null,null,null,null,null,null,null,null,null,null,null,null,null,null,null,"CA-2002-124  Sunset City Lights","CA-2002-124","Sunset City Lights","2014 West Sunset Blvd.","Los Angeles","Los Angeles","90026","Sunset City Lights, a CA LP","FFAH V City Lights, LLC"]
[null,null,null,null,null,null,null,null,null,null,null,null,null,null,null,null,null,null,null,null,null,null,null,null,null,null,null,null,null,null,null,null,null,null,null,null,null,null,null,null,null,null,null,null,"CA-2002-223  Mandela Gateway","CA-2002-223","Mandela Gateway","1350 7th Street","Oakland","Alameda","94607","Mandela Gateway Associates, a California L.P.","BRIDGE Housing Ventures, Inc."]
[null,null,null,null,null,null,null,null,null,null,null,null,null,null,null,null,null,null,null,null,null,null,null,null,null,null,null,null,null,null,null,null,null,null,null,null,null,null,null,null,null,null,null,null,"CA-2002-231  Red Bluff Meadows","CA-2002-231","Red Bluff Meadows","850 Kimball Road","Red Bluff","Tehama","96080","Kimball Square, a California Limited Partnership","Community Revitalization Development Corporation"]
[null,null,null,null,null,null,null,null,null,null,null,null,null,null,null,null,null,null,null,null,null,null,null,null,null,null,null,null,null,null,null,null,null,null,null,null,null,null,null,null,null,null,null,null,"CA-2002-805  Carmel Street Apartments","CA-2002-805","Carmel Street Apartments","1312 Caramel Street","San Luis Obispo","San Luis Obispo","93401","Carmel Street Associates, a CALP","San Luis Obispo Nonprofit Housing Corporation"]
[null,null,null,null,null,null,null,null,null,null,null,null,null,null,null,null,null,null,null,null,null,null,null,null,null,null,null,null,null,null,null,null,null,null,null,null,null,null,null,null,null,null,null,null,"CA-2002-814  Canyon Run Apartments","CA-2002-814","Canyon Run Apartments","1689 Canyon Run","Healdsburg","Sonoma","94558","Healdsburg Family Apartments Investors, L.P.","Burbank Housing Development Corporation"]
[null,null,null,null,null,null,null,null,null,null,null,null,null,null,null,null,null,null,null,null,null,null,null,null,null,null,null,null,null,null,null,null,null,null,null,null,null,null,null,null,null,null,null,null,"CA-2002-832  Villa Glen Apartments","CA-2002-832","Villa Glen Apartments","6984 Torrey Santa Fe Road","San Diego","San Diego","92129","CIC Villas II, L.P.","Pacific Southwest Community Development Corporatio"]
[null,null,null,null,null,null,null,null,null,null,null,null,null,null,null,null,null,null,null,null,null,null,null,null,null,null,null,null,null,null,null,null,null,null,null,null,null,null,null,null,null,null,null,null,"CA-2002-839  Talega Jamboree Apt Ph. IIMendocino at Talega II","CA-2002-839","Talega Jamboree Apt Ph. IIMendocino at Talega II","123 Calle Amistad","San Clemente","Orange","92673","Jamboree-Tal Housing II, LP","Jamboree Housing Corporation"]
[null,null,null,null,null,null,null,null,null,null,null,null,null,null,null,null,null,null,null,null,null,null,null,null,null,null,null,null,null,null,null,null,null,null,null,null,null,null,null,null,null,null,null,null,"CA-2002-854  Cedar Park Apartments","CA-2002-854","Cedar Park Apartments","210 Sutton Way","Grass Valley","Nevada","95945","Oregon Investors VIII Limited Partnership, a OR LP","Oregon Investors VIII Limited Partnership, a OR LP"]
[null,null,null,null,null,null,null,null,null,null,null,null,null,null,null,null,null,null,null,null,null,null,null,null,null,null,null,null,null,null,null,null,null,null,null,null,null,null,null,null,null,null,null,null,"CA-2002-857  Glen Haven Apartments","CA-2002-857","Glen Haven Apartments","4262 Central Avenue","Fremont","Alameda","94536","KDF Glen Haven, L.P., a CA LP","Affordable Housing Access Inc."]
[null,null,null,null,null,null,null,null,null,null,null,null,null,null,null,null,null,null,null,null,null,null,null,null,null,null,null,null,null,null,null,null,null,null,null,null,null,null,null,null,null,null,null,null,{"$f":"CONCATENATE(AT1219,\"  \",AU1219)","v":"CA-2002-882  Parkwood Apartments"},"CA-2002-882","Parkwood Apartments","4075 Prospect Avenue","Yorba Linda","Orange","92885","AHP-Parkwood, L.P.","AOF/Pacific Affordable Housing Corp."]
[null,null,null,null,null,null,null,null,null,null,null,null,null,null,null,null,null,null,null,null,null,null,null,null,null,null,null,null,null,null,null,null,null,null,null,null,null,null,null,null,null,null,null,null,"CA-2002-886  Terracina Park Meadows","CA-2002-886","Terracina Park Meadows","8875 Lewis Stein Road","Elk Grove","Sacramento","95758","Terracina Park Meadows, L.P., a CA LP","Riverside Charitable Corp"]
[null,null,null,null,null,null,null,null,null,null,null,null,null,null,null,null,null,null,null,null,null,null,null,null,null,null,null,null,null,null,null,null,null,null,null,null,null,null,null,null,null,null,null,null,"CA-2002-903  Solara Court","CA-2002-903","Solara Court","3335 West Lincoln Avenue","Anaheim","Orange","92801","West Lincoln Housing Partners, L. P.,a Del. LP","Western Community Housing, Inc."]
[null,null,null,null,null,null,null,null,null,null,null,null,null,null,null,null,null,null,null,null,null,null,null,null,null,null,null,null,null,null,null,null,null,null,null,null,null,null,null,null,null,null,null,null,"CA-2002-910  Orchard Village","CA-2002-910","Orchard Village","548 Ford Street","Ukiah","Mendocino","95482","Orchard River Associates, L.P.,  a CA L.P.","Pine Gardens I, Inc"]
[null,null,null,null,null,null,null,null,null,null,null,null,null,null,null,null,null,null,null,null,null,null,null,null,null,null,null,null,null,null,null,null,null,null,null,null,null,null,null,null,null,null,null,null,"CA-2002-923  Grisham Community Housing","CA-2002-923","Grisham Community Housing","11-71 West 49th St; 4901-4951 Ruth Ave; 20-80 Peace St; 4902-4952 Grisham Ave.","Long Beach","Los Angeles","90805","Grisham Community Housing Limited Partnership","Abode Communities"]
[null,null,null,null,null,null,null,null,null,null,null,null,null,null,null,null,null,null,null,null,null,null,null,null,null,null,null,null,null,null,null,null,null,null,null,null,null,null,null,null,null,null,null,null,"CA-2002-931  Murphy Ranch I Townhomes","CA-2002-931","Murphy Ranch I Townhomes","310 East Dunne Avenue","Morgan Hill","Santa Clara","95037","Murphy Ranch LP, a CA LP","First Community Housing"]
[null,null,null,null,null,null,null,null,null,null,null,null,null,null,null,null,null,null,null,null,null,null,null,null,null,null,null,null,null,null,null,null,null,null,null,null,null,null,null,null,null,null,null,null,"CA-2003-009  Vermont City Lights","CA-2003-009","Vermont City Lights","4215 - 4225 South Vermont Avenue & 1011 West 42nd Place","Los Angeles","Los Angeles","90037","Vermont City Lights, L.P., a CA LP","Korean Health Education, Information and Research"]
[null,null,null,null,null,null,null,null,null,null,null,null,null,null,null,null,null,null,null,null,null,null,null,null,null,null,null,null,null,null,null,null,null,null,null,null,null,null,null,null,null,null,null,null,"CA-2003-017  Cottonwood Place II","CA-2003-017","Cottonwood Place II","24115 Cottonwood Avenue","Moreno Valley","Riverside","92552","Heacock Cottonwood II LP, a CA LP","Housing Corporation of America"]
[null,null,null,null,null,null,null,null,null,null,null,null,null,null,null,null,null,null,null,null,null,null,null,null,null,null,null,null,null,null,null,null,null,null,null,null,null,null,null,null,null,null,null,null,"CA-2003-050  Casa de Rosa Apartments","CA-2003-050","Casa de Rosa Apartments","654 Lozano Street","Mendota","Fresno","93640","81 Casa de Rosa Apartments, L.P., a CA LP","Casa De Rosa, L.P."]
[null,null,null,null,null,null,null,null,null,null,null,null,null,null,null,null,null,null,null,null,null,null,null,null,null,null,null,null,null,null,null,null,null,null,null,null,null,null,null,null,null,null,null,null,"CA-2003-057  Sunnyside Apartments","CA-2003-057","Sunnyside Apartments","988 D Street","Merced","0","95340","Sunnyside of Merced, L.P.","LINC Housing Corporation"]
[null,null,null,null,null,null,null,null,null,null,null,null,null,null,null,null,null,null,null,null,null,null,null,null,null,null,null,null,null,null,null,null,null,null,null,null,null,null,null,null,null,null,null,null,"CA-2003-095  Westwood Vistas","CA-2003-095","Westwood Vistas","719-731 F Street","West Sacramento","Yolo","95605","Westwood Vistas, a California Limited Partnership","FFAH V City of Lights,LLC"]
[null,null,null,null,null,null,null,null,null,null,null,null,null,null,null,null,null,null,null,null,null,null,null,null,null,null,null,null,null,null,null,null,null,null,null,null,null,null,null,null,null,null,null,null,"CA-2003-118  Gateways SRO Housing","CA-2003-118","Gateways SRO Housing","444 N. Hoover Street","Los Angeles","Los Angeles","90004","Gateways Housing, L.P.","A Community of Friends"]
[null,null,null,null,null,null,null,null,null,null,null,null,null,null,null,null,null,null,null,null,null,null,null,null,null,null,null,null,null,null,null,null,null,null,null,null,null,null,null,null,null,null,null,null,"CA-2003-163  Sierra Village","CA-2003-163","Sierra Village","23 Nelson Avenue","Oroville","Butte","95965","Sierra Village Project Partners, L.P.","Foundation for Affordable Housing V, Inc."]
[null,null,null,null,null,null,null,null,null,null,null,null,null,null,null,null,null,null,null,null,null,null,null,null,null,null,null,null,null,null,null,null,null,null,null,null,null,null,null,null,null,null,null,null,"CA-2003-180  Valle Del Sol Townhomes","CA-2003-180","Valle Del Sol Townhomes","4701 East Farmington Road","Stockton","San Joaquin","95215","Valle Del Sol Associates, a CA LP","ASOCIACION CAMPESINA LAZARO CARDENAS"]
[null,null,null,null,null,null,null,null,null,null,null,null,null,null,null,null,null,null,null,null,null,null,null,null,null,null,null,null,null,null,null,null,null,null,null,null,null,null,null,null,null,null,null,null,"CA-2003-800  Kennedy Meadows Apartments","CA-2003-800","Kennedy Meadows Apartments","701 New York Ranch Road","Jackson","Amador","95642","Oregon Investors IV Limited Partnership","Oregon Investors IV Limited Partnership"]
[null,null,null,null,null,null,null,null,null,null,null,null,null,null,null,null,null,null,null,null,null,null,null,null,null,null,null,null,null,null,null,null,null,null,null,null,null,null,null,null,null,null,null,null,{"$f":"CONCATENATE(AT1347,\"  \",AU1347)","v":"CA-2003-803  101 San Fernando Apartments"},"CA-2003-803","101 San Fernando Apartments","101 E. San Fernando Street","San Jose","Santa Clara","95112","Essex San Fernando L.P.","Essex SPE, LLC"]
[null,null,null,null,null,null,null,null,null,null,null,null,null,null,null,null,null,null,null,null,null,null,null,null,null,null,null,null,null,null,null,null,null,null,null,null,null,null,null,null,null,null,null,null,"CA-2003-825  Skyline Village","CA-2003-825","Skyline Village","444 Lucas Avenue","Los Angeles","Los Angeles","90017","Skyline Village L.P., a California LP","Housing Corporation of America"]
[null,null,null,null,null,null,null,null,null,null,null,null,null,null,null,null,null,null,null,null,null,null,null,null,null,null,null,null,null,null,null,null,null,null,null,null,null,null,null,null,null,null,null,null,"CA-2003-829  Tyrella Gardens","CA-2003-829","Tyrella Gardens","449 Tyrella Avenue","Mountain View","Santa Clara","94043","MP Tyrella Associates, A CA LP","MP Preservation, Inc."]
[null,null,null,null,null,null,null,null,null,null,null,null,null,null,null,null,null,null,null,null,null,null,null,null,null,null,null,null,null,null,null,null,null,null,null,null,null,null,null,null,null,null,null,null,"CA-2003-846  Mission Gateway","CA-2003-846","Mission Gateway","33155 Mission Blvd.","Union City","Alameda","94587","MP Mission Associates, a CA LP","Mid-Peninsula Coastside, Inc."]
[null,null,null,null,null,null,null,null,null,null,null,null,null,null,null,null,null,null,null,null,null,null,null,null,null,null,null,null,null,null,null,null,null,null,null,null,null,null,null,null,null,null,null,null,"CA-2003-850  Countryside Apartments","CA-2003-850","Countryside Apartments","1751 Adams Avenue","El Centro","Imperial","92243","CIC Countryside, L.P.","Pacific Southwest Community Development Corporatio"]
[null,null,null,null,null,null,null,null,null,null,null,null,null,null,null,null,null,null,null,null,null,null,null,null,null,null,null,null,null,null,null,null,null,null,null,null,null,null,null,null,null,null,null,null,"CA-2003-866  Imperial Gardens Apartments","CA-2003-866","Imperial Gardens Apartments","2375 Myrtle Road","Imperial","Imperial","92251","IGA, L.P.","Pacific Southwest Community Development Corporatio"]
[null,null,null,null,null,null,null,null,null,null,null,null,null,null,null,null,null,null,null,null,null,null,null,null,null,null,null,null,null,null,null,null,null,null,null,null,null,null,null,null,null,null,null,null,"CA-2003-875  Point Reyes Affordable Homes","CA-2003-875","Point Reyes Affordable Homes","12 Giacomini Road","Pt. Reyes Station","Marin","94956","Point Reyes Affordable Homes, L.P., a CA LP","Point Reyes EAH, Inc."]
[null,null,null,null,null,null,null,null,null,null,null,null,null,null,null,null,null,null,null,null,null,null,null,null,null,null,null,null,null,null,null,null,null,null,null,null,null,null,null,null,null,null,null,null,"CA-2003-889  Arbor Ridge Apartments","CA-2003-889","Arbor Ridge Apartments","2400 Shady Willow Lane","Brentwood","Contra Costa","94513","Brentwood Arbor Ridge, L.P., a CA LP","Central Valley Coalition for Afforable Housing"]
[null,null,null,null,null,null,null,null,null,null,null,null,null,null,null,null,null,null,null,null,null,null,null,null,null,null,null,null,null,null,null,null,null,null,null,null,null,null,null,null,null,null,null,null,"CA-2003-892  Casa Colina Del Sol","CA-2003-892","Casa Colina Del Sol","5207 52nd Place","San Diego","San Diego","92105","Casa Colina, L.P., a CA LP","Housing Developing Partners of San Diego"]
[null,null,null,null,null,null,null,null,null,null,null,null,null,null,null,null,null,null,null,null,null,null,null,null,null,null,null,null,null,null,null,null,null,null,null,null,null,null,null,null,null,null,null,null,"CA-2003-911  Maidu Village Phase III","CA-2003-911","Maidu Village Phase III","109 Sterling Court","Roseville","Placer","95661","Maidu Village Phase III, a CA. LP","Project GO, Inc."]
[null,null,null,null,null,null,null,null,null,null,null,null,null,null,null,null,null,null,null,null,null,null,null,null,null,null,null,null,null,null,null,null,null,null,null,null,null,null,null,null,null,null,null,null,"CA-2003-915  Hermosa Vista Apartments","CA-2003-915","Hermosa Vista Apartments","15353 & 15425 Goldenwest Street","Huntington Beach","Orange","92647","KDF Hermosa, LP, a CA LP","AOF / Pacific Affordable Housing Corp"]
[null,null,null,null,null,null,null,null,null,null,null,null,null,null,null,null,null,null,null,null,null,null,null,null,null,null,null,null,null,null,null,null,null,null,null,null,null,null,null,null,null,null,null,null,"CA-2003-936  Moulton Plaza","CA-2003-936","Moulton Plaza","1601 Tenaka Place","Sunnyvale","Santa Clara","94087","New Homestead Associates, a CA LP","Mid-Peninsula Coastside, Inc."]
[null,null,null,null,null,null,null,null,null,null,null,null,null,null,null,null,null,null,null,null,null,null,null,null,null,null,null,null,null,null,null,null,null,null,null,null,null,null,null,null,null,null,null,null,"CA-2003-942  Brierwood Court","CA-2003-942","Brierwood Court","4402 W. Avalon Avenue","Fresno","Fresno","93722","E.P. Investors, a California Limited Partnership","Better Opportunities Builder"]
[null,null,null,null,null,null,null,null,null,null,null,null,null,null,null,null,null,null,null,null,null,null,null,null,null,null,null,null,null,null,null,null,null,null,null,null,null,null,null,null,null,null,null,null,"CA-2004-015  Easter Hill Apartments, Phase II","CA-2004-015","Easter Hill Apartments, Phase II","700 South 26th Street","Richmond","Contra Costa","94804","Easter Hill Phase II, L.P.","RHA Housing Corporation"]
[null,null,null,null,null,null,null,null,null,null,null,null,null,null,null,null,null,null,null,null,null,null,null,null,null,null,null,null,null,null,null,null,null,null,null,null,null,null,null,null,null,null,null,null,"CA-2004-031  Summerset Apartment Homes","CA-2004-031","Summerset Apartment Homes","668 S. Comanche Dr.","Arvin","Kern","93203","Arvin Family Housing Partners, L.P.","Las Palmas Foundation"]
[null,null,null,null,null,null,null,null,null,null,null,null,null,null,null,null,null,null,null,null,null,null,null,null,null,null,null,null,null,null,null,null,null,null,null,null,null,null,null,null,null,null,null,null,"CA-2004-066  Casa Loma Family Apartments","CA-2004-066","Casa Loma Family Apartments","1525 Lotus Lane","Bakersfield","0","93307","CL Investors, a California Limited Partnership","Community Revitilization and Development Corporati"]
[null,null,null,null,null,null,null,null,null,null,null,null,null,null,null,null,null,null,null,null,null,null,null,null,null,null,null,null,null,null,null,null,null,null,null,null,null,null,null,null,null,null,null,null,"CA-2004-081  Govea Gardens","CA-2004-081","Govea Gardens","1054 Washington Street","Bakersfield","Kern","93307","Communidad Housing Development, L.P.","Cesar Chavez Foundation"]
[null,null,null,null,null,null,null,null,null,null,null,null,null,null,null,null,null,null,null,null,null,null,null,null,null,null,null,null,null,null,null,null,null,null,null,null,null,null,null,null,null,null,null,null,"CA-2004-103  Summerview Apartment Homes","CA-2004-103","Summerview Apartment Homes","225 Meyer Street","Arvin","Kern","93203","Arvin II Family Housing Partners, L.P.","Las Palmas Foundation"]
[null,null,null,null,null,null,null,null,null,null,null,null,null,null,null,null,null,null,null,null,null,null,null,null,null,null,null,null,null,null,null,null,null,null,null,null,null,null,null,null,null,null,null,null,"CA-2004-113  San Jose Art Ark Housing","CA-2004-113","San Jose Art Ark Housing","1058 South Fifth Street & 1055 South Sixth Street","San Jose","Santa Clara","95112","San Jose Artist Housing, L.P., a CA LP","AOF/Pacific Affordable Housing"]
[null,null,null,null,null,null,null,null,null,null,null,null,null,null,null,null,null,null,null,null,null,null,null,null,null,null,null,null,null,null,null,null,null,null,null,null,null,null,null,null,null,null,null,null,"CA-2004-808  Wilshire Vermont Station","CA-2004-808","Wilshire Vermont Station","3183 Wilshire Blvd.","Los Angeles","Los Angeles","90010","DWF V Wilshire Vermont, LP","Hearthstone Housing Foundation"]
[null,null,null,null,null,null,null,null,null,null,null,null,null,null,null,null,null,null,null,null,null,null,null,null,null,null,null,null,null,null,null,null,null,null,null,null,null,null,null,null,null,null,null,null,"CA-2004-813  Geneva Pointe Apartments","CA-2004-813","Geneva Pointe Apartments","8280 Geneva Pointe Drive","Elk Grove","Sacramento","95624","Avanath Geneva Pointe, LP","COR F3 FNMA, LLC"]
[null,null,null,null,null,null,null,null,null,null,null,null,null,null,null,null,null,null,null,null,null,null,null,null,null,null,null,null,null,null,null,null,null,null,null,null,null,null,null,null,null,null,null,null,"CA-2004-826  Murphy Ranch II","CA-2004-826","Murphy Ranch II","310 East Dunne Avenue","Morgan Hill","Santa Clara","95037","Murphy Ranch II, L.P., a CA LP","First Community Housing"]
[null,null,null,null,null,null,null,null,null,null,null,null,null,null,null,null,null,null,null,null,null,null,null,null,null,null,null,null,null,null,null,null,null,null,null,null,null,null,null,null,null,null,null,null,"CA-2004-835  Lion Creek Crossings fka Coliseum Gardens Phase I","CA-2004-835","Lion Creek Crossings fka Coliseum Gardens Phase I","6814, 6830, 6846 & 6873 Hawley St., 881 & 915 69th St., 6818 Lion Way","Oakland","Alameda","94621","Oakland Coliseum Housing Partners, L.P.","Lion Creek I, LLC"]
[null,null,null,null,null,null,null,null,null,null,null,null,null,null,null,null,null,null,null,null,null,null,null,null,null,null,null,null,null,null,null,null,null,null,null,null,null,null,null,null,null,null,null,null,"CA-2004-849  Harmony Creek","CA-2004-849","Harmony Creek","15554 Gale Avenue","Hacienda Heights","Los Angeles","91745","Hacienda Senior Partners, L.P., a CA L.P.","Gateway Community Housing Corporation"]
[null,null,null,null,null,null,null,null,null,null,null,null,null,null,null,null,null,null,null,null,null,null,null,null,null,null,null,null,null,null,null,null,null,null,null,null,null,null,null,null,null,null,null,null,"CA-2004-859  Baycliff Apartments","CA-2004-859","Baycliff Apartments","2300 Lancaster Drive","Richmond","Contra Costa","94806","FF Hills LP, a CA LP","Wakeland Housing & Development Corp."]
[null,null,null,null,null,null,null,null,null,null,null,null,null,null,null,null,null,null,null,null,null,null,null,null,null,null,null,null,null,null,null,null,null,null,null,null,null,null,null,null,null,null,null,null,"CA-2004-875  Casitas Del Valle","CA-2004-875","Casitas Del Valle","12318 Lamos Place","Moreno Valley","Riverside","92557","Casitas Del Valle Housing Associates, L.P.","Coachella Valley Housing Coalition"]
[null,null,null,null,null,null,null,null,null,null,null,null,null,null,null,null,null,null,null,null,null,null,null,null,null,null,null,null,null,null,null,null,null,null,null,null,null,null,null,null,null,null,null,null,"CA-2004-878  Douglas Park Apartments","CA-2004-878","Douglas Park Apartments","145 W. Rosecrans Avenue & 1225 N. Culver Avenue","Compton","Los Angeles","90222","Batteries Included, L.P., a CA LP","Housing Corporation of America"]
[null,null,null,null,null,null,null,null,null,null,null,null,null,null,null,null,null,null,null,null,null,null,null,null,null,null,null,null,null,null,null,null,null,null,null,null,null,null,null,null,null,null,null,null,"CA-2004-899  Wyndover Apartments","CA-2004-899","Wyndover Apartments","809 Diablo Avenue","Novato","Marin","94947","Fairfield Wyndover L.P., a California LP","Wakeland Housing & Development Corp."]
[null,null,null,null,null,null,null,null,null,null,null,null,null,null,null,null,null,null,null,null,null,null,null,null,null,null,null,null,null,null,null,null,null,null,null,null,null,null,null,null,null,null,null,null,"CA-2004-902  Glenview Apartments","CA-2004-902","Glenview Apartments","4400 Central Avenue","Fremont","Alameda","94536","KDF Glenview, L.P.","AHA East Bay, MGP LLC"]
[null,null,null,null,null,null,null,null,null,null,null,null,null,null,null,null,null,null,null,null,null,null,null,null,null,null,null,null,null,null,null,null,null,null,null,null,null,null,null,null,null,null,null,null,"CA-2004-916  Pacific Court","CA-2004-916","Pacific Court","2209 Main Street","Santa Monica","Los Angeles","90405","Pacific Court Limited Partnership","Community Corporation of Santa Monica"]
[null,null,null,null,null,null,null,null,null,null,null,null,null,null,null,null,null,null,null,null,null,null,null,null,null,null,null,null,null,null,null,null,null,null,null,null,null,null,null,null,null,null,null,null,"CA-2005-003  Village at Hesperia Phase III","CA-2005-003","Village at Hesperia Phase III","9901 9th Avenue","Hesperia","San Bernardino","92345","Hesperia at 9th Phase III LP","Affordable Housing Access Inc."]
[null,null,null,null,null,null,null,null,null,null,null,null,null,null,null,null,null,null,null,null,null,null,null,null,null,null,null,null,null,null,null,null,null,null,null,null,null,null,null,null,null,null,null,null,"CA-2005-022  Rosewood Villas Apartment Homes","CA-2005-022","Rosewood Villas Apartment Homes","40606-40662 Road 128","Cutler","Tulare","93615","Cutler Family Housing Partners, L.P.","Las Palmas Foundation"]
[null,null,null,null,null,null,null,null,null,null,null,null,null,null,null,null,null,null,null,null,null,null,null,null,null,null,null,null,null,null,null,null,null,null,null,null,null,null,null,null,null,null,null,null,"CA-2005-039  Cassia Heights Apartments","CA-2005-039","Cassia Heights Apartments","2029 Cassia Road","San Diego","San Diego","92009","El Camino Family Housing Partners, LLC","Affirmed Housing Group"]
[null,null,null,null,null,null,null,null,null,null,null,null,null,null,null,null,null,null,null,null,null,null,null,null,null,null,null,null,null,null,null,null,null,null,null,null,null,null,null,null,null,null,null,null,"CA-2005-065  Jeffrey-Lynne Neighborhood Revitalization, Phase 3","CA-2005-065","Jeffrey-Lynne Neighborhood Revitalization, Phase 3","1515 S. Calle Del Mar","Anaheim","Orange","92802","Anaheim Revitalization III Partners, L.P., a CA LP","The Southern California Housing Development Corpor"]
[null,null,null,null,null,null,null,null,null,null,null,null,null,null,null,null,null,null,null,null,null,null,null,null,null,null,null,null,null,null,null,null,null,null,null,null,null,null,null,null,null,null,null,null,"CA-2005-070  Plummer Village Apartments","CA-2005-070","Plummer Village Apartments","15450 Plummer Street","North Hills","Los Angeles","91343","Plummer Village Preservation, L.P., a CA LP","Hearthstone Housing Foundation"]
[null,null,null,null,null,null,null,null,null,null,null,null,null,null,null,null,null,null,null,null,null,null,null,null,null,null,null,null,null,null,null,null,null,null,null,null,null,null,null,null,null,null,null,null,"CA-2005-097  Parkview Terrace Senior Housing","CA-2005-097","Parkview Terrace Senior Housing","871 Turk Street","San Francisco","San Francisco","94109","Parkview Terrace Partners, LP","Parkview Terrace LLC"]
[null,null,null,null,null,null,null,null,null,null,null,null,null,null,null,null,null,null,null,null,null,null,null,null,null,null,null,null,null,null,null,null,null,null,null,null,null,null,null,null,null,null,null,null,"CA-2005-104  Cider Village Family Apartments","CA-2005-104","Cider Village Family Apartments","765 Bristlecone Lane","Nipomo","San Luis Obispo","93444","Cider Village Associates, a California LP","Foundation for Affordable Housing V, Inc."]
[null,null,null,null,null,null,null,null,null,null,null,null,null,null,null,null,null,null,null,null,null,null,null,null,null,null,null,null,null,null,null,null,null,null,null,null,null,null,null,null,null,null,null,null,"CA-2005-114  Terry Manor Apartments","CA-2005-114","Terry Manor Apartments","3100 South Vermont Avenue","Los Angeles","Los Angeles","90007","Terry Manor Preservation, L.P., a CA LP","Hearthstone Housing Foundation"]
[null,null,null,null,null,null,null,null,null,null,null,null,null,null,null,null,null,null,null,null,null,null,null,null,null,null,null,null,null,null,null,null,null,null,null,null,null,null,null,null,null,null,null,null,"CA-2005-805  The Crossings at Elk Grove","CA-2005-805","The Crossings at Elk Grove","8575 Elk Grove Florin Road","Elk Grove","Sacramento","95624","UHC ELK GROVE, L.P., a CA LP","Central Valley Coalition for Affordable Housing"]
[null,null,null,null,null,null,null,null,null,null,null,null,null,null,null,null,null,null,null,null,null,null,null,null,null,null,null,null,null,null,null,null,null,null,null,null,null,null,null,null,null,null,null,null,"CA-2005-819  Leeward Apartments","CA-2005-819","Leeward Apartments","Scattered Site","Los Angeles / Gardena","Los Angeles","0","Leeward Partners, L.P.","Affordable Housing Solutions"]
[null,null,null,null,null,null,null,null,null,null,null,null,null,null,null,null,null,null,null,null,null,null,null,null,null,null,null,null,null,null,null,null,null,null,null,null,null,null,null,null,null,null,null,null,"CA-2005-833  Raintree Apartments","CA-2005-833","Raintree Apartments","1058 South Winchester Blvd.","San Jose","Santa Clara","95128","1058 S. Winchester Blvd., L.P.","Korean Health Education, Information and Research"]
[null,null,null,null,null,null,null,null,null,null,null,null,null,null,null,null,null,null,null,null,null,null,null,null,null,null,null,null,null,null,null,null,null,null,null,null,null,null,null,null,null,null,null,null,"CA-2005-845  Laguna Senior Apartments","CA-2005-845","Laguna Senior Apartments","4201 West Sunset Blvd.","Los Angeles","Los Angeles","90029","Sunset Myra, L.P., a CA LP","Sunset Myra, L.P., a CA LP"]
[null,null,null,null,null,null,null,null,null,null,null,null,null,null,null,null,null,null,null,null,null,null,null,null,null,null,null,null,null,null,null,null,null,null,null,null,null,null,null,null,null,null,null,null,"CA-2005-849  Vista Hermosa","CA-2005-849","Vista Hermosa","100-106 E. Santa Anna Street","Santa Paula","Ventura","93060","Vista Hermosa, L.P.","Cabrillo Economic Development Corporation"]
[null,null,null,null,null,null,null,null,null,null,null,null,null,null,null,null,null,null,null,null,null,null,null,null,null,null,null,null,null,null,null,null,null,null,null,null,null,null,null,null,null,null,null,null,"CA-2005-866  Sagewood Apartments","CA-2005-866","Sagewood Apartments","16217 Stonebridge Parkway","San Diego","San Diego","92131","16217 Stonebridge Parkway, L.P.","Korean Health Education, Information and Research"]
[null,null,null,null,null,null,null,null,null,null,null,null,null,null,null,null,null,null,null,null,null,null,null,null,null,null,null,null,null,null,null,null,null,null,null,null,null,null,null,null,null,null,null,null,"CA-2005-870  Tracy Senior Apartments","CA-2005-870","Tracy Senior Apartments","902 West 12th Street","Tracy","San Joaquin","95376","Tracy Place Associates, a California LP","Community Revitilization and Development Corporati"]
[null,null,null,null,null,null,null,null,null,null,null,null,null,null,null,null,null,null,null,null,null,null,null,null,null,null,null,null,null,null,null,null,null,null,null,null,null,null,null,null,null,null,null,null,"CA-2005-878  Grand Oak Apartments","CA-2005-878","Grand Oak Apartments","99 Oak Avenue","South San Francisco","San Mateo","94080","Grand Oak Associates, a CA LP","BRIDGE Tower, LLC"]
[null,null,null,null,null,null,null,null,null,null,null,null,null,null,null,null,null,null,null,null,null,null,null,null,null,null,null,null,null,null,null,null,null,null,null,null,null,null,null,null,null,null,null,null,"CA-2005-892  Baywood Apartments","CA-2005-892","Baywood Apartments","4275 Bay Street","Fremont","Alameda","94538","Eden Baywood Apartments, L.P., a CA L.P.","Eden Baywood LLC"]
[null,null,null,null,null,null,null,null,null,null,null,null,null,null,null,null,null,null,null,null,null,null,null,null,null,null,null,null,null,null,null,null,null,null,null,null,null,null,null,null,null,null,null,null,"CA-2005-905  Villa del Sol Apartments","CA-2005-905","Villa del Sol Apartments","11971 Allegheny Street","Sun Valley","Los Angeles","91352","FFAH Villa Del Sol, LLC","FFAH V Villa Del Sol LLC,"]
[null,null,null,null,null,null,null,null,null,null,null,null,null,null,null,null,null,null,null,null,null,null,null,null,null,null,null,null,null,null,null,null,null,null,null,null,null,null,null,null,null,null,null,null,"CA-2005-913  Duncan Place Apartments","CA-2005-913","Duncan Place Apartments","301 Cypress Street","Fort Bragg","Mendocino","95437","Fort Bragg Duncan Place, LP","Central Valley Coalition for Affordable Housing"]
[null,null,null,null,null,null,null,null,null,null,null,null,null,null,null,null,null,null,null,null,null,null,null,null,null,null,null,null,null,null,null,null,null,null,null,null,null,null,null,null,null,null,null,null,{"$f":"CONCATENATE(AT1795,\"  \",AU1795)","v":"CA-2005-927  Willow Creek Apartments"},"CA-2005-927","Willow Creek Apartments","51 Brannan Mountain Road","Willow Creek","Humboldt","95573","Willow Creek Family Associates, a California L.P.","Central Valley Coalition for Affordable Housing"]
[null,null,null,null,null,null,null,null,null,null,null,null,null,null,null,null,null,null,null,null,null,null,null,null,null,null,null,null,null,null,null,null,null,null,null,null,null,null,null,null,null,null,null,null,"CA-2006-011  Sequoia Village at River's Edge","CA-2006-011","Sequoia Village at River's Edge","424 South E. Street","Porterville","Tulare","93257","Porterville Pacific Associates, a California LP","Central Valley Coalition for Affordable Housing"]
[null,null,null,null,null,null,null,null,null,null,null,null,null,null,null,null,null,null,null,null,null,null,null,null,null,null,null,null,null,null,null,null,null,null,null,null,null,null,null,null,null,null,null,null,"CA-2006-036  Rivertown Place","CA-2006-036","Rivertown Place","712 I Street","Antioch","Contra Costa","94531","Antioch Eden Rivertown, L.P., a CA LP","Antioch Eden Rivertown LLC"]
[null,null,null,null,null,null,null,null,null,null,null,null,null,null,null,null,null,null,null,null,null,null,null,null,null,null,null,null,null,null,null,null,null,null,null,null,null,null,null,null,null,null,null,null,"CA-2006-039  MHA Garden Street Apartments","CA-2006-039","MHA Garden Street Apartments","617 Garden Street","Santa Barbara","Santa Barbara","93101","MHA Garden Street Apartments, L.P.","Building Hope, LLC"]
[null,null,null,null,null,null,null,null,null,null,null,null,null,null,null,null,null,null,null,null,null,null,null,null,null,null,null,null,null,null,null,null,null,null,null,null,null,null,null,null,null,null,null,null,"CA-2006-054  The Family Commons at Cabrillo, L.P.","CA-2006-054","The Family Commons at Cabrillo, L.P.","2111 Williams Street","Long Beach","Los Angeles","90810","The Family Commons at Cabrillo, L.P.","Century Villages at Cabrillo, Inc."]
[null,null,null,null,null,null,null,null,null,null,null,null,null,null,null,null,null,null,null,null,null,null,null,null,null,null,null,null,null,null,null,null,null,null,null,null,null,null,null,null,null,null,null,null,"CA-2006-075  Casa Verde","CA-2006-075","Casa Verde","2398 East 14th Street","San Leandro","Alameda","94577","Mercy Housing California XXXIII, a California LP","Mercy Housing West"]
[null,null,null,null,null,null,null,null,null,null,null,null,null,null,null,null,null,null,null,null,null,null,null,null,null,null,null,null,null,null,null,null,null,null,null,null,null,null,null,null,null,null,null,null,"CA-2006-107  Bricker","CA-2006-107","Bricker","1671 N. Western Avenue","Los Angeles","Los Angeles","90028","Briker, LP","Central Valley Coalition for Affordable Housing"]
[null,null,null,null,null,null,null,null,null,null,null,null,null,null,null,null,null,null,null,null,null,null,null,null,null,null,null,null,null,null,null,null,null,null,null,null,null,null,null,null,null,null,null,null,"CA-2006-121  Villas Del Lago","CA-2006-121","Villas Del Lago","456 South Lake Street","Los Angeles","Los Angeles","90057","456 South Lake, L.P., a California L.P.","Women Organizing Resources Knowledge and Services"]
[null,null,null,null,null,null,null,null,null,null,null,null,null,null,null,null,null,null,null,null,null,null,null,null,null,null,null,null,null,null,null,null,null,null,null,null,null,null,null,null,null,null,null,null,"CA-2006-802  Casa Amelia Cadena Apartments","CA-2006-802","Casa Amelia Cadena Apartments","455 E Ash Ave","Shafter","Kern","93263","Shafter Housing Development, L.P.","Cesar Chavez Foundation"]
[null,null,null,null,null,null,null,null,null,null,null,null,null,null,null,null,null,null,null,null,null,null,null,null,null,null,null,null,null,null,null,null,null,null,null,null,null,null,null,null,null,null,null,null,"CA-2006-809  Rippling River Apartments","CA-2006-809","Rippling River Apartments","53 E. Carmel Valley Road","Carmel Valley Village","Monterey","93924","Rippling River Affordable Housing Limited P'ship","Rippling River Affordable Housing Limited P'ship"]
[null,null,null,null,null,null,null,null,null,null,null,null,null,null,null,null,null,null,null,null,null,null,null,null,null,null,null,null,null,null,null,null,null,null,null,null,null,null,null,null,null,null,null,null,"CA-2006-824  Abbey Apartments","CA-2006-824","Abbey Apartments","605-633 S. San Pedro St.","Los Angeles","Los Angeles","90014","Abbey Apartments, L.P.","Skid Row Housing Trust"]
[null,null,null,null,null,null,null,null,null,null,null,null,null,null,null,null,null,null,null,null,null,null,null,null,null,null,null,null,null,null,null,null,null,null,null,null,null,null,null,null,null,null,null,null,"CA-2006-827  Seabreeze Apartments","CA-2006-827","Seabreeze Apartments","1045 E. Condor Street","Crescent City","Del Norte","95531","CC Seabreeze, L.P.","CC Seabreeze, L.P."]
[null,null,null,null,null,null,null,null,null,null,null,null,null,null,null,null,null,null,null,null,null,null,null,null,null,null,null,null,null,null,null,null,null,null,null,null,null,null,null,null,null,null,null,null,"CA-2006-835  Willows/Winchester Neighborhood Revit. Project","CA-2006-835","Willows/Winchester Neighborhood Revit. Project","1432 Willow Avenue","Rialto","San Bernardino","92376","Inland Valley Housing Partners, L.P.","Southern California Housing Development Corporatio"]
[null,null,null,null,null,null,null,null,null,null,null,null,null,null,null,null,null,null,null,null,null,null,null,null,null,null,null,null,null,null,null,null,null,null,null,null,null,null,null,null,null,null,null,null,"CA-2006-847  Regency Apartments","CA-2006-847","Regency Apartments","1315-1405 Eden Avenue","San Jose","Santa Clara","95117","KDF Regency, L.P.","Affordable Housing Access Inc."]
[null,null,null,null,null,null,null,null,null,null,null,null,null,null,null,null,null,null,null,null,null,null,null,null,null,null,null,null,null,null,null,null,null,null,null,null,null,null,null,null,null,null,null,null,"CA-2006-860  Alabama Street Family Housing","CA-2006-860","Alabama Street Family Housing","2949 18th Street","San Francisco","San Francisco","94110","Alabama Street Housing Associates, a CA LP","Turk Street Inc."]
[null,null,null,null,null,null,null,null,null,null,null,null,null,null,null,null,null,null,null,null,null,null,null,null,null,null,null,null,null,null,null,null,null,null,null,null,null,null,null,null,null,null,null,null,"CA-2006-867  Kings Garden Apartments","CA-2006-867","Kings Garden Apartments","1224 A Fernot Way","Hanford","Kings","93230","FH Kings Garden LP","Kings Garden MGP LLC"]
[null,null,null,null,null,null,null,null,null,null,null,null,null,null,null,null,null,null,null,null,null,null,null,null,null,null,null,null,null,null,null,null,null,null,null,null,null,null,null,null,null,null,null,null,"CA-2006-881  Valencia Point Apartments","CA-2006-881","Valencia Point Apartments","4500 Natomas Central Drive","Sacramento","Sacramento","95835","Valencia Sacramento L.P.","Pacific Housing Inc."]
[null,null,null,null,null,null,null,null,null,null,null,null,null,null,null,null,null,null,null,null,null,null,null,null,null,null,null,null,null,null,null,null,null,null,null,null,null,null,null,null,null,null,null,null,"CA-2006-890  Chico Courtyards","CA-2006-890","Chico Courtyards","2333 Pillsbury Road","Chico","Butte","95926","Chico Pacific Associates, a California LP","Central Valley Coalition for Affordable Housing"]
[null,null,null,null,null,null,null,null,null,null,null,null,null,null,null,null,null,null,null,null,null,null,null,null,null,null,null,null,null,null,null,null,null,null,null,null,null,null,null,null,null,null,null,null,"CA-2006-904  All Hallows Gardens Apartments","CA-2006-904","All Hallows Gardens Apartments","65 Navy Road","San Francisco","San Francisco","94124","All Hallows Preservation, L.P.","FFAH V AllHallows, LLC"]
[null,null,null,null,null,null,null,null,null,null,null,null,null,null,null,null,null,null,null,null,null,null,null,null,null,null,null,null,null,null,null,null,null,null,null,null,null,null,null,null,null,null,null,null,"CA-2006-907  Stoneridge at Elk Grove","CA-2006-907","Stoneridge at Elk Grove","8515 Elk Grove Florin Road","Elk Grove","Sacramento","95624","UHC Elk Brown, L.P., a CA LP","Central Valley Coalition for Affordable Housing"]
[null,null,null,null,null,null,null,null,null,null,null,null,null,null,null,null,null,null,null,null,null,null,null,null,null,null,null,null,null,null,null,null,null,null,null,null,null,null,null,null,null,null,null,null,"CA-2006-915  Alabama Manor Apartments","CA-2006-915","Alabama Manor Apartments","3836 Alabama Street","San Diego","San Diego","92104","Alabama Manor Housing Associates, a CA LP","Community HousingWorks"]
[null,null,null,null,null,null,null,null,null,null,null,null,null,null,null,null,null,null,null,null,null,null,null,null,null,null,null,null,null,null,null,null,null,null,null,null,null,null,null,null,null,null,null,null,"CA-2007-009  Rosa Parks Villas","CA-2007-009","Rosa Parks Villas","2507 S. Bronson Ave.","Los Angeles","Los Angeles","90018","Rosa Parks Villas, LP","WEDC"]
[null,null,null,null,null,null,null,null,null,null,null,null,null,null,null,null,null,null,null,null,null,null,null,null,null,null,null,null,null,null,null,null,null,null,null,null,null,null,null,null,null,null,null,null,{"$f":"CONCATENATE(AT1987,\"  \",AU1987)","v":"CA-2007-033  Roosevelt Family Apartments"},"CA-2007-033","Roosevelt Family Apartments","750 Grande Street","Nipomo","San Luis Obispo","93444","750 Grande Associates, a California LP","Central Valley Coalition for Affordable Housing"]
[null,null,null,null,null,null,null,null,null,null,null,null,null,null,null,null,null,null,null,null,null,null,null,null,null,null,null,null,null,null,null,null,null,null,null,null,null,null,null,null,null,null,null,null,"CA-2007-083  Monterey Street Apartments","CA-2007-083","Monterey Street Apartments","1333 Monterey Street","Soledad","Monterey","93960","Monterey Affordable Housing, L.P.","Housing Authority Limited Liability Company"]
[null,null,null,null,null,null,null,null,null,null,null,null,null,null,null,null,null,null,null,null,null,null,null,null,null,null,null,null,null,null,null,null,null,null,null,null,null,null,null,null,null,null,null,null,"CA-2007-111  Rittenhouse Square","CA-2007-111","Rittenhouse Square","1100 E. 33rd St","Los Angeles","Los Angeles","90011","Rittenhouse Limited Partnership","Housing Corporation of America"]
[null,null,null,null,null,null,null,null,null,null,null,null,null,null,null,null,null,null,null,null,null,null,null,null,null,null,null,null,null,null,null,null,null,null,null,null,null,null,null,null,null,null,null,null,"CA-2007-127  Monterey Family Village","CA-2007-127","Monterey Family Village","2774 Monterey Highway","San Jose","Santa Clara","95111","Monterey Family Apartments, a CA LP","Central Valley Coalition for Affordable Housing"]
[null,null,null,null,null,null,null,null,null,null,null,null,null,null,null,null,null,null,null,null,null,null,null,null,null,null,null,null,null,null,null,null,null,null,null,null,null,null,null,null,null,null,null,null,"CA-2007-175  Summer Terrace","CA-2007-175","Summer Terrace","38530 Tierra Subida Avenue","Palmdale","Los Angeles","93551","Palmdale Senior Housing Partners, L.P.","Southern California Housing Development Corporatio"]
[null,null,null,null,null,null,null,null,null,null,null,null,null,null,null,null,null,null,null,null,null,null,null,null,null,null,null,null,null,null,null,null,null,null,null,null,null,null,null,null,null,null,null,null,"CA-2007-181  Rosewood Gardens Apartments","CA-2007-181","Rosewood Gardens Apartments","504 North Berendo Street","Los Angeles","Los Angeles","90004","Rosewood Gardens Apartments, L.P.","Los Angeles Housing Partnership, Inc."]
[null,null,null,null,null,null,null,null,null,null,null,null,null,null,null,null,null,null,null,null,null,null,null,null,null,null,null,null,null,null,null,null,null,null,null,null,null,null,null,null,null,null,null,null,"CA-2007-197  Rosamond Gateway Village Apartments","CA-2007-197","Rosamond Gateway Village Apartments","1332 Rosamond Blvd.","Rosamond","Kern","93560","1264 W. Rosamond Blvd., L.P.","Corporation for Better Housing"]
[null,null,null,null,null,null,null,null,null,null,null,null,null,null,null,null,null,null,null,null,null,null,null,null,null,null,null,null,null,null,null,null,null,null,null,null,null,null,null,null,null,null,null,null,"CA-2007-812  Cape Cod Senior Villas","CA-2007-812","Cape Cod Senior Villas","1710 Maxson Street","Oceanside","San Diego","92054","Oceanside Senior Housing Partners, L.P.","Southern California Housing Development Corporatio"]
[null,null,null,null,null,null,null,null,null,null,null,null,null,null,null,null,null,null,null,null,null,null,null,null,null,null,null,null,null,null,null,null,null,null,null,null,null,null,null,null,null,null,null,null,"CA-2007-820  Vida Nueva","CA-2007-820","Vida Nueva","705 Rohnert Park Expressway West","Rohnert Park","Sonoma","94928","Vida Nueva Partners, L.P.","Burbank Housing Development Corporation"]
[null,null,null,null,null,null,null,null,null,null,null,null,null,null,null,null,null,null,null,null,null,null,null,null,null,null,null,null,null,null,null,null,null,null,null,null,null,null,null,null,null,null,null,null,"CA-2007-834  Oak Park Senior Villas","CA-2007-834","Oak Park Senior Villas","2597 S. Richelle Avenue","Fresno","Fresno","93725","OPS Villas, L.P., a CA LP","Central Valley Coalition for Affordable Housing"]
[null,null,null,null,null,null,null,null,null,null,null,null,null,null,null,null,null,null,null,null,null,null,null,null,null,null,null,null,null,null,null,null,null,null,null,null,null,null,null,null,null,null,null,null,"CA-2007-850  Yosemite Manor","CA-2007-850","Yosemite Manor","108 P Street","Madera","Madera","93637","MORES Yosemite Manor, L.P.","MORES Yosemite Manor, L.P."]
[null,null,null,null,null,null,null,null,null,null,null,null,null,null,null,null,null,null,null,null,null,null,null,null,null,null,null,null,null,null,null,null,null,null,null,null,null,null,null,null,null,null,null,null,"CA-2007-858  Windsor Park Apartments","CA-2007-858","Windsor Park Apartments","1531 & 1611 Adalaide & 1601-21 Pine Street","Concord","Contra Costa","94520","Windsor Concord, L.P., a California L.P.","Windsor Concord MGP LLC"]
[null,null,null,null,null,null,null,null,null,null,null,null,null,null,null,null,null,null,null,null,null,null,null,null,null,null,null,null,null,null,null,null,null,null,null,null,null,null,null,null,null,null,null,null,"CA-2007-870  Huron Plaza","CA-2007-870","Huron Plaza","16525 South 11th Street","Huron","Fresno","93234","APD CA HUD 2007, L.P.","Community Revitalization Development Corporation"]
[null,null,null,null,null,null,null,null,null,null,null,null,null,null,null,null,null,null,null,null,null,null,null,null,null,null,null,null,null,null,null,null,null,null,null,null,null,null,null,null,null,null,null,null,"CA-2007-873  Villa Esperanza","CA-2007-873","Villa Esperanza","651 E. Bonita Place","Calipatria","Imperial","92233","Calipatria Family Apts., L.P.","Pacific Southwest Community Development Corporatio"]
[null,null,null,null,null,null,null,null,null,null,null,null,null,null,null,null,null,null,null,null,null,null,null,null,null,null,null,null,null,null,null,null,null,null,null,null,null,null,null,null,null,null,null,null,"CA-2007-881  Benito Street Affordable Housing Community","CA-2007-881","Benito Street Affordable Housing Community","439 Benito Street","Soledad","Monterey","93960","Benito Street Affordable Housing, L.P.","Monterey County Housing Authority Development Corp"]
[null,null,null,null,null,null,null,null,null,null,null,null,null,null,null,null,null,null,null,null,null,null,null,null,null,null,null,null,null,null,null,null,null,null,null,null,null,null,null,null,null,null,null,null,"CA-2007-894  Oxford Terrace Apartments","CA-2007-894","Oxford Terrace Apartments","555 Oxford Street","Chula Vista","San Diego","91911","Oxford Terrace Partners, LP","ANAHEIM GARDENS CO"]
[null,null,null,null,null,null,null,null,null,null,null,null,null,null,null,null,null,null,null,null,null,null,null,null,null,null,null,null,null,null,null,null,null,null,null,null,null,null,null,null,null,null,null,null,"CA-2007-902  Boulevard Apartments","CA-2007-902","Boulevard Apartments","3137 El Cajon Blvd","San Diego","San Diego","92104","3137 El Cajon Boulevard, L.P.","S.V.D.P. Management, Inc."]
[null,null,null,null,null,null,null,null,null,null,null,null,null,null,null,null,null,null,null,null,null,null,null,null,null,null,null,null,null,null,null,null,null,null,null,null,null,null,null,null,null,null,null,null,"CA-2007-915  Almaden 1930 Apartments","CA-2007-915","Almaden 1930 Apartments","1930 Almaden Road","San Jose","Santa Clara","95125","Almaden 1930, L.P.","Almaden 1930 MGP LLC"]
[null,null,null,null,null,null,null,null,null,null,null,null,null,null,null,null,null,null,null,null,null,null,null,null,null,null,null,null,null,null,null,null,null,null,null,null,null,null,null,null,null,null,null,null,"CA-2008-045  El Pedregal Apartments","CA-2008-045","El Pedregal Apartments","104 Averil Road","San Ysidro","San Diego","92173","SYEP Associates, a CA LP","Las Palmas Foundation"]
[null,null,null,null,null,null,null,null,null,null,null,null,null,null,null,null,null,null,null,null,null,null,null,null,null,null,null,null,null,null,null,null,null,null,null,null,null,null,null,null,null,null,null,null,"CA-2008-059  The Arbors","CA-2008-059","The Arbors","5127 - 5331 Creely Avenue","Richmond","Contra Costa","94804","Arbors Preservation, L.P.","RCD Housing LLC"]
[null,null,null,null,null,null,null,null,null,null,null,null,null,null,null,null,null,null,null,null,null,null,null,null,null,null,null,null,null,null,null,null,null,null,null,null,null,null,null,null,null,null,null,null,"CA-2008-100  Vineyard Green Townhomes","CA-2008-100","Vineyard Green Townhomes","130 13th Street","Greenfield","Monterey","93927","Vineyard Green Townhomes, L.P.","CHISPA Vineyard GP, LLC"]
[null,null,null,null,null,null,null,null,null,null,null,null,null,null,null,null,null,null,null,null,null,null,null,null,null,null,null,null,null,null,null,null,null,null,null,null,null,null,null,null,null,null,null,null,"CA-2008-177  Kearney Palms, Phase II","CA-2008-177","Kearney Palms, Phase II","14606 W. Kearney Blvd.","Kerman","Fresno","93630","WP Kearney Palms Senior Apartments Phase II, L.P.","Better Opportunities Builder, Inc."]
[null,null,null,null,null,null,null,null,null,null,null,null,null,null,null,null,null,null,null,null,null,null,null,null,null,null,null,null,null,null,null,null,null,null,null,null,null,null,null,null,null,null,null,null,"CA-2008-183  Di Giorgio Family Apartments FWHAP CA-2008-002","CA-2008-183","Di Giorgio Family Apartments FWHAP CA-2008-002","7000 Di Giorgio Road","Lamont","Kern","93241","7250 Di Giorgio Rd., L.P.","Corporation for Better Housing"]
[null,null,null,null,null,null,null,null,null,null,null,null,null,null,null,null,null,null,null,null,null,null,null,null,null,null,null,null,null,null,null,null,null,null,null,null,null,null,null,null,null,null,null,null,"CA-2008-812  Mason Street Housing","CA-2008-812","Mason Street Housing","149 Mason Street","San Francisco","San Francisco","94102","Mason Street Housing Associates, L.P.","Mason Street Housing, LLC"]
[null,null,null,null,null,null,null,null,null,null,null,null,null,null,null,null,null,null,null,null,null,null,null,null,null,null,null,null,null,null,null,null,null,null,null,null,null,null,null,null,null,null,null,null,"CA-2008-820  Rowan Court","CA-2008-820","Rowan Court","2051 W. Steele Lane","Santa Rosa","Sonoma","95403","Rowan Court Partners, L.P.","Rowan Ct., LLC"]
[null,null,null,null,null,null,null,null,null,null,null,null,null,null,null,null,null,null,null,null,null,null,null,null,null,null,null,null,null,null,null,null,null,null,null,null,null,null,null,null,null,null,null,null,"CA-2008-835  Alexandria House Apartments","CA-2008-835","Alexandria House Apartments","510 S. Alexandria Ave.","Los Angeles","Los Angeles","90020","Alexandria House Apartments, LP","Alexandria House Apartments, LLC"]
[null,null,null,null,null,null,null,null,null,null,null,null,null,null,null,null,null,null,null,null,null,null,null,null,null,null,null,null,null,null,null,null,null,null,null,null,null,null,null,null,null,null,null,null,"CA-2008-853  Mission Village Senior Apartments","CA-2008-853","Mission Village Senior Apartments","8989 Mission Blvd.","Riverside","Riverside","92509","Mission Village Senior Housing Partners, L.P.","Southern California Housing Development Corporatio"]
[null,null,null,null,null,null,null,null,null,null,null,null,null,null,null,null,null,null,null,null,null,null,null,null,null,null,null,null,null,null,null,null,null,null,null,null,null,null,null,null,null,null,null,null,"CA-2008-865  Sunset Street Apartments","CA-2008-865","Sunset Street Apartments","3655 Sunset Blvd.","Rocklin","Placer","95677","Sunset Street Housing Partners, L.P.","Community Revitalization Development Corporation"]
[null,null,null,null,null,null,null,null,null,null,null,null,null,null,null,null,null,null,null,null,null,null,null,null,null,null,null,null,null,null,null,null,null,null,null,null,null,null,null,null,null,null,null,null,"CA-2008-885  Niland Apartments see 89-048","CA-2008-885","Niland Apartments see 89-048","17 West 4th Street","Niland","Imperial","92257","APD CA RD 2008, LP","Community Revitalization Development Corporation"]
[null,null,null,null,null,null,null,null,null,null,null,null,null,null,null,null,null,null,null,null,null,null,null,null,null,null,null,null,null,null,null,null,null,null,null,null,null,null,null,null,null,null,null,null,"CA-2008-896  Cherrylee Gardens","CA-2008-896","Cherrylee Gardens","11620 Cherrylee Dr.","El Monte","Los Angeles","91732","Cherrylee Gardens KBS, L.P.","Housing Corporation of America"]
[null,null,null,null,null,null,null,null,null,null,null,null,null,null,null,null,null,null,null,null,null,null,null,null,null,null,null,null,null,null,null,null,null,null,null,null,null,null,null,null,null,null,null,null,"CA-2008-899  Arrow Plaza","CA-2008-899","Arrow Plaza","20644 E. Arrow Highway","Covina","Los Angeles","91724","Arrow Plaza KBS, L.P.","Housing Corporation of America"]
[null,null,null,null,null,null,null,null,null,null,null,null,null,null,null,null,null,null,null,null,null,null,null,null,null,null,null,null,null,null,null,null,null,null,null,null,null,null,null,null,null,null,null,null,"CA-2008-923  Columbus Square Apts.","CA-2008-923","Columbus Square Apts.","8557, 8561, 8565,8601, 8605,8609, 8613 Columbus Avenue","North Hills","Los Angeles","91343","Columbus Preservation Limited Partnership","Jamboree Housing Corporation"]
[null,null,null,null,null,null,null,null,null,null,null,null,null,null,null,null,null,null,null,null,null,null,null,null,null,null,null,null,null,null,null,null,null,null,null,null,null,null,null,null,null,null,null,null,"CA-2008-947  Ashland Village Apartments","CA-2008-947","Ashland Village Apartments","1300 Kentwood Lane","San Leandro","Alameda","94578","Ashland Village Apartments, L.P.","Eden Investments Inc"]
[null,null,null,null,null,null,null,null,null,null,null,null,null,null,null,null,null,null,null,null,null,null,null,null,null,null,null,null,null,null,null,null,null,null,null,null,null,null,null,null,null,null,null,null,"CA-2009-020  Ford Apartments","CA-2009-020","Ford Apartments","1000-1002 E 7th Street","Los Angeles","Los Angeles","90021","Ford Apartments, L.P.","Single Room Occupancy Coroporation"]
[null,null,null,null,null,null,null,null,null,null,null,null,null,null,null,null,null,null,null,null,null,null,null,null,null,null,null,null,null,null,null,null,null,null,null,null,null,null,null,null,null,null,null,null,"CA-2009-073  Varenna Senior Apartments","CA-2009-073","Varenna Senior Apartments","2351 Wyda Way","Sacramento","Sacramento","95825","Varenna Sacramento L.P.","Pacific Housing Inc."]
[null,null,null,null,null,null,null,null,null,null,null,null,null,null,null,null,null,null,null,null,null,null,null,null,null,null,null,null,null,null,null,null,null,null,null,null,null,null,null,null,null,null,null,null,{"$f":"CONCATENATE(AT2307,\"  \",AU2307)","v":"CA-2009-142  Royale Apartments"},"CA-2009-142","Royale Apartments","280 Hospital Circle","Westminster","Orange","92683","AMCAL Royale Fund, L.P.","Foundation for Affordable Housing, V, Inc"]
[null,null,null,null,null,null,null,null,null,null,null,null,null,null,null,null,null,null,null,null,null,null,null,null,null,null,null,null,null,null,null,null,null,null,null,null,null,null,null,null,null,null,null,null,"CA-2009-179  Los Banos II Family Apartments","CA-2009-179","Los Banos II Family Apartments","2125 Gilbert Gonzalez Jr. Drive","Los Banos","Merced","93635","Ward Road Apartments II, L.P.","Corporation for Better Housing"]
[null,null,null,null,null,null,null,null,null,null,null,null,null,null,null,null,null,null,null,null,null,null,null,null,null,null,null,null,null,null,null,null,null,null,null,null,null,null,null,null,null,null,null,null,"CA-2009-205  Cuatro Vientos","CA-2009-205","Cuatro Vientos","5331 Huntington Drive North","Los Angeles","Los Angeles","90032","Los Cuatro Vientos, L.P.","East LA Community Corporation"]
[null,null,null,null,null,null,null,null,null,null,null,null,null,null,null,null,null,null,null,null,null,null,null,null,null,null,null,null,null,null,null,null,null,null,null,null,null,null,null,null,null,null,null,null,"CA-2009-209  Oak Forest Senior Villas","CA-2009-209","Oak Forest Senior Villas","81 Carol Lane","Oakley","Contra Costa","94561","71 Carol Lane, L.P., a CA LP","Corporation for Better Housing"]
[null,null,null,null,null,null,null,null,null,null,null,null,null,null,null,null,null,null,null,null,null,null,null,null,null,null,null,null,null,null,null,null,null,null,null,null,null,null,null,null,null,null,null,null,"CA-2009-503  Turk-Eddy Preservation Project","CA-2009-503","Turk-Eddy Preservation Project","165 Turk Street & 249 Eddy Street","San Francisco","San Francisco","94102","Turk & Eddy Associates, L.P.","Turk & Eddy GP LLC"]
[null,null,null,null,null,null,null,null,null,null,null,null,null,null,null,null,null,null,null,null,null,null,null,null,null,null,null,null,null,null,null,null,null,null,null,null,null,null,null,null,null,null,null,null,"CA-2009-510  El Centro Senior Villas II","CA-2009-510","El Centro Senior Villas II","579-581 Park Ave","El Centro","Imperial","92243","El Centro Senior Villas II, LP","LINC Housing Corporation"]
[null,null,null,null,null,null,null,null,null,null,null,null,null,null,null,null,null,null,null,null,null,null,null,null,null,null,null,null,null,null,null,null,null,null,null,null,null,null,null,null,null,null,null,null,"CA-2009-522  Nina Place Apartments","CA-2009-522","Nina Place Apartments","1816 Lotus Lane","Bakersfield","Kern","93307","Nina Place Apartment Investors, L.P.","Community Revitilization and Development Corporati"]
[null,null,null,null,null,null,null,null,null,null,null,null,null,null,null,null,null,null,null,null,null,null,null,null,null,null,null,null,null,null,null,null,null,null,null,null,null,null,null,null,null,null,null,null,"CA-2009-529  Santa Fe Apartments","CA-2009-529","Santa Fe Apartments","701 Union Avenue","Bakersfield","Kern","93307","AMCAL Santa Fe Fund, L.P.","Las Palmas Foundation"]
[null,null,null,null,null,null,null,null,null,null,null,null,null,null,null,null,null,null,null,null,null,null,null,null,null,null,null,null,null,null,null,null,null,null,null,null,null,null,null,null,null,null,null,null,"CA-2009-546  Bonterra Apartments Homes","CA-2009-546","Bonterra Apartments Homes","551 Discovery Laneand Valencia Ave.","Brea","Orange","92821","Tonner Hills Housing Partners, LP","JHC- Tonner Hills, LLC"]
[null,null,null,null,null,null,null,null,null,null,null,null,null,null,null,null,null,null,null,null,null,null,null,null,null,null,null,null,null,null,null,null,null,null,null,null,null,null,null,null,null,null,null,null,"CA-2009-563  Fairmount Apartments","CA-2009-563","Fairmount Apartments","401 Fairmount Avenue","Oakland","Alameda","94611","401 Fairmount, L.P.","Satellite AHA Development Inc."]
[null,null,null,null,null,null,null,null,null,null,null,null,null,null,null,null,null,null,null,null,null,null,null,null,null,null,null,null,null,null,null,null,null,null,null,null,null,null,null,null,null,null,null,null,"CA-2009-575  Jose's Place Apartments","CA-2009-575","Jose's Place Apartments","154 North Arroyo Seco","Ione","Amador","95640","Ione Jose's Place, a CA LP","Central Valley Coalition for Affordable Housing"]
[null,null,null,null,null,null,null,null,null,null,null,null,null,null,null,null,null,null,null,null,null,null,null,null,null,null,null,null,null,null,null,null,null,null,null,null,null,null,null,null,null,null,null,null,"CA-2009-579  Desert Oak Apartments","CA-2009-579","Desert Oak Apartments","2870 Oak Creek Road","Mojave","Kern","93501","Kern 2008 Community Partners LP","Hammond Family General Partnership"]
[null,null,null,null,null,null,null,null,null,null,null,null,null,null,null,null,null,null,null,null,null,null,null,null,null,null,null,null,null,null,null,null,null,null,null,null,null,null,null,null,null,null,null,null,"CA-2009-595  Lindsay Apartments","CA-2009-595","Lindsay Apartments","470 E. Honolulu Street & 115 S. Locke Street","Lindsay","Tulare","93247","Honolulu Street Partners, LP","Community Revitalization Development Corporation"]
[null,null,null,null,null,null,null,null,null,null,null,null,null,null,null,null,null,null,null,null,null,null,null,null,null,null,null,null,null,null,null,null,null,null,null,null,null,null,null,null,null,null,null,null,"CA-2009-602  Vintage Plaza","CA-2009-602","Vintage Plaza","352 Malbec Court","Stockton","San Joaquin","95203","Vintage Plaza Partnership, LP","VISIONARY HOME BUILDERS OF CALIFORNIA, INC."]
[null,null,null,null,null,null,null,null,null,null,null,null,null,null,null,null,null,null,null,null,null,null,null,null,null,null,null,null,null,null,null,null,null,null,null,null,null,null,null,null,null,null,null,null,"CA-2009-809  Arroyo Grande Villas","CA-2009-809","Arroyo Grande Villas","1899 Finnell Road","Yountville","Napa","94599","Arroyo Grande Villas, L.P.","Napa Vallley Community Housing"]
[null,null,null,null,null,null,null,null,null,null,null,null,null,null,null,null,null,null,null,null,null,null,null,null,null,null,null,null,null,null,null,null,null,null,null,null,null,null,null,null,null,null,null,null,"CA-2009-839  Belovida at Newbury Park Senior Apartments","CA-2009-839","Belovida at Newbury Park Senior Apartments","1777 Newbury Park Drive","San Jose","Santa Clara","95133","Belovida at Newbury Park, L.P.","Cecilia Place Homes Inc"]
[null,null,null,null,null,null,null,null,null,null,null,null,null,null,null,null,null,null,null,null,null,null,null,null,null,null,null,null,null,null,null,null,null,null,null,null,null,null,null,null,null,null,null,null,"CA-2009-869  Ceres Way Apartments","CA-2009-869","Ceres Way Apartments","16424 Ceres Avenue","Fontana","San Bernardino","92335","Ceres Way, LP","JHC-Ceres Way, LLC"]
[null,null,null,null,null,null,null,null,null,null,null,null,null,null,null,null,null,null,null,null,null,null,null,null,null,null,null,null,null,null,null,null,null,null,null,null,null,null,null,null,null,null,null,null,"CA-2010-030  The Savoy fka Jefferson Oaks Apartments","CA-2010-030","The Savoy fka Jefferson Oaks Apartments","1424 Jefferson Street","Oakland","Alameda","94612","Jefferson Oaks, LP","Satellite AHA Development Inc."]
[null,null,null,null,null,null,null,null,null,null,null,null,null,null,null,null,null,null,null,null,null,null,null,null,null,null,null,null,null,null,null,null,null,null,null,null,null,null,null,null,null,null,null,null,"CA-2010-061  Sunrise Apartments","CA-2010-061","Sunrise Apartments","5125 Main Street","Los Angeles","Los Angeles","90037","AMCAL Sunrise Fund, L.P.","Las Palmas Foundation"]
[null,null,null,null,null,null,null,null,null,null,null,null,null,null,null,null,null,null,null,null,null,null,null,null,null,null,null,null,null,null,null,null,null,null,null,null,null,null,null,null,null,null,null,null,"CA-2010-064  Juanita Villas","CA-2010-064","Juanita Villas","335 North Juanita Avenue","Los Angeles","Los Angeles","90004","Juanita SRO Housing Partners, L.P","PATH Ventures"]
[null,null,null,null,null,null,null,null,null,null,null,null,null,null,null,null,null,null,null,null,null,null,null,null,null,null,null,null,null,null,null,null,null,null,null,null,null,null,null,null,null,null,null,null,"CA-2010-130  Aldea Village Community","CA-2010-130","Aldea Village Community","2003-2043 South Reservoir Street","Pomona","Los Angeles","91766","Pomona Community Partners, L.P.","AOF/Pacific Affordable Housing Corporation"]
[null,null,null,null,null,null,null,null,null,null,null,null,null,null,null,null,null,null,null,null,null,null,null,null,null,null,null,null,null,null,null,null,null,null,null,null,null,null,null,null,null,null,null,null,"CA-2010-147  Legacy","CA-2010-147","Legacy","72490 El Centro Way","Thousand Palms","Riverside","92276","Thousand Palms Apartments L.P.","WCH Affordable IV, LLC"]
[null,null,null,null,null,null,null,null,null,null,null,null,null,null,null,null,null,null,null,null,null,null,null,null,null,null,null,null,null,null,null,null,null,null,null,null,null,null,null,null,null,null,null,null,"CA-2010-201  Mom's Apartments","CA-2010-201","Mom's Apartments","421 & 425 E. Cota Street","Santa Barbara","Santa Barbara","93101","Mom's, L.P.","Transition House"]
[null,null,null,null,null,null,null,null,null,null,null,null,null,null,null,null,null,null,null,null,null,null,null,null,null,null,null,null,null,null,null,null,null,null,null,null,null,null,null,null,null,null,null,null,"CA-2010-227  Sherman Village Apartments","CA-2010-227","Sherman Village Apartments","7135 Wilbur Avenue","Reseda","Los Angeles","91335","Sherman Village Apartments, L.P.","WCH Affordable VII, LLC"]
[null,null,null,null,null,null,null,null,null,null,null,null,null,null,null,null,null,null,null,null,null,null,null,null,null,null,null,null,null,null,null,null,null,null,null,null,null,null,null,null,null,null,null,null,"CA-2010-256  Willis Avenue Apartments","CA-2010-256","Willis Avenue Apartments","14731 Rayen Street","Los Angeles","Los Angeles","91402","Willis Avenue Apartments, L.P.","A Community of Friends"]
[null,null,null,null,null,null,null,null,null,null,null,null,null,null,null,null,null,null,null,null,null,null,null,null,null,null,null,null,null,null,null,null,null,null,null,null,null,null,null,null,null,null,null,null,"CA-2010-508  Glenoaks Gardens","CA-2010-508","Glenoaks Gardens","8925 Glenoaks Blvd","Sun Valley","Los Angeles","91352","Glenoaks Gardens LP","LA FAMILY HOUSING CORP"]
[null,null,null,null,null,null,null,null,null,null,null,null,null,null,null,null,null,null,null,null,null,null,null,null,null,null,null,null,null,null,null,null,null,null,null,null,null,null,null,null,null,null,null,null,"CA-2010-515  Rodney Fernandez Gardens, Phase I","CA-2010-515","Rodney Fernandez Gardens, Phase I","210 W. Santa Barbara Street","Santa Paula","Ventura","93060","Plaza Amistad Associates, L.P.","Cabrillo Economic Development Corporation"]
[null,null,null,null,null,null,null,null,null,null,null,null,null,null,null,null,null,null,null,null,null,null,null,null,null,null,null,null,null,null,null,null,null,null,null,null,null,null,null,null,null,null,null,null,"CA-2010-518  Toberman Village","CA-2010-518","Toberman Village","142 W. Santa Cruz Street","San Pedro","Los Angeles","90731","Vista Alegre, L.P.","New Economics for Women"]
[null,null,null,null,null,null,null,null,null,null,null,null,null,null,null,null,null,null,null,null,null,null,null,null,null,null,null,null,null,null,null,null,null,null,null,null,null,null,null,null,null,null,null,null,"CA-2010-811  Wright Brothers Court","CA-2010-811","Wright Brothers Court","38832 4th Street East","Palmdale","Los Angeles","93550","Palmdale TOD Apartments, LP","Better Housing Solutions, Inc."]
[null,null,null,null,null,null,null,null,null,null,null,null,null,null,null,null,null,null,null,null,null,null,null,null,null,null,null,null,null,null,null,null,null,null,null,null,null,null,null,null,null,null,null,null,"CA-2010-814  Cottonwood Place","CA-2010-814","Cottonwood Place","3701 Peralta Blvd","Fremont","Alameda","94536","Peralta Seniors, L.P.","Eden Development Inc"]
[null,null,null,null,null,null,null,null,null,null,null,null,null,null,null,null,null,null,null,null,null,null,null,null,null,null,null,null,null,null,null,null,null,null,null,null,null,null,null,null,null,null,null,null,"CA-2010-827  Village II","CA-2010-827","Village II","506 Civic Center Blvd","Suisun","Solano","94585","Village II Suisun LP","Solano Affordable Housing Foundation"]
[null,null,null,null,null,null,null,null,null,null,null,null,null,null,null,null,null,null,null,null,null,null,null,null,null,null,null,null,null,null,null,null,null,null,null,null,null,null,null,null,null,null,null,null,"CA-2010-834  Bellwood Park Apartments","CA-2010-834","Bellwood Park Apartments","385 Bell Ave.","Sacramento","Sacramento","95838","Bellwood Jerron Apartments, LP","Rainbow Housing Assistance Corporation"]
[null,null,null,null,null,null,null,null,null,null,null,null,null,null,null,null,null,null,null,null,null,null,null,null,null,null,null,null,null,null,null,null,null,null,null,null,null,null,null,null,null,null,null,null,"CA-2010-850  Mayfair Court Apartments","CA-2010-850","Mayfair Court Apartments","65 McCreery Avenue","San Jose","Santa Clara","95116","San Jose Pacific Associates, LP","CVCAH Mayfair LLC"]
[null,null,null,null,null,null,null,null,null,null,null,null,null,null,null,null,null,null,null,null,null,null,null,null,null,null,null,null,null,null,null,null,null,null,null,null,null,null,null,null,null,null,null,null,"CA-2011-019  Caroline Severance Manor","CA-2011-019","Caroline Severance Manor","1914 W. 28th St. / 2927 Francis Ave.","Los Angeles","Los Angeles","90005","Mercy Housing California XLIII, LP","Caroline Severance, LLC"]
[null,null,null,null,null,null,null,null,null,null,null,null,null,null,null,null,null,null,null,null,null,null,null,null,null,null,null,null,null,null,null,null,null,null,null,null,null,null,null,null,null,null,null,null,"CA-2011-035  Connections Housing","CA-2011-035","Connections Housing","1250 Sixth Avenue","San Diego","San Diego","92101","Connections Housing Downtown, L.P.","Affirmed Housing Group"]
[null,null,null,null,null,null,null,null,null,null,null,null,null,null,null,null,null,null,null,null,null,null,null,null,null,null,null,null,null,null,null,null,null,null,null,null,null,null,null,null,null,null,null,null,"CA-2011-039  Pleasant Valley & Wien Manor Apartments","CA-2011-039","Pleasant Valley & Wien Manor Apartments","1017 East Dome Street and 505 South Corcoran Ave","Avenal","Kings","93204","HPD Pleasant-Wien LP","National Housing Corporation"]
[null,null,null,null,null,null,null,null,null,null,null,null,null,null,null,null,null,null,null,null,null,null,null,null,null,null,null,null,null,null,null,null,null,null,null,null,null,null,null,null,null,null,null,null,"CA-2011-076  Palo Alto Family Housing","CA-2011-076","Palo Alto Family Housing","801 Alma Street","Palo Alto","Santa Clara","94301","Palo Alto Family, L.P.","Eden Investments Inc"]
[null,null,null,null,null,null,null,null,null,null,null,null,null,null,null,null,null,null,null,null,null,null,null,null,null,null,null,null,null,null,null,null,null,null,null,null,null,null,null,null,null,null,null,null,"CA-2011-081  Arborpoint Apartments","CA-2011-081","Arborpoint Apartments","300 W. Clark Street","Madera","Madera","93638","Madera Pacific Associates, a CA LP","Madera Opportunities for Resident Enrichment & Ser"]
[null,null,null,null,null,null,null,null,null,null,null,null,null,null,null,null,null,null,null,null,null,null,null,null,null,null,null,null,null,null,null,null,null,null,null,null,null,null,null,null,null,null,null,null,"CA-2011-103  Star Apartments","CA-2011-103","Star Apartments","240 E. 6th Street","Los Angeles","Los Angeles","90014","Star Apartments, L.P.","Star Apartments, LLC"]
[null,null,null,null,null,null,null,null,null,null,null,null,null,null,null,null,null,null,null,null,null,null,null,null,null,null,null,null,null,null,null,null,null,null,null,null,null,null,null,null,null,null,null,null,"CA-2011-113  The Residences at West Columbus","CA-2011-113","The Residences at West Columbus","500 West Columbus Street","Bakersfield","Kern","93301","Columbus Haven LP","Golden Empire Affordable Housing, Inc. II"]
[null,null,null,null,null,null,null,null,null,null,null,null,null,null,null,null,null,null,null,null,null,null,null,null,null,null,null,null,null,null,null,null,null,null,null,null,null,null,null,null,null,null,null,null,"CA-2011-132  Riverbank Senior Apartments","CA-2011-132","Riverbank Senior Apartments","3101 Orange Avenue","Riverbank","Stanislaus","95367","Riverbank Senior Associates, a CA LP","Central Valley Coalition for Affordable Housing"]
[null,null,null,null,null,null,null,null,null,null,null,null,null,null,null,null,null,null,null,null,null,null,null,null,null,null,null,null,null,null,null,null,null,null,null,null,null,null,null,null,null,null,null,null,"CA-2011-141  The Grove at Sunset Court Apartments","CA-2011-141","The Grove at Sunset Court Apartments","55 Havenwood Avenue","Brentwood","Contra Costa","94513","Grove Sunset, LP, A California Limited Partnership","WCH Affordable VII, LLC"]
[null,null,null,null,null,null,null,null,null,null,null,null,null,null,null,null,null,null,null,null,null,null,null,null,null,null,null,null,null,null,null,null,null,null,null,null,null,null,null,null,null,null,null,null,"CA-2011-158  Avocado Court (fka El Norte Apartments)","CA-2011-158","Avocado Court (fka El Norte Apartments)","215 E. El Norte Parkway","Escondido","San Diego","92026","El Norte Housing Associates, L.P.","El Norte Housing Opportunities LLC"]
[null,null,null,null,null,null,null,null,null,null,null,null,null,null,null,null,null,null,null,null,null,null,null,null,null,null,null,null,null,null,null,null,null,null,null,null,null,null,null,null,null,null,null,null,"CA-2011-162  Santa Rita Village","CA-2011-162","Santa Rita Village","916-926 West Apricot Avenue","Lompoc","Santa Barbara","93436-6527","Santa Rita Village, L.P.","Surf Development Company"]
[null,null,null,null,null,null,null,null,null,null,null,null,null,null,null,null,null,null,null,null,null,null,null,null,null,null,null,null,null,null,null,null,null,null,null,null,null,null,null,null,null,null,null,null,"CA-2011-810  Silsby Gardens Apartments","CA-2011-810","Silsby Gardens Apartments","200 N. 9th Street","Blythe","Riverside","92225","HPD Silsby Gardens L.P.","National Housing Corporation"]
[null,null,null,null,null,null,null,null,null,null,null,null,null,null,null,null,null,null,null,null,null,null,null,null,null,null,null,null,null,null,null,null,null,null,null,null,null,null,null,null,null,null,null,null,"CA-2011-813  Pioneer Towers","CA-2011-813","Pioneer Towers","515 P Street","Sacramento","Sacramento","95814","Pioneer Towers RHF Housing Partners, LP","Pioneer Towers"]
[null,null,null,null,null,null,null,null,null,null,null,null,null,null,null,null,null,null,null,null,null,null,null,null,null,null,null,null,null,null,null,null,null,null,null,null,null,null,null,null,null,null,null,null,"CA-2011-826  Dunbar Village","CA-2011-826","Dunbar Village","4225 South Central Avenue","Los Angeles","Los Angeles","90011","Dunbar Village Limited Partnership","Coalition for Responsible Community Development"]
[null,null,null,null,null,null,null,null,null,null,null,null,null,null,null,null,null,null,null,null,null,null,null,null,null,null,null,null,null,null,null,null,null,null,null,null,null,null,null,null,null,null,null,null,"CA-2011-834  High Place West","CA-2011-834","High Place West","2345 Virginia Avenue","Santa Monica","Los Angeles","90404","High Place West, L.P.","Community Corporation of Santa Monica"]
[null,null,null,null,null,null,null,null,null,null,null,null,null,null,null,null,null,null,null,null,null,null,null,null,null,null,null,null,null,null,null,null,null,null,null,null,null,null,null,null,null,null,null,null,"CA-2011-852  Terramar Apartments","CA-2011-852","Terramar Apartments","13481-13482 Silver Ivy Lane","San Diego","San Diego","92129","Terramar CIC, LP","Pacific Southwest Community Development Corporatio"]
[null,null,null,null,null,null,null,null,null,null,null,null,null,null,null,null,null,null,null,null,null,null,null,null,null,null,null,null,null,null,null,null,null,null,null,null,null,null,null,null,null,null,null,null,"CA-2011-860  Valley Commons East","CA-2011-860","Valley Commons East","295 Joerschke Road","Grass Valley","Nevada","95945","Star-VC East Limited Partnership, a CA LP","WHA-VC G/P, LLC"]
[null,null,null,null,null,null,null,null,null,null,null,null,null,null,null,null,null,null,null,null,null,null,null,null,null,null,null,null,null,null,null,null,null,null,null,null,null,null,null,null,null,null,null,null,"CA-2011-873  Taylor Oaks Apartments","CA-2011-873","Taylor Oaks Apartments","2726 & 2738 Kollmar Dr.","San Jose","Santa Clara","95127","Taylor Oaks Apartments Investors, L.P., a CA LP","Pacific Housing Inc."]
[null,null,null,null,null,null,null,null,null,null,null,null,null,null,null,null,null,null,null,null,null,null,null,null,null,null,null,null,null,null,null,null,null,null,null,null,null,null,null,null,null,null,null,null,"CA-2011-877  Hudson Townhouse Manor","CA-2011-877","Hudson Townhouse Manor","3421 Hudson Court","Antioch","Contra Costa","94509","Hudson Manor Housing Partners, L.P.","Pacific Housing, Inc."]
[null,null,null,null,null,null,null,null,null,null,null,null,null,null,null,null,null,null,null,null,null,null,null,null,null,null,null,null,null,null,null,null,null,null,null,null,null,null,null,null,null,null,null,null,"CA-2011-896  Key Largo Apartments","CA-2011-896","Key Largo Apartments","380 N. Mollison Avenue","El Cajon","San Diego","92021","HPD Key Largo L.P.","National Housing Corporation"]
[null,null,null,null,null,null,null,null,null,null,null,null,null,null,null,null,null,null,null,null,null,null,null,null,null,null,null,null,null,null,null,null,null,null,null,null,null,null,null,null,null,null,null,null,"CA-2011-899  The Huxley","CA-2011-899","The Huxley","1234 N. La Brea Ave.","West Hollywood","Los Angeles","90038","La Brea Affordable Partners, L.P.","Essex Monarch GP I, LLC"]
[null,null,null,null,null,null,null,null,null,null,null,null,null,null,null,null,null,null,null,null,null,null,null,null,null,null,null,null,null,null,null,null,null,null,null,null,null,null,null,null,null,null,null,null,"CA-2011-916  Palmdalia","CA-2011-916","Palmdalia","38028 11th Street E.","Palmdale","Los Angeles","93550","Palmdalia Family Apartments, L.P.","PH Canyon Crest Holdings, LLC"]
[null,null,null,null,null,null,null,null,null,null,null,null,null,null,null,null,null,null,null,null,null,null,null,null,null,null,null,null,null,null,null,null,null,null,null,null,null,null,null,null,null,null,null,null,"CA-2011-920  Natoma Family Apartments","CA-2011-920","Natoma Family Apartments","474 Natoma Street","San Francisco","San Francisco","94103","Natoma Family Housing, L.P.","474 Natoma LLC"]
[null,null,null,null,null,null,null,null,null,null,null,null,null,null,null,null,null,null,null,null,null,null,null,null,null,null,null,null,null,null,null,null,null,null,null,null,null,null,null,null,null,null,null,null,"CA-2011-933  McCarty Manor Apartments","CA-2011-933","McCarty Manor Apartments","741 Waugh Lane","Ukiah","Mendocino","95482","McCarty Manor Associates, LP","Pine Gardens I, Inc"]
[null,null,null,null,null,null,null,null,null,null,null,null,null,null,null,null,null,null,null,null,null,null,null,null,null,null,null,null,null,null,null,null,null,null,null,null,null,null,null,null,null,null,null,null,"CA-2012-007  Avon Dakota Phase I","CA-2012-007","Avon Dakota Phase I","808, 814, 815 833 S. Dakota Street","Anaheim","Orange","92805","Avon Dakota Housing Partners, L.P.","Avon Dakota Housing Partners, MGP, LLC"]
[null,null,null,null,null,null,null,null,null,null,null,null,null,null,null,null,null,null,null,null,null,null,null,null,null,null,null,null,null,null,null,null,null,null,null,null,null,null,null,null,null,null,null,null,"CA-2012-032  Jack Capon Villa","CA-2012-032","Jack Capon Villa","2216 Lincoln Ave","Alameda","Alameda","94501","Jack Capon Villa LP","2216 Lincoln AHA, LLC"]
[null,null,null,null,null,null,null,null,null,null,null,null,null,null,null,null,null,null,null,null,null,null,null,null,null,null,null,null,null,null,null,null,null,null,null,null,null,null,null,null,null,null,null,null,"CA-2012-041  Twin Oaks Apartments","CA-2012-041","Twin Oaks Apartments","2390 Nut Tree Road","Vacaville","Solano","95687","HPD Twin Oaks L.P., a CA LP","NHC MGP I LLC"]
[null,null,null,null,null,null,null,null,null,null,null,null,null,null,null,null,null,null,null,null,null,null,null,null,null,null,null,null,null,null,null,null,null,null,null,null,null,null,null,null,null,null,null,null,"CA-2012-067  Lugo Senior Apartments","CA-2012-067","Lugo Senior Apartments","181 E. 9th Street","San Bernardino","San Bernardino","92410","Lugo Senior Apartments, L.P.","WCH Affordable II, LLC"]
[null,null,null,null,null,null,null,null,null,null,null,null,null,null,null,null,null,null,null,null,null,null,null,null,null,null,null,null,null,null,null,null,null,null,null,null,null,null,null,null,null,null,null,null,"CA-2012-072  Terracina Apartments","CA-2012-072","Terracina Apartments","1226 W. Imperial Hwy","Los Angeles","Los Angeles","90024","AMCAL Terracina Fund, L.P.","Woman Organizing Resources, Knowledge & Services"]
[null,null,null,null,null,null,null,null,null,null,null,null,null,null,null,null,null,null,null,null,null,null,null,null,null,null,null,null,null,null,null,null,null,null,null,null,null,null,null,null,null,null,null,null,"CA-2012-116  Casa de Esperanza","CA-2012-116","Casa de Esperanza","2260 S. Netherton Avenue","Stockton","San Joaquin","95205","Casa de Esperanza, L.P.","Casa de Esperanza, LLC"]
[null,null,null,null,null,null,null,null,null,null,null,null,null,null,null,null,null,null,null,null,null,null,null,null,null,null,null,null,null,null,null,null,null,null,null,null,null,null,null,null,null,null,null,null,"CA-2012-125  Knob Hill Apartments","CA-2012-125","Knob Hill Apartments","2403 W. Fourth Street","Los Angeles","Los Angeles","90057","AHCDC 6 LP","AHCDC 6 LP"]
[null,null,null,null,null,null,null,null,null,null,null,null,null,null,null,null,null,null,null,null,null,null,null,null,null,null,null,null,null,null,null,null,null,null,null,null,null,null,null,null,null,null,null,null,{"$f":"CONCATENATE(AT2883,\"  \",AU2883)","v":"CA-2012-168  Sequoia Villas"},"CA-2012-168","Sequoia Villas","269 Alameda Circle","Lindsay","Tulare","93247","Sequoia Villas Associates, a California LP","Kaweah Management Co."]
[null,null,null,null,null,null,null,null,null,null,null,null,null,null,null,null,null,null,null,null,null,null,null,null,null,null,null,null,null,null,null,null,null,null,null,null,null,null,null,null,null,null,null,null,"CA-2012-185  Bridges at Florence Apartments","CA-2012-185","Bridges at Florence Apartments","649 East Florence Avenue","Fresno","Fresno","93706","Bridges at Florence, LP","Silvercrest Inc."]
[null,null,null,null,null,null,null,null,null,null,null,null,null,null,null,null,null,null,null,null,null,null,null,null,null,null,null,null,null,null,null,null,null,null,null,null,null,null,null,null,null,null,null,null,"CA-2012-209  Sol Y Luna Apartments","CA-2012-209","Sol Y Luna Apartments","2917 E. 1st Street","Los Angeles","Los Angeles","90033","Sol Y Luna, L.P.","East LA Community Corporation"]
[null,null,null,null,null,null,null,null,null,null,null,null,null,null,null,null,null,null,null,null,null,null,null,null,null,null,null,null,null,null,null,null,null,null,null,null,null,null,null,null,null,null,null,null,"CA-2012-215  Norwalk Towers Apartments","CA-2012-215","Norwalk Towers Apartments","14141 Clarkdale Avenue","Norwalk","Los Angeles","90650","Norwalk Preservation Limited Partnership","Irving Housing Opportunities, Inc."]
[null,null,null,null,null,null,null,null,null,null,null,null,null,null,null,null,null,null,null,null,null,null,null,null,null,null,null,null,null,null,null,null,null,null,null,null,null,null,null,null,null,null,null,null,"CA-2012-807  1st and Rosemary Senior Apartments","CA-2012-807","1st and Rosemary Senior Apartments","30 E. Rosemary Street","San Jose","Santa Clara","95112","1st and Rosemary Senior Housing, L.P.","PH Rosemary Holdings, LLC"]
[null,null,null,null,null,null,null,null,null,null,null,null,null,null,null,null,null,null,null,null,null,null,null,null,null,null,null,null,null,null,null,null,null,null,null,null,null,null,null,null,null,null,null,null,"CA-2012-810  Sonoma Gardens","CA-2012-810","Sonoma Gardens","700 Rodeo Lane","Santa Rosa","Sonoma","95407","Santa Rosa Pacific Associates, a CA LP","Central Valley Coalition for Affordable Housing a"]
[null,null,null,null,null,null,null,null,null,null,null,null,null,null,null,null,null,null,null,null,null,null,null,null,null,null,null,null,null,null,null,null,null,null,null,null,null,null,null,null,null,null,null,null,"CA-2012-831  University Village Apartments","CA-2012-831","University Village Apartments","301 9th Street","Marina","Monterey","93933","University Village Associates, a CA LP","SCHC University Village LLC"]
[null,null,null,null,null,null,null,null,null,null,null,null,null,null,null,null,null,null,null,null,null,null,null,null,null,null,null,null,null,null,null,null,null,null,null,null,null,null,null,null,null,null,null,null,"CA-2012-833  Westlake Christian Terrace East","CA-2012-833","Westlake Christian Terrace East","251 28th Street","Oakland","Alameda","94611","Westlake Christian Terrace East LP","CCHNC Westlake East Housing LLC"]
[null,null,null,null,null,null,null,null,null,null,null,null,null,null,null,null,null,null,null,null,null,null,null,null,null,null,null,null,null,null,null,null,null,null,null,null,null,null,null,null,null,null,null,null,"CA-2012-849  Village Grove Apartments","CA-2012-849","Village Grove Apartments","660 North Quince Street","Escondido","San Diego","92025","Village Grove Apartments, L.P.","CHBA Affordable II, LLC"]
[null,null,null,null,null,null,null,null,null,null,null,null,null,null,null,null,null,null,null,null,null,null,null,null,null,null,null,null,null,null,null,null,null,null,null,null,null,null,null,null,null,null,null,null,"CA-2012-856  The Rivermark","CA-2012-856","The Rivermark","959 Bridge Street","West Sacramento","Yolo","95691","BRIDGE Triangle Associates, L.P.","BRIDGE NorCal Development Inc."]
[null,null,null,null,null,null,null,null,null,null,null,null,null,null,null,null,null,null,null,null,null,null,null,null,null,null,null,null,null,null,null,null,null,null,null,null,null,null,null,null,null,null,null,null,"CA-2012-869  Wagon Wheel Family Apartments","CA-2012-869","Wagon Wheel Family Apartments","510 Winchester Drive","Oxnard","Ventura","93036","CRFL Family Apartments, L.P.","Wagon Wheel LLC"]
[null,null,null,null,null,null,null,null,null,null,null,null,null,null,null,null,null,null,null,null,null,null,null,null,null,null,null,null,null,null,null,null,null,null,null,null,null,null,null,null,null,null,null,null,"CA-2012-876  Ivy at College Park Family Apartments","CA-2012-876","Ivy at College Park Family Apartments","5950 Notre Dame","Chino","San Bernardino","91710","Ivy at College Park, L.P.","Fell Street Housing, Inc."]
[null,null,null,null,null,null,null,null,null,null,null,null,null,null,null,null,null,null,null,null,null,null,null,null,null,null,null,null,null,null,null,null,null,null,null,null,null,null,null,null,null,null,null,null,"CA-2012-893  Flower Terrace (formerly Washington Place)","CA-2012-893","Flower Terrace (formerly Washington Place)","1401 N. Flower Street","Santa Ana","Orange","92706","Washington Place Partners, LP","Pacific Housing, Inc."]
[null,null,null,null,null,null,null,null,null,null,null,null,null,null,null,null,null,null,null,null,null,null,null,null,null,null,null,null,null,null,null,null,null,null,null,null,null,null,null,null,null,null,null,null,"CA-2012-896  Congregational Tower","CA-2012-896","Congregational Tower","288 F Street","Chula Vista","San Diego","91910","Congregational Tower Partners, LP","Congregational Tower LLC"]
[null,null,null,null,null,null,null,null,null,null,null,null,null,null,null,null,null,null,null,null,null,null,null,null,null,null,null,null,null,null,null,null,null,null,null,null,null,null,null,null,null,null,null,null,"CA-2013-015  Cabrillo Gateway","CA-2013-015","Cabrillo Gateway","2000 San Gabriel Avenue","Long Beach","Los Angeles","90810","Cabrillo Gateway, L.P.","CVC Phase IV, LLC"]
[null,null,null,null,null,null,null,null,null,null,null,null,null,null,null,null,null,null,null,null,null,null,null,null,null,null,null,null,null,null,null,null,null,null,null,null,null,null,null,null,null,null,null,null,"CA-2013-025  Cypress Senior Living","CA-2013-025","Cypress Senior Living","311 E. Cypress Street","Glendale","Los Angeles","91205","Cypress Senior Living Investors, LP","Affordable Housing Alliance II, Inc. dba Integrity"]
[null,null,null,null,null,null,null,null,null,null,null,null,null,null,null,null,null,null,null,null,null,null,null,null,null,null,null,null,null,null,null,null,null,null,null,null,null,null,null,null,null,null,null,null,"CA-2013-045  Hollenbeck Terrace Apartments","CA-2013-045","Hollenbeck Terrace Apartments","610 S. St. Louis Street","Los Angeles","Los Angeles","90023","AMCAL Hollenbeck Fund, L.P.","East LA Community Corporation"]
[null,null,null,null,null,null,null,null,null,null,null,null,null,null,null,null,null,null,null,null,null,null,null,null,null,null,null,null,null,null,null,null,null,null,null,null,null,null,null,null,null,null,null,null,"CA-2013-062  Compton Senior Apartments","CA-2013-062","Compton Senior Apartments","302 N. Tamarind Avenue","Compton","Los Angeles","90220","Compton Senior Apartments, LP","WCH Affordable II, LLC"]
[null,null,null,null,null,null,null,null,null,null,null,null,null,null,null,null,null,null,null,null,null,null,null,null,null,null,null,null,null,null,null,null,null,null,null,null,null,null,null,null,null,null,null,null,"CA-2013-089  Orange Cove Rental Assistance Demonstration (RAD)","CA-2013-089","Orange Cove Rental Assistance Demonstration (RAD)","791 I Street, 101 Citrus Avenue, 1270 South Avenue, 1265 Adams Avenue","Orange Cove","Fresno","93646","Orange Cove RAD, LP","Silvercrest, Inc"]
[null,null,null,null,null,null,null,null,null,null,null,null,null,null,null,null,null,null,null,null,null,null,null,null,null,null,null,null,null,null,null,null,null,null,null,null,null,null,null,null,null,null,null,null,"CA-2013-104  Japantown Senior Apartments","CA-2013-104","Japantown Senior Apartments","685 N. 6th Street","San Jose","Santa Clara","95112","Japantown Apartments, LP","Japantown Apartments, LLC"]
[null,null,null,null,null,null,null,null,null,null,null,null,null,null,null,null,null,null,null,null,null,null,null,null,null,null,null,null,null,null,null,null,null,null,null,null,null,null,null,null,null,null,null,null,"CA-2013-134  Calistoga Family Apartments","CA-2013-134","Calistoga Family Apartments","1715 Washington Street","Calistoga","Napa","94515","1715 Washington St., L.P.","Corporation for Better Housing"]
[null,null,null,null,null,null,null,null,null,null,null,null,null,null,null,null,null,null,null,null,null,null,null,null,null,null,null,null,null,null,null,null,null,null,null,null,null,null,null,null,null,null,null,null,"CA-2013-138  Verano Apartments","CA-2013-138","Verano Apartments","904 South D Street","Perris","Riverside","92570","AMCAL Verano Fund, L.P.","Las Palmas Foundation"]
[null,null,null,null,null,null,null,null,null,null,null,null,null,null,null,null,null,null,null,null,null,null,null,null,null,null,null,null,null,null,null,null,null,null,null,null,null,null,null,null,null,null,null,null,"CA-2013-177  Autumn Village Apartments","CA-2013-177","Autumn Village Apartments","14930 Burns Valley Road","Clearlake","Lake","95422","Autumn Village Associates, LP","Autumn Village LLC"]
[null,null,null,null,null,null,null,null,null,null,null,null,null,null,null,null,null,null,null,null,null,null,null,null,null,null,null,null,null,null,null,null,null,null,null,null,null,null,null,null,null,null,null,null,"CA-2013-182  Lofts on Landis","CA-2013-182","Lofts on Landis","240 Landis Avenue","Chula Vista","San Diego","91910","Lofts on Landis LP","Wakeland Landis, LLC"]
[null,null,null,null,null,null,null,null,null,null,null,null,null,null,null,null,null,null,null,null,null,null,null,null,null,null,null,null,null,null,null,null,null,null,null,null,null,null,null,null,null,null,null,null,"CA-2013-805  MacArthur Apartments","CA-2013-805","MacArthur Apartments","9800 MacArthur Blvd","Oakland","Alameda","94605","AMCAL MacArthur Fund, L.P.","Las Palmas Foundation"]
[null,null,null,null,null,null,null,null,null,null,null,null,null,null,null,null,null,null,null,null,null,null,null,null,null,null,null,null,null,null,null,null,null,null,null,null,null,null,null,null,null,null,null,null,"CA-2013-823  Anton Legacy Apartments","CA-2013-823","Anton Legacy Apartments","3100 Park Avenue","Tustin","Orange","92782","Anton Legacy Tustin L.P.","PacH Anton South Holdings, LLC"]
[null,null,null,null,null,null,null,null,null,null,null,null,null,null,null,null,null,null,null,null,null,null,null,null,null,null,null,null,null,null,null,null,null,null,null,null,null,null,null,null,null,null,null,null,"CA-2013-835  Oak Ridge Family Apartments","CA-2013-835","Oak Ridge Family Apartments","73 Carol Lane","Oakley","Contra Costa","94561","73 Carol Ln., L.P.","Corporation for Better Housing"]
[null,null,null,null,null,null,null,null,null,null,null,null,null,null,null,null,null,null,null,null,null,null,null,null,null,null,null,null,null,null,null,null,null,null,null,null,null,null,null,null,null,null,null,null,"CA-2013-843  Harbor Village Apartments","CA-2013-843","Harbor Village Apartments","981 Harbor Village Drive","Harbor City","Los Angeles","90710","Harbor Village Housing Partners, L.P.","LA Cienega LOMOD, Inc"]
[null,null,null,null,null,null,null,null,null,null,null,null,null,null,null,null,null,null,null,null,null,null,null,null,null,null,null,null,null,null,null,null,null,null,null,null,null,null,null,null,null,null,null,null,"CA-2013-856  Westside Village","CA-2013-856","Westside Village","595 Vera Cruz Way","Shafter","Kern","93263","Westside Shafter AR, L.P.","WCH Affordable VIII, LLC"]
[null,null,null,null,null,null,null,null,null,null,null,null,null,null,null,null,null,null,null,null,null,null,null,null,null,null,null,null,null,null,null,null,null,null,null,null,null,null,null,null,null,null,null,null,"CA-2013-859  Meadowbrook Apartments","CA-2013-859","Meadowbrook Apartments","7844 Paradise Valley Road","San Diego","San Diego","92139","Meadowbrook Housing Partners, LP","Meadowbrook Housing Partners MGP, LLC"]
[null,null,null,null,null,null,null,null,null,null,null,null,null,null,null,null,null,null,null,null,null,null,null,null,null,null,null,null,null,null,null,null,null,null,null,null,null,null,null,null,null,null,null,null,"CA-2013-877  Ramona Estates","CA-2013-877","Ramona Estates","1935 E. 122nd Street","Compton","Los Angeles","90222","WLCAC Ramona Estates, LP","WLCAC Ramona Estates, LLC"]
[null,null,null,null,null,null,null,null,null,null,null,null,null,null,null,null,null,null,null,null,null,null,null,null,null,null,null,null,null,null,null,null,null,null,null,null,null,null,null,null,null,null,null,null,"CA-2013-886  Mosaic Gardens at Holly Courts","CA-2013-886","Mosaic Gardens at Holly Courts","420 and 425 Maple Street","West Sacramento","Yolo","95691","LINC-Holly Court Housing Apartments Investors, LP","LINC - Holly Court Housing Apartments, LLC"]
[null,null,null,null,null,null,null,null,null,null,null,null,null,null,null,null,null,null,null,null,null,null,null,null,null,null,null,null,null,null,null,null,null,null,null,null,null,null,null,null,null,null,null,null,"CA-2013-896  Alpha Square 4%","CA-2013-896","Alpha Square 4%","550 14th Street","San Diego","San Diego","92101","Alpha Square 4%, LP","ALPHA SQUARE 9%, LLC"]
[null,null,null,null,null,null,null,null,null,null,null,null,null,null,null,null,null,null,null,null,null,null,null,null,null,null,null,null,null,null,null,null,null,null,null,null,null,null,null,null,null,null,null,null,"CA-2013-908  Las Palmas Village aka Avenida Serra","CA-2013-908","Las Palmas Village aka Avenida Serra","115 Avenida Serra","San Clemente","Orange","92672","Avenida Serra Housing Partners, L.P.","Avenida Serra Housing Partners, L.P."]
[null,null,null,null,null,null,null,null,null,null,null,null,null,null,null,null,null,null,null,null,null,null,null,null,null,null,null,null,null,null,null,null,null,null,null,null,null,null,null,null,null,null,null,null,"CA-2014-028  Diamond Place Apartments","CA-2014-028","Diamond Place Apartments","547 Lewis Avenue","San Andreas","Calaveras","95249","San Andreas Diamond Place, LP","Central Valley Coalition for Affordable Housing"]
[null,null,null,null,null,null,null,null,null,null,null,null,null,null,null,null,null,null,null,null,null,null,null,null,null,null,null,null,null,null,null,null,null,null,null,null,null,null,null,null,null,null,null,null,"CA-2014-040  Taylor Yard Senior Housing","CA-2014-040","Taylor Yard Senior Housing","2590 E. Arvia Street","Los Angeles","Los Angeles","90065","Taylor Yard Senior Housing, L.P.","New Economics For Women"]
[null,null,null,null,null,null,null,null,null,null,null,null,null,null,null,null,null,null,null,null,null,null,null,null,null,null,null,null,null,null,null,null,null,null,null,null,null,null,null,null,null,null,null,null,"CA-2014-064  Arcata Bay Crossing","CA-2014-064","Arcata Bay Crossing","280 E Street","Arcata","Humboldt","95521","Arcata Bay Crossing LP","Crossing Bridges, LLC"]
[null,null,null,null,null,null,null,null,null,null,null,null,null,null,null,null,null,null,null,null,null,null,null,null,null,null,null,null,null,null,null,null,null,null,null,null,null,null,null,null,null,null,null,null,"CA-2014-068  City Yard Workforce Housing","CA-2014-068","City Yard Workforce Housing","8002 & 8004 Orangethorpe Avenue","Buena Park","Orange","90621","City Yard Housing Partners, L.P.","JHC-City Yard, LLC"]
[null,null,null,null,null,null,null,null,null,null,null,null,null,null,null,null,null,null,null,null,null,null,null,null,null,null,null,null,null,null,null,null,null,null,null,null,null,null,null,null,null,null,null,null,"CA-2014-105  Atmosphere","CA-2014-105","Atmosphere","1453 Fourth Avenue","San Diego","San Diego","92101","Wakeland Atmosphere, L.P.","Wakeland Atmosphere, LLC"]
[null,null,null,null,null,null,null,null,null,null,null,null,null,null,null,null,null,null,null,null,null,null,null,null,null,null,null,null,null,null,null,null,null,null,null,null,null,null,null,null,null,null,null,null,"CA-2014-115  Orchard Village Apartments","CA-2014-115","Orchard Village Apartments","1555 East South Avenue","Orange Cove","Fresno","93646","Orchard Village 188, LP","RCC MGP LLC"]
[null,null,null,null,null,null,null,null,null,null,null,null,null,null,null,null,null,null,null,null,null,null,null,null,null,null,null,null,null,null,null,null,null,null,null,null,null,null,null,null,null,null,null,null,"CA-2014-128  Golden Inn & Village Senior","CA-2014-128","Golden Inn & Village Senior","890 Refugio Rd","Santa Ynez","Santa Barbara","93460","Golden Inn & Village Senior, LP","Surf Development Company"]
[null,null,null,null,null,null,null,null,null,null,null,null,null,null,null,null,null,null,null,null,null,null,null,null,null,null,null,null,null,null,null,null,null,null,null,null,null,null,null,null,null,null,null,null,"CA-2014-160  5400 Hollywood Family Apartments","CA-2014-160","5400 Hollywood Family Apartments","5400 Hollywood Boulevard, Los Angeles, CA 90027","Los Angeles","Los Angeles","90027","5400 Hollywood Family Apartments, L.P.","WCH Affordable VII, LLC"]
[null,null,null,null,null,null,null,null,null,null,null,null,null,null,null,null,null,null,null,null,null,null,null,null,null,null,null,null,null,null,null,null,null,null,null,null,null,null,null,null,null,null,null,null,"CA-2014-802  Regency Court Apartments","CA-2014-802","Regency Court Apartments","720 Fifth Avenue Court","Monrovia","Los Angeles","91016-3176","Monrovia 612, L.P.","Riverside Charitable Corp"]
[null,null,null,null,null,null,null,null,null,null,null,null,null,null,null,null,null,null,null,null,null,null,null,null,null,null,null,null,null,null,null,null,null,null,null,null,null,null,null,null,null,null,null,null,"CA-2014-811  Renaissance Village Apartments","CA-2014-811","Renaissance Village Apartments","1029-1069 W. Second Street","Rialto","San Bernardino","92376","Renaissance Housing Partners L.P.","RV Housing Partners GP LLC"]
[null,null,null,null,null,null,null,null,null,null,null,null,null,null,null,null,null,null,null,null,null,null,null,null,null,null,null,null,null,null,null,null,null,null,null,null,null,null,null,null,null,null,null,null,"CA-2014-823  Harbour View Apartments","CA-2014-823","Harbour View Apartments","25 Harbour Way","Richmond","Contra Costa","94801","Richmond Pacific Associates, a California Limited","Central Valley Coalition for Affordable Housing a"]
[null,null,null,null,null,null,null,null,null,null,null,null,null,null,null,null,null,null,null,null,null,null,null,null,null,null,null,null,null,null,null,null,null,null,null,null,null,null,null,null,null,null,null,null,"CA-2014-833  Oak Creek Terrace","CA-2014-833","Oak Creek Terrace","2670 First Street","Napa","Napa","94558","Oak Creek Terrace, L.P.","Napa Vallley Community Housing"]
[null,null,null,null,null,null,null,null,null,null,null,null,null,null,null,null,null,null,null,null,null,null,null,null,null,null,null,null,null,null,null,null,null,null,null,null,null,null,null,null,null,null,null,null,"CA-2014-848  Jefferson Townhomes / Cunningham Village","CA-2014-848","Jefferson Townhomes / Cunningham Village","1693 West Jefferson Blvd. & 2300 South Victoria Avenue","Los Angeles","Los Angeles","90016/90018","Jefferson Cunningham Community Partners, LP","AHDF - Jefferson Cunningham G/P, LLC."]
[null,null,null,null,null,null,null,null,null,null,null,null,null,null,null,null,null,null,null,null,null,null,null,null,null,null,null,null,null,null,null,null,null,null,null,null,null,null,null,null,null,null,null,null,"CA-2014-851  Lexington Avenue Family Apartms(AKA Oak Grove Ap","CA-2014-851","Lexington Avenue Family Apartms(AKA Oak Grove Ap","5568 Lexington Avenue","San Jose","Santa Clara","95123","Lexington Avenue Family Apartments, LP","PacH San Jose Holdings, LLC"]
[null,null,null,null,null,null,null,null,null,null,null,null,null,null,null,null,null,null,null,null,null,null,null,null,null,null,null,null,null,null,null,null,null,null,null,null,null,null,null,null,null,null,null,null,"CA-2014-859  LDK Senior Apartments","CA-2014-859","LDK Senior Apartments","900 Crenshaw Blvd. and 540 S. Kingsley Drive","Los Angeles","Los Angeles","90019/90020","LDK Senior Apartments, L.P.","LTSC Community Development Corporation"]
[null,null,null,null,null,null,null,null,null,null,null,null,null,null,null,null,null,null,null,null,null,null,null,null,null,null,null,null,null,null,null,null,null,null,null,null,null,null,null,null,null,null,null,null,"CA-2014-872  Heritage II","CA-2014-872","Heritage II","300 Burton Mesa Boulevard","Lompoc","Santa Barbara","93436","Heritage II, L.P.","Foundation For Affordable Housing V, Inc."]
[null,null,null,null,null,null,null,null,null,null,null,null,null,null,null,null,null,null,null,null,null,null,null,null,null,null,null,null,null,null,null,null,null,null,null,null,null,null,null,null,null,null,null,null,"CA-2014-889  Glenview Apartments","CA-2014-889","Glenview Apartments","2361 Bass Lake Road","Cameron Park","El Dorado","95682","Glenview Cameron Park AR, L.P.","WCH Affordable XI, LLC"]
[null,null,null,null,null,null,null,null,null,null,null,null,null,null,null,null,null,null,null,null,null,null,null,null,null,null,null,null,null,null,null,null,null,null,null,null,null,null,null,null,null,null,null,null,"CA-2014-896  Rotary Plaza Apartments","CA-2014-896","Rotary Plaza Apartments","431 & 433 Alida Way","South San Francisco","San Mateo","94080","Rotary Plaza, LP","Rotary Plaza Associates LLC"]
[null,null,null,null,null,null,null,null,null,null,null,null,null,null,null,null,null,null,null,null,null,null,null,null,null,null,null,null,null,null,null,null,null,null,null,null,null,null,null,null,null,null,null,null,"CA-2014-909  Stanford/Palo Alto Affordable Apartments","CA-2014-909","Stanford/Palo Alto Affordable Apartments","2500 El Camino Real","Palo Alto","Santa Clara","94306","Palo Alto ECR Partners, LP","Palo Alto ECR Partners, MGP, LLC"]
[null,null,null,null,null,null,null,null,null,null,null,null,null,null,null,null,null,null,null,null,null,null,null,null,null,null,null,null,null,null,null,null,null,null,null,null,null,null,null,null,null,null,null,null,"CA-2014-920  Sea Mist Towers","CA-2014-920","Sea Mist Towers","1451 Atlantic Avenue","Long Beach","Los Angeles","90813","Sea Mist VOA Affordable Housing, L.P.","Sea Mist VOA Affordable Housing, LLC"]
[null,null,null,null,null,null,null,null,null,null,null,null,null,null,null,null,null,null,null,null,null,null,null,null,null,null,null,null,null,null,null,null,null,null,null,null,null,null,null,null,null,null,null,null,"CA-2015-024  Blackberry Oaks Apartments","CA-2015-024","Blackberry Oaks Apartments","801 Lyons Bald Mountain Road","Sonora","Tuolumne","95370","Blackberry Oaks (Preservation), LP","Community Revitalization Development Corporation"]
[null,null,null,null,null,null,null,null,null,null,null,null,null,null,null,null,null,null,null,null,null,null,null,null,null,null,null,null,null,null,null,null,null,null,null,null,null,null,null,null,null,null,null,null,"CA-2015-029  Movietown Square","CA-2015-029","Movietown Square","7302 Santa Monica Blvd.","West Hollywood","Los Angeles","90046","Movietown Square, L.P.","Movietown Seniors, LLC"]
[null,null,null,null,null,null,null,null,null,null,null,null,null,null,null,null,null,null,null,null,null,null,null,null,null,null,null,null,null,null,null,null,null,null,null,null,null,null,null,null,null,null,null,null,"CA-2015-039  Winters Apartments","CA-2015-039","Winters Apartments","116 E. Baker Street","Winters","Yolo","95694","Winters Community Housing One LP","Enterprise Winters One LLC"]
[null,null,null,null,null,null,null,null,null,null,null,null,null,null,null,null,null,null,null,null,null,null,null,null,null,null,null,null,null,null,null,null,null,null,null,null,null,null,null,null,null,null,null,null,"CA-2015-058  Tiki Apartments","CA-2015-058","Tiki Apartments","7306-7308 Marbrisa Avenue; 7223 and 7301 Santa Fe Avenue","Huntington Park","Los Angeles","90255","7301 Santa Fe Avenue, L.P.","WCH Affordable XII, LLC"]
[null,null,null,null,null,null,null,null,null,null,null,null,null,null,null,null,null,null,null,null,null,null,null,null,null,null,null,null,null,null,null,null,null,null,null,null,null,null,null,null,null,null,null,null,"CA-2015-080  Cherrywood Senior Apartments","CA-2015-080","Cherrywood Senior Apartments","979 Cherry Avenue","Beaumont","Riverside","92223","CWM Affordable LP","NHC GP LLC"]
[null,null,null,null,null,null,null,null,null,null,null,null,null,null,null,null,null,null,null,null,null,null,null,null,null,null,null,null,null,null,null,null,null,null,null,null,null,null,null,null,null,null,null,null,"CA-2015-093  Palmer Family Villas aka Palmer Family Apartments","CA-2015-093","Palmer Family Villas aka Palmer Family Apartments","16121 Palmer Avenue","Huron","Fresno","93234","WP Palmer Family Apartments, LP","Central Valley Coalition for Affordable Housing"]
[null,null,null,null,null,null,null,null,null,null,null,null,null,null,null,null,null,null,null,null,null,null,null,null,null,null,null,null,null,null,null,null,null,null,null,null,null,null,null,null,null,null,null,null,"CA-2015-114  Cannery Lofts","CA-2015-114","Cannery Lofts","900 Jacobsen Lane","Davis","Yolo","95616","C.F.Y. Development, Inc.","Community Revitilization and Development Corporati"]
[null,null,null,null,null,null,null,null,null,null,null,null,null,null,null,null,null,null,null,null,null,null,null,null,null,null,null,null,null,null,null,null,null,null,null,null,null,null,null,null,null,null,null,null,"CA-2015-136  Sun House Senior Apartments","CA-2015-136","Sun House Senior Apartments","170 Cleveland Lane","Ukiah","Mendocino","95482","Sun House Senior Apartments L.P.","Sun House Senior Apartments LLC."]
[null,null,null,null,null,null,null,null,null,null,null,null,null,null,null,null,null,null,null,null,null,null,null,null,null,null,null,null,null,null,null,null,null,null,null,null,null,null,null,null,null,null,null,null,"CA-2015-165  Solutions Escondido (fka Escondido Site)","CA-2015-165","Solutions Escondido (fka Escondido Site)","1560 S Escondido Blvd.","Escondido","San Diego","92025","Solutions Escondido Boulevard 33, LP","solutions Escondido LLC"]
[null,null,null,null,null,null,null,null,null,null,null,null,null,null,null,null,null,null,null,null,null,null,null,null,null,null,null,null,null,null,null,null,null,null,null,null,null,null,null,null,null,null,null,null,"CA-2015-801  The Huntington FKA Butterfield Retirement","CA-2015-801","The Huntington FKA Butterfield Retirement","16505 Butterfield Boulevard","Morgan Hill","Santa Clara","95037","Butterfield Retirement LP","Foundation for Affordable Housing II, Inc."]
[null,null,null,null,null,null,null,null,null,null,null,null,null,null,null,null,null,null,null,null,null,null,null,null,null,null,null,null,null,null,null,null,null,null,null,null,null,null,null,null,null,null,null,null,"CA-2015-809  St. Timothy's Tower and St. Timothy's Manor","CA-2015-809","St. Timothy's Tower and St. Timothy's Manor","425 South Oleander Ave. and 415 South Oleander Ave.","Compton","Los Angeles","90220","St. Timothy's Preservation LP","St. Timothy's Tower and Manor GP, LLC"]
[null,null,null,null,null,null,null,null,null,null,null,null,null,null,null,null,null,null,null,null,null,null,null,null,null,null,null,null,null,null,null,null,null,null,null,null,null,null,null,null,null,null,null,null,"CA-2015-824  Downtown Hayward Senior Apartments","CA-2015-824","Downtown Hayward Senior Apartments","808 A Street","Hayward","Alameda","94541","Downtown Hayward Sr. Apts., LP","CHBA Affordable III, LLC"]
[null,null,null,null,null,null,null,null,null,null,null,null,null,null,null,null,null,null,null,null,null,null,null,null,null,null,null,null,null,null,null,null,null,null,null,null,null,null,null,null,null,null,null,null,"CA-2015-832  Leaster Apartments","CA-2015-832","Leaster Apartments","825 Green Ave; 1422-1430 Miramar St.; 911 E 120th St.","Los Angeles","Los Angeles","90017; 90026; 0059","Leaster Apartments, L.P.","Pico Union Housing Corporation"]
[null,null,null,null,null,null,null,null,null,null,null,null,null,null,null,null,null,null,null,null,null,null,null,null,null,null,null,null,null,null,null,null,null,null,null,null,null,null,null,null,null,null,null,null,"CA-2015-844  Avenida Crossing Apartments","CA-2015-844","Avenida Crossing Apartments","2317 West Avenue J-8","Lancaster","Los Angeles","93536","Lancaster 637, L.P.","Riverside Charitable Corp"]
[null,null,null,null,null,null,null,null,null,null,null,null,null,null,null,null,null,null,null,null,null,null,null,null,null,null,null,null,null,null,null,null,null,null,null,null,null,null,null,null,null,null,null,null,"CA-2015-859  Pebble Cove","CA-2015-859","Pebble Cove","2555 W. Winston Road","Anaheim","Orange","92804","2555 West Winston Road, LP","AOF PEBBLE COVE, LLC"]
[null,null,null,null,null,null,null,null,null,null,null,null,null,null,null,null,null,null,null,null,null,null,null,null,null,null,null,null,null,null,null,null,null,null,null,null,null,null,null,null,null,null,null,null,"CA-2015-871  Holly Courts","CA-2015-871","Holly Courts","100 Appleton Avenue","San Francisco","San Francisco","94110","Holly Courts Housing Associates LP","Holly Courts Housing LLC"]
[null,null,null,null,null,null,null,null,null,null,null,null,null,null,null,null,null,null,null,null,null,null,null,null,null,null,null,null,null,null,null,null,null,null,null,null,null,null,null,null,null,null,null,null,"CA-2015-881  Robert Pitts","CA-2015-881","Robert Pitts","1150 Scott Street","San Francisco","San Francisco","94115","Robert Pitts Housing Partners, LP","Tabernacle III, LLC"]
[null,null,null,null,null,null,null,null,null,null,null,null,null,null,null,null,null,null,null,null,null,null,null,null,null,null,null,null,null,null,null,null,null,null,null,null,null,null,null,null,null,null,null,null,"CA-2015-884  Woodglen Vista","CA-2015-884","Woodglen Vista","10450 Magnolia Avenue","Santee","San Diego","92071","Woodglen Vista Housing Partners, LP","JHC-Woodlgen, LLC"]
[null,null,null,null,null,null,null,null,null,null,null,null,null,null,null,null,null,null,null,null,null,null,null,null,null,null,null,null,null,null,null,null,null,null,null,null,null,null,null,null,null,null,null,null,"CA-2015-894  Summit at Fair Oaks Apartments","CA-2015-894","Summit at Fair Oaks Apartments","4440 San Juan Avenue","Fair Oaks","Sacramento","95628","Sac4 Preservation Limited Partnership","Sac4 Cornucopia LLC"]
[null,null,null,null,null,null,null,null,null,null,null,null,null,null,null,null,null,null,null,null,null,null,null,null,null,null,null,null,null,null,null,null,null,null,null,null,null,null,null,null,null,null,null,null,"CA-2015-906  Las Palmas Apartments","CA-2015-906","Las Palmas Apartments","15370 Tropic Court","San Leandro","Alameda","94579","LPSL LP","LPSL LLC"]
[null,null,null,null,null,null,null,null,null,null,null,null,null,null,null,null,null,null,null,null,null,null,null,null,null,null,null,null,null,null,null,null,null,null,null,null,null,null,null,null,null,null,null,null,"CA-2015-914  Bouquet Canyon Senior Apartments","CA-2015-914","Bouquet Canyon Senior Apartments","26705 Bouquet Canyon Road","Santa Clarita","Los Angeles","91350","Vintage at Bouquet Canyon, LP","Hearthstone CA Properties I, LLC"]
[null,null,null,null,null,null,null,null,null,null,null,null,null,null,null,null,null,null,null,null,null,null,null,null,null,null,null,null,null,null,null,null,null,null,null,null,null,null,null,null,null,null,null,null,"CA-2015-927  OAK CENTER I APARTMENTS","CA-2015-927","OAK CENTER I APARTMENTS","1601 Market Street","Oakland","Alameda","94607","Oak Center Community Partners, LP","Foundation for Affordable Housing"]
[null,null,null,null,null,null,null,null,null,null,null,null,null,null,null,null,null,null,null,null,null,null,null,null,null,null,null,null,null,null,null,null,null,null,null,null,null,null,null,null,null,null,null,null,"CA-2015-943  Pearl Gardens","CA-2015-943","Pearl Gardens","13-21 S. Soledad Street","Santa Barbara","Santa Barbara","93103","SB Housing Partnership IV, L.P.","Garden Court, Inc."]
[null,null,null,null,null,null,null,null,null,null,null,null,null,null,null,null,null,null,null,null,null,null,null,null,null,null,null,null,null,null,null,null,null,null,null,null,null,null,null,null,null,null,null,null,"CA-2016-002  Wilmington & 118th Senior Housing","CA-2016-002","Wilmington & 118th Senior Housing","11740 Bandera Street","Los Angeles","Los Angeles","90059","Wilmington & 118th LP","Housing Corporation of America"]
[null,null,null,null,null,null,null,null,null,null,null,null,null,null,null,null,null,null,null,null,null,null,null,null,null,null,null,null,null,null,null,null,null,null,null,null,null,null,null,null,null,null,null,null,"CA-2016-033  Morgan Hill Family - Scattered Site","CA-2016-033","Morgan Hill Family - Scattered Site","40 E. Dunne Avenue; 16873, 16170, & 16180 Monterey Road","Morgan Hill","Santa Clara","95037","Orchards Morgan Hill L.P","Orchards EAH, LLC"]
[null,null,null,null,null,null,null,null,null,null,null,null,null,null,null,null,null,null,null,null,null,null,null,null,null,null,null,null,null,null,null,null,null,null,null,null,null,null,null,null,null,null,null,null,"CA-2016-048  Courson Arts Colony East","CA-2016-048","Courson Arts Colony East","939 East Avenue Q12","Palmdale","Los Angeles","93550","CAC East, L.P.","WCH Affordable XIX, LLC"]
[null,null,null,null,null,null,null,null,null,null,null,null,null,null,null,null,null,null,null,null,null,null,null,null,null,null,null,null,null,null,null,null,null,null,null,null,null,null,null,null,null,null,null,null,"CA-2016-054  Loma Linda Veterans' Village (\"Loma Linda Vets\")","CA-2016-054","Loma Linda Veterans' Village (\"Loma Linda Vets\")","25281 Van Leuven Street","Loma Linda","San Bernardino","92354","Loma Linda Vets, LP","Loma Linda Veteran Partners, LLC"]
[null,null,null,null,null,null,null,null,null,null,null,null,null,null,null,null,null,null,null,null,null,null,null,null,null,null,null,null,null,null,null,null,null,null,null,null,null,null,null,null,null,null,null,null,"CA-2016-073  Fullerton Heights","CA-2016-073","Fullerton Heights","1220 E. Orangethorpe Avenue","Fullerton","Orange","92831","Fullerton Supportive Housing, L.P.","A Community of Friends"]
[null,null,null,null,null,null,null,null,null,null,null,null,null,null,null,null,null,null,null,null,null,null,null,null,null,null,null,null,null,null,null,null,null,null,null,null,null,null,null,null,null,null,null,null,"CA-2016-104  Tehachapi Manor II","CA-2016-104","Tehachapi Manor II","654 West E Street","Tehachapi","Kern","93561","PK Tehachapi Senior, LP","Riverside Charitable Corporation"]
[null,null,null,null,null,null,null,null,null,null,null,null,null,null,null,null,null,null,null,null,null,null,null,null,null,null,null,null,null,null,null,null,null,null,null,null,null,null,null,null,null,null,null,null,"CA-2016-133  Calistoga Senior Apartments","CA-2016-133","Calistoga Senior Apartments","611 Washington Street","Calistoga","Napa","94515","611 Washington St., L.P., a California limited par","Corporation for Better Housing"]
[null,null,null,null,null,null,null,null,null,null,null,null,null,null,null,null,null,null,null,null,null,null,null,null,null,null,null,null,null,null,null,null,null,null,null,null,null,null,null,null,null,null,null,null,"CA-2016-804  Buena Vida Apartments","CA-2016-804","Buena Vida Apartments","9050 Telephone Road; 9054-9092 Telephone Road","Ventura","Ventura","93004","Buena Vida, LP","Buena Vida, LLC"]
[null,null,null,null,null,null,null,null,null,null,null,null,null,null,null,null,null,null,null,null,null,null,null,null,null,null,null,null,null,null,null,null,null,null,null,null,null,null,null,null,null,null,null,null,"CA-2016-812  Casa Montego Apartments","CA-2016-812","Casa Montego Apartments","1485 Montego","Walnut Creek","Contra Costa","94598","Casa Montego LP","Satellite AHA Development Inc."]
[null,null,null,null,null,null,null,null,null,null,null,null,null,null,null,null,null,null,null,null,null,null,null,null,null,null,null,null,null,null,null,null,null,null,null,null,null,null,null,null,null,null,null,null,"CA-2016-824  Esencia Norte","CA-2016-824","Esencia Norte","86 Esencia Drive #811","Rancho Mission Viejo","Orange","92694","Esencia Norte Affordable Apartments L.P.","Hearthstone CA Properties I, LLC"]
[null,null,null,null,null,null,null,null,null,null,null,null,null,null,null,null,null,null,null,null,null,null,null,null,null,null,null,null,null,null,null,null,null,null,null,null,null,null,null,null,null,null,null,null,"CA-2016-832  Mackey Terrace","CA-2016-832","Mackey Terrace","626 Owens Drive","Novato","Marin","94949","Mackey Terrace EAH LP","Mackey Terrace EAH, LLC"]
[null,null,null,null,null,null,null,null,null,null,null,null,null,null,null,null,null,null,null,null,null,null,null,null,null,null,null,null,null,null,null,null,null,null,null,null,null,null,null,null,null,null,null,null,"CA-2016-835  3850 18th Street","CA-2016-835","3850 18th Street","3850 18th Street","San Francisco","San Francisco","94114","3850 18th Street Housing Associates, LP","3850 18th Street LLC"]
[null,null,null,null,null,null,null,null,null,null,null,null,null,null,null,null,null,null,null,null,null,null,null,null,null,null,null,null,null,null,null,null,null,null,null,null,null,null,null,null,null,null,null,null,"CA-2016-847  Esperanza Crossing, Phase II","CA-2016-847","Esperanza Crossing, Phase II","26810, 26780, 26766, 26822 Woodland Avenue","Esparto","Yolo","95627","Mercy Housing California","Esperanza Crossing II, LLC"]
[null,null,null,null,null,null,null,null,null,null,null,null,null,null,null,null,null,null,null,null,null,null,null,null,null,null,null,null,null,null,null,null,null,null,null,null,null,null,null,null,null,null,null,null,"CA-2016-856  Shadow Hills","CA-2016-856","Shadow Hills","211-275 E. Wilbur Road","Thousand Oaks","Ventura","91360","Shadow Hills LP","Shadow Hills LP"]
[null,null,null,null,null,null,null,null,null,null,null,null,null,null,null,null,null,null,null,null,null,null,null,null,null,null,null,null,null,null,null,null,null,null,null,null,null,null,null,null,null,null,null,null,"CA-2016-869  Luxaira fka D1 Senior Irvine Housing","CA-2016-869","Luxaira fka D1 Senior Irvine Housing","1105 Hamal","Irvine","Orange","92618","D1 Senior Irvine Housing Partners, LP","Riverside Charitable Corporation"]
[null,null,null,null,null,null,null,null,null,null,null,null,null,null,null,null,null,null,null,null,null,null,null,null,null,null,null,null,null,null,null,null,null,null,null,null,null,null,null,null,null,null,null,null,"CA-2016-884  Mission Village","CA-2016-884","Mission Village","4001 N Mission Road","Los Angeles","Los Angeles","90032","Mission Village II, L.P.","RCC MGP LLC"]
[null,null,null,null,null,null,null,null,null,null,null,null,null,null,null,null,null,null,null,null,null,null,null,null,null,null,null,null,null,null,null,null,null,null,null,null,null,null,null,null,null,null,null,null,"CA-2016-892  Stoneman Apartments","CA-2016-892","Stoneman Apartments","2300 Loveridge Road","Pittsburg","Contra Costa","94565","Pittsburg Pacific Associates, a California Limited","Central Valley Coalition for Affordable Housing a"]
[null,null,null,null,null,null,null,null,null,null,null,null,null,null,null,null,null,null,null,null,null,null,null,null,null,null,null,null,null,null,null,null,null,null,null,null,null,null,null,null,null,null,null,null,"CA-2016-904  Village at Los Carneros","CA-2016-904","Village at Los Carneros","10 Longshore Pl., 6501 Cobble Ln., 11 Compass Ln., 6500 Sea Star Ct.","Goleta","Santa Barbara","93317","Village at Los Carneros, LP","People's Self Help Housing Corporation"]
[null,null,null,null,null,null,null,null,null,null,null,null,null,null,null,null,null,null,null,null,null,null,null,null,null,null,null,null,null,null,null,null,null,null,null,null,null,null,null,null,null,null,null,null,"CA-2016-911  Sea Breeze Apartments","CA-2016-911","Sea Breeze Apartments","3610 Samuel Ave","Oxnard","Ventura","93033","Sea Breeze Venture, LP","Pacific Southwest Community Development Corp."]
[null,null,null,null,null,null,null,null,null,null,null,null,null,null,null,null,null,null,null,null,null,null,null,null,null,null,null,null,null,null,null,null,null,null,null,null,null,null,null,null,null,null,null,null,"CA-2016-914  Cedar Nettleton Apartments","CA-2016-914","Cedar Nettleton Apartments","245 Cedar Road","Vista","San Diego","92083","Cedar Nettleton Housing Associates, LP","Vista Lilac LLC"]
[null,null,null,null,null,null,null,null,null,null,null,null,null,null,null,null,null,null,null,null,null,null,null,null,null,null,null,null,null,null,null,null,null,null,null,null,null,null,null,null,null,null,null,null,"CA-2016-926  Potrero Block X","CA-2016-926","Potrero Block X","1101 Connecticut St.","San Francisco","San Francisco","94107","Potrero Housing Associates I, L.P.","MCB Family Housing, Inc."]
[null,null,null,null,null,null,null,null,null,null,null,null,null,null,null,null,null,null,null,null,null,null,null,null,null,null,null,null,null,null,null,null,null,null,null,null,null,null,null,null,null,null,null,null,"CA-2016-934  Premier Apartments","CA-2016-934","Premier Apartments","961 W. 93rd St., 1208/1222 E. 59th St., 1229 E. 59th Pl., 581 W 92nd St., 368/833 E. Imperial Hwy","Los Angeles","Los Angeles","90037,90001, 90044, 90061 and 90059","Premier Associates II, LP","IAHI-PR, LLC"]
[null,null,null,null,null,null,null,null,null,null,null,null,null,null,null,null,null,null,null,null,null,null,null,null,null,null,null,null,null,null,null,null,null,null,null,null,null,null,null,null,null,null,null,null,"CA-2016-946  Cypress Villa Apartments","CA-2016-946","Cypress Villa Apartments","900 North Cypress Street","La Habra","Orange","90631","Cypress Villa 2016 LP","AHA Orange MGP LLC"]
[null,null,null,null,null,null,null,null,null,null,null,null,null,null,null,null,null,null,null,null,null,null,null,null,null,null,null,null,null,null,null,null,null,null,null,null,null,null,null,null,null,null,null,null,"CA-2016-953  Waverly Place Apartments","CA-2016-953","Waverly Place Apartments","105 Fifth Avenue","Redwood City","San Mateo","94063","Waverly Place Apartments, L.P.","Waverly Place Apartments, LLC"]
[null,null,null,null,null,null,null,null,null,null,null,null,null,null,null,null,null,null,null,null,null,null,null,null,null,null,null,null,null,null,null,null,null,null,null,null,null,null,null,null,null,null,null,null,"CA-2016-967  Dudley Oaks","CA-2016-967","Dudley Oaks","2119 Oak Street","Los Angeles","Los Angeles","90007","Dudley Oaks Apartments LP","Housing Corporation of America"]
[null,null,null,null,null,null,null,null,null,null,null,null,null,null,null,null,null,null,null,null,null,null,null,null,null,null,null,null,null,null,null,null,null,null,null,null,null,null,null,null,null,null,null,null,"CA-2016-981  Brunswick Street Apartments","CA-2016-981","Brunswick Street Apartments","4619 Brunswick Street","Daly City","San Mateo","94014","Daly City Pacific Associates, a California Limited","Central Valley Coalition for Affordable Housing, a"]
[null,null,null,null,null,null,null,null,null,null,null,null,null,null,null,null,null,null,null,null,null,null,null,null,null,null,null,null,null,null,null,null,null,null,null,null,null,null,null,null,null,null,null,null,"CA-2016-989  Ageno Apartments","CA-2016-989","Ageno Apartments","1055 WESTWIND ST #155","LIVERMORE","ALAMEDA","94550","Brisa Apartments Affordable, LP","PACH Ageno Holdings, LLC"]
[null,null,null,null,null,null,null,null,null,null,null,null,null,null,null,null,null,null,null,null,null,null,null,null,null,null,null,null,null,null,null,null,null,null,null,null,null,null,null,null,null,null,null,null,"CA-2016-992  Delta Pines Apartments","CA-2016-992","Delta Pines Apartments","2301 Sycamore Drive","Antioch","Contra Costa","94509","LIH Delta Pines Antioch LP","Central Valley Coalition for Affordable Housing"]
[null,null,null,null,null,null,null,null,null,null,null,null,null,null,null,null,null,null,null,null,null,null,null,null,null,null,null,null,null,null,null,null,null,null,null,null,null,null,null,null,null,null,null,null,"CA-2017-031  The Lofts at Normal Heights","CA-2017-031","The Lofts at Normal Heights","3808 El Cajon Boulevard","San Diego","San Diego","92105","Normal Heights CIC, LP","ALPHA THE LOFTS, LLC"]
[null,null,null,null,null,null,null,null,null,null,null,null,null,null,null,null,null,null,null,null,null,null,null,null,null,null,null,null,null,null,null,null,null,null,null,null,null,null,null,null,null,null,null,null,"CA-2017-052  95 Laguna Senior Housing","CA-2017-052","95 Laguna Senior Housing","95 Laguna Street","San Francisco","San Francisco","94102","Laguna Senior Housing, L.P.","Mercy Housing Calwest"]
[null,null,null,null,null,null,null,null,null,null,null,null,null,null,null,null,null,null,null,null,null,null,null,null,null,null,null,null,null,null,null,null,null,null,null,null,null,null,null,null,null,null,null,null,"CA-2017-076  Veteran's Village of Carson","CA-2017-076","Veteran's Village of Carson","21711 South Figueroa Street","Carson","Los Angeles","90745","Carson Figueroa Affordable Housing LP","Housing Corporation of America"]
[null,null,null,null,null,null,null,null,null,null,null,null,null,null,null,null,null,null,null,null,null,null,null,null,null,null,null,null,null,null,null,null,null,null,null,null,null,null,null,null,null,null,null,null,"CA-2017-094  Mather Veterans Village Phase III","CA-2017-094","Mather Veterans Village Phase III","3607 Bleckely Street","Rancho Cordova","Sacramento","95655","Mercy Housing California 79, L.P.","Mercy Mather Veterans 3 LLC"]
[null,null,null,null,null,null,null,null,null,null,null,null,null,null,null,null,null,null,null,null,null,null,null,null,null,null,null,null,null,null,null,null,null,null,null,null,null,null,null,null,null,null,null,null,"CA-2017-128  Medici Artist Lofts","CA-2017-128","Medici Artist Lofts","242 North Sutter Street","Stockton","San Joaquin","95202","DFA Medici Associates LP","RCC MGP LLC"]
[null,null,null,null,null,null,null,null,null,null,null,null,null,null,null,null,null,null,null,null,null,null,null,null,null,null,null,null,null,null,null,null,null,null,null,null,null,null,null,null,null,null,null,null,"CA-2017-149  Carson Colony","CA-2017-149","Carson Colony","21205 Main Street","Carson","Los Angeles","90745","21205 Carson Arts, L.P.","WCH Affordable XXX, LLC"]
[null,null,null,null,null,null,null,null,null,null,null,null,null,null,null,null,null,null,null,null,null,null,null,null,null,null,null,null,null,null,null,null,null,null,null,null,null,null,null,null,null,null,null,null,"CA-2017-504  Citrea FKA Fullerton Family Housing","CA-2017-504","Citrea FKA Fullerton Family Housing","336 East Santa Fe Avenue","Fullerton","Orange","92832","Fullerton Family Housing Partners, L.P.","FFAH V Fullerton FHP, LLC"]
[null,null,null,null,null,null,null,null,null,null,null,null,null,null,null,null,null,null,null,null,null,null,null,null,null,null,null,null,null,null,null,null,null,null,null,null,null,null,null,null,null,null,null,null,"CA-2017-507  Antelope Valley Veterans and Families","CA-2017-507","Antelope Valley Veterans and Families","44000 Sahuayo Street","Lancaster","Los Angeles","93535","44000 Sahuayo Street, L.P.","Abode Communities AV GP, LLC"]
[null,null,null,null,null,null,null,null,null,null,null,null,null,null,null,null,null,null,null,null,null,null,null,null,null,null,null,null,null,null,null,null,null,null,null,null,null,null,null,null,null,null,null,null,"CA-2017-704  Bella Vista Apartments","CA-2017-704","Bella Vista Apartments","4742 Solola Avenue","San Diego","San Diego","92113","Bella Vista Affordable Communities, LP","Casa Familiar, Inc."]
[null,null,null,null,null,null,null,null,null,null,null,null,null,null,null,null,null,null,null,null,null,null,null,null,null,null,null,null,null,null,null,null,null,null,null,null,null,null,null,null,null,null,null,null,"CA-2017-708  New Palace Hotel Apartments","CA-2017-708","New Palace Hotel Apartments","1814 5th Avenue","San Diego","San Diego","92101","HDP New Palace, LP","HDP New Palace Management, LLC"]
[null,null,null,null,null,null,null,null,null,null,null,null,null,null,null,null,null,null,null,null,null,null,null,null,null,null,null,null,null,null,null,null,null,null,null,null,null,null,null,null,null,null,null,null,"CA-2017-722  Summer Field Apartments","CA-2017-722","Summer Field Apartments","83385 Gemini Street","Indio","Riverside","92201","Summer Field Community Partners, LP","JHC-Summer Field, LLC"]
[null,null,null,null,null,null,null,null,null,null,null,null,null,null,null,null,null,null,null,null,null,null,null,null,null,null,null,null,null,null,null,null,null,null,null,null,null,null,null,null,null,null,null,null,"CA-2017-733  Beachwood Apartments","CA-2017-733","Beachwood Apartments","475 West 5th Street and 505 West 6th Street","Long Beach","Los Angeles","90802","Century Beachwood Apartments 2, LP","CADI X, LLC"]
[null,null,null,null,null,null,null,null,null,null,null,null,null,null,null,null,null,null,null,null,null,null,null,null,null,null,null,null,null,null,null,null,null,null,null,null,null,null,null,null,null,null,null,null,"CA-2017-747  Sunridge Apartments","CA-2017-747","Sunridge Apartments","1265 & 1271 Monument Boulevard","Concord","Contra Costa","94520","Monument Boulevard Housing Associates, LP","Concord Victory Lane, LLC"]
[null,null,null,null,null,null,null,null,null,null,null,null,null,null,null,null,null,null,null,null,null,null,null,null,null,null,null,null,null,null,null,null,null,null,null,null,null,null,null,null,null,null,null,null,"CA-2017-760  Casa Rita Apartments","CA-2017-760","Casa Rita Apartments","6508 Rita Avenue","Huntington Park","Los Angeles","90255","Casa Rita, LP","CADU Eleven, LLC"]
[null,null,null,null,null,null,null,null,null,null,null,null,null,null,null,null,null,null,null,null,null,null,null,null,null,null,null,null,null,null,null,null,null,null,null,null,null,null,null,null,null,null,null,null,"CA-2017-767  Kensington Apartments","CA-2017-767","Kensington Apartments","3644 Kings Way","Sacramento","Sacramento","95821","Kensington Apartments, LP","Casa Major, Inc."]
[null,null,null,null,null,null,null,null,null,null,null,null,null,null,null,null,null,null,null,null,null,null,null,null,null,null,null,null,null,null,null,null,null,null,null,null,null,null,null,null,null,null,null,null,"CA-2017-770  Cornerstone Place","CA-2017-770","Cornerstone Place","230 S. Sunshine Ave.","El Cajon","San Diego","92020","South Sunshine Associates, LP","Community Resident Services, Inc."]
[null,null,null,null,null,null,null,null,null,null,null,null,null,null,null,null,null,null,null,null,null,null,null,null,null,null,null,null,null,null,null,null,null,null,null,null,null,null,null,null,null,null,null,null,"CA-2017-789  Vista Del Sol Apartments","CA-2017-789","Vista Del Sol Apartments","1545 Q Avenue","National City","San Diego","91950","Vista del Sol Apartments, L.P.","Vista Del Sol GP, LLC"]
[null,null,null,null,null,null,null,null,null,null,null,null,null,null,null,null,null,null,null,null,null,null,null,null,null,null,null,null,null,null,null,null,null,null,null,null,null,null,null,null,null,null,null,null,"CA-2017-792  Mission Trail Apartments","CA-2017-792","Mission Trail Apartments","32585 Mission Trail","Lake Elsinore","Riverside","92530","Mission Trail LE, LP (to be formed)","OHDC Lake Elsinore, LLC"]
[null,null,null,null,null,null,null,null,null,null,null,null,null,null,null,null,null,null,null,null,null,null,null,null,null,null,null,null,null,null,null,null,null,null,null,null,null,null,null,null,null,null,null,null,"CA-2017-809  The Terraces at Nevin","CA-2017-809","The Terraces at Nevin","344 21st Street","Richmond","Contra Costa","94801","Richmond Nevin Associates, a California Limited Pa","Central Valley Coalition for Affordable Housing a"]
[null,null,null,null,null,null,null,null,null,null,null,null,null,null,null,null,null,null,null,null,null,null,null,null,null,null,null,null,null,null,null,null,null,null,null,null,null,null,null,null,null,null,null,null,"CA-2017-821  Paseo La Paz","CA-2017-821","Paseo La Paz","160 West Seaward Ave","San Ysidro","San Diego","92173","San Ysidro CIC, LP","Casa Familiar, Inc."]
[null,null,null,null,null,null,null,null,null,null,null,null,null,null,null,null,null,null,null,null,null,null,null,null,null,null,null,null,null,null,null,null,null,null,null,null,null,null,null,null,null,null,null,null,"CA-2018-025  Clayton Villa Apartments","CA-2018-025","Clayton Villa Apartments","4450 & 4455 Melody Drive","Concord","Contra Costa","94521","CLV Affordable LP","NHC MGP I LLC"]
[null,null,null,null,null,null,null,null,null,null,null,null,null,null,null,null,null,null,null,null,null,null,null,null,null,null,null,null,null,null,null,null,null,null,null,null,null,null,null,null,null,null,null,null,"CA-2018-055  The Gardens on Hope","CA-2018-055","The Gardens on Hope","251 S. Hope Avenue","Santa Barbara","Santa Barbara","93105","251 South Hope Associates, LP","Garden Court, Inc."]
[null,null,null,null,null,null,null,null,null,null,null,null,null,null,null,null,null,null,null,null,null,null,null,null,null,null,null,null,null,null,null,null,null,null,null,null,null,null,null,null,null,null,null,null,"CA-2018-068  Bay Meadows Affordable","CA-2018-068","Bay Meadows Affordable","2775 S. Delaware Street","San Mateo","San Mateo","94403","Bay Meadows Affordable Associates, L.P.","Bay Meadows Affordable Associates, LLC"]
[null,null,null,null,null,null,null,null,null,null,null,null,null,null,null,null,null,null,null,null,null,null,null,null,null,null,null,null,null,null,null,null,null,null,null,null,null,null,null,null,null,null,null,null,"CA-2018-073  Shasta Hotel","CA-2018-073","Shasta Hotel","1017 10th Street","Sacramento","Sacramento","95814","Shasta Hotel Housing Associates, L.P.","Shasta Hotel Housing Associates, LLC"]
[null,null,null,null,null,null,null,null,null,null,null,null,null,null,null,null,null,null,null,null,null,null,null,null,null,null,null,null,null,null,null,null,null,null,null,null,null,null,null,null,null,null,null,null,"CA-2018-108  Mariposa Meadows","CA-2018-108","Mariposa Meadows","1011 W. Atchison","Fresno","Fresno","93706","Silvercrest, Inc.","Silvercrest, Inc"]
[null,null,null,null,null,null,null,null,null,null,null,null,null,null,null,null,null,null,null,null,null,null,null,null,null,null,null,null,null,null,null,null,null,null,null,null,null,null,null,null,null,null,null,null,"CA-2018-114  Ocean Street Apartments","CA-2018-114","Ocean Street Apartments","350 Ocean Street","Santa Cruz","Santa Cruz","95060","Santa Cruz Pacific Associates, a California Limite","Central Valley Coalition for Affordable Housing"]
[null,null,null,null,null,null,null,null,null,null,null,null,null,null,null,null,null,null,null,null,null,null,null,null,null,null,null,null,null,null,null,null,null,null,null,null,null,null,null,null,null,null,null,null,"CA-2018-135  Chestnut Square Family Housing","CA-2018-135","Chestnut Square Family Housing","1665 Chestnut Street","Livermore","Alameda","94551","Chestnut Square Family Associates, L.P.","MP Chestnut Square Family LLC"]
[null,null,null,null,null,null,null,null,null,null,null,null,null,null,null,null,null,null,null,null,null,null,null,null,null,null,null,null,null,null,null,null,null,null,null,null,null,null,null,null,null,null,null,null,"CA-2018-604  2060 Folsom Family Housing","CA-2018-604","2060 Folsom Family Housing","2060 Folsom Street","San Francisco","San Francisco","94110","2060 Folsom Housing, L.P.","CCDC 2060 Folsom LLC"]
[null,null,null,null,null,null,null,null,null,null,null,null,null,null,null,null,null,null,null,null,null,null,null,null,null,null,null,null,null,null,null,null,null,null,null,null,null,null,null,null,null,null,null,null,"CA-2018-616  Residences on Main","CA-2018-616","Residences on Main","6901 S. Main Street","Los Angeles","Los Angeles","90003","Residences on Main, L.P.","Residences on Mian GP LLC"]
[null,null,null,null,null,null,null,null,null,null,null,null,null,null,null,null,null,null,null,null,null,null,null,null,null,null,null,null,null,null,null,null,null,null,null,null,null,null,null,null,null,null,null,null,"CA-2018-623  Solano Vista Senior Apartments","CA-2018-623","Solano Vista Senior Apartments","40 Valle Vista Avenue","Vallejo","Solano","94590","Solano Vallejo AR, L.P.","Las Palmas Foundation"]
[null,null,null,null,null,null,null,null,null,null,null,null,null,null,null,null,null,null,null,null,null,null,null,null,null,null,null,null,null,null,null,null,null,null,null,null,null,null,null,null,null,null,null,null,"CA-2018-636  Market Heights Apartments","CA-2018-636","Market Heights Apartments","1000 Tompkins Avenue; 211-291 Putnam Street","San Francisco","San Francisco","94110","Market Heights 2, LP","RPMH, LLC"]
[null,null,null,null,null,null,null,null,null,null,null,null,null,null,null,null,null,null,null,null,null,null,null,null,null,null,null,null,null,null,null,null,null,null,null,null,null,null,null,null,null,null,null,null,"CA-2018-640  Harbor View Apartments","CA-2018-640","Harbor View Apartments","402 47th Street","San Diego","San Diego","92101","Harbor View SD Partners, LP","Central Valley Coalition for Affordable Housing"]
[null,null,null,null,null,null,null,null,null,null,null,null,null,null,null,null,null,null,null,null,null,null,null,null,null,null,null,null,null,null,null,null,null,null,null,null,null,null,null,null,null,null,null,null,"CA-2018-664  Hotel Fresno Apartments","CA-2018-664","Hotel Fresno Apartments","1241 Broadway Plaza","Fresno","Fresno","93721","Broadway Plaza Family Apartments, LP","Broadway Plaza-H, LLC"]
[null,null,null,null,null,null,null,null,null,null,null,null,null,null,null,null,null,null,null,null,null,null,null,null,null,null,null,null,null,null,null,null,null,null,null,null,null,null,null,null,null,null,null,null,"CA-2018-701  One Church Street Apartments","CA-2018-701","One Church Street Apartments","1 Church Street","San Francisco","San Francisco","94114","Hermann Street Associates, LP","Herman Street Associates LLC"]
[null,null,null,null,null,null,null,null,null,null,null,null,null,null,null,null,null,null,null,null,null,null,null,null,null,null,null,null,null,null,null,null,null,null,null,null,null,null,null,null,null,null,null,null,"CA-2018-713  LA78","CA-2018-713","LA78","831 Lucile Avenue, 4131 W Normal Avenue, 4215 Burns Avenue, 135 S Reno Avenue, 1951 W 22nd Street, 8","Los Angeles","Los Angeles","Varies","LA78, LP","IH CDP Partnership LLC"]
[null,null,null,null,null,null,null,null,null,null,null,null,null,null,null,null,null,null,null,null,null,null,null,null,null,null,null,null,null,null,null,null,null,null,null,null,null,null,null,null,null,null,null,null,"CA-2018-723  Sunset Creek Apartments","CA-2018-723","Sunset Creek Apartments","840 East Travis Boulevard","Fairfield","Solano","94533","New Sunset Creek, L.P.","MP Sunset Creek LLC"]
[null,null,null,null,null,null,null,null,null,null,null,null,null,null,null,null,null,null,null,null,null,null,null,null,null,null,null,null,null,null,null,null,null,null,null,null,null,null,null,null,null,null,null,null,"CA-2018-740  Westlake Christian Terrace West","CA-2018-740","Westlake Christian Terrace West","275 28th Street","Oakland","Alameda","94611","Westlake Christian Terrace West, LP","WCTW Housing, LLC"]
[null,null,null,null,null,null,null,null,null,null,null,null,null,null,null,null,null,null,null,null,null,null,null,null,null,null,null,null,null,null,null,null,null,null,null,null,null,null,null,null,null,null,null,null,"CA-2018-747  San Pablo Hotel","CA-2018-747","San Pablo Hotel","1955 San Pablo Avenue","Oakland","Alameda","94612","San Pablo Hotel Associates II, LP","San Pablo Hotel Associates II, LLC"]
[null,null,null,null,null,null,null,null,null,null,null,null,null,null,null,null,null,null,null,null,null,null,null,null,null,null,null,null,null,null,null,null,null,null,null,null,null,null,null,null,null,null,null,null,"CA-2018-759  St. Anton ECR (fka Atria)","CA-2018-759","St. Anton ECR (fka Atria)","1008 E. El Camino Real and 1316 Poplar Avenue","Sunnyvale","Santa Clara","94087","St. Anton ECR, LP","Sunnyvale Park, LLC"]
[null,null,null,null,null,null,null,null,null,null,null,null,null,null,null,null,null,null,null,null,null,null,null,null,null,null,null,null,null,null,null,null,null,null,null,null,null,null,null,null,null,null,null,null,"CA-2018-762  Fairwood Apartments","CA-2018-762","Fairwood Apartments","8893 Fair Oaks Blvd","Carmichael","Sacramento","95608","OAHS Fairwood LP","PH Fairwood Holding LLC"]
[null,null,null,null,null,null,null,null,null,null,null,null,null,null,null,null,null,null,null,null,null,null,null,null,null,null,null,null,null,null,null,null,null,null,null,null,null,null,null,null,null,null,null,null,"CA-2018-781  Broadway Apartments","CA-2018-781","Broadway Apartments","301 West 49th Street","Los Angeles","Los Angeles","90037","Broadway Apartments Preservation, L.P.","Figueroa Economical Housing Development Corporation"]
[null,null,null,null,null,null,null,null,null,null,null,null,null,null,null,null,null,null,null,null,null,null,null,null,null,null,null,null,null,null,null,null,null,null,null,null,null,null,null,null,null,null,null,null,"CA-2018-784  Las Ventanas Apartments","CA-2018-784","Las Ventanas Apartments","1795 Long Beach Blvd","Long Beach","Los Angeles","90813","AMCAL Multi-Housing Inc.","Las Palmas Foundation"]
[null,null,null,null,null,null,null,null,null,null,null,null,null,null,null,null,null,null,null,null,null,null,null,null,null,null,null,null,null,null,null,null,null,null,null,null,null,null,null,null,null,null,null,null,"CA-2019-010  Cameron Villa Apartments","CA-2019-010","Cameron Villa Apartments","160 Mark Randy Place","Modesto","Stanislaus","95350","Cameron Villa 2018 Limited Partnership","AOF Cameron Villa L.L.C."]
[null,null,null,null,null,null,null,null,null,null,null,null,null,null,null,null,null,null,null,null,null,null,null,null,null,null,null,null,null,null,null,null,null,null,null,null,null,null,null,null,null,null,null,null,"CA-2019-021  Renaissance at Cincotta","CA-2019-021","Renaissance at Cincotta","4041 Plaza Drive West","Fresno","Fresno","93702","Silvercrest, Inc.","Silvercrest, Inc"]
[null,null,null,null,null,null,null,null,null,null,null,null,null,null,null,null,null,null,null,null,null,null,null,null,null,null,null,null,null,null,null,null,null,null,null,null,null,null,null,null,null,null,null,null,"CA-2019-042  Altamira Family Apartments","CA-2019-042","Altamira Family Apartments","20269 Broadway","Sonoma","Sonoma","95476","Satellite Affordable Housing Associates","Satellite AHA Development Inc."]
[null,null,null,null,null,null,null,null,null,null,null,null,null,null,null,null,null,null,null,null,null,null,null,null,null,null,null,null,null,null,null,null,null,null,null,null,null,null,null,null,null,null,null,null,"CA-2019-059  Bloomington Housing Phase III","CA-2019-059","Bloomington Housing Phase III","17906 Valley Boulevard, Bloomington CA","Bloomington","San Bernardino","92316","Bloomington III Housing Partners, L.P.","Related/Bloomington III Development Co., LLC"]
[null,null,null,null,null,null,null,null,null,null,null,null,null,null,null,null,null,null,null,null,null,null,null,null,null,null,null,null,null,null,null,null,null,null,null,null,null,null,null,null,null,null,null,null,"CA-2019-088  Manchester-Orangewood Apartment Homes","CA-2019-088","Manchester-Orangewood Apartment Homes","2121 S. Manchester Avenue/ 915 E. Orangewood Avenue","Anaheim","Orange","92805","Jamboree Housing Corporation"]
[null,null,null,null,null,null,null,null,null,null,null,null,null,null,null,null,null,null,null,null,null,null,null,null,null,null,null,null,null,null,null,null,null,null,null,null,null,null,null,null,null,null,null,null,"CA-2019-093  Parque Vista Apartments","CA-2019-093","Parque Vista Apartments","2581 E. Chaucer Street","Los Angeles","Los Angeles","90065","Parque Vista, L.P.","New Economics For Women"]
[null,null,null,null,null,null,null,null,null,null,null,null,null,null,null,null,null,null,null,null,null,null,null,null,null,null,null,null,null,null,null,null,null,null,null,null,null,null,null,null,null,null,null,null,"CA-2019-402  353 Main Street Family Apartments","CA-2019-402","353 Main Street Family Apartments","353 Main Street","Redwood City","San Mateo","94063","ROEM Development Corporation","Pacific Housing, Inc."]
[null,null,null,null,null,null,null,null,null,null,null,null,null,null,null,null,null,null,null,null,null,null,null,null,null,null,null,null,null,null,null,null,null,null,null,null,null,null,null,null,null,null,null,null,"CA-2019-408  Monarch Homes","CA-2019-408","Monarch Homes","3268 San Pablo Avenue","Oakland","Alameda","94608","3268 San Pablo, L.P.","3268 San Pablo Drive LLC"]
[null,null,null,null,null,null,null,null,null,null,null,null,null,null,null,null,null,null,null,null,null,null,null,null,null,null,null,null,null,null,null,null,null,null,null,null,null,null,null,null,null,null,null,null,"CA-2019-434  Whittiter Place Apartments Phase II","CA-2019-434","Whittiter Place Apartments Phase II","4101-4117 Whittier Boulevard","Unincorporated","Los Angeles","90023","Whittier PSH Phase II, LP","Whittier PSH Phase II, LLC"]
[null,null,null,null,null,null,null,null,null,null,null,null,null,null,null,null,null,null,null,null,null,null,null,null,null,null,null,null,null,null,null,null,null,null,null,null,null,null,null,null,null,null,null,null,"CA-2019-438  Imperial VI","CA-2019-438","Imperial VI","6 Scattered Sites (See Form B FileNet)","Calexico/Seeley/Holtville","Imperial","92231/92250/92273/92227","Imperial VI, LP","Bettencourt Properties, Inc."]
[null,null,null,null,null,null,null,null,null,null,null,null,null,null,null,null,null,null,null,null,null,null,null,null,null,null,null,null,null,null,null,null,null,null,null,null,null,null,null,null,null,null,null,null,"CA-2019-457  Emerson Apartments","CA-2019-457","Emerson Apartments","4760 and 4766 Melrose Avenue","Los Angeles","Los Angeles","90029","Melrose PSH, L.P.","Las Palmas Foundation"]
[null,null,null,null,null,null,null,null,null,null,null,null,null,null,null,null,null,null,null,null,null,null,null,null,null,null,null,null,null,null,null,null,null,null,null,null,null,null,null,null,null,null,null,null,"CA-2019-464  Palm Court","CA-2019-464","Palm Court","1200 Lick Ave","San Jose","Santa Clara","95110","Palm Court San Jose, L.P.","Palm Court San Jose, LLC"]
[null,null,null,null,null,null,null,null,null,null,null,null,null,null,null,null,null,null,null,null,null,null,null,null,null,null,null,null,null,null,null,null,null,null,null,null,null,null,null,null,null,null,null,null,"CA-2019-485  Pavilion Court Apartments","CA-2019-485","Pavilion Court Apartments","8371 & 8405 Telegraph Road","Pico Rivera","Los Angeles","90660","Pavillion Affordable Housing, L.P.","Kingdom Pavilion, LLC"]
[null,null,null,null,null,null,null,null,null,null,null,null,null,null,null,null,null,null,null,null,null,null,null,null,null,null,null,null,null,null,null,null,null,null,null,null,null,null,null,null,null,null,null,null,"CA-2019-488  14th & Commercial Apartments","CA-2019-488","14th & Commercial Apartments","1 14th Street","San Diego","San Diego","92101","14th & Commercial CIC, LP","CIC 14th & Commercial, LLC"]
[null,null,null,null,null,null,null,null,null,null,null,null,null,null,null,null,null,null,null,null,null,null,null,null,null,null,null,null,null,null,null,null,null,null,null,null,null,null,null,null,null,null,null,null,"CA-2019-506  PATH Villas Montclair - Gramercy","CA-2019-506","PATH Villas Montclair - Gramercy","4220 W. Montclair St. (Site 1) & 3317 W. Washington Blvd (Site 2)","Los Angeles","Los Angeles","90018","Montclair LA LP","Montclair GP LLC"]
[null,null,null,null,null,null,null,null,null,null,null,null,null,null,null,null,null,null,null,null,null,null,null,null,null,null,null,null,null,null,null,null,null,null,null,null,null,null,null,null,null,null,null,null,"CA-2019-515  El Monte Metro","CA-2019-515","El Monte Metro","3650 Center Avenue","El Monte","Los Angeles","91731","El Monte Metro Family Housing, LP","El Monte Metro Veterans Housing, LLC"]
[null,null,null,null,null,null,null,null,null,null,null,null,null,null,null,null,null,null,null,null,null,null,null,null,null,null,null,null,null,null,null,null,null,null,null,null,null,null,null,null,null,null,null,null,"CA-2019-533  Villa Valley Apartments","CA-2019-533","Villa Valley Apartments","15950 Sherman Way","Van Nuys","Los Angeles","91406","Villa Valley Apartments, LP","AOF Pacific CA-1 LLC"]
[null,null,null,null,null,null,null,null,null,null,null,null,null,null,null,null,null,null,null,null,null,null,null,null,null,null,null,null,null,null,null,null,null,null,null,null,null,null,null,null,null,null,null,null,"CA-2019-536  Hallmark House Apartments","CA-2019-536","Hallmark House Apartments","531 Woodside Road","Redwood City","San Mateo","94061","Hallmark 2017 LP","AHA Santa Clara MGP, LLC"]
[null,null,null,null,null,null,null,null,null,null,null,null,null,null,null,null,null,null,null,null,null,null,null,null,null,null,null,null,null,null,null,null,null,null,null,null,null,null,null,null,null,null,null,null,"CA-2019-550  Arena Seniors Apartments","CA-2019-550","Arena Seniors Apartments","Corner of Truxel Road & East Sports Parkway","Sacramento","Sacramento","95834","Arena Senior Investors, LP","Ionic Enterprises, Inc."]
[null,null,null,null,null,null,null,null,null,null,null,null,null,null,null,null,null,null,null,null,null,null,null,null,null,null,null,null,null,null,null,null,null,null,null,null,null,null,null,null,null,null,null,null,"CA-2019-557  East Block Senior Apartments","CA-2019-557","East Block Senior Apartments","4320 44th St","San Diego","San Diego","92115","Fairmount Senior Housing CIC, LP","CIC Fairmount Senior Housing, LLC"]
[null,null,null,null,null,null,null,null,null,null,null,null,null,null,null,null,null,null,null,null,null,null,null,null,null,null,null,null,null,null,null,null,null,null,null,null,null,null,null,null,null,null,null,null,"CA-2019-571  Quail Run Apartments","CA-2019-571","Quail Run Apartments","1018 Bellevue Avenue","Santa Rosa","Sonoma","95407","Santa Rosa Quail Run, LP","Santa Rosa Quail Run LLC"]
[null,null,null,null,null,null,null,null,null,null,null,null,null,null,null,null,null,null,null,null,null,null,null,null,null,null,null,null,null,null,null,null,null,null,null,null,null,null,null,null,null,null,null,null,"CA-2019-578  Cinnamon Villas II","CA-2019-578","Cinnamon Villas II","235 W. Cinnamon Drive","Lemoore","Kings","93245","Lemoore Pacific Associates III, a California Limit","Kaweah Management Company"]
[null,null,null,null,null,null,null,null,null,null,null,null,null,null,null,null,null,null,null,null,null,null,null,null,null,null,null,null,null,null,null,null,null,null,null,null,null,null,null,null,null,null,null,null,"CA-2019-592  Hayes Valley South","CA-2019-592","Hayes Valley South","401 Rose Street","San Francisco","San Francisco","94102","Hayes Valley IV, L.P.","Hayes Valley IV MBS GP, Inc."]
[null,null,null,null,null,null,null,null,null,null,null,null,null,null,null,null,null,null,null,null,null,null,null,null,null,null,null,null,null,null,null,null,null,null,null,null,null,null,null,null,null,null,null,null,"CA-2019-597  The Concord","CA-2019-597","The Concord","275 E Cordova Street","Pasadena","Los Angeles","91101","Concord RHF Partners, LP","Concord MGP, LLC"]
[null,null,null,null,null,null,null,null,null,null,null,null,null,null,null,null,null,null,null,null,null,null,null,null,null,null,null,null,null,null,null,null,null,null,null,null,null,null,null,null,null,null,null,null,"CA-2020-011  Capitol Park Hotel","CA-2020-011","Capitol Park Hotel","1125 9th Street","Sacramento","Sacramento","95814","Mercy Housing California","1121 9th Street, LLC"]
[null,null,null,null,null,null,null,null,null,null,null,null,null,null,null,null,null,null,null,null,null,null,null,null,null,null,null,null,null,null,null,null,null,null,null,null,null,null,null,null,null,null,null,null,"CA-2020-017  North Fork LIHTC Homes #1","CA-2020-017","North Fork LIHTC Homes #1","57907 Old Mill Site Court","North Fork","Madera","93643","North Fork LIHTC Homes #1 Limited Partnership","North Fork Rancheria Housing Authority"]
[null,null,null,null,null,null,null,null,null,null,null,null,null,null,null,null,null,null,null,null,null,null,null,null,null,null,null,null,null,null,null,null,null,null,null,null,null,null,null,null,null,null,null,null,"CA-2020-038  Barstow Commons","CA-2020-038","Barstow Commons","130 W. Barstow Avenue","Fresno","Fresno","93704","Silvercrest, Inc.","Silvercrest, Inc"]
[null,null,null,null,null,null,null,null,null,null,null,null,null,null,null,null,null,null,null,null,null,null,null,null,null,null,null,null,null,null,null,null,null,null,null,null,null,null,null,null,null,null,null,null,"CA-2020-054  Beach Park Apartments","CA-2020-054","Beach Park Apartments","720 West Beach Avenue","Inglewood","Los Angeles","90302","Beach Avenue Housing, L.P.","Housing Corporation of America"]
[null,null,null,null,null,null,null,null,null,null,null,null,null,null,null,null,null,null,null,null,null,null,null,null,null,null,null,null,null,null,null,null,null,null,null,null,null,null,null,null,null,null,null,null,"CA-2020-073  Parkside Phase 1","CA-2020-073","Parkside Phase 1","1112, 1114 & 1115 Parkside Street","Salinas","Monterey","93906","Monterey County Housing Authority Development Corp","Monterey Housing Authority Development Corporation"]
[null,null,null,null,null,null,null,null,null,null,null,null,null,null,null,null,null,null,null,null,null,null,null,null,null,null,null,null,null,null,null,null,null,null,null,null,null,null,null,null,null,null,null,null,"CA-2020-082  Tyler - Valley Metro Housing","CA-2020-082","Tyler - Valley Metro Housing","3637 & 3649 Tyler Avenue","El Monte","Los Angeles","91731","Vista del Monte Affordable Housing, Inc.","Vista del Monte Affordable Housing, Inc."]
[null,null,null,null,null,null,null,null,null,null,null,null,null,null,null,null,null,null,null,null,null,null,null,null,null,null,null,null,null,null,null,null,null,null,null,null,null,null,null,null,null,null,null,null,"CA-2020-108  Sunrise Pointe","CA-2020-108","Sunrise Pointe","7424 Sunrise Blvd.","Citrus Heights","Sacramento","95610","Jamboree Housing Corporation","Jamboree Housing Corporation"]
[null,null,null,null,null,null,null,null,null,null,null,null,null,null,null,null,null,null,null,null,null,null,null,null,null,null,null,null,null,null,null,null,null,null,null,null,null,null,null,null,null,null,null,null,"CA-2020-117  1819 Pico Blvd","CA-2020-117","1819 Pico Blvd","2024 19TH ST., 2024 18TH ST., 1918 & 1819 PICO BLVD","Santa Monica","Los Angeles","90405","Community Corporation of Santa Monica","Commmunity Corporation of Santa Monica"]
[null,null,null,null,null,null,null,null,null,null,null,null,null,null,null,null,null,null,null,null,null,null,null,null,null,null,null,null,null,null,null,null,null,null,null,null,null,null,null,null,null,null,null,null,"CA-2020-140  Palmdale Terrace Apartments","CA-2020-140","Palmdale Terrace Apartments","N/A Not yet established","Palmdale","Los Angeles","93550","Palmdale Terrace Apartments, L.P.","Palmdale Terrace Apartments, LLC"]
[null,null,null,null,null,null,null,null,null,null,null,null,null,null,null,null,null,null,null,null,null,null,null,null,null,null,null,null,null,null,null,null,null,null,null,null,null,null,null,null,null,null,null,null,"CA-2020-147  Ventura Veterans Home","CA-2020-147","Ventura Veterans Home","10900 Telephone Road","San Buenaventura","Ventura","93004","Ventura Veterans, L.P.","Supportive Housing LLC"]
[null,null,null,null,null,null,null,null,null,null,null,null,null,null,null,null,null,null,null,null,null,null,null,null,null,null,null,null,null,null,null,null,null,null,null,null,null,null,null,null,null,null,null,null,"CA-2020-180  Depot at Hyde Park","CA-2020-180","Depot at Hyde Park","6527-6531 S Crenshaw","Los Angeles","Los Angeles","90043","Depot at Hyde Park Partners, LP","Depot at Hyde Park Developers, LLC"]
[null,null,null,null,null,null,null,null,null,null,null,null,null,null,null,null,null,null,null,null,null,null,null,null,null,null,null,null,null,null,null,null,null,null,null,null,null,null,null,null,null,null,null,null,"CA-2020-198  Mitchell Avenue Senior Apartments","CA-2020-198","Mitchell Avenue Senior Apartments","North side of Mitchell Avenue, east of Feather River Boulevard","Oroville","Butte","95965","Oroville Senior Associates, a California Limited P","TPC Holdings VII, LLC"]
[null,null,null,null,null,null,null,null,null,null,null,null,null,null,null,null,null,null,null,null,null,null,null,null,null,null,null,null,null,null,null,null,null,null,null,null,null,null,null,null,null,null,null,null,"CA-2020-417  Boyd Street Family Apartments","CA-2020-417","Boyd Street Family Apartments","811 boyd Street","Santa Rosa","Sonoma","95407","Santa Rosa Boyd LP","Community Revitalization & Development Corporation"]
[null,null,null,null,null,null,null,null,null,null,null,null,null,null,null,null,null,null,null,null,null,null,null,null,null,null,null,null,null,null,null,null,null,null,null,null,null,null,null,null,null,null,null,null,"CA-2020-430  Doragon @ Chinatown","CA-2020-430","Doragon @ Chinatown","1101 F Street","Fresno","Fresno","93706","Doragon @ Chinatown, LP","Doragon @ Chinatown AGP, LLC"]
[null,null,null,null,null,null,null,null,null,null,null,null,null,null,null,null,null,null,null,null,null,null,null,null,null,null,null,null,null,null,null,null,null,null,null,null,null,null,null,null,null,null,null,null,"CA-2020-446  Mission Heritage Plaza","CA-2020-446","Mission Heritage Plaza","3933 Mission Inn Avenue and 3655 Fairmount Blvd","Riverside","Riverside","92501","Wakeland Housing and Development Corporation","Wakeland Mission Heritage LLC"]
[null,null,null,null,null,null,null,null,null,null,null,null,null,null,null,null,null,null,null,null,null,null,null,null,null,null,null,null,null,null,null,null,null,null,null,null,null,null,null,null,null,null,null,null,"CA-2020-451  West LA VA Building 207","CA-2020-451","West LA VA Building 207","11301 Wilshire Blvd., Building 207","Los Angeles","Los Angeles","90073","VA Building 207 LP","Housing Corporation of America"]
[null,null,null,null,null,null,null,null,null,null,null,null,null,null,null,null,null,null,null,null,null,null,null,null,null,null,null,null,null,null,null,null,null,null,null,null,null,null,null,null,null,null,null,null,"CA-2020-516  Fancher Creek Senior Apartments","CA-2020-516","Fancher Creek Senior Apartments","Northeast corner of Marion Avenue and Fancher Creek Drive","Fresno","Fresno","93727","FCTC Senior, LP","Dominus Consortium, LLC"]
[null,null,null,null,null,null,null,null,null,null,null,null,null,null,null,null,null,null,null,null,null,null,null,null,null,null,null,null,null,null,null,null,null,null,null,null,null,null,null,null,null,null,null,null,"CA-2020-519  The Atchison","CA-2020-519","The Atchison","2575 Railroad Avenue","Pittsburg","Contra Costa","94565","2575 Railroad Ave., L.P.","Corporation for Better Housing"]
[null,null,null,null,null,null,null,null,null,null,null,null,null,null,null,null,null,null,null,null,null,null,null,null,null,null,null,null,null,null,null,null,null,null,null,null,null,null,null,null,null,null,null,null,"CA-2020-530  53 Colton","CA-2020-530","53 Colton","53 Colton Street","San Francisco","San Francisco","94103","Community Housing Partnership","CHP Colton, LLC"]
[null,null,null,null,null,null,null,null,null,null,null,null,null,null,null,null,null,null,null,null,null,null,null,null,null,null,null,null,null,null,null,null,null,null,null,null,null,null,null,null,null,null,null,null,"CA-2020-545  833 Bryant Apartments","CA-2020-545","833 Bryant Apartments","833 Bryant Street","San Francisco","San Francisco","94103","833 Bryant, L.P.","833 Bryant LLC"]
[null,null,null,null,null,null,null,null,null,null,null,null,null,null,null,null,null,null,null,null,null,null,null,null,null,null,null,null,null,null,null,null,null,null,null,null,null,null,null,null,null,null,null,null,"CA-2020-569  Alum Rock Family Housing","CA-2020-569","Alum Rock Family Housing","2350 Alum Rock Avenue","San Jose","Santa Clara","95116","Alum Rock Family Housing, L.P.","AHG Alum Rock, LLC"]
[null,null,null,null,null,null,null,null,null,null,null,null,null,null,null,null,null,null,null,null,null,null,null,null,null,null,null,null,null,null,null,null,null,null,null,null,null,null,null,null,null,null,null,null,{"$f":"CONCATENATE(AT4611,\"  \",AU4611)","v":"CA-2020-580  Las Terrazas Apartments"},"CA-2020-580","Las Terrazas Apartments","1176 W. Valley Boulevard","Colton","San Bernardino","92324","AMCAL Las Terrazas Fund, LP","AMCAL Multi-Housing Inc."]
[null,null,null,null,null,null,null,null,null,null,null,null,null,null,null,null,null,null,null,null,null,null,null,null,null,null,null,null,null,null,null,null,null,null,null,null,null,null,null,null,null,null,null,null,"CA-2020-603  Sunny Garden Apartments","CA-2020-603","Sunny Garden Apartments","13712 Sunkist Drive","La Puente","Los Angeles","91746","Sunny Garden Apartments 2, LP","Sunny Garden GP, LLC"]
[null,null,null,null,null,null,null,null,null,null,null,null,null,null,null,null,null,null,null,null,null,null,null,null,null,null,null,null,null,null,null,null,null,null,null,null,null,null,null,null,null,null,null,null,"CA-2020-606  1st and Kern Apartments","CA-2020-606","1st and Kern Apartments","971 1st Street","Gilroy","Santa Clara","95020","JEMCOR Development Partners, LLC","To Be Formed, LLC"]
[null,null,null,null,null,null,null,null,null,null,null,null,null,null,null,null,null,null,null,null,null,null,null,null,null,null,null,null,null,null,null,null,null,null,null,null,null,null,null,null,null,null,null,null,"CA-2020-638  Vintage at Woodman","CA-2020-638","Vintage at Woodman","7660-7700 Woodman Avenue","Los Angeles","Los Angeles","91402","Panorama City 684, L.P.","USA Panorama City 684, Inc."]
[null,null,null,null,null,null,null,null,null,null,null,null,null,null,null,null,null,null,null,null,null,null,null,null,null,null,null,null,null,null,null,null,null,null,null,null,null,null,null,null,null,null,null,null,"CA-2020-644  Main Street Apartments","CA-2020-644","Main Street Apartments","5501 & 5511 S. Main Street","Los Angeles","Los Angeles","90037","Main 50 Housing, LP","WCH Affordable XXXV, LLC"]
[null,null,null,null,null,null,null,null,null,null,null,null,null,null,null,null,null,null,null,null,null,null,null,null,null,null,null,null,null,null,null,null,null,null,null,null,null,null,null,null,null,null,null,null,"CA-2020-668  Midway Village Phase 1","CA-2020-668","Midway Village Phase 1","45 and 47 Midway Drive","Daly City","San Mateo","94014","MP Midway Associates I, L.P.","MP Midway I, LLC"]
[null,null,null,null,null,null,null,null,null,null,null,null,null,null,null,null,null,null,null,null,null,null,null,null,null,null,null,null,null,null,null,null,null,null,null,null,null,null,null,null,null,null,null,null,"CA-2020-688  Harriet Tubman Terrace Apartments","CA-2020-688","Harriet Tubman Terrace Apartments","2870 Adeline Street","Berkeley","Alameda","94703","HT Terrace Renewal LP","Renewal Housing, Inc."]
[null,null,null,null,null,null,null,null,null,null,null,null,null,null,null,null,null,null,null,null,null,null,null,null,null,null,null,null,null,null,null,null,null,null,null,null,null,null,null,null,null,null,null,null,"CA-2020-712  Northlake Senior Apartments","CA-2020-712","Northlake Senior Apartments","SE Corner of Hammock Avenue and Littlestone Street","Sacramento","Sacramento","95835","Northlake Senior Affordable, LP","St. Anton Natomas Senior Affordable, LLC"]
[null,null,null,null,null,null,null,null,null,null,null,null,null,null,null,null,null,null,null,null,null,null,null,null,null,null,null,null,null,null,null,null,null,null,null,null,null,null,null,null,null,null,null,null,"CA-2020-725  Weingart Tower I","CA-2020-725","Weingart Tower I","555-561 S. Crocker Street","Los Angeles","Los Angeles","90013","Weingart Tower, LP","CIC Weingart Tower, LLC"]
[null,null,null,null,null,null,null,null,null,null,null,null,null,null,null,null,null,null,null,null,null,null,null,null,null,null,null,null,null,null,null,null,null,null,null,null,null,null,null,null,null,null,null,null,"CA-2020-900  Glen Loma Ranch Apartments","CA-2020-900","Glen Loma Ranch Apartments","North of W. Luchessa Ave. between W. 10th St. & Miller Ave","Gilroy","Santa Clara","95020","Gilroy Glen Loma Pacific Associates, a California","TPC Holdings VII, LLC"]
[null,null,null,null,null,null,null,null,null,null,null,null,null,null,null,null,null,null,null,null,null,null,null,null,null,null,null,null,null,null,null,null,null,null,null,null,null,null,null,null,null,null,null,null,"CA-2020-903  Scripps Mesa Apartments","CA-2020-903","Scripps Mesa Apartments","10380 Spring Canyon Road","San Diego","San Diego","92131","Scripps Mesa Apartments, L.P.","Monarch Essex Scripps GP, LLC"]
[null,null,null,null,null,null,null,null,null,null,null,null,null,null,null,null,null,null,null,null,null,null,null,null,null,null,null,null,null,null,null,null,null,null,null,null,null,null,null,null,null,null,null,null,"CA-2021-028  Harry's House","CA-2021-028","Harry's House","890 N Refugio Road","Santa Ynez","Santa Barbara","93460","Harry's House, L.P.","Surf Development Company"]
[null,null,null,null,null,null,null,null,null,null,null,null,null,null,null,null,null,null,null,null,null,null,null,null,null,null,null,null,null,null,null,null,null,null,null,null,null,null,null,null,null,null,null,null,"CA-2021-034  Walnut Terrace","CA-2021-034","Walnut Terrace","1032 Walnut Avenue","Greenfield","Monterey","93927","1032 Walnut Ave., L.P., a California limited partn","Corporation for Better Housing"]
[null,null,null,null,null,null,null,null,null,null,null,null,null,null,null,null,null,null,null,null,null,null,null,null,null,null,null,null,null,null,null,null,null,null,null,null,null,null,null,null,null,null,null,null,"CA-2021-050  Valley Senior Village","CA-2021-050","Valley Senior Village","337 East Valley Parkway","Escondido","San Diego","92025","Ivy Valley Housing Partners, L.P.","National Community Renaissance of California"]
[null,null,null,null,null,null,null,null,null,null,null,null,null,null,null,null,null,null,null,null,null,null,null,null,null,null,null,null,null,null,null,null,null,null,null,null,null,null,null,null,null,null,null,null,"CA-2021-074  Sycamore Place","CA-2021-074","Sycamore Place","35 Laurel Drive","Danville","Contra Costa","94526","BRIDGE Housing Corporation","TBD"]
[null,null,null,null,null,null,null,null,null,null,null,null,null,null,null,null,null,null,null,null,null,null,null,null,null,null,null,null,null,null,null,null,null,null,null,null,null,null,null,null,null,null,null,null,"CA-2021-094  Lucena on Court","CA-2021-094","Lucena on Court","1919 W. Court Street","Los Angeles","Los Angeles","90026","BTICS, L.P.","FFAH V Lucena on Court, LLC"]
[null,null,null,null,null,null,null,null,null,null,null,null,null,null,null,null,null,null,null,null,null,null,null,null,null,null,null,null,null,null,null,null,null,null,null,null,null,null,null,null,null,null,null,null,"CA-2021-102  Live Oak Redding","CA-2021-102","Live Oak Redding","1320 & 1358 Old Alturas Road","Redding","Shasta","96003-9653","ADK Properties, LLC","To be formed LLC"]
[null,null,null,null,null,null,null,null,null,null,null,null,null,null,null,null,null,null,null,null,null,null,null,null,null,null,null,null,null,null,null,null,null,null,null,null,null,null,null,null,null,null,null,null,"CA-2021-124  Heritage House & Valle Verde","CA-2021-124","Heritage House & Valle Verde","3700 and 3710 Valle Verde Drive","Napa","Napa","94558","Burbank Housing Development Corporation","Burbank Housing Development Corporation"]
[null,null,null,null,null,null,null,null,null,null,null,null,null,null,null,null,null,null,null,null,null,null,null,null,null,null,null,null,null,null,null,null,null,null,null,null,null,null,null,null,null,null,null,null,"CA-2021-133  Clinton Avenue Apartments","CA-2021-133","Clinton Avenue Apartments",null,"Fresno","Fresno","93704","1538 E. Clinton Ave., L.P., a California limited p","Corporation for Better Housing"]
[null,null,null,null,null,null,null,null,null,null,null,null,null,null,null,null,null,null,null,null,null,null,null,null,null,null,null,null,null,null,null,null,null,null,null,null,null,null,null,null,null,null,null,null,"CA-2021-151  Casa Sonoma Apartments","CA-2021-151","Casa Sonoma Apartments","513 W Canal St.","Calexico","Imperial","92231","Step Forward Communities","Synergy Community Development Corporation"]
[null,null,null,null,null,null,null,null,null,null,null,null,null,null,null,null,null,null,null,null,null,null,null,null,null,null,null,null,null,null,null,null,null,null,null,null,null,null,null,null,null,null,null,null,"CA-2021-155  Calexico Meadows","CA-2021-155","Calexico Meadows","2420 Rancho Frontera Avenue","Calexico","Imperial","92231","Calexico Meadows CIC, LP","Pacific Southwest Community Development Corporation"]
[null,null,null,null,null,null,null,null,null,null,null,null,null,null,null,null,null,null,null,null,null,null,null,null,null,null,null,null,null,null,null,null,null,null,null,null,null,null,null,null,null,null,null,null,"CA-2021-163  4507 Main St.","CA-2021-163","4507 Main St.","4504 - 4519 South Main Street","Los Angeles","Los Angeles","90037","EAH Inc.","4507 Main St. EAH, LLC"]
[null,null,null,null,null,null,null,null,null,null,null,null,null,null,null,null,null,null,null,null,null,null,null,null,null,null,null,null,null,null,null,null,null,null,null,null,null,null,null,null,null,null,null,null,"CA-2021-183  Napa Cove Apartments","CA-2021-183","Napa Cove Apartments","3805 Broadway","American Canyon","Napa","94503","CRP Napa Cove Apartments LP (To be Formed)","CRP Napa Cove Apartments AGP LLC (To Be Formed)"]
[null,null,null,null,null,null,null,null,null,null,null,null,null,null,null,null,null,null,null,null,null,null,null,null,null,null,null,null,null,null,null,null,null,null,null,null,null,null,null,null,null,null,null,null,"CA-2021-456  Brentwood Crossings","CA-2021-456","Brentwood Crossings","7350 Willis Avenue","Bakersfield","Kern","93006","Bakersfield Brentwood LP (to be formed)","Johnson & Johnson Investments, LLC"]
[null,null,null,null,null,null,null,null,null,null,null,null,null,null,null,null,null,null,null,null,null,null,null,null,null,null,null,null,null,null,null,null,null,null,null,null,null,null,null,null,null,null,null,null,"CA-2021-478  Oasis Senior Villas","CA-2021-478","Oasis Senior Villas","2340 14th Street","Riverside","Riverside","92507","Riverside Supportive Housing, L.P.","Supportive Housing LLC"]
[null,null,null,null,null,null,null,null,null,null,null,null,null,null,null,null,null,null,null,null,null,null,null,null,null,null,null,null,null,null,null,null,null,null,null,null,null,null,null,null,null,null,null,null,"CA-2021-504  Depot Community Apartments","CA-2021-504","Depot Community Apartments","2595 Depot Road","Hayward","Alameda","94545","Allied Housing, Inc","Allied 2595 Depot LLC"]
[null,null,null,null,null,null,null,null,null,null,null,null,null,null,null,null,null,null,null,null,null,null,null,null,null,null,null,null,null,null,null,null,null,null,null,null,null,null,null,null,null,null,null,null,"CA-2021-530  The Brine Residential","CA-2021-530","The Brine Residential","3016 N Main Street","Los Angeles","Los Angeles","90031","Brine Residential, LP","Brine PSH LLC"]
[null,null,null,null,null,null,null,null,null,null,null,null,null,null,null,null,null,null,null,null,null,null,null,null,null,null,null,null,null,null,null,null,null,null,null,null,null,null,null,null,null,null,null,null,"CA-2021-544  Central Apartments","CA-2021-544","Central Apartments","2106, 2108, 2112 S Central Avenue","Los Angeles","Los Angeles","90011","Central Avenue Housing, LP","WCH Affordable XXXVI, LLC"]
[null,null,null,null,null,null,null,null,null,null,null,null,null,null,null,null,null,null,null,null,null,null,null,null,null,null,null,null,null,null,null,null,null,null,null,null,null,null,null,null,null,null,null,null,"CA-2021-547  Montesquieu Manor PSH","CA-2021-547","Montesquieu Manor PSH","316 N. Juanita Avenue","Los Angeles","Los Angeles","90004","Montesquieu Manor Associates, a California Limited","TPC Holdings IX, LLC"]
[null,null,null,null,null,null,null,null,null,null,null,null,null,null,null,null,null,null,null,null,null,null,null,null,null,null,null,null,null,null,null,null,null,null,null,null,null,null,null,null,null,null,null,null,"CA-2021-565  Heritage Park","CA-2021-565","Heritage Park","8685 Old Redwood Highway","Windsor","Sonoma","95492","Heritage Park L.P.","W&J Tax Credit Investments, LLC"]
[null,null,null,null,null,null,null,null,null,null,null,null,null,null,null,null,null,null,null,null,null,null,null,null,null,null,null,null,null,null,null,null,null,null,null,null,null,null,null,null,null,null,null,null,"CA-2021-593  Bascom Apartments","CA-2021-593","Bascom Apartments","3090 South Bascom Avenue","San Jose","Santa Clara","95124","Bascom Affordable Housing, L.P.","AHG Bascom, LLC"]
[null,null,null,null,null,null,null,null,null,null,null,null,null,null,null,null,null,null,null,null,null,null,null,null,null,null,null,null,null,null,null,null,null,null,null,null,null,null,null,null,null,null,null,null,"CA-2021-603  Vista de La Sierra","CA-2021-603","Vista de La Sierra","11253 Pierce Street","Riverside","Riverside","92505","Golden Pierce Housing Partners, LP","NCRC Golden Pierce, LLC"]
[null,null,null,null,null,null,null,null,null,null,null,null,null,null,null,null,null,null,null,null,null,null,null,null,null,null,null,null,null,null,null,null,null,null,null,null,null,null,null,null,null,null,null,null,"CA-2021-647  Portola Senior","CA-2021-647","Portola Senior"," Glenn Ranch Rd and Saddleback Ranch Rd","Lake Forest","Orange","92679","Portola Senior Housing Associates, LP","Lake Forest Housing Opportunities, LLC"]
[null,null,null,null,null,null,null,null,null,null,null,null,null,null,null,null,null,null,null,null,null,null,null,null,null,null,null,null,null,null,null,null,null,null,null,null,null,null,null,null,null,null,null,null,"CA-2021-667  Vista Sunrise II","CA-2021-667","Vista Sunrise II","1527 North Sunrise Way","Palm Springs","Riverside","92262","Coachella Valley Housing Coalition\\ Vista Sunrise","CVHC Sunrise Vista LLC"]
[null,null,null,null,null,null,null,null,null,null,null,null,null,null,null,null,null,null,null,null,null,null,null,null,null,null,null,null,null,null,null,null,null,null,null,null,null,null,null,null,null,null,null,null,"CA-2021-682  Poppy Grove I","CA-2021-682","Poppy Grove I","10149 Bruceville Road","Elk Grove","Sacramento","95757","Oakland Economic Development Corporation","Poppy Grove Development Partners, LLC (TBF)"]
[null,null,null,null,null,null,null,null,null,null,null,null,null,null,null,null,null,null,null,null,null,null,null,null,null,null,null,null,null,null,null,null,null,null,null,null,null,null,null,null,null,null,null,null,"CA-2021-709  Centennial Square Apartments","CA-2021-709","Centennial Square Apartments",null,"Santa Maria","Santa Barbara","93454","Kingdom Development, Inc.","Centennial Square Associates, LLC"]
[null,null,null,null,null,null,null,null,null,null,null,null,null,null,null,null,null,null,null,null,null,null,null,null,null,null,null,null,null,null,null,null,null,null,null,null,null,null,null,null,null,null,null,null,"CA-2021-714  Residency at the Entrepreneur Hollywood","CA-2021-714","Residency at the Entrepreneur Hollywood","1657 - 1661 N. Western Ave","Los Angeles","Los Angeles","90027","Residency at the Entrepreneur, LP","ABS Entrepreneur, LLC"]
[null,null,null,null,null,null,null,null,null,null,null,null,null,null,null,null,null,null,null,null,null,null,null,null,null,null,null,null,null,null,null,null,null,null,null,null,null,null,null,null,null,null,null,null,"CA-2021-727  Monroe Street Apartments","CA-2021-727","Monroe Street Apartments","2330 Monroe Street","Santa Clara","Santa Clara","95050","Monroe Street Housing Partners, LP","Freebird Monroe LLC"]
[null,null,null,null,null,null,null,null,null,null,null,null,null,null,null,null,null,null,null,null,null,null,null,null,null,null,null,null,null,null,null,null,null,null,null,null,null,null,null,null,null,null,null,null,"CA-2021-744  Monterey and Madrone Apartments","CA-2021-744","Monterey and Madrone Apartments","18960 Monterey Street","Morgan Hill","Santa Clara","95037","JEMCOR Development Partners, LLC","JS III Village at Madrone, LLC"]
[null,null,null,null,null,null,null,null,null,null,null,null,null,null,null,null,null,null,null,null,null,null,null,null,null,null,null,null,null,null,null,null,null,null,null,null,null,null,null,null,null,null,null,null,"CA-2021-751  Building 209","CA-2021-751","Building 209","11301 Wilshire Blvd VA Campus Building 209","Unincorporated","Los Angeles","90049","BUILDING 209 PRESERVATION, LP","Step Up on Second, Inc."]
[null,null,null,null,null,null,null,null,null,null,null,null,null,null,null,null,null,null,null,null,null,null,null,null,null,null,null,null,null,null,null,null,null,null,null,null,null,null,null,null,null,null,null,null,"CA-2021-767  Villa St. Joseph","CA-2021-767","Villa St. Joseph","480 South Batavia Street","Orange","Orange","92868","Mercy Housing California","Mercy Housing California 107, LLC"]
[null,null,null,null,null,null,null,null,null,null,null,null,null,null,null,null,null,null,null,null,null,null,null,null,null,null,null,null,null,null,null,null,null,null,null,null,null,null,null,null,null,null,null,null,"CA-2022-020  North 40 Market Hall Senior Housing","CA-2022-020","North 40 Market Hall Senior Housing","14225 Walker St","Los Gatos","Santa Clara","95032","Eden Investments Inc and SummerHill N40 LLC","Eden North Forty, LLC"]
[null,null,null,null,null,null,null,null,null,null,null,null,null,null,null,null,null,null,null,null,null,null,null,null,null,null,null,null,null,null,null,null,null,null,null,null,null,null,null,null,null,null,null,null,"CA-2022-034  Park Villa Apartments","CA-2022-034","Park Villa Apartments","260-280 W Park Avenue","El Cajon","San Diego","92020","Park Villa Community Partners, LP","WNC - Park Villa GP, LLC"]
[null,null,null,null,null,null,null,null,null,null,null,null,null,null,null,null,null,null,null,null,null,null,null,null,null,null,null,null,null,null,null,null,null,null,null,null,null,null,null,null,null,null,null,null,"CA-2022-054  WISEPlace Permanent Supportive Housing (PSH)","CA-2022-054","WISEPlace Permanent Supportive Housing (PSH)","1411 N. Broadway","Santa Ana","Orange","92706","Jamboree Housing Corporation","JHC - North Broadway LLC (To Be Formed)"]
[null,null,null,null,null,null,null,null,null,null,null,null,null,null,null,null,null,null,null,null,null,null,null,null,null,null,null,null,null,null,null,null,null,null,null,null,null,null,null,null,null,null,null,null,"CA-2022-061  Santa Fe Senior Village","CA-2022-061","Santa Fe Senior Village","414-428 North Santa Fe Ave.","Vista","San Diego","92083","Santa Fe Senior Village LP","NCRC Santa Fe SV LLC"]
[null,null,null,null,null,null,null,null,null,null,null,null,null,null,null,null,null,null,null,null,null,null,null,null,null,null,null,null,null,null,null,null,null,null,null,null,null,null,null,null,null,null,null,null,"CA-2022-066  Guardian Village","CA-2022-066","Guardian Village","601 E. 11th Street","Reedley","Fresno","93654","Self-Help Enterprises","Guardian Village LLC"]
[null,null,null,null,null,null,null,null,null,null,null,null,null,null,null,null,null,null,null,null,null,null,null,null,null,null,null,null,null,null,null,null,null,null,null,null,null,null,null,null,null,null,null,null,"CA-2022-067  Parkside Apartments","CA-2022-067","Parkside Apartments","442 North Kellogg Street","Lake Elsinore","Riverside","92530","DHI Parkside Apartments, LP","DHI Parkside Associates, LLC"]
[null,null,null,null,null,null,null,null,null,null,null,null,null,null,null,null,null,null,null,null,null,null,null,null,null,null,null,null,null,null,null,null,null,null,null,null,null,null,null,null,null,null,null,null,"CA-2022-070  Huntington Square","CA-2022-070","Huntington Square","6101 State St","Huntington Park","Los Angeles","90255","Huntington Square, L.P.","Supportive Housing LLC"]
[null,null,null,null,null,null,null,null,null,null,null,null,null,null,null,null,null,null,null,null,null,null,null,null,null,null,null,null,null,null,null,null,null,null,null,null,null,null,null,null,null,null,null,null,"CA-2022-071  Garden Estates","CA-2022-071","Garden Estates","1400 S. Greene Avenue","Dinuba","Tulare","93618","Central Valley Coalition for Affordable Housing","Central Valley Coalition for Affordable Housing"]
[null,null,null,null,null,null,null,null,null,null,null,null,null,null,null,null,null,null,null,null,null,null,null,null,null,null,null,null,null,null,null,null,null,null,null,null,null,null,null,null,null,null,null,null,"CA-2022-072  11730 Ramona Boulevard","CA-2022-072","11730 Ramona Boulevard","11730 Ramona Boulevard","El Monte","Los Angeles","91732","Linc Housing Corporation","Linc Housing Corporation"]
[null,null,null,null,null,null,null,null,null,null,null,null,null,null,null,null,null,null,null,null,null,null,null,null,null,null,null,null,null,null,null,null,null,null,null,null,null,null,null,null,null,null,null,null,"CA-2022-073  Avalon Commons - Phase I","CA-2022-073","Avalon Commons - Phase I","7521 N. Chestnut Avenue","Fresno","Fresno","93720","Silvercrest, Inc.","Fresno Avalon Commons Phase I AGP, LLC"]
[null,null,null,null,null,null,null,null,null,null,null,null,null,null,null,null,null,null,null,null,null,null,null,null,null,null,null,null,null,null,null,null,null,null,null,null,null,null,null,null,null,null,null,null,"CA-2022-077  Lincoln Street Family Apartments","CA-2022-077","Lincoln Street Family Apartments",null,"Oroville","Butte","95966","Richman Oroville Apartments, LP","Richman Oroville GP , LLC"]
[null,null,null,null,null,null,null,null,null,null,null,null,null,null,null,null,null,null,null,null,null,null,null,null,null,null,null,null,null,null,null,null,null,null,null,null,null,null,null,null,null,null,null,null,"CA-2022-078  Collier Avenue","CA-2022-078","Collier Avenue","6853 Collier Avenue","Nice","Lake","95464","Rural Communities Housing Development Corporation","Rural Communities Housing Development Corporation"]
[null,null,null,null,null,null,null,null,null,null,null,null,null,null,null,null,null,null,null,null,null,null,null,null,null,null,null,null,null,null,null,null,null,null,null,null,null,null,null,null,null,null,null,null,"CA-2022-079  Courtyards at Cottonwood II","CA-2022-079","Courtyards at Cottonwood II","24580 Cottonwood Ave","Moreno Valley","Riverside","92553","Courtyards at Cottonwood II, L.P.","RBD Cottonwood, LLC"]
[null,null,null,null,null,null,null,null,null,null,null,null,null,null,null,null,null,null,null,null,null,null,null,null,null,null,null,null,null,null,null,null,null,null,null,null,null,null,null,null,null,null,null,null,"CA-2022-080  Baden Station","CA-2022-080","Baden Station","428-432 Baden Ave","South San Francisco","San Mateo","94080","Baden Station Apartments Investors, L.P.","Baden Station Investors, LLC"]
[null,null,null,null,null,null,null,null,null,null,null,null,null,null,null,null,null,null,null,null,null,null,null,null,null,null,null,null,null,null,null,null,null,null,null,null,null,null,null,null,null,null,null,null,"CA-2022-081  Third Thyme","CA-2022-081","Third Thyme","1435 W. 3rd Street","Los Angeles","Los Angeles","90017","Third Thyme, L.P.","Third Thyme, LLC"]
[null,null,null,null,null,null,null,null,null,null,null,null,null,null,null,null,null,null,null,null,null,null,null,null,null,null,null,null,null,null,null,null,null,null,null,null,null,null,null,null,null,null,null,null,"CA-2022-082  Alvarado Gardens","CA-2022-082","Alvarado Gardens","13831 San Pablo Ave","San Pablo","Contra Costa","94806","San Pablo Chruch Lane LP","Johnson & Johnson Investments, LLC"]
[null,null,null,null,null,null,null,null,null,null,null,null,null,null,null,null,null,null,null,null,null,null,null,null,null,null,null,null,null,null,null,null,null,null,null,null,null,null,null,null,null,null,null,null,"CA-2022-089  Estrella","CA-2022-089","Estrella","604 W. Richmar Avenue","San Marcos","San Diego","92069","San Marcos Family Housing, L.P.","AHG Estrella, LLC"]
[null,null,null,null,null,null,null,null,null,null,null,null,null,null,null,null,null,null,null,null,null,null,null,null,null,null,null,null,null,null,null,null,null,null,null,null,null,null,null,null,null,null,null,null,"CA-2022-090  Barnard Park Villas","CA-2022-090","Barnard Park Villas","3356 Barnard Way","Santa Monica","Los Angeles","90405","Barnard Park Housing LP","Barnard Park Housing LLC"]
[null,null,null,null,null,null,null,null,null,null,null,null,null,null,null,null,null,null,null,null,null,null,null,null,null,null,null,null,null,null,null,null,null,null,null,null,null,null,null,null,null,null,null,null,"CA-2022-092  Anderson Hotel Apartments","CA-2022-092","Anderson Hotel Apartments","955 Monterey Street","San Luis Obispo","San Luis Obispo","93401","San Luis Obispo Nonprofit Housing Corporation","San Luis Obispo Nonprofit Housing Corporation"]
[null,null,null,null,null,null,null,null,null,null,null,null,null,null,null,null,null,null,null,null,null,null,null,null,null,null,null,null,null,null,null,null,null,null,null,null,null,null,null,null,null,null,null,null,"CA-2022-096  Cypress & 7th","CA-2022-096","Cypress & 7th","1401 East Cypress Avenue","Lompoc","Santa Barbara","93436","Cypress & 7th, L.P.","Surf Development Company"]
[null,null,null,null,null,null,null,null,null,null,null,null,null,null,null,null,null,null,null,null,null,null,null,null,null,null,null,null,null,null,null,null,null,null,null,null,null,null,null,null,null,null,null,null,"CA-2022-425  2350 S. Bascom","CA-2022-425","2350 S. Bascom","2350 S. Bascom Avenue","San Jose","Santa Clara","95008","Central Valley Coalition for Affordable Housing, a","Central Valley Coalition for Affordable Housing"]
[null,null,null,null,null,null,null,null,null,null,null,null,null,null,null,null,null,null,null,null,null,null,null,null,null,null,null,null,null,null,null,null,null,null,null,null,null,null,null,null,null,null,null,null,"CA-2022-426  Osgood Apartments South","CA-2022-426","Osgood Apartments South","41911 Osgood Road","Fremont","Alameda","94539","Central Valley Coalition for Affordable Housing, a","Central Valley Coalition for Affordable Housing"]
[null,null,null,null,null,null,null,null,null,null,null,null,null,null,null,null,null,null,null,null,null,null,null,null,null,null,null,null,null,null,null,null,null,null,null,null,null,null,null,null,null,null,null,null,"CA-2022-427  River Oaks Family Apartments","CA-2022-427","River Oaks Family Apartments",null,"Plumas Lake","Yuba","95961","Building Better Partnerships, Inc., a California N","Building Better Partnerships, Inc."]
[null,null,null,null,null,null,null,null,null,null,null,null,null,null,null,null,null,null,null,null,null,null,null,null,null,null,null,null,null,null,null,null,null,null,null,null,null,null,null,null,null,null,null,null,"CA-2022-428  Smoke Tree Apartments","CA-2022-428","Smoke Tree Apartments",null,"Wasco","Kern","93280","Central Valley Coalition for Affordable Housing, a","Central Valley Coalition for Affordable Housing"]
[null,null,null,null,null,null,null,null,null,null,null,null,null,null,null,null,null,null,null,null,null,null,null,null,null,null,null,null,null,null,null,null,null,null,null,null,null,null,null,null,null,null,null,null,"CA-2022-431  The Lyla","CA-2022-431","The Lyla",null,"Elk Grove","Sacramento","95758","Riverside Charitable Corporation, a California Non","Riverside Charitable Corporation"]
[null,null,null,null,null,null,null,null,null,null,null,null,null,null,null,null,null,null,null,null,null,null,null,null,null,null,null,null,null,null,null,null,null,null,null,null,null,null,null,null,null,null,null,null,"CA-2022-432  Vine Creek Apartments","CA-2022-432","Vine Creek Apartments",null,"Temecula","Riverside","92590","Riverside Charitable Corporation, a California Non","RCC MGP LLC"]
[null,null,null,null,null,null,null,null,null,null,null,null,null,null,null,null,null,null,null,null,null,null,null,null,null,null,null,null,null,null,null,null,null,null,null,null,null,null,null,null,null,null,null,null,"CA-2022-433  Vitalia Apartments","CA-2022-433","Vitalia Apartments",null,"Palm Desert","Riverside","92211","Central Valley Coalition for Affordable Housing, a","Central Valley Coalition for Affordable Housing"]
[null,null,null,null,null,null,null,null,null,null,null,null,null,null,null,null,null,null,null,null,null,null,null,null,null,null,null,null,null,null,null,null,null,null,null,null,null,null,null,null,null,null,null,null,"CA-2022-438  Rancho Sierra Senior Apartments","CA-2022-438","Rancho Sierra Senior Apartments","1732 S. Lewis Rd. (Unincorporated Ventura County, just outside Camarillo city limits)","Unincorporated Ventura Co","Ventura","93012","Many Mansions, a California Nonprofit Corporation","Many Mansions"]
[null,null,null,null,null,null,null,null,null,null,null,null,null,null,null,null,null,null,null,null,null,null,null,null,null,null,null,null,null,null,null,null,null,null,null,null,null,null,null,null,null,null,null,null,"CA-2022-439  Marja Acres","CA-2022-439","Marja Acres","4901 El Camino Real","Carlsbad","San Diego","92008","Carlsbad 685, L.P.","Carlsbad 685 GP, LLC"]
[null,null,null,null,null,null,null,null,null,null,null,null,null,null,null,null,null,null,null,null,null,null,null,null,null,null,null,null,null,null,null,null,null,null,null,null,null,null,null,null,null,null,null,null,"CA-2022-442  Poppy Grove II","CA-2022-442","Poppy Grove II","10149 Bruceville Road","Elk Grove","Sacramento","95757","Oakland Economic Development Corporation","Poppy Grove Development Partners, LLC"]
[null,null,null,null,null,null,null,null,null,null,null,null,null,null,null,null,null,null,null,null,null,null,null,null,null,null,null,null,null,null,null,null,null,null,null,null,null,null,null,null,null,null,null,null,"CA-2022-444  Aviara East Apartments","CA-2022-444","Aviara East Apartments",null,"Carlsbad","San Diego","92011","BRIDGE Housing Corporation","Aviara East GP, LLC"]
[null,null,null,null,null,null,null,null,null,null,null,null,null,null,null,null,null,null,null,null,null,null,null,null,null,null,null,null,null,null,null,null,null,null,null,null,null,null,null,null,null,null,null,null,"CA-2022-445  Nevin Plaza I","CA-2022-445","Nevin Plaza I","2400 Nevin Ave","Richmond","Contra Costa","94804","Nevin Plaza I, L.P.","Nevin Plaza I EAH, LLC"]
[null,null,null,null,null,null,null,null,null,null,null,null,null,null,null,null,null,null,null,null,null,null,null,null,null,null,null,null,null,null,null,null,null,null,null,null,null,null,null,null,null,null,null,null,"CA-2022-447  Miramar Development","CA-2022-447","Miramar Development","1917 - 2005 1/2 W 3rd St","Los Angeles","Los Angeles","90057","Wakeland Housing Development Corporation","Rose Miramar Development GP, LLC"]
[null,null,null,null,null,null,null,null,null,null,null,null,null,null,null,null,null,null,null,null,null,null,null,null,null,null,null,null,null,null,null,null,null,null,null,null,null,null,null,null,null,null,null,null,"CA-2022-449  Vendra Gardens","CA-2022-449","Vendra Gardens","150 Casey Road","Moorpark","Ventura","93021","Community Revitalizaiton and Development Corporati","Johnson & Johnson Investments, LLC"]
[null,null,null,null,null,null,null,null,null,null,null,null,null,null,null,null,null,null,null,null,null,null,null,null,null,null,null,null,null,null,null,null,null,null,null,null,null,null,null,null,null,null,null,null,"CA-2022-451  2400 Willow Pass","CA-2022-451","2400 Willow Pass","2400 Willow Pass","Concord","Contra Costa","94519","2400 Willow Pass, L.P.","2400 Willow Pass, LLC"]
[null,null,null,null,null,null,null,null,null,null,null,null,null,null,null,null,null,null,null,null,null,null,null,null,null,null,null,null,null,null,null,null,null,null,null,null,null,null,null,null,null,null,null,null,"CA-2022-453  Morgan Hill Senior Housing","CA-2022-453","Morgan Hill Senior Housing","TBD (see below)","Morgan Hill","Santa Clara","95037","Morgan Hill Senior Housing, L.P.","Morgan Hill Senior Housing GP LLC"]
[null,null,null,null,null,null,null,null,null,null,null,null,null,null,null,null,null,null,null,null,null,null,null,null,null,null,null,null,null,null,null,null,null,null,null,null,null,null,null,null,null,null,null,null,"CA-2022-456  Cortez Hill Apartments","CA-2022-456","Cortez Hill Apartments","1449 Ninth Avenue","San Diego","San Diego","92101","Beech Street Housing Associates, L.P.","CHW Beech Street LLC"]
[null,null,null,null,null,null,null,null,null,null,null,null,null,null,null,null,null,null,null,null,null,null,null,null,null,null,null,null,null,null,null,null,null,null,null,null,null,null,null,null,null,null,null,null,"CA-2022-457  Palmer Park Manor","CA-2022-457","Palmer Park Manor","617 E Palmer Avenue","Glendale","Los Angeles","91205","Palmer Park Housing Partners, LP","FFAH V Palmer Park, LLC"]
[null,null,null,null,null,null,null,null,null,null,null,null,null,null,null,null,null,null,null,null,null,null,null,null,null,null,null,null,null,null,null,null,null,null,null,null,null,null,null,null,null,null,null,null,"CA-2022-458  La Vista Residential","CA-2022-458","La Vista Residential",null,"Hayward","Alameda","94544","Eden Housing, Inc., a California Nonprofit Public","La Vista Hayward LLC"]
[null,null,null,null,null,null,null,null,null,null,null,null,null,null,null,null,null,null,null,null,null,null,null,null,null,null,null,null,null,null,null,null,null,null,null,null,null,null,null,null,null,null,null,null,"CA-2022-460  MacArthur Field A","CA-2022-460","MacArthur Field A","11301 Wilshire Blvd - Building 401A","Unincorporated","Los Angeles","90073","MacArthur A, LP","MacArthur A EAH, LLC"]
[null,null,null,null,null,null,null,null,null,null,null,null,null,null,null,null,null,null,null,null,null,null,null,null,null,null,null,null,null,null,null,null,null,null,null,null,null,null,null,null,null,null,null,null,"CA-2022-461  8181 Allison","CA-2022-461","8181 Allison","8181 Allison Ave.","La Mesa","San Diego","91942","La Mesa 694, L.P.","USA La Mesa 694, Inc."]
[null,null,null,null,null,null,null,null,null,null,null,null,null,null,null,null,null,null,null,null,null,null,null,null,null,null,null,null,null,null,null,null,null,null,null,null,null,null,null,null,null,null,null,null,"CA-2022-462  Mainline North Apartments","CA-2022-462","Mainline North Apartments","2310 Calle Del Mundo","Santa Clara","Santa Clara","95054","Mainline North 701, L.P.","Mainline North GP 701, LLC"]
[null,null,null,null,null,null,null,null,null,null,null,null,null,null,null,null,null,null,null,null,null,null,null,null,null,null,null,null,null,null,null,null,null,null,null,null,null,null,null,null,null,null,null,null,"CA-2022-463  Fiddyment Apartments","CA-2022-463","Fiddyment Apartments","2700 N. Hayden Parkway","Roseville","Placer","95747","Central Valley Coalition for Affordable Housing, a","Central Valley Coalition for Affordable Housing"]
[null,null,null,null,null,null,null,null,null,null,null,null,null,null,null,null,null,null,null,null,null,null,null,null,null,null,null,null,null,null,null,null,null,null,null,null,null,null,null,null,null,null,null,null,"CA-2022-464  The Meadows Seniors Apartments","CA-2022-464","The Meadows Seniors Apartments","20621 Lake Forest Drive","Lake Forest","Orange","92630","Riverside Charitable Corporation","Meadows CCR LLC (to be formed)"]
[null,null,null,null,null,null,null,null,null,null,null,null,null,null,null,null,null,null,null,null,null,null,null,null,null,null,null,null,null,null,null,null,null,null,null,null,null,null,null,null,null,null,null,null,"CA-2022-465  West Los Angeles VA Campus Building 402","CA-2022-465","West Los Angeles VA Campus Building 402","11301 Wilshire Blvd., Building 402","Los Angeles","Los Angeles","90073","VA Building 402 LP","Housing Corporation of America"]
[null,null,null,null,null,null,null,null,null,null,null,null,null,null,null,null,null,null,null,null,null,null,null,null,null,null,null,null,null,null,null,null,null,null,null,null,null,null,null,null,null,null,null,null,"CA-2022-466  West Carson","CA-2022-466","West Carson","800 West Carson Street","Unincorporated","Los Angeles","90502","800 W Carson, L.P","800 W Carson, LLC"]
[null,null,null,null,null,null,null,null,null,null,null,null,null,null,null,null,null,null,null,null,null,null,null,null,null,null,null,null,null,null,null,null,null,null,null,null,null,null,null,null,null,null,null,null,"CA-2022-467  West LA VA- Building 404","CA-2022-467","West LA VA- Building 404","11301 Wilshire Boulevard, Parking Lot 48","Unincorporated Los Angele","Los Angeles","90073","Century WLAVA 1 LP","CENTURY WLAVA 1 LLC"]
[null,null,null,null,null,null,null,null,null,null,null,null,null,null,null,null,null,null,null,null,null,null,null,null,null,null,null,null,null,null,null,null,null,null,null,null,null,null,null,null,null,null,null,null,"CA-2022-470  Somis Ranch Farmworker Housing Community - Phase I","CA-2022-470","Somis Ranch Farmworker Housing Community - Phase I","2789 Somis Road","Somis","Ventura","93066","AMCAL Multi-Housing, Inc.","Las Palmas Foundation"]
[null,null,null,null,null,null,null,null,null,null,null,null,null,null,null,null,null,null,null,null,null,null,null,null,null,null,null,null,null,null,null,null,null,null,null,null,null,null,null,null,null,null,null,null,"CA-2022-472  Anton Power Inn","CA-2022-472","Anton Power Inn","7243 Power Inn Rd.","Sacramento","Sacramento","95828","Power Inn Sacramento, L.P.","Anton Power Inn, LLC"]
[null,null,null,null,null,null,null,null,null,null,null,null,null,null,null,null,null,null,null,null,null,null,null,null,null,null,null,null,null,null,null,null,null,null,null,null,null,null,null,null,null,null,null,null,"CA-2022-475  Serra Apartments","CA-2022-475","Serra Apartments","42000 Osgood Road","Fremont","Alameda","94539","PacH Anton South Holdings, LLC","St. Anton Serra, LLC"]
[null,null,null,null,null,null,null,null,null,null,null,null,null,null,null,null,null,null,null,null,null,null,null,null,null,null,null,null,null,null,null,null,null,null,null,null,null,null,null,null,null,null,null,null,"CA-2022-477  Luna Vista","CA-2022-477","Luna Vista","8767 Parthenia Place","Los Angeles","Los Angeles","91343","Hollywood Community Housing Corporation","HCHC Luna Vista GP, LLC"]
[null,null,null,null,null,null,null,null,null,null,null,null,null,null,null,null,null,null,null,null,null,null,null,null,null,null,null,null,null,null,null,null,null,null,null,null,null,null,null,null,null,null,null,null,"CA-2022-479  Alves Lane Apartments","CA-2022-479","Alves Lane Apartments","Alves Lane (to be established)","Bay Point (Unincorporated","Contra Costa","94565","Alves Lane, L.P.","Alves Lane, LLC"]
[null,null,null,null,null,null,null,null,null,null,null,null,null,null,null,null,null,null,null,null,null,null,null,null,null,null,null,null,null,null,null,null,null,null,null,null,null,null,null,null,null,null,null,null,"CA-2022-480  BETH ASHER SENIOR APARTMENTS","CA-2022-480","BETH ASHER SENIOR APARTMENTS","3649 Dimond Avenue","Oakland","Alameda","94602","BETH ASHER, LP","Satellite AHA Development, Inc"]
[null,null,null,null,null,null,null,null,null,null,null,null,null,null,null,null,null,null,null,null,null,null,null,null,null,null,null,null,null,null,null,null,null,null,null,null,null,null,null,null,null,null,null,null,"CA-2022-481  515 Pioneer Drive","CA-2022-481","515 Pioneer Drive","515 Pioneer Drive","Glendale","Los Angeles","91203","Linc Housing Corporation","Linc Housing Corporation"]
[null,null,null,null,null,null,null,null,null,null,null,null,null,null,null,null,null,null,null,null,null,null,null,null,null,null,null,null,null,null,null,null,null,null,null,null,null,null,null,null,null,null,null,null,"CA-2022-482  Harvard Adams Apartments","CA-2022-482","Harvard Adams Apartments","4230 W Adams Blvd. & 1938 S. Harvard Blvd.","Los Angeles","Los Angeles","90018","Harvard Adams Housing Partners, LP","FFAH V Harvard Adams, LLC"]
[null,null,null,null,null,null,null,null,null,null,null,null,null,null,null,null,null,null,null,null,null,null,null,null,null,null,null,null,null,null,null,null,null,null,null,null,null,null,null,null,null,null,null,null,"CA-2022-484  Sarah's Court Apartments","CA-2022-484","Sarah's Court Apartments","200 N. Salma Avenue","Fresno","Fresno","93727","FCTC Family, LP","Dominus Consortium Family LLC"]
[null,null,null,null,null,null,null,null,null,null,null,null,null,null,null,null,null,null,null,null,null,null,null,null,null,null,null,null,null,null,null,null,null,null,null,null,null,null,null,null,null,null,null,null,"CA-2022-485  Shiloh Crossing","CA-2022-485","Shiloh Crossing","295 Shiloh Road","Windsor","Sonoma","95492","295 Shiloh Rd., L.P.","Corporation for Better Housing"]
[null,null,null,null,null,null,null,null,null,null,null,null,null,null,null,null,null,null,null,null,null,null,null,null,null,null,null,null,null,null,null,null,null,null,null,null,null,null,null,null,null,null,null,null,"CA-2022-486  California Manor II Apartments","CA-2022-486","California Manor II Apartments",null,"Atascadero","San Luis Obispo","93422","Atascadero California Grand Manor, LP","Atascadero California Grand Manor, LLC"]
[null,null,null,null,null,null,null,null,null,null,null,null,null,null,null,null,null,null,null,null,null,null,null,null,null,null,null,null,null,null,null,null,null,null,null,null,null,null,null,null,null,null,null,null,{"$f":"CONCATENATE(AT5059,\"  \",AU5059)","v":"CA-2022-489  Villa Verde"},"CA-2022-489","Villa Verde","9800 Jersey Avenue","Santa Fe Springs","Los Angeles","90670","Villa Verde Housing Partners, LP","FFAH V Villa Verde, LLC"]
[null,null,null,null,null,null,null,null,null,null,null,null,null,null,null,null,null,null,null,null,null,null,null,null,null,null,null,null,null,null,null,null,null,null,null,null,null,null,null,null,null,null,null,null,"CA-2022-494  Gerald Ford Apartments","CA-2022-494","Gerald Ford Apartments","75580 Gerald Ford Drive","Palm Desert","Riverside","92211","Hearthstone Housing Foundation","Hearthstone CA Properties III, LLC"]
[null,null,null,null,null,null,null,null,null,null,null,null,null,null,null,null,null,null,null,null,null,null,null,null,null,null,null,null,null,null,null,null,null,null,null,null,null,null,null,null,null,null,null,null,"CA-2022-495  Monamos Terrace Apartments","CA-2022-495","Monamos Terrace Apartments","40920 Los Alamos Road","Murrieta","Riverside","92562","Monamos Terrace LP","Monamos CDP LLC"]
[null,null,null,null,null,null,null,null,null,null,null,null,null,null,null,null,null,null,null,null,null,null,null,null,null,null,null,null,null,null,null,null,null,null,null,null,null,null,null,null,null,null,null,null,"CA-2022-496  Albany Family Housing","CA-2022-496","Albany Family Housing","755 Cleveland Avenue","Albany","Alameda","94706","Satellite Affordable Housing Associates","Satellite AHA Development, Inc."]
[null,null,null,null,null,null,null,null,null,null,null,null,null,null,null,null,null,null,null,null,null,null,null,null,null,null,null,null,null,null,null,null,null,null,null,null,null,null,null,null,null,null,null,null,"CA-2022-498  Vista Terrace","CA-2022-498","Vista Terrace","8134 and 8146 Van Nuys Blvd","Los Angeles","Los Angeles","91402","Kingdom Development, Inc.","Kingdom Vista Terrace, LLC"]
[null,null,null,null,null,null,null,null,null,null,null,null,null,null,null,null,null,null,null,null,null,null,null,null,null,null,null,null,null,null,null,null,null,null,null,null,null,null,null,null,null,null,null,null,"CA-2022-504  La Avenida Apartments","CA-2022-504","La Avenida Apartments","1100 La Avenida Street","Mountain View","Santa Clara","94043","Eden Housing, Inc.","Eden Investments, Inc."]
[null,null,null,null,null,null,null,null,null,null,null,null,null,null,null,null,null,null,null,null,null,null,null,null,null,null,null,null,null,null,null,null,null,null,null,null,null,null,null,null,null,null,null,null,"CA-2022-505  Mirasol Village Block D","CA-2022-505","Mirasol Village Block D","1381 Swallowtail Avenue","Sacramento","Sacramento","95811","Twin Rivers Phase 4, L.P.","Twin Rivers Phase 4 MBS GP, Inc."]
[null,null,null,null,null,null,null,null,null,null,null,null,null,null,null,null,null,null,null,null,null,null,null,null,null,null,null,null,null,null,null,null,null,null,null,null,null,null,null,null,null,null,null,null,"CA-2022-507  Hayden Parkway Apartments","CA-2022-507","Hayden Parkway Apartments","2801 N. Hayden Parkway","Roseville","Placer","95747","Affordable Housing Community Development Corporati","Fiddy Affordable GP, LLC"]
[null,null,null,null,null,null,null,null,null,null,null,null,null,null,null,null,null,null,null,null,null,null,null,null,null,null,null,null,null,null,null,null,null,null,null,null,null,null,null,null,null,null,null,null,"CA-2022-508  Silvey Villas at Homestead","CA-2022-508","Silvey Villas at Homestead","TBD","Dixon","Solano","95620","Affordable Housing Community Development Corporati","Silvey Villas GP, LLC"]
[null,null,null,null,null,null,null,null,null,null,null,null,null,null,null,null,null,null,null,null,null,null,null,null,null,null,null,null,null,null,null,null,null,null,null,null,null,null,null,null,null,null,null,null,"CA-2022-510  710 Broadway","CA-2022-510","710 Broadway","710 Broadway","Santa Monica","Los Angeles","90401","710 Broadway Development Co., LLC","710 Broadway Development Co., LLC"]
[null,null,null,null,null,null,null,null,null,null,null,null,null,null,null,null,null,null,null,null,null,null,null,null,null,null,null,null,null,null,null,null,null,null,null,null,null,null,null,null,null,null,null,null,"CA-2022-512  Northview Pointe","CA-2022-512","Northview Pointe","2314 Northview Drive","Sacramento","Sacramento","95833","Northview Pointe LP","Northview Pointe GP LLC"]
[null,null,null,null,null,null,null,null,null,null,null,null,null,null,null,null,null,null,null,null,null,null,null,null,null,null,null,null,null,null,null,null,null,null,null,null,null,null,null,null,null,null,null,null,"CA-2022-513  River City Trio","CA-2022-513","River City Trio","1213, 1215, 1217 D Street; 2408, 2410, 2517, 2519 C Street","Sacramento","Sacramento","95814","River City Housing Partners, LP","River City Housing Management, LLC"]
[null,null,null,null,null,null,null,null,null,null,null,null,null,null,null,null,null,null,null,null,null,null,null,null,null,null,null,null,null,null,null,null,null,null,null,null,null,null,null,null,null,null,null,null,"CA-2022-516  The Aspire","CA-2022-516","The Aspire","3861-3893 3rd Street","Riverside","Riverside",null,"Kingdom Development, Inc.","Kingdom Riverside LLC"]
[null,null,null,null,null,null,null,null,null,null,null,null,null,null,null,null,null,null,null,null,null,null,null,null,null,null,null,null,null,null,null,null,null,null,null,null,null,null,null,null,null,null,null,null,"CA-2022-517  Residency at Empire I","CA-2022-517","Residency at Empire I","2814 W Empire Ave","Burbank","Los Angeles","91504","Residency at Empire, LP","ABS Properties, Inc"]
[null,null,null,null,null,null,null,null,null,null,null,null,null,null,null,null,null,null,null,null,null,null,null,null,null,null,null,null,null,null,null,null,null,null,null,null,null,null,null,null,null,null,null,null,"CA-2022-518  QCK Apartments","CA-2022-518","QCK Apartments","4856 West Avenue L-14","Quartz Hill","Los Angeles","93536","Kingdom Development, Inc.","Oculus1 Development, Inc."]
[null,null,null,null,null,null,null,null,null,null,null,null,null,null,null,null,null,null,null,null,null,null,null,null,null,null,null,null,null,null,null,null,null,null,null,null,null,null,null,null,null,null,null,null,"CA-2022-536  777 West San Carlos","CA-2022-536","777 West San Carlos","266 & 270 Sunol Street & 777 West San Carlos","San Jose","Santa Clara","95126","Community Revitalizaton and Development Corporatio","Johnson & Johnson Investments, LLC"]
[null,null,null,null,null,null,null,null,null,null,null,null,null,null,null,null,null,null,null,null,null,null,null,null,null,null,null,null,null,null,null,null,null,null,null,null,null,null,null,null,null,null,null,null,"CA-2022-537  Twentynine Palms Apartments","CA-2022-537","Twentynine Palms Apartments","5862 Bagley Avenue","Twentynine Palms","San Bernardino","92277","Highland Property Development on behalf of HPD Twe","Highland PD on behalf of HPD Twentynine Palms II LLC (tbf)"]
[null,null,null,null,null,null,null,null,null,null,null,null,null,null,null,null,null,null,null,null,null,null,null,null,null,null,null,null,null,null,null,null,null,null,null,null,null,null,null,null,null,null,null,null,"CA-2022-539  Drake Avenue Apartments","CA-2022-539","Drake Avenue Apartments","825 Drake Avenue","Sausalito","Marin","94965","Marin County Pacific Associates, a California Limi","Central Valley Coalition for Affordable Housing"]
[null,null,null,null,null,null,null,null,null,null,null,null,null,null,null,null,null,null,null,null,null,null,null,null,null,null,null,null,null,null,null,null,null,null,null,null,null,null,null,null,null,null,null,null,"CA-2022-540  Hunters Point Shipyard Block 52 and 54","CA-2022-540","Hunters Point Shipyard Block 52 and 54","351 and 151 Friedell St.","San Francisco","San Francisco","94124","HPSY 52-54, LP","Rose HPSY 52-54 GP, LLC"]
[null,null,null,null,null,null,null,null,null,null,null,null,null,null,null,null,null,null,null,null,null,null,null,null,null,null,null,null,null,null,null,null,null,null,null,null,null,null,null,null,null,null,null,null,"CA-2022-548  Western Landing","CA-2022-548","Western Landing","25820-25896 S. Western Ave.","Los Angeles","Los Angeles","90710","Western Landing, L.P.","Western Landing GP, LLC"]
[null,null,null,null,null,null,null,null,null,null,null,null,null,null,null,null,null,null,null,null,null,null,null,null,null,null,null,null,null,null,null,null,null,null,null,null,null,null,null,null,null,null,null,null,"CA-2022-549  Ralston Tower","CA-2022-549","Ralston Tower","900 17th Street","Modesto","Stanislaus","95354","Ralston Tower RHF Housing, LLC","Ralston Tower RHF Housing, LLC"]
[null,null,null,null,null,null,null,null,null,null,null,null,null,null,null,null,null,null,null,null,null,null,null,null,null,null,null,null,null,null,null,null,null,null,null,null,null,null,null,null,null,null,null,null,"CA-2022-550  Jacaranda Gardens","CA-2022-550","Jacaranda Gardens","1625 N. Waterman Avenue","El Centro","Imperial","92243","Pacific Southwest Community Development Corporatio","Pacific Southwest Community Development Corporation"]
[null,null,null,null,null,null,null,null,null,null,null,null,null,null,null,null,null,null,null,null,null,null,null,null,null,null,null,null,null,null,null,null,null,null,null,null,null,null,null,null,null,null,null,null,"CA-2022-552  Tamien Station Affordable","CA-2022-552","Tamien Station Affordable","1197 Lick Avenue","San Jose","Santa Clara","95110","Tamien Affordable, L.P.","Central Valley Coalition for Affordable Housing"]
[null,null,null,null,null,null,null,null,null,null,null,null,null,null,null,null,null,null,null,null,null,null,null,null,null,null,null,null,null,null,null,null,null,null,null,null,null,null,null,null,null,null,null,null,"CA-2022-553  Cartwright Family Apartments","CA-2022-553","Cartwright Family Apartments","17861 Cartwright Road","Irvine","Orange","92614","Cartwright Family Apartments, LP","Cartwright CCR LLC"]
[null,null,null,null,null,null,null,null,null,null,null,null,null,null,null,null,null,null,null,null,null,null,null,null,null,null,null,null,null,null,null,null,null,null,null,null,null,null,null,null,null,null,null,null,"CA-2022-556  Marple Manor","CA-2022-556","Marple Manor","530 Coffee Road","Modesto","Stanislaus","95355","Marple Manor RHF Partners, LP","Marple Manor RHF Housing, LLC"]
[null,null,null,null,null,null,null,null,null,null,null,null,null,null,null,null,null,null,null,null,null,null,null,null,null,null,null,null,null,null,null,null,null,null,null,null,null,null,null,null,null,null,null,null,"CA-2022-557  Tres Lagos Apartments Phase I","CA-2022-557","Tres Lagos Apartments Phase I","23345 & 23365 Catt Road","Wildomar","Riverside","92595","Palm Communities","PC Wildomar Developers I LLC"]
[null,null,null,null,null,null,null,null,null,null,null,null,null,null,null,null,null,null,null,null,null,null,null,null,null,null,null,null,null,null,null,null,null,null,null,null,null,null,null,null,null,null,null,null,"CA-2022-559  5256 Naranja","CA-2022-559","5256 Naranja","5256 Naranja","San Diego","San Diego","92114","San Diego Naranja Associates, a California Limited","Central Valley Coalition for Affordable Housing"]
[null,null,null,null,null,null,null,null,null,null,null,null,null,null,null,null,null,null,null,null,null,null,null,null,null,null,null,null,null,null,null,null,null,null,null,null,null,null,null,null,null,null,null,null,"CA-2022-561  Modica","CA-2022-561","Modica","5255 Mt. Etna Drive","San Diego","San Diego","92117","Southern California Housing Collaborative on behal","CIC Modica Family Apartments, LLC"]
[null,null,null,null,null,null,null,null,null,null,null,null,null,null,null,null,null,null,null,null,null,null,null,null,null,null,null,null,null,null,null,null,null,null,null,null,null,null,null,null,null,null,null,null,"CA-2022-562  Taormina","CA-2022-562","Taormina","5255 Mt. Etna Drive","San Diego","San Diego","92117","Taormina Family Apartments CIC, LP","CIC Taormina Family Apartments, LLC"]
[null,null,null,null,null,null,null,null,null,null,null,null,null,null,null,null,null,null,null,null,null,null,null,null,null,null,null,null,null,null,null,null,null,null,null,null,null,null,null,null,null,null,null,null,"CA-2022-566  El Camino Real","CA-2022-566","El Camino Real","732 & 740 El Camino Real","San Bruno","San Mateo","94066","San Bruno Pacific Associates, a California Limited","Central Valley Coalition for Affordable Housing"]
[null,null,null,null,null,null,null,null,null,null,null,null,null,null,null,null,null,null,null,null,null,null,null,null,null,null,null,null,null,null,null,null,null,null,null,null,null,null,null,null,null,null,null,null,"CA-2022-568  Junipers","CA-2022-568","Junipers","TBD","San Diego","San Diego","92129","Pacific Southwest Community Development Corp.","Pacific Southwest Community Development Corp."]
[null,null,null,null,null,null,null,null,null,null,null,null,null,null,null,null,null,null,null,null,null,null,null,null,null,null,null,null,null,null,null,null,null,null,null,null,null,null,null,null,null,null,null,null,"CA-2022-568  Junipers","CA-2022-568","Junipers","TBD","San Diego","San Diego","92129","Pacific Southwest Community Development Corp. (on","Pacific Southwest Community Development Corp."]
[null,null,null,null,null,null,null,null,null,null,null,null,null,null,null,null,null,null,null,null,null,null,null,null,null,null,null,null,null,null,null,null,null,null,null,null,null,null,null,null,null,null,null,null,"CA-2022-569  Rodeo Gateway Apartments","CA-2022-569","Rodeo Gateway Apartments","710 Willow Avenue","Rodeo","Contra Costa","94572","Rodeo Gateway II EAH, LLC","Rodeo Gateway II EAH, LLC"]
[null,null,null,null,null,null,null,null,null,null,null,null,null,null,null,null,null,null,null,null,null,null,null,null,null,null,null,null,null,null,null,null,null,null,null,null,null,null,null,null,null,null,null,null,"CA-2022-570  98 Franklin","CA-2022-570","98 Franklin","98 Franklin Street","San Francisco","San Francisco","94102","Oak Street Housing Associates, LLC","Oak Street Housing Associates, LLC"]
[null,null,null,null,null,null,null,null,null,null,null,null,null,null,null,null,null,null,null,null,null,null,null,null,null,null,null,null,null,null,null,null,null,null,null,null,null,null,null,null,null,null,null,null,"CA-2022-571  Bennett Valley Apartments","CA-2022-571","Bennett Valley Apartments","702 Bennett Valley Road","Santa Rosa","Sonoma","95404","Bennett Valley Housing Partners, L.P.","Freebird Bennett Valley LLC"]
[null,null,null,null,null,null,null,null,null,null,null,null,null,null,null,null,null,null,null,null,null,null,null,null,null,null,null,null,null,null,null,null,null,null,null,null,null,null,null,null,null,null,null,null,"CA-2022-573  Ambrosia Apartments","CA-2022-573","Ambrosia Apartments","800-816 W 85th Street","Los Angeles","Los Angeles","90044","Ambrosia Apartments Associates, L.P.","Domus GP LLC"]
[null,null,null,null,null,null,null,null,null,null,null,null,null,null,null,null,null,null,null,null,null,null,null,null,null,null,null,null,null,null,null,null,null,null,null,null,null,null,null,null,null,null,null,null,"CA-2022-574  730 Stanyan","CA-2022-574","730 Stanyan","730 Stanyan Street","San Francisco","San Francisco","94117","730 Stanyan Associates, LP","730 Stanyan TNDC GP LLC"]
[null,null,null,null,null,null,null,null,null,null,null,null,null,null,null,null,null,null,null,null,null,null,null,null,null,null,null,null,null,null,null,null,null,null,null,null,null,null,null,null,null,null,null,null,"CA-2022-575  Lakeland Apartments","CA-2022-575","Lakeland Apartments","13231 Lakeland Rd","Santa Fe Springs","Los Angeles","90670","RICHMAN SANTA FE SPRINGS APARTMENTS, LP","Central Valley Coalition for Affordable Housing"]
[null,null,null,null,null,null,null,null,null,null,null,null,null,null,null,null,null,null,null,null,null,null,null,null,null,null,null,null,null,null,null,null,null,null,null,null,null,null,null,null,null,null,null,null,"CA-2022-578  Polo Village Apartments","CA-2022-578","Polo Village Apartments","560 McMurray Road","Buellton","Santa Barbara","93427","Palm Communities","PC Buellton Developers LLC, a to-be-formed Limited Partnership"]
[null,null,null,null,null,null,null,null,null,null,null,null,null,null,null,null,null,null,null,null,null,null,null,null,null,null,null,null,null,null,null,null,null,null,null,null,null,null,null,null,null,null,null,null,"CA-2022-581  Crest on Imperial","CA-2022-581","Crest on Imperial","101 50th Street, 5020 Imperial Avenue, San Diego, CA, 92113","San Diego","San Diego","92113","Crest on Imperial LP","MAAC Crest LLC"]
[null,null,null,null,null,null,null,null,null,null,null,null,null,null,null,null,null,null,null,null,null,null,null,null,null,null,null,null,null,null,null,null,null,null,null,null,null,null,null,null,null,null,null,null,"CA-2022-587  Confianza","CA-2022-587","Confianza","14142 Vanowen Street","Van Nuys","Los Angeles","91405","Villa Vanowen LP","CADI XVI LLC"]
[null,null,null,null,null,null,null,null,null,null,null,null,null,null,null,null,null,null,null,null,null,null,null,null,null,null,null,null,null,null,null,null,null,null,null,null,null,null,null,null,null,null,null,null,"CA-2022-589  View at Blossom Hill","CA-2022-589","View at Blossom Hill","1007 Blossom Hill","San Jose","Santa Clara","95123","JEMCOR Development Partners, LLC","JS V View at Blossom Hill, LLC"]
[null,null,null,null,null,null,null,null,null,null,null,null,null,null,null,null,null,null,null,null,null,null,null,null,null,null,null,null,null,null,null,null,null,null,null,null,null,null,null,null,null,null,null,null,"CA-2022-590  Hunters Point Shipyard Block 56","CA-2022-590","Hunters Point Shipyard Block 56","11 Innes Court","San Francisco","San Francisco","94124","Hunters Point Block 56, L.P.","Mercy HPSY Block 56 LLC"]
[null,null,null,null,null,null,null,null,null,null,null,null,null,null,null,null,null,null,null,null,null,null,null,null,null,null,null,null,null,null,null,null,null,null,null,null,null,null,null,null,null,null,null,null,"CA-2022-591  811 San Pablo","CA-2022-591","811 San Pablo","811 San Pablo Ave","Pinole","Contra Costa","94564","Satellite Affordable Housing Associates","Satellite AHA Development, Inc."]
[null,null,null,null,null,null,null,null,null,null,null,null,null,null,null,null,null,null,null,null,null,null,null,null,null,null,null,null,null,null,null,null,null,null,null,null,null,null,null,null,null,null,null,null,"CA-2022-592  Prospera at Homestead","CA-2022-592","Prospera at Homestead","TBD","Dixon","Solano","95620","Affordable Housing Community Development Corporati","Prospera Homestead GP, LLC"]
[null,null,null,null,null,null,null,null,null,null,null,null,null,null,null,null,null,null,null,null,null,null,null,null,null,null,null,null,null,null,null,null,null,null,null,null,null,null,null,null,null,null,null,null,"CA-2022-593  Tripoli","CA-2022-593","Tripoli","51392 Cesar Chavez St.","Coachella","Riverside","92236","Pacific Southwest Community Development Corporatio","CIC Tripoli, LLC"]
[null,null,null,null,null,null,null,null,null,null,null,null,null,null,null,null,null,null,null,null,null,null,null,null,null,null,null,null,null,null,null,null,null,null,null,null,null,null,null,null,null,null,null,null,"CA-2022-594  Ruby Street Apartments","CA-2022-594","Ruby Street Apartments","22447 Ruby Street","Castro Vallley","Alameda","94546","Ruby Street, L.P.","Ruby Street LLC"]
[null,null,null,null,null,null,null,null,null,null,null,null,null,null,null,null,null,null,null,null,null,null,null,null,null,null,null,null,null,null,null,null,null,null,null,null,null,null,null,null,null,null,null,null,"CA-2022-597  Murrieta Apartments Phase I","CA-2022-597","Murrieta Apartments Phase I","24960 Adams Avenue","Murrieta","Riverside","92562","National Community Renaissance of California","NCRC Murrieta I GP LLC (to-be-formed)"]
[null,null,null,null,null,null,null,null,null,null,null,null,null,null,null,null,null,null,null,null,null,null,null,null,null,null,null,null,null,null,null,null,null,null,null,null,null,null,null,null,null,null,null,null,"CA-2022-598  Alosta Gardens","CA-2022-598","Alosta Gardens","745 E 5th St.","Azusa","Los Angeles","91702","Bold Communities","Bold Communities"]
[null,null,null,null,null,null,null,null,null,null,null,null,null,null,null,null,null,null,null,null,null,null,null,null,null,null,null,null,null,null,null,null,null,null,null,null,null,null,null,null,null,null,null,null,"CA-2022-600  Vintage at Lockwood Apartments","CA-2022-600","Vintage at Lockwood Apartments","2151 Lockwood Street","Oxnard","Ventura","93036","Vintage at Lockwood, LP","Vintage at Lockwood Partners, LLC"]
[null,null,null,null,null,null,null,null,null,null,null,null,null,null,null,null,null,null,null,null,null,null,null,null,null,null,null,null,null,null,null,null,null,null,null,null,null,null,null,null,null,null,null,null,"CA-2022-601  Adelante Vista","CA-2022-601","Adelante Vista","1104 S. Robinson Street","Bakersfield","Kern","93307","Housing Authority of the County of Kern","Golden Empire Affordable Housing Inc."]
[null,null,null,null,null,null,null,null,null,null,null,null,null,null,null,null,null,null,null,null,null,null,null,null,null,null,null,null,null,null,null,null,null,null,null,null,null,null,null,null,null,null,null,null,"CA-2022-603  2111 Firestone","CA-2022-603","2111 Firestone","2111 Firestone Boulevard","Los Angeles","Los Angeles","90002","2111 Firestone, LP","Elsey Affordable California, LLC"]
[null,null,null,null,null,null,null,null,null,null,null,null,null,null,null,null,null,null,null,null,null,null,null,null,null,null,null,null,null,null,null,null,null,null,null,null,null,null,null,null,null,null,null,null,"CA-2022-604  Palmer Park Manor","CA-2022-604","Palmer Park Manor","617 E Palmer Avenue","Glendale","Los Angeles","91205","Palmer Park Housing Partners, LP","FFAH V Palmer Park, LLC"]
[null,null,null,null,null,null,null,null,null,null,null,null,null,null,null,null,null,null,null,null,null,null,null,null,null,null,null,null,null,null,null,null,null,null,null,null,null,null,null,null,null,null,null,null,"CA-2022-606  Jordan Downs Area H2B","CA-2022-606","Jordan Downs Area H2B","2254 E. 97th St","Los Angeles","Los Angeles","90002","Jordan Downs 3B, LP","JD Housing 3B, LLC"]
[null,null,null,null,null,null,null,null,null,null,null,null,null,null,null,null,null,null,null,null,null,null,null,null,null,null,null,null,null,null,null,null,null,null,null,null,null,null,null,null,null,null,null,null,"CA-2022-608  On Broadway Apartments","CA-2022-608","On Broadway Apartments","1901 Broadway","Sacramento","Sacramento","95818","Broadway Station, LP","1901 Broadway Sacramento EAH, LLC"]
[null,null,null,null,null,null,null,null,null,null,null,null,null,null,null,null,null,null,null,null,null,null,null,null,null,null,null,null,null,null,null,null,null,null,null,null,null,null,null,null,null,null,null,null,"CA-2022-611  Villa Oakland","CA-2022-611","Villa Oakland","2116 Brush Street","Oakland","Alameda","94612","2116 Brush, L.P.","2116 Brush LLC"]
[null,null,null,null,null,null,null,null,null,null,null,null,null,null,null,null,null,null,null,null,null,null,null,null,null,null,null,null,null,null,null,null,null,null,null,null,null,null,null,null,null,null,null,null,"CA-2022-614  San Pedro Family Apartments","CA-2022-614","San Pedro Family Apartments","Southeast Corner of River Drive and Best Road","Brawley","Imperial","92227","San Pedro Family Apartments, LP","PSCDC Four, LLC"]
[null,null,null,null,null,null,null,null,null,null,null,null,null,null,null,null,null,null,null,null,null,null,null,null,null,null,null,null,null,null,null,null,null,null,null,null,null,null,null,null,null,null,null,null,"CA-2022-615  La Brucherie Apartments","CA-2022-615","La Brucherie Apartments","East of La Brucherie Rd between W. 12th Street and W. 15th Street","Imperial","Imperial","92251","La Brucherie Apartments, LP","PSCDC Three, LLC"]
[null,null,null,null,null,null,null,null,null,null,null,null,null,null,null,null,null,null,null,null,null,null,null,null,null,null,null,null,null,null,null,null,null,null,null,null,null,null,null,null,null,null,null,null,"CA-2022-616  Delano RAD","CA-2022-616","Delano RAD","1910 Garces Hwy, Delano, CA 93215 and 327 Dover Place, Delano, CA 93215","Delano","Kern","93215","Housing Authority of the County of Kern","Golden Empire Affordable Housing Inc."]
[null,null,null,null,null,null,null,null,null,null,null,null,null,null,null,null,null,null,null,null,null,null,null,null,null,null,null,null,null,null,null,null,null,null,null,null,null,null,null,null,null,null,null,null,"CA-2022-617  Friendship Senior Housing","CA-2022-617","Friendship Senior Housing","1904 Adeline Street","Oakland","Alameda","94607","Friendship Senior Housing L.P.","CHDC Friendship Senior LLC"]
[null,null,null,null,null,null,null,null,null,null,null,null,null,null,null,null,null,null,null,null,null,null,null,null,null,null,null,null,null,null,null,null,null,null,null,null,null,null,null,null,null,null,null,null,"CA-2022-618  Alum Rock Multifamily","CA-2022-618","Alum Rock Multifamily","1860 Alum Rock Avenue","San Jose","Santa Clara","95116","Charities Housing Development Corporation of Santa","Alum Rock Charities LLC"]
[null,null,null,null,null,null,null,null,null,null,null,null,null,null,null,null,null,null,null,null,null,null,null,null,null,null,null,null,null,null,null,null,null,null,null,null,null,null,null,null,null,null,null,null,"CA-2022-624  Sunnydale HOPE SF Block 3A","CA-2022-624","Sunnydale HOPE SF Block 3A","Lot 3 Final Map 11040","San Francisco","San Francisco","94134","Sunnydale Block 3A Housing Partners, L.P.","Related/Sunnydale Block 3A Development Co., LLC"]
[null,null,null,null,null,null,null,null,null,null,null,null,null,null,null,null,null,null,null,null,null,null,null,null,null,null,null,null,null,null,null,null,null,null,null,null,null,null,null,null,null,null,null,null,"CA-2022-625  West LA VA- Building 156 & 157","CA-2022-625","West LA VA- Building 156 & 157","11301 Wilshire Boulevard, Building 156 & Building 157","Unincorporated Los Angele","Los Angeles","90073","CENTURY WLAVA 2 LP","CENTURY WLAVA 2 LLC"]
[null,null,null,null,null,null,null,null,null,null,null,null,null,null,null,null,null,null,null,null,null,null,null,null,null,null,null,null,null,null,null,null,null,null,null,null,null,null,null,null,null,null,null,null,"CA-2022-626  Sunnyview Villa","CA-2022-626","Sunnyview Villa","2900-2950 N. Indian Canyon Dr.","Palm Springs","Riverside","92262-2022","Sunnyview Villa Community Partners, LP","CPP - Sunnyview Villa GP, LLC"]
[null,null,null,null,null,null,null,null,null,null,null,null,null,null,null,null,null,null,null,null,null,null,null,null,null,null,null,null,null,null,null,null,null,null,null,null,null,null,null,null,null,null,null,null,{"$f":"CONCATENATE(AT5123,\"  \",AU5123)","v":"CA-2022-627  Hunters View Phase 3"},"CA-2022-627","Hunters View Phase 3","1151 Fairfax Avenue","San Francisco","San Francisco","94124","HV Partners 3, LP","HV HPAH Phase III LLC"]
[null,null,null,null,null,null,null,null,null,null,null,null,null,null,null,null,null,null,null,null,null,null,null,null,null,null,null,null,null,null,null,null,null,null,null,null,null,null,null,null,null,null,null,null,"CA-2022-628  Casa Aliento","CA-2022-628","Casa Aliento","1245 N Oxnard Blvd","Oxnard","Ventura","93030","Casa Aliento LP","Casa Aliento CDP LLC"]
[null,null,null,null,null,null,null,null,null,null,null,null,null,null,null,null,null,null,null,null,null,null,null,null,null,null,null,null,null,null,null,null,null,null,null,null,null,null,null,null,null,null,null,null,"CA-2022-630  Rancho Colus","CA-2022-630","Rancho Colus","1717 State Highway 20","Colusa","Colusa","95932","Rancho Colus LP","Rancho Colus-BBP, LLC"]
[null,null,null,null,null,null,null,null,null,null,null,null,null,null,null,null,null,null,null,null,null,null,null,null,null,null,null,null,null,null,null,null,null,null,null,null,null,null,null,null,null,null,null,null,"CA-2022-633  The Charles","CA-2022-633","The Charles","551 Keyes Street","San Jose","Santa Clara","95112","Charities Housing Development Corporation of Santa","Keyes Charities LLC"]
[null,null,null,null,null,null,null,null,null,null,null,null,null,null,null,null,null,null,null,null,null,null,null,null,null,null,null,null,null,null,null,null,null,null,null,null,null,null,null,null,null,null,null,null,"CA-2022-635  Mariposa on Second","CA-2022-635","Mariposa on Second","46 S. Second Street","Alhambra","Los Angeles","91801","Alhambra Second Street LP","AFH Alhambra LLC"]
[null,null,null,null,null,null,null,null,null,null,null,null,null,null,null,null,null,null,null,null,null,null,null,null,null,null,null,null,null,null,null,null,null,null,null,null,null,null,null,null,null,null,null,null,"CA-2022-636  Jordan Downs Phase S4","CA-2022-636","Jordan Downs Phase S4","10110 + 10150 S. Grape Street","Los Angeles","Los Angeles","90002","Jordan Downs Phase S4, LP","Jordan S4-Michaels, LLC"]